Workbook

Sheet t Interessensgruppen (hidden)
A1: Interessensgruppen | B1: [_keine_weitere_Interessensgruppe_]
B2: Jagdausübungsberechtigte | C2: Entscheidungsträger
B3: Jagdausübungsberechtigte (Eigenjagdgebiete) | C3: Entscheidungsträger
B4: Jagdausübungsberechtigte (Genossenschaftsjagdgebiete) | C4: Entscheidungsträger
B5: Grundeigentümer (Land- und Forstwirtschaft) | C5: Entscheidungsträger
B6: Grundeigentümer (Kleingrundbesitzer) | C6: Entscheidungsträger
B7: Grundeigentümer (Großgrundbesitzer) | C7: Entscheidungsträger
B8: Freizeit- und Erholungssuchende
B9: Tourismus
B10: WWF
B11: Naturschutzabteilung NÖ

Sheet README
A1: Es wird dringend empfohlen, die Bedienungsanleitung zu lesen, bevor Sie dieses Tool verwenden.
A2: Griesberger, P., Kunz, F., und Mattsson, B.J., 2021. Jagdliche Bewirtschaftung von Wildwiederkäuern in Niederösterreich: Entwicklung eines zukunftsorientierten Entscheidungsmodells (JAKEtool). Institut für Wildbiologie und Jagdwirtschaft, Universität für Bodenkultur, Wien. Online:
A3: https://boku.ac.at/fileadmin/data/H03000/H83000/H83200/Publikationen/JAKEtool_Anleitung.pdf

Sheet 1.0 Int.gruppen-Auswahl
F1: 0 | X1: Ja
X2: Nein
C3: Verwaltungseinheit (Revier, Hegering, etc.):
C6: Zeitraum (Jahr in der Zukunft):
C10: Sie können zusätzlich zu Ihrer eigenen "Interessensgruppe" bis zu zwei weitere Interessensgruppen definieren. Wählen Sie hierbei entweder vorgegebene Interessensgruppen oder erstellen Sie selbst welche, indem Sie diese direkt in das jeweilige Feld eintragen. | G10: Beschreiben Sie die Interessensgruppe. | H10: Können Personen der gewählten Interessensgruppe Entscheidungen treffen, wie Ressourcen (Zeit, Geld, etc.) im Rahmen der jagdlichen Bewirtschaftung von Wildwiederkäuern verteilt werden? | J10: Wie wichtig ist Ihnen Ihre eigene Zufriedenheit1, sowie die Zufriedenheit anderer Interessensgruppen?
D11: Interessensgruppe | H11: Ja oder Nein | J11: unwichtig | L11: durchschnittlich | N11: sehr wichtig
D12: 1 | E12: Ihre Interessensgruppe -> | S12: 0 | T12: =IF(S12=0,50,CHOOSE(S12,0,25,50,75,100)) -> 50 | U12: =T12 -> 50 | V12: =U12/U$15 -> 1
D13: 2 | E13: [_keine_weitere_Interessensgruppe_] | S13: 0 | T13: =IF(S13=0,50,CHOOSE(S13,0,25,50,75,100)) -> 50 | U13: =IF(E13="[_keine_weitere_Interessensgruppe_]",0,T13) -> 0 | V13: =U13/U$15 -> 0
D14: 3 | E14: [_keine_weitere_Interessensgruppe_] | S14: 0 | T14: =IF(S14=0,50,CHOOSE(S14,0,25,50,75,100)) -> 50 | U14: =IF(E14="[_keine_weitere_Interessensgruppe_]",0,T14) -> 0 | V14: =U14/U$15 -> 0
C15: 1 Die Zufriedenheit bezieht sich hierbei auf die Thematik "nachhaltige jagdliche Bewirtschaftung von Wildwiederkäuern in NÖ" | S15: Sum | T15: =SUM(T12:T14) -> 150 | U15: =SUM(U12:U14) -> 50 | V15: =SUM(V12:V14) -> 1
C18: Farblegende | E18: Feld zum Bearbeiten
E19: Informationsfeld (hinsichtlich der gewählten Eingabe)
E20: keine Daten eingetragen / ausgewählt
E21: Informationsfeld
C23: Gender-Hinweis | E23: Im Interesse der Lesbarkeit wird in diesem Modell auf geschlechtsbezogene Formulierungen verzichtet. Selbstverständlich sind immer Frauen und Männer gemeint, auch wenn explizit nur eines der Geschlechter angesprochen wird.

Sheet menu of sheets (hidden)

Sheet t Ökol Ziele (hidden)
A1: Ökologie | B1: [_kein_weiteres_Ziel_]
A2: 4 | B2: An den Lebensraum angepasste Wildbestände | C2: An den Lebensraum angepasste Wilddichten (z.B. Individuen einer Art pro ha)
A3: 5 | B3: Förderung / Erhalt der Artenvielfalt (Biodiversität) | C3: Förderung / Erhalt der genetischen Biodiversität, der Artenvielfalt und der Vielfalt der Lebensgemeinschaften (Ökosysteme)
A4: 1 | B4: Gesunde Wildbestände | C4: Intakte Altersstruktur; intaktes Geschlechterverhältnis; intakte Sozialstruktur; Reduktion von Wildkrankheiten; hohe Vielfalt innerhalb des Wildbestandes; an den Lebensraum angepasste Wildbretgewichte
A5: 6 | B5: Optimierung der Bejagung | C5: tagaktives Wild; natürlichen Äsungsrhythmus des Wildes aufrechterhalten bzw wieder herstellen; vertrauteres Wild
A6: 7 | B6: Revierübergreifende Bewirtschaftung | C6: Kooperationen mit Jagdnachbarn, um gemeinsam (mit Nachbarrevieren) ökologische Ziele festlegen zu können
A7: 3 | B7: Waldbauliche Ziele | C7: Sicherstellung ökologischer Waldfunktionen (z.B. Standortschutzwälder); Sicherung der standortgemäßen Baumarten; Klimafitte Wälder; wildgerechter Waldbau; Lebensraumfunktion für Wildtiere
A8: 2 | B8: Wildtiergerechte Lebensräume | C8: Schaffung von Wildkorridoren (festen Routen, auf denen sich Wildtiere großräumig bewegen, Vernetzung fragmentierter Ökosysteme oder günstiger Lebensräume); Berücksichtigung der Ansprüche, welche Wildtiere an deren Lebensraum stellen (Habitatqualität: Klima, Nahrung, Einstand, Beunruhigung, etc.); Berücksichtigung räumlicher und zeitlicher Veränderung der Lebensräume

Sheet t Ökon Ziele (hidden)
A1: Ökonomie | B1: ='t Ökol Ziele'!B1 -> [_kein_weiteres_Ziel_]
A2: 10 | B2: Erhöhung / Erhalt der Verkehrssicherheit | C2: Reduktion von Straßenfallwild
A3: 9 | B3: Förderung / Erhalt des ökonomischen Jagdwerts | C3: Wildbretqualität; Jagdtourismus; Verpachtung von Jagdrevieren; Erhalt / Förderung der jagdwirtschaftlichen Ertragsfähigkeit / Rentabilität aus der Sicht der Sicht des Pächters und Verpächters; Einnahmen durch Abschussvergaben steigern; Erhalt des jagdlichen Erholungswerts (Jagden mit hohen Erholungswert können gut verpachtet werden)
A4: 12 | B4: Förderung / Erhalt von Synergien mit anderen Wirtschaftszweigen | C4: Abstimmung menschlicher Landnutzungsformen (Jagdwirtschaft, Forstwirtschaft, Landwirtschaft, Freizeit- und Tourismuswirtschaft)
A5: 13 | B5: Optimierung der Bejagung | C5: effizientere Abschusserfüllung (Reduktion der Stunden die benötigt werden, um einen Abschuss zu tätigen); Reduktion der Ressourcen (Zeit und Geld) die für die Erfüllung des Abschussplanes eingesetzt werden müssen, Wahl eines geeigneten Jagdpächters/einer geeigneten Jagdpächterin
A6: 14 | B6: Revierübergreifende Bewirtschaftung | C6: Kooperationen mit Jagdnachbarn, um gemeinsam (mit Nachbarrevieren) ökonomische Ziele festlegen zu können
A7: 8 | B7: Verhinderung von Wildschaden | C7: Revierübergreifende Abstimmung in der Bewirtschaftung vor allem beim Rot- und Gamswild; Verhinderung von untragbaren Wildeinflüssen (Schäle, Verbiss, etc.) auf forst- und landwirtschaftlichen Flächen; Reduktion des Wildschadens von … € auf … €
A8: 11 | B8: Waldbauliche Ziele | C8: Sicherstellung ökonomischer Waldfunktionen (z.B. Objektschutzwälder, forstwirtschaftliche Nutzung)

Sheet t Soz-Kultur Ziele (hidden)
A1: Sozio-Kultur | B1: ='t Ökol Ziele'!B1 -> [_kein_weiteres_Ziel_]
A2: 18 | B2: Ausgleich verschiedener Interessen | C2: Konfliktvermeidung zwischen verschiedenen Interessensgruppen/Landnutzergruppen und Landbenutzern
A3: 21 | B3: Entscheidungsfreiheit der Grundeigentümer erhalten | C3: Förderung / Erhalt des Respekts gegenüber unterschiedlicher Reviersziele
A4: 19 | B4: Erhalt der Jagdethik | C4: Definition des Begriffs „Weidgerechtigkeit“
A5: 15 | B5: Erhalt der jagdlichen Tradition / des jagdlichen Brauchtums | C5: Jägersprache forcieren; jagdliche Tracht aufrechterhalten; Bruchzeichen; Verhalten gegenüber (erlegtem) Wild; Schüsseltrieb; Jagdhornbläsergruppen
A6: 22 | B6: Erhalt des jagdlichen Erholungswerts | C6: Weidgerechte Jagd auf lebensraumangepasste Bestände soll Freude bereiten
A7: 17 | B7: Erhöhung / Erhalt der Verkehrssicherheit | C7: Verhinderung von Personen- und Sachschaden
A8: 16 | B8: Image und Stellenwert der Jagd in der Gesellschaft | C8: Aufklärungsarbeit mittels Hinweisschildern, Social-Media, Auftritten in der Öffentlichkeit; Orientierung der Jagd am Wohlbefinden des Wildes; Jagd als Nahrungsbeschaffung
A9: 20 | B9: Kontrolle der Einhaltung gesetzlicher Rahmenbedingungen | C9: Verbesserung des jagdlichen Images in der Gesellschaft; Kontrolle hinsichtlich der Erfüllung der Abschusspläne; Berücksichtigung naturschutzrechtlich geschützter Gebiete
A10: 24 | B10: Verbesserung der Aus- und Fortbildung | C10: Auswirkungen der Jagd auf andere Landnutzergruppen und vice versa bewusst machen; Verbesserungen im Bereich der Jungjägerausbildung
A11: 23 | B11: Waldbauliche Ziele | C11: Sicherstellung soziokultureller Waldfunktionen (z.B. Erholungs- und Schutzfunktionen)

Sheet 1.1 Ziele-Auswahl
C3: Verwaltungseinheit (Revier, Hegering, etc.):
C4: ='1.0 Int.gruppen-Auswahl'!C4 -> 0
C6: Zeitraum (Jahr in der Zukunft):
C7: ='1.0 Int.gruppen-Auswahl'!C7 -> 0
C9: 1) Wählen Sie für jeden Bereich bis zu zwei Ziele, welche Sie hinsichtlich einer nachhaltigen jagdlichen Bewirtschaftung von Wildwiederkäuern in NÖ verfolgen möchten. Wählen Sie hierbei entweder vorgegebene Ziele oder erstellen Sie eigene Ziele, indem Sie diese direkt in das jeweilige Feld eintragen. | G9: 2) Beschreiben Sie was Sie unter dem jeweiligen Ziel verstehen. Wählen Sie hierfür entweder den Beschreibungs-Vorschlag oder erstellen Sie eine eigene Beschreibung. | J9: 3) Beschreiben Sie den IST-Zustand und den SOLL-Zustand für die jeweiligen Ziele. Der SOLL-Zustand soll in dem von Ihnen gewählten Zeitraum (siehe links) erreichbar sein. Achten Sie darauf, dass die Ziele messbar sind.
D11: Ziele | G11: Beschreibung | I11: Beschreibungs-Vorschlag | J11: IST-Zustand | K11: SOLL-Zustand
D12: Ökologischer Bereich
D13: 1 | E13: [_kein_weiteres_Ziel_] | I13: =VLOOKUP(E13,'t Ökol Ziele'!B:C,2,0) -> 
D14: 2 | E14: [_kein_weiteres_Ziel_] | I14: =VLOOKUP(E14,'t Ökol Ziele'!B:C,2,0) -> 
D16: Ökonomischer Bereich
D17: 1 | E17: [_kein_weiteres_Ziel_] | I17: =VLOOKUP(E17,'t Ökon Ziele'!B:C,2,0) -> 
D18: 2 | E18: [_kein_weiteres_Ziel_] | I18: =VLOOKUP(E18,'t Ökon Ziele'!B:C,2,0) -> 
D20: Soziokultureller Bereich
D21: 1 | E21: [_kein_weiteres_Ziel_] | I21: =VLOOKUP(E21,'t Soz-Kultur Ziele'!B:C,2,0) -> 
D22: 2 | E22: [_kein_weiteres_Ziel_] | I22: =VLOOKUP(E22,'t Soz-Kultur Ziele'!B:C,2,0) -> 

Sheet 1.2.1 eigene Rangliste
S2: Run macro-> | T2: FALSE | U2: FALSE
C4: Verwaltungseinheit (Revier, Hegering, etc.):
C5: ='1.0 Int.gruppen-Auswahl'!C4 -> 0
C7: Zeitraum (Jahr in der Zukunft):
C8: ='1.0 Int.gruppen-Auswahl'!C7 -> 0 | P8: =O13 -> Ökol.
P9: =O19 -> Ökon.
P10: =O25 -> Soz.kult.
E11: Wie wichtig sind Ihnen die jeweiligen Ziele? | L11: Rang | P11: ='t eigene Abwägung Abb. '!J19 -> Ökol.
B12: Ziele | E12: unwichtig | G12: durchschnittlich | I12: sehr wichtig | L12: Bereich | M12: Zielfaktor | N12: Max. Mittelwert?
C13: Ökologischer Bereich | L13: =RANK(U17,Q$17:Q$19,0) -> 1 | N13: =IF(U17=U$32,TRUE) -> TRUE | O13: Ökol.
D14: ='1.1 Ziele-Auswahl'!E13 -> [_kein_weiteres_Ziel_] | M14: =RANK(U14,U$14:U$16,0) -> 1 | T14: 0 | U14: =IF(T14=0,50,CHOOSE(T14,0,25,50,75,100)) -> 50 | V14: =COLUMN(U14) -> 21
D16: ='1.1 Ziele-Auswahl'!E14 -> [_kein_weiteres_Ziel_] | M16: =RANK(U16,U$14:U$16,0) -> 1 | T16: 0 | U16: =IF(T16=0,50,CHOOSE(T16,0,25,50,75,100)) -> 50
D17: [_kein_weiteres_Ziel_] | E17: Mittelwert | Q17: =U17 -> 50 | U17: =AVERAGE(U14:U16) -> 50
L18: 100 | Q18: =U23 -> 50
C19: Ökonomischer Bereich | L19: =RANK(U23,Q$17:Q$19,0) -> 1 | N19: =IF(U23=U$32,TRUE) -> TRUE | O19: Ökon. | Q19: =U29 -> 50
D20: ='1.1 Ziele-Auswahl'!E17 -> [_kein_weiteres_Ziel_] | M20: =RANK(U20,U$20:U$22,0) -> 1 | T20: 0 | U20: =IF(T20=0,50,CHOOSE(T20,0,25,50,75,100)) -> 50
D22: ='1.1 Ziele-Auswahl'!E18 -> [_kein_weiteres_Ziel_] | M22: =RANK(U22,U$20:U$22,0) -> 1 | T22: 0 | U22: =IF(T22=0,50,CHOOSE(T22,0,25,50,75,100)) -> 50
D23: [_kein_weiteres_Ziel_] | E23: Mittelwert | U23: =AVERAGE(U20:U22) -> 50
C25: Soziokultureller Bereich | L25: =RANK(U29,Q$17:Q$19,0) -> 1 | N25: =IF(U29=U$32,TRUE) -> TRUE | O25: Soz.kult.
D26: ='1.1 Ziele-Auswahl'!E21 -> [_kein_weiteres_Ziel_] | M26: =RANK(U26,U$26:U$28,0) -> 1 | T26: 0 | U26: =IF(T26=0,50,CHOOSE(T26,0,25,50,75,100)) -> 50
D28: ='1.1 Ziele-Auswahl'!E22 -> [_kein_weiteres_Ziel_] | M28: =RANK(U28,U$26:U$28,0) -> 1 | T28: 0 | U28: =IF(T28=0,50,CHOOSE(T28,0,25,50,75,100)) -> 50
D29: Mittelwert | U29: =AVERAGE(U26:U28) -> 50
D32: Max. Mittelwert | U32: =MAX(U17,U23,U29) -> 50

Sheet t eigene Abwägung Abb. (hidden)
A1: alphaOrder | B1: =J19 -> Ökol. | C1: =K19 -> Ökon. | D1: =L19 -> Soz.kult. | E1: util
A2: ='t eigene Abwägung Abb. '!I21 -> 1 | B2: ='t eigene Abwägung Abb. '!J21 -> ↑→ | C2: ='t eigene Abwägung Abb. '!K21 -> ↑→ | D2: ='t eigene Abwägung Abb. '!L21 -> ↓ | E2: ='t eigene Abwägung Abb. '!$W21 -> 71.432
A3: ='t eigene Abwägung Abb. '!I23 -> 3 | B3: ='t eigene Abwägung Abb. '!J23 -> ↓ | C3: ='t eigene Abwägung Abb. '!K23 -> ↑→ | D3: ='t eigene Abwägung Abb. '!L23 -> ↑→ | E3: ='t eigene Abwägung Abb. '!$W23 -> 71.432
A4: ='t eigene Abwägung Abb. '!I22 -> 2 | B4: ='t eigene Abwägung Abb. '!J22 -> ↑→ | C4: ='t eigene Abwägung Abb. '!K22 -> ↓ | D4: ='t eigene Abwägung Abb. '!L22 -> ↑→ | E4: ='t eigene Abwägung Abb. '!$W22 -> 71.432
A5: ='t eigene Abwägung Abb. '!I25 -> 5 | B5: ='t eigene Abwägung Abb. '!J25 -> ↓ | C5: ='t eigene Abwägung Abb. '!K25 -> ↑→ | D5: ='t eigene Abwägung Abb. '!L25 -> ↓ | E5: ='t eigene Abwägung Abb. '!$W25 -> 28.574
A6: ='t eigene Abwägung Abb. '!I24 -> 4 | B6: ='t eigene Abwägung Abb. '!J24 -> ↑→ | C6: ='t eigene Abwägung Abb. '!K24 -> ↓ | D6: ='t eigene Abwägung Abb. '!L24 -> ↓ | E6: ='t eigene Abwägung Abb. '!$W24 -> 28.574
A7: ='t eigene Abwägung Abb. '!I26 -> 6 | B7: ='t eigene Abwägung Abb. '!J26 -> ↓ | C7: ='t eigene Abwägung Abb. '!K26 -> ↓ | D7: ='t eigene Abwägung Abb. '!L26 -> ↑→ | E7: ='t eigene Abwägung Abb. '!$W26 -> 28.574
J10: Verwaltungseinheit: | U10: 1 | V10: 1 | W10: 1 | X10: =PRODUCT(U10:W10) -> 1
J11: ='1.0 Int.gruppen-Auswahl'!C4 -> 0 | U11: 1 | V11: 1 | W11: 3 | X11: =PRODUCT(U11:W11) -> 3
U12: 1 | V12: 2 | W12: 2 | X12: =PRODUCT(U12:W12) -> 4
J13: Zeitraum: | U13: 1 | V13: 2 | W13: 3 | X13: =PRODUCT(U13:W13) -> 6
J14: ='1.2.1 eigene Rangliste'!C8 -> 0 | X14: =PRODUCT(J17:L17) -> 1
B16: Möglichkeit unter Entscheidungs- optionen | E16: Erwartete Zufriedenheit unter Unsicherheit der jeweiligen Entscheiungs-optionen | J16: Hypothetische Änderung der Nachhaltigkeitsbereiche* innerhalb der Verwaltungseinheit und des gewählten Zeitraumes | M16: Schätzen Sie Ihre erwartete Zufriedenheit | U16: 1 | V16: =U16*100 -> 100
B17: A | C17: B | E17: A | F17: B | J17: 1 | K17: =IF(OR('1.2.1 eigene Rangliste'!L13=2,'1.2.1 eigene Rangliste'!L19=2,'1.2.1 eigene Rangliste'!L25=2),2,1) -> 1 | L17: =IF(OR('1.2.1 eigene Rangliste'!L13=3,'1.2.1 eigene Rangliste'!L19=3,'1.2.1 eigene Rangliste'!L25=3),3,IF(OR('1.2.1 eigene Rangliste'!L13=2,'1.2.1 eigene Rangliste'!L19=2,'1.2.1 eigene Rangliste'!L25=2),2,1)) -> 1 | U17: 4.5 | V17: 50
M18: komplett unzufrieden | O18: mittelere Zufriedenheit | Q18: komplett zufrieden | U18: 8 | V18: 0
I19: alphOrder | J19: =IF(J17='1.2.1 eigene Rangliste'!L13,'1.2.1 eigene Rangliste'!O13,IF(J17='1.2.1 eigene Rangliste'!L19,'1.2.1 eigene Rangliste'!O19,IF(J17='1.2.1 eigene Rangliste'!L25,'1.2.1 eigene Rangliste'!O25))) -> Ökol. | K19: =IF(AND(K17='1.2.1 eigene Rangliste'!L13,K17>=2),'1.2.1 eigene Rangliste'!O13,IF(AND(K17='1.2.1 eigene Rangliste'!L19,K17<>J17),'1.2.1 eigene Rangliste'!O19,IF(AND(K17='1.2.1 eigene Rangliste'!L25,K17<>L17),'1.2.1 eigene Rangliste'!O25,'1.2.1 eigene Rangliste'!O19))) -> Ökon. | L19: =IF(AND(L17='1.2.1 eigene Rangliste'!L13,L17>2),'1.2.1 eigene Rangliste'!O13,IF(AND(L17='1.2.1 eigene Rangliste'!L19,L17>=2,L17<>K17),'1.2.1 eigene Rangliste'!O19,IF(L17='1.2.1 eigene Rangliste'!L25,'1.2.1 eigene Rangliste'!O25,'1.2.1 eigene Rangliste'!O19))) -> Soz.kult.
B20: =calculations!AB22 -> 0.125 | C20: =calculations!AC22 -> 0.125 | E20: =B20*$W20 -> 12.5 | F20: =C20*$W20 -> 12.5 | J20: ↑→ | K20: ↑→ | L20: ↑→ | Q20: X | U20: 1 | V20: =-14.286*U20 + 114.29 -> 100.004 | W20: 100 | AN20: =W20 -> 100 | AO20: =100/8 -> 12.5
B21: =calculations!AB23 -> 0.125 | C21: =calculations!AC23 -> 0.125 | E21: =B21*$W21 -> 8.929 | F21: 8.929 | I21: 1 | J21: ↑→ | K21: ↑→ | L21: ↓ | U21: 2 | V21: 85.718 | W21: =IF(X$14=1,V22,IF(X$14=3,V21,IF(X$14=4,AVERAGE(V21,V22),IF(X$14=6,V21,100)))) -> 71.432 | Y21: =IF(W21<W23,0,1) -> 1 | Z21: =IF(W22>W21,0,1) -> 1 | AA21: =IF(W24>W21,0,1) -> 1 | AB21: =IF(W25>W21,0,1) -> 1 | AE21: =PRODUCT(Y21:AC21) -> 1 | AL21: =$J$35*$K$35*(1-$L$35) -> 0 | AM21: =$J$36*$K$36*(1-$L$36) -> 0 | AN21: 71.432
B22: =calculations!AB25 -> 0.125 | C22: =calculations!AC25 -> 0.125 | E22: 8.929 | F22: 8.929 | I22: 2 | J22: ↑→ | K22: ↓ | L22: ↑→ | U22: 3 | V22: 71.432 | W22: =IF(X$14=1,V22,IF(X$14=3,AVERAGE(V22,V23),IF(X$14=4,AVERAGE(V21,V22),IF(X$14=6,V22,100)))) -> 71.432 | Y22: =IF(W22<W23,0,1) -> 1 | Z22: =IF(W22>W21,0,1) -> 1 | AA22: =IF(W24>W22,0,1) -> 1 | AB22: =IF(W26>W22,0,1) -> 1 | AL22: =$J$35*(1-$K$35)*$L$35 -> 0 | AM22: =$J$36*(1-$K$36)*$L$36 -> 0 | AN22: 71.432
B23: =calculations!AB26 -> 0.125 | C23: =calculations!AC26 -> 0.125 | E23: 8.929 | F23: 8.929 | I23: 3 | J23: ↓ | K23: ↑→ | L23: ↑→ | U23: 4 | V23: 57.146 | W23: =IF(X$14=1,V22,IF(X$14=3,AVERAGE(V22,V23),IF(X$14=4,AVERAGE(V22,V23),IF(X$14=6,V23,100)))) -> 71.432 | Y23: =IF(W22<W23,0,1) -> 1 | Z23: =Y21 -> 1 | AA23: =IF(W25>W23,0,1) -> 1 | AB23: =IF(W26>W23,0,1) -> 1 | AL23: =(1-$J$35)*$K$35*$L$35 -> 0 | AM23: =(1-$J$36)*$K$36*$L$36 -> 0 | AN23: 71.432
B24: =calculations!AB29 -> 0.125 | C24: =calculations!AC29 -> 0.125 | E24: 3.57175 | F24: 3.57175 | I24: 4 | J24: ↑→ | K24: ↓ | L24: ↓ | U24: 5 | V24: 42.86 | W24: =IF(X$14=1,V25, IF(X$14=3,AVERAGE(V24,V25), IF(X$14=4,AVERAGE(V24,V25),IF(X$14=6,V24,100)))) -> 28.574 | Y24: =IF(W24<W25,0,1) -> 1 | Z24: =IF(W26>W24,0,1) -> 1 | AA24: =IF(W24>W22,0,1) -> 1 | AB24: =IF(W24>W21,0,1) -> 1 | AL24: =$J$35*(1-$K$35)*(1-$L$35) -> 0 | AM24: =$J$36*(1-$K$36)*(1-$L$36) -> 0 | AN24: 28.574 | AR24: ='1.2.1 eigene Rangliste'!$O$13 -> Ökol.
B25: =calculations!AB30 -> 0.125 | C25: =calculations!AC30 -> 0.125 | E25: 3.57175 | F25: 3.57175 | I25: 5 | J25: ↓ | K25: ↑→ | L25: ↓ | U25: 6 | V25: 28.574 | W25: =IF(X$14=1,V25,IF(X$14=3,AVERAGE(V24,V25),IF(X$14=4,AVERAGE(V25,V26),IF(X$14=6,V25,100)))) -> 28.574 | Y25: =IF(W24<W25,0,1) -> 1 | Z25: =IF(W25<W26,0,1) -> 1 | AA25: =IF(W25>W23,0,1) -> 1 | AB25: =IF(W25>W21,0,1) -> 1 | AL25: =(1-$J$35)*$K$35*(1-$L$35) -> 0 | AM25: =(1-$J$36)*$K$36*(1-$L$36) -> 0 | AN25: 28.574 | AR25: ='1.2.1 eigene Rangliste'!$O$19 -> Ökon.
B26: =calculations!AB32 -> 0.125 | C26: =calculations!AC32 -> 0.125 | E26: 3.57175 | F26: 3.57175 | I26: 6 | J26: ↓ | K26: ↓ | L26: ↑→ | U26: 7 | V26: =-14.286*U26 + 114.29 -> 14.288 | W26: =IF(X$14=1,V25,IF(X$14=3,V26,IF(X$14=4,AVERAGE(V25,V26),IF(X$14=6,V26,100)))) -> 28.574 | Y26: IF(L$17=2,10)) | Z26: =IF(W26>W25,0,1) -> 1 | AA26: =IF(W26>W24,0,1) -> 1 | AB26: =IF(W26>W23,0,1) -> 1 | AC26: =IF(W26>W22,0,1) -> 1 | AL26: =(1-$J$35)*(1-$K$35)*$L$35 -> 0 | AM26: =(1-$J$36)*(1-$K$36)*$L$36 -> 0 | AN26: 28.574 | AR26: ='1.2.1 eigene Rangliste'!$O$25 -> Soz.kult.
B27: =calculations!AB33 -> 0.1245117188 | C27: =calculations!AC33 -> 0.125 | E27: 0 | F27: 0 | J27: ↓ | K27: ↓ | L27: ↓ | M27: X | U27: 8 | V27: 0.002 | W27: 0 | AL27: =(1-$J$35)*(1-$K$35)*(1-$L$35) -> 1 | AM27: =(1-$J$36)*(1-$K$36)*(1-$L$36) -> 1 | AN27: =#REF! -> 
A28: Sum | B28: =SUM(B20:B27) -> 0.9995117188 | C28: =SUM(C20:C27) -> 1 | E28: =SUM(E20:E27) -> 50.00225 | F28: =SUM(F20:F27) -> 50.00225 | AN28: =W28 -> 0
V31: 28.574 | AO31: =IF(X$14=6,AVERAGE(V31,V32,100)) -> FALSE
V32: 14.288
J33: Farblegende | L33: Eintragung widerspricht Arbeitsblatt 1.2.1

Sheet t eigene Abwägung (hidden)
A1: alphaOrder | B1: Ökol. | C1: Ökon. | D1: Soz.kult. | E1: util
A2: 1 | B2: ↑→ | C2: ↑→ | D2: ↓ | E2: 85.718
A3: 3 | B3: ↓ | C3: ↑→ | D3: ↑→ | E3: 64.289
A4: 2 | B4: ↑→ | C4: ↓ | D4: ↑→ | E4: 64.289
A5: 5 | B5: ↓ | C5: ↑→ | D5: ↓ | E5: 35.717
A6: 4 | B6: ↑→ | C6: ↓ | D6: ↓ | E6: 35.717
A7: 6 | B7: ↓ | C7: ↓ | D7: ↑→ | E7: 14.288

Sheet BETA Int.gruppen-Auswahl (hidden)
C3: Verwaltungseinheit (Revier, Hegering, etc.):
C6: Zeitraum (Jahr in der Zukunft):
C9: 1) Bitte wählen Sie bis zu zwei relevanten Interessensgruppen. Wählen oder ändern Sie eine vorgegebene Interessensgruppe oder erstellen Sie ihre eigene. | G9: 2) Bitte beschreiben Sie jede Interessensgruppe. Wählen oder ändern Sie die vorgegebe Beschreibung oder stellen Sie Ihre eigene.
D11: Interessensgruppe | G11: Beschreibung | I11: Vorgegebene Beschreibung
D12: 1 | E12: [_keine_weitere_Interessensgruppe_] | I12: =VLOOKUP(E12,'t Interessensgruppen'!B:C,2,0) -> 
D13: 2 | E13: [_keine_weitere_Interessensgruppe_] | I13: =VLOOKUP(E13,'t Interessensgruppen'!B:C,2,0) -> 

Sheet 1.3.1 Rangliste der Int.gruppe1 (hidden)
S2: Run macro-> | T2: TRUE | U2: FALSE
C3: Verwaltungseinheit (Revier, Hegering, etc.):
C4: ='1.0 Int.gruppen-Auswahl'!C4 -> 0
JI5: ='1.0 Int.gruppen-Auswahl'!C4 -> 0
C6: Zeitraum (Jahr in der Zukunft):
C7: ='1.0 Int.gruppen-Auswahl'!C7 -> 0 | P7: =O12 -> Ökol.
P8: =O18 -> Ökon.
P9: =O24 -> Soz.kult.
E10: =CONCATENATE("Wie wichtig sind die jeweiligen Ziele der Interessensgruppe: ",'1.0 Int.gruppen-Auswahl'!E13) -> Wie wichtig sind die jeweiligen Ziele der Interessensgruppe: [_keine_weitere_Interessensgruppe_] | L10: Rang | P10: ='t eigene Abwägung Abb. '!J19 -> Ökol.
B11: Ziele | E11: unwichtig | G11: durchschnittlich | I11: sehr wichtig | L11: Bereich | M11: Zielfaktor | N11: Max. Mittelwert?
C12: Ökologischer Bereich | L12: =RANK(U16,Q$16:Q$18,0) -> 1 | N12: =IF(U16=U$31,TRUE) -> TRUE | O12: Ökol.
D13: ='1.1 Ziele-Auswahl'!E13 -> [_kein_weiteres_Ziel_] | M13: =RANK(U13,U$13:U$15,0) -> 1 | T13: 0 | U13: =IF(T13=0,50,CHOOSE(T13,0,25,50,75,100)) -> 50
D15: ='1.1 Ziele-Auswahl'!E14 -> [_kein_weiteres_Ziel_] | M15: =RANK(U15,U$13:U$15,0) -> 1 | T15: 0 | U15: =IF(T15=0,50,CHOOSE(T15,0,25,50,75,100)) -> 50
D16: [_kein_weiteres_Ziel_] | E16: Mittelwert | Q16: =U16 -> 50 | U16: =AVERAGE(U13:U15) -> 50
L17: 100 | Q17: =U22 -> 50
C18: Ökonomischer Bereich | L18: =RANK(U22,Q$16:Q$18,0) -> 1 | N18: =IF(U22=U$31,TRUE) -> TRUE | O18: Ökon. | Q18: =U28 -> 50
D19: ='1.1 Ziele-Auswahl'!E17 -> [_kein_weiteres_Ziel_] | M19: =RANK(U19,U$19:U$21,0) -> 1 | T19: 0 | U19: =IF(T19=0,50,CHOOSE(T19,0,25,50,75,100)) -> 50
D21: ='1.1 Ziele-Auswahl'!E18 -> [_kein_weiteres_Ziel_] | M21: =RANK(U21,U$19:U$21,0) -> 1 | T21: 0 | U21: =IF(T21=0,50,CHOOSE(T21,0,25,50,75,100)) -> 50
D22: [_kein_weiteres_Ziel_] | E22: Mittelwert | U22: =AVERAGE(U19:U21) -> 50
C24: Soziokultureller Bereich | L24: =RANK(U28,Q$16:Q$18,0) -> 1 | N24: =IF(U28=U$31,TRUE) -> TRUE | O24: Soz.kult.
D25: ='1.1 Ziele-Auswahl'!E21 -> [_kein_weiteres_Ziel_] | M25: =RANK(U25,U$25:U$27,0) -> 1 | T25: 0 | U25: =IF(T25=0,50,CHOOSE(T25,0,25,50,75,100)) -> 50
D27: ='1.1 Ziele-Auswahl'!E22 -> [_kein_weiteres_Ziel_] | M27: =RANK(U27,U$25:U$27,0) -> 1 | T27: 0 | U27: =IF(T27=0,50,CHOOSE(T27,0,25,50,75,100)) -> 50
D28: Mittelwert | U28: =AVERAGE(U25:U27) -> 50
D31: Max. Mittelwert | U31: =MAX(U16,U22,U28) -> 50

Sheet t Abwägung der Int.gruppe 1 (hidden)
A1: alphaOrder | B1: Ökol. | C1: Ökon. | D1: Soz.kult. | E1: util
A2: 1 | B2: ↑→ | C2: ↑→ | D2: ↓ | E2: 71.432
A3: 2 | B3: ↑→ | C3: ↓ | D3: ↑→ | E3: 71.432
A4: 3 | B4: ↓ | C4: ↑→ | D4: ↑→ | E4: 71.432
A5: 4 | B5: ↑→ | C5: ↓ | D5: ↓ | E5: 28.574
A6: 5 | B6: ↓ | C6: ↑→ | D6: ↓ | E6: 28.574
A7: 6 | B7: ↓ | C7: ↓ | D7: ↑→ | E7: 28.574

Sheet t Abwägung der Int.gruppe 1 Abb (hidden)
A1: alphaOrder | B1: =I19 -> Ökol. | C1: =J19 -> Ökon. | D1: =K19 -> Soz.kult. | E1: util
A2: ='t Abwägung der Int.gruppe 1 Abb'!H21 -> 1 | B2: ='t Abwägung der Int.gruppe 1 Abb'!I21 -> ↑→ | C2: ='t Abwägung der Int.gruppe 1 Abb'!J21 -> ↑→ | D2: ='t Abwägung der Int.gruppe 1 Abb'!K21 -> ↓ | E2: ='t Abwägung der Int.gruppe 1 Abb'!$V21 -> 71.432
A3: ='t Abwägung der Int.gruppe 1 Abb'!H22 -> 2 | B3: ='t Abwägung der Int.gruppe 1 Abb'!I22 -> ↑→ | C3: ='t Abwägung der Int.gruppe 1 Abb'!J22 -> ↓ | D3: ='t Abwägung der Int.gruppe 1 Abb'!K22 -> ↑→ | E3: ='t Abwägung der Int.gruppe 1 Abb'!$V22 -> 71.432
A4: ='t Abwägung der Int.gruppe 1 Abb'!H23 -> 3 | B4: ='t Abwägung der Int.gruppe 1 Abb'!I23 -> ↓ | C4: ='t Abwägung der Int.gruppe 1 Abb'!J23 -> ↑→ | D4: ='t Abwägung der Int.gruppe 1 Abb'!K23 -> ↑→ | E4: ='t Abwägung der Int.gruppe 1 Abb'!$V23 -> 71.432
A5: ='t Abwägung der Int.gruppe 1 Abb'!H24 -> 4 | B5: ='t Abwägung der Int.gruppe 1 Abb'!I24 -> ↑→ | C5: ='t Abwägung der Int.gruppe 1 Abb'!J24 -> ↓ | D5: ='t Abwägung der Int.gruppe 1 Abb'!K24 -> ↓ | E5: ='t Abwägung der Int.gruppe 1 Abb'!$V24 -> 28.574
A6: ='t Abwägung der Int.gruppe 1 Abb'!H25 -> 5 | B6: ='t Abwägung der Int.gruppe 1 Abb'!I25 -> ↓ | C6: ='t Abwägung der Int.gruppe 1 Abb'!J25 -> ↑→ | D6: ='t Abwägung der Int.gruppe 1 Abb'!K25 -> ↓ | E6: ='t Abwägung der Int.gruppe 1 Abb'!$V25 -> 28.574
A7: ='t Abwägung der Int.gruppe 1 Abb'!H26 -> 6 | B7: ='t Abwägung der Int.gruppe 1 Abb'!I26 -> ↓ | C7: ='t Abwägung der Int.gruppe 1 Abb'!J26 -> ↓ | D7: ='t Abwägung der Int.gruppe 1 Abb'!K26 -> ↑→ | E7: ='t Abwägung der Int.gruppe 1 Abb'!$V26 -> 28.574
I10: Verwaltungseinheit: | T10: 1 | U10: 1 | V10: 1 | AG10: =PRODUCT(T10:V10) -> 1
I11: ='1.0 Int.gruppen-Auswahl'!C4 -> 0 | T11: 1 | U11: 1 | V11: 3 | AG11: =PRODUCT(T11:V11) -> 3
T12: 1 | U12: 2 | V12: 2 | AG12: =PRODUCT(T12:V12) -> 4
I13: Zeitraum: | T13: 1 | U13: 2 | V13: 3 | AG13: =PRODUCT(T13:V13) -> 6
I14: ='1.3.1 Rangliste der Int.gruppe1'!C7 -> 0 | AG14: =PRODUCT(I17:K17) -> 1
B16: Möglichkeit unter Entscheidungs- optionen | E16: Erwartete Zufriedenheit unter Unsicherheit der jeweiligen Entscheiungs-optionen | I16: Hypothetische Änderung der Nachhaltigkeitsbereiche* innerhalb der Verwaltungseinheit und des gewählten Zeitraumes | L16: =CONCATENATE("Erwartete Zufriedenheit der Interessensgruppe: ",'1.0 Int.gruppen-Auswahl'!E13) -> Erwartete Zufriedenheit der Interessensgruppe: [_keine_weitere_Interessensgruppe_] | T16: 1 | U16: =T16*100 -> 100
B17: A | C17: B | E17: A | F17: B | I17: 1 | J17: =IF(OR('1.3.1 Rangliste der Int.gruppe1'!L12=2,'1.3.1 Rangliste der Int.gruppe1'!L18=2,'1.3.1 Rangliste der Int.gruppe1'!L24=2),2,1) -> 1 | K17: =IF(OR('1.3.1 Rangliste der Int.gruppe1'!L12=3,'1.3.1 Rangliste der Int.gruppe1'!L18=3,'1.3.1 Rangliste der Int.gruppe1'!L24=3),3,IF(OR('1.3.1 Rangliste der Int.gruppe1'!L12=2,'1.3.1 Rangliste der Int.gruppe1'!L18=2,'1.3.1 Rangliste der Int.gruppe1'!L24=2),2,1)) -> 1 | T17: 4.5 | U17: 50
L18: komplett unzufrieden | N18: mittelere Zufriedenheit | P18: komplett zufrieden | T18: 8 | U18: 0
I19: =IF(I17='1.3.1 Rangliste der Int.gruppe1'!L12,'1.3.1 Rangliste der Int.gruppe1'!O12,IF(I17='1.3.1 Rangliste der Int.gruppe1'!L18,'1.3.1 Rangliste der Int.gruppe1'!O18,IF(I17='1.3.1 Rangliste der Int.gruppe1'!L24,'1.3.1 Rangliste der Int.gruppe1'!O24))) -> Ökol. | J19: =IF(AND(J17='1.3.1 Rangliste der Int.gruppe1'!L12,J17>=2),'1.3.1 Rangliste der Int.gruppe1'!O12,IF(AND(J17='1.3.1 Rangliste der Int.gruppe1'!L18,J17<>I17),'1.3.1 Rangliste der Int.gruppe1'!O18,IF(AND(J17='1.3.1 Rangliste der Int.gruppe1'!L24,J17<>K17),'1.3.1 Rangliste der Int.gruppe1'!O24,'1.3.1 Rangliste der Int.gruppe1'!O18))) -> Ökon. | K19: =IF(AND(K17='1.3.1 Rangliste der Int.gruppe1'!L12,K17>2),'1.3.1 Rangliste der Int.gruppe1'!O12,IF(AND(K17='1.3.1 Rangliste der Int.gruppe1'!L18,K17>=2,K17<>J17),'1.3.1 Rangliste der Int.gruppe1'!O18,IF(K17='1.3.1 Rangliste der Int.gruppe1'!L24,'1.3.1 Rangliste der Int.gruppe1'!O24,'1.3.1 Rangliste der Int.gruppe1'!O18))) -> Soz.kult.
B20: =calculations!AB22 -> 0.125 | C20: =calculations!AC22 -> 0.125 | E20: =B20*$V20 -> 12.5 | F20: =C20*$V20 -> 12.5 | I20: ↑→ | J20: ↑→ | K20: ↑→ | P20: X | T20: 1 | U20: =-14.286*T20 + 114.29 -> 100.004 | V20: 100 | AJ20: =V20 -> 100
B21: =calculations!AB23 -> 0.125 | C21: =calculations!AC23 -> 0.125 | E21: =B21*$L21 -> 0 | F21: =C21*$V21 -> 8.929 | H21: 1 | I21: ↑→ | J21: ↑→ | K21: ↓ | T21: 2 | U21: 85.718 | V21: =IF(AG$14=1,U22,IF(AG$14=3,U21,IF(AG$14=4,AVERAGE(U21,U22),IF(AG$14=6,U21,100)))) -> 71.432 | W21: =IF(V21<V23,0,1) -> 1 | Y21: =IF(V24>V21,0,1) -> 1 | Z21: =IF(V25>V21,0,1) -> 1 | AJ21: 71.432
B22: =calculations!AB25 -> 0.125 | C22: =calculations!AC25 -> 0.125 | E22: 0 | F22: 8.929 | H22: 2 | I22: ↑→ | J22: ↓ | K22: ↑→ | T22: 3 | U22: 71.432 | V22: =IF(AG$14=1,U22,IF(AG$14=3,AVERAGE(U22,U23),IF(AG$14=4,AVERAGE(U21,U22),IF(AG$14=6,U22,100)))) -> 71.432 | W22: =IF(V22<V23,0,1) -> 1 | Y22: =IF(V24>V22,0,1) -> 1 | Z22: =IF(V26>V22,0,1) -> 1 | AJ22: 71.432
B23: =calculations!AB26 -> 0.125 | C23: =calculations!AC26 -> 0.125 | E23: 0 | F23: 8.929 | H23: 3 | I23: ↓ | J23: ↑→ | K23: ↑→ | T23: 4 | U23: 57.146 | V23: =IF(AG$14=1,U22,IF(AG$14=3,AVERAGE(U22,U23),IF(AG$14=4,AVERAGE(U22,U23),IF(AG$14=6,U23,100)))) -> 71.432 | W23: =IF(V22<V23,0,1) -> 1 | Y23: =IF(V25>V23,0,1) -> 1 | Z23: =IF(V26>V23,0,1) -> 1 | AJ23: 71.432
B24: =calculations!AB29 -> 0.125 | C24: =calculations!AC29 -> 0.125 | E24: 0 | F24: 3.57175 | H24: 4 | I24: ↑→ | J24: ↓ | K24: ↓ | T24: 5 | U24: 42.86 | V24: =IF(AG$14=1,U25, IF(AG$14=3,AVERAGE(U24,U25), IF(AG$14=4,AVERAGE(U24,U25),IF(AG$14=6,U24,100)))) -> 28.574 | W24: =IF(V24<V25,0,1) -> 1 | Y24: =IF(V24>V22,0,1) -> 1 | Z24: =IF(V24>V21,0,1) -> 1 | AJ24: 28.574 | AM24: ='1.3.1 Rangliste der Int.gruppe1'!$O$12 -> Ökol.
B25: =calculations!AB30 -> 0.125 | C25: =calculations!AC30 -> 0.125 | E25: 0 | F25: 3.57175 | H25: 5 | I25: ↓ | J25: ↑→ | K25: ↓ | T25: 6 | U25: 28.574 | V25: =IF(AG$14=1,U25,IF(AG$14=3,AVERAGE(U24,U25),IF(AG$14=4,AVERAGE(U25,U26),IF(AG$14=6,U25,100)))) -> 28.574 | W25: =IF(V24<V25,0,1) -> 1 | Y25: =IF(V25>V23,0,1) -> 1 | Z25: =IF(V25>V21,0,1) -> 1 | AJ25: 28.574 | AM25: ='1.3.1 Rangliste der Int.gruppe1'!$O$18 -> Ökon.
B26: =calculations!AB32 -> 0.125 | C26: =calculations!AC32 -> 0.125 | E26: 0 | F26: 3.57175 | H26: 6 | I26: ↓ | J26: ↓ | K26: ↑→ | T26: 7 | U26: 14.288 | V26: =IF(AG$14=1,U25,IF(AG$14=3,U26,IF(AG$14=4,AVERAGE(U25,U26),IF(AG$14=6,U26,100)))) -> 28.574 | W26: =IF(V24<V26,0,1) -> 1 | Y26: =IF(V26>V24,0,1) -> 1 | Z26: =IF(V26>V23,0,1) -> 1 | AA26: =IF(V26>V22,0,1) -> 1 | AJ26: 28.574 | AM26: ='1.3.1 Rangliste der Int.gruppe1'!$O$24 -> Soz.kult.
B27: =calculations!AB33 -> 0.1245117188 | C27: =calculations!AC33 -> 0.125 | E27: =B27*$V27 -> 0 | F27: 0 | I27: ↓ | J27: ↓ | K27: ↓ | L27: X | T27: 8 | U27: 0.002 | V27: 0 | AJ27: =#REF! -> 
A28: Sum | B28: =SUM(B20:B27) -> 0.9995117188 | C28: =SUM(C20:C27) -> 1 | E28: =SUM(E20:E27) -> 12.5 | F28: =SUM(F20:F27) -> 50.00225 | AJ28: =V28 -> 0
I33: Farblegende | K33: Eintragung widerspricht Arbeitsblatt 1.3.1

Sheet 1.4.1 Rangliste der Int.gruppe2 (hidden)
S2: Run macro-> | T2: TRUE
C3: Verwaltungseinheit (Revier, Hegering, etc.):
C4: ='1.0 Int.gruppen-Auswahl'!C4 -> 0
C6: Zeitraum (Jahr in der Zukunft):
C7: ='1.0 Int.gruppen-Auswahl'!C7 -> 0 | P7: =O13 -> Ökol.
P9: =O19 -> Ökon.
P10: =O25 -> Soz.kult.
E11: =CONCATENATE("Wie wichtig sind die jeweiligen Ziele der Interessensgruppe: ",'1.0 Int.gruppen-Auswahl'!E14) -> Wie wichtig sind die jeweiligen Ziele der Interessensgruppe: [_keine_weitere_Interessensgruppe_] | L11: Rang | P11: ='t eigene Abwägung Abb. '!J19 -> Ökol.
B12: Ziele | E12: unwichtig | G12: durchschnittlich | I12: sehr wichtig | L12: Bereich | M12: Zielfaktor | N12: Max. Mittelwert?
C13: Ökologischer Bereich | L13: =RANK(T17,Q$17:Q$19,0) -> 1 | N13: =IF(T17=T$32,TRUE) -> TRUE | O13: Ökol.
D14: ='1.1 Ziele-Auswahl'!E13 -> [_kein_weiteres_Ziel_] | M14: =RANK(T14,T$14:T$16,0) -> 1 | S14: 0 | T14: =IF(S14=0,50,CHOOSE(S14,0,25,50,75,100)) -> 50
D16: ='1.1 Ziele-Auswahl'!E14 -> [_kein_weiteres_Ziel_] | M16: =RANK(T16,T$14:T$16,0) -> 1 | S16: 0 | T16: =IF(S16=0,50,CHOOSE(S16,0,25,50,75,100)) -> 50
D17: [_kein_weiteres_Ziel_] | E17: Mittelwert | Q17: =T17 -> 50 | T17: =AVERAGE(T14:T16) -> 50
L18: 100 | Q18: =T23 -> 50
C19: Ökonomischer Bereich | L19: =RANK(T23,Q$17:Q$19,0) -> 1 | N19: =IF(T23=T$32,TRUE) -> TRUE | O19: Ökon. | Q19: =T29 -> 50
D20: ='1.1 Ziele-Auswahl'!E17 -> [_kein_weiteres_Ziel_] | M20: =RANK(T20,T$20:T$22,0) -> 1 | S20: 0 | T20: =IF(S20=0,50,CHOOSE(S20,0,25,50,75,100)) -> 50
D22: ='1.1 Ziele-Auswahl'!E18 -> [_kein_weiteres_Ziel_] | M22: =RANK(T22,T$20:T$22,0) -> 1 | S22: 0 | T22: =IF(S22=0,50,CHOOSE(S22,0,25,50,75,100)) -> 50
D23: [_kein_weiteres_Ziel_] | E23: Mittelwert | T23: =AVERAGE(T20:T22) -> 50
C25: Soziokultureller Bereich | L25: =RANK(T29,Q$17:Q$19,0) -> 1 | N25: =IF(T29=T$32,TRUE) -> TRUE | O25: Soz.kult.
D26: ='1.1 Ziele-Auswahl'!E21 -> [_kein_weiteres_Ziel_] | M26: =RANK(T26,T$26:T$28,0) -> 1 | S26: 0 | T26: =IF(S26=0,50,CHOOSE(S26,0,25,50,75,100)) -> 50
D28: ='1.1 Ziele-Auswahl'!E22 -> [_kein_weiteres_Ziel_] | M28: =RANK(T28,T$26:T$28,0) -> 1 | S28: 0 | T28: =IF(S28=0,50,CHOOSE(S28,0,25,50,75,100)) -> 50
D29: Mittelwert | T29: =AVERAGE(T26:T28) -> 50
D32: Max. Mittelwert | T32: =MAX(T17,T23,T29) -> 50

Sheet t Abwägung der Int.gruppe 2 Abb (hidden)
A1: alphaOrder | B1: =I19 -> Ökol. | C1: =J19 -> Ökon. | D1: =K19 -> Soz.kult. | E1: util
A2: ='t Abwägung der Int.gruppe 2 Abb'!H21 -> 1 | B2: ='t Abwägung der Int.gruppe 2 Abb'!I21 -> ↑→ | C2: ='t Abwägung der Int.gruppe 2 Abb'!J21 -> ↑→ | D2: ='t Abwägung der Int.gruppe 2 Abb'!K21 -> ↓ | E2: ='t Abwägung der Int.gruppe 2 Abb'!$V21 -> 71.432
A3: ='t Abwägung der Int.gruppe 2 Abb'!H22 -> 2 | B3: ='t Abwägung der Int.gruppe 2 Abb'!I22 -> ↑→ | C3: ='t Abwägung der Int.gruppe 2 Abb'!J22 -> ↓ | D3: ='t Abwägung der Int.gruppe 2 Abb'!K22 -> ↑→ | E3: ='t Abwägung der Int.gruppe 2 Abb'!$V22 -> 71.432 | F3: 0
A4: ='t Abwägung der Int.gruppe 2 Abb'!H23 -> 3 | B4: ='t Abwägung der Int.gruppe 2 Abb'!I23 -> ↓ | C4: ='t Abwägung der Int.gruppe 2 Abb'!J23 -> ↑→ | D4: ='t Abwägung der Int.gruppe 2 Abb'!K23 -> ↑→ | E4: ='t Abwägung der Int.gruppe 2 Abb'!$V23 -> 71.432
A5: ='t Abwägung der Int.gruppe 2 Abb'!H24 -> 4 | B5: ='t Abwägung der Int.gruppe 2 Abb'!I24 -> ↑→ | C5: ='t Abwägung der Int.gruppe 2 Abb'!J24 -> ↓ | D5: ='t Abwägung der Int.gruppe 2 Abb'!K24 -> ↓ | E5: ='t Abwägung der Int.gruppe 2 Abb'!$V24 -> 28.574
A6: ='t Abwägung der Int.gruppe 2 Abb'!H25 -> 5 | B6: ='t Abwägung der Int.gruppe 2 Abb'!I25 -> ↓ | C6: ='t Abwägung der Int.gruppe 2 Abb'!J25 -> ↑→ | D6: ='t Abwägung der Int.gruppe 2 Abb'!K25 -> ↓ | E6: ='t Abwägung der Int.gruppe 2 Abb'!$V25 -> 28.574
A7: ='t Abwägung der Int.gruppe 2 Abb'!H26 -> 6 | B7: ='t Abwägung der Int.gruppe 2 Abb'!I26 -> ↓ | C7: ='t Abwägung der Int.gruppe 2 Abb'!J26 -> ↓ | D7: ='t Abwägung der Int.gruppe 2 Abb'!K26 -> ↑→ | E7: ='t Abwägung der Int.gruppe 2 Abb'!$V26 -> 28.574
I10: Verwaltungseinheit: | T10: 1 | U10: 1 | V10: 1 | AC10: =PRODUCT(T10:V10) -> 1
I11: ='1.0 Int.gruppen-Auswahl'!C4 -> 0 | T11: 1 | U11: 1 | V11: 3 | AC11: =PRODUCT(T11:V11) -> 3
T12: 1 | U12: 2 | V12: 2 | AC12: =PRODUCT(T12:V12) -> 4
I13: Zeitraum: | T13: 1 | U13: 2 | V13: 3 | AC13: =PRODUCT(T13:V13) -> 6
I14: ='1.2.1 eigene Rangliste'!C8 -> 0 | AC14: =PRODUCT(I17:K17) -> 1
B16: Möglichkeit unter Entscheidungs- optionen | E16: Erwartete Zufriedenheit unter Unsicherheit der jeweiligen Entscheiungs-optionen | I16: Hypothetische Änderung der Nachhaltigkeitsbereiche* innerhalb der Verwaltungseinheit und des gewählten Zeitraumes | L16: =CONCATENATE("Erwartete Zufriedenheit der Interessensgruppe: ",'1.0 Int.gruppen-Auswahl'!E14) -> Erwartete Zufriedenheit der Interessensgruppe: [_keine_weitere_Interessensgruppe_] | T16: 1 | U16: =T16*100 -> 100
B17: A | C17: B | E17: A | F17: B | I17: 1 | J17: =IF(OR('1.4.1 Rangliste der Int.gruppe2'!L13=2,'1.4.1 Rangliste der Int.gruppe2'!L19=2,'1.4.1 Rangliste der Int.gruppe2'!L25=2),2,1) -> 1 | K17: =IF(OR('1.4.1 Rangliste der Int.gruppe2'!L13=3,'1.4.1 Rangliste der Int.gruppe2'!L19=3,'1.4.1 Rangliste der Int.gruppe2'!L25=3),3,IF(OR('1.4.1 Rangliste der Int.gruppe2'!L13=2,'1.4.1 Rangliste der Int.gruppe2'!L19=2,'1.4.1 Rangliste der Int.gruppe2'!L25=2),2,1)) -> 1 | T17: 4.5 | U17: 50
L18: komplett unzufrieden | N18: mittelere Zufriedenheit | P18: komplett zufrieden | T18: 8 | U18: 0
I19: =IF(I17='1.4.1 Rangliste der Int.gruppe2'!L13,'1.4.1 Rangliste der Int.gruppe2'!O13,IF(I17='1.4.1 Rangliste der Int.gruppe2'!L19,'1.4.1 Rangliste der Int.gruppe2'!O19,IF(I17='1.4.1 Rangliste der Int.gruppe2'!L25,'1.4.1 Rangliste der Int.gruppe2'!O25))) -> Ökol. | J19: =IF(AND(J17='1.4.1 Rangliste der Int.gruppe2'!L13,J17>=2),'1.4.1 Rangliste der Int.gruppe2'!O13,IF(AND(J17='1.4.1 Rangliste der Int.gruppe2'!L19,J17<>I17),'1.4.1 Rangliste der Int.gruppe2'!O19,IF(AND(J17='1.4.1 Rangliste der Int.gruppe2'!L25,J17<>K17),'1.4.1 Rangliste der Int.gruppe2'!O25,'1.4.1 Rangliste der Int.gruppe2'!O19))) -> Ökon. | K19: =IF(AND(K17='1.4.1 Rangliste der Int.gruppe2'!L13,K17>2),'1.4.1 Rangliste der Int.gruppe2'!O13,IF(AND(K17='1.4.1 Rangliste der Int.gruppe2'!L19,K17>=2,K17<>J17),'1.4.1 Rangliste der Int.gruppe2'!O19,IF(K17='1.4.1 Rangliste der Int.gruppe2'!L25,'1.4.1 Rangliste der Int.gruppe2'!O25,'1.4.1 Rangliste der Int.gruppe2'!O19))) -> Soz.kult.
B20: =calculations!AB22 -> 0.125 | C20: =calculations!AC22 -> 0.125 | E20: =B20*$W20 -> 0 | F20: =C20*$W20 -> 0 | I20: ↑→ | J20: ↑→ | K20: ↑→ | P20: X | T20: 1 | U20: =-14.286*T20 + 114.29 -> 100.004 | V20: 100 | AI20: =W20 -> 0
B21: =calculations!AB23 -> 0.125 | C21: =calculations!AC23 -> 0.125 | E21: =B21*$L21 -> 0 | F21: =C21*$W21 -> 0 | H21: 1 | I21: ↑→ | J21: ↑→ | K21: ↓ | T21: 2 | U21: 85.718 | V21: =IF(AC$14=1,U22,IF(AC$14=3,U21,IF(AC$14=4,AVERAGE(U21,U22),IF(AC$14=6,U21,100)))) -> 71.432 | X21: =IF(W21<W23,0,1) -> 1 | Y21: =IF(W22>W21,0,1) -> 1 | Z21: =IF(W24>W21,0,1) -> 1 | AA21: =IF(W25>W21,0,1) -> 1 | AG21: =$I$35*$J$35*(1-$K$35) -> 0 | AH21: =$I$36*$J$36*(1-$K$36) -> 0 | AI21: 0
B22: =calculations!AB25 -> 0.125 | C22: =calculations!AC25 -> 0.125 | E22: 0 | F22: 0 | H22: 2 | I22: ↑→ | J22: ↓ | K22: ↑→ | T22: 3 | U22: 71.432 | V22: =IF(AC$14=1,U22,IF(AC$14=3,AVERAGE(U22,U23),IF(AC$14=4,AVERAGE(U21,U22),IF(AC$14=6,U22,100)))) -> 71.432 | X22: =IF(W22<W23,0,1) -> 1 | Y22: =IF(W22>W21,0,1) -> 1 | Z22: =IF(W24>W22,0,1) -> 1 | AA22: =IF(W26>W22,0,1) -> 1 | AG22: =$I$35*(1-$J$35)*$K$35 -> 0 | AH22: =$I$36*(1-$J$36)*$K$36 -> 0 | AI22: 0
B23: =calculations!AB26 -> 0.125 | C23: =calculations!AC26 -> 0.125 | E23: 0 | F23: 0 | H23: 3 | I23: ↓ | J23: ↑→ | K23: ↑→ | T23: 4 | U23: 57.146 | V23: =IF(AC$14=1,U22,IF(AC$14=3,AVERAGE(U22,U23),IF(AC$14=4,AVERAGE(U22,U23),IF(AC$14=6,U23,100)))) -> 71.432 | X23: =IF(W22<W23,0,1) -> 1 | Y23: =X21 -> 1 | Z23: =IF(W25>W23,0,1) -> 1 | AA23: =IF(W26>W23,0,1) -> 1 | AG23: =(1-$I$35)*$J$35*$K$35 -> 0 | AH23: =(1-$I$36)*$J$36*$K$36 -> 0 | AI23: 0
B24: =calculations!AB29 -> 0.125 | C24: =calculations!AC29 -> 0.125 | E24: 0 | F24: 0 | H24: 4 | I24: ↑→ | J24: ↓ | K24: ↓ | T24: 5 | U24: 42.86 | V24: =IF(AC$14=1,U25, IF(AC$14=3,AVERAGE(U24,U25), IF(AC$14=4,AVERAGE(U24,U25),IF(AC$14=6,U24,100)))) -> 28.574 | X24: =IF(W24<W25,0,1) -> 1 | Y24: =IF(W26>W24,0,1) -> 1 | Z24: =IF(W24>W22,0,1) -> 1 | AA24: =IF(W24>W21,0,1) -> 1 | AG24: =$I$35*(1-$J$35)*(1-$K$35) -> 0 | AH24: =$I$36*(1-$J$36)*(1-$K$36) -> 0 | AI24: 0 | AL24: ='1.2.1 eigene Rangliste'!$O$13 -> Ökol.
B25: =calculations!AB30 -> 0.125 | C25: =calculations!AC30 -> 0.125 | E25: 0 | F25: 0 | H25: 5 | I25: ↓ | J25: ↑→ | K25: ↓ | T25: 6 | U25: 28.574 | V25: =IF(AC$14=1,U25,IF(AC$14=3,AVERAGE(U24,U25),IF(AC$14=4,AVERAGE(U25,U26),IF(AC$14=6,U25,100)))) -> 28.574 | X25: =IF(W24<W25,0,1) -> 1 | Y25: =IF(W25<W26,0,1) -> 1 | Z25: =IF(W25>W23,0,1) -> 1 | AA25: =IF(W25>W21,0,1) -> 1 | AG25: =(1-$I$35)*$J$35*(1-$K$35) -> 0 | AH25: =(1-$I$36)*$J$36*(1-$K$36) -> 0 | AI25: 0 | AL25: ='1.2.1 eigene Rangliste'!$O$19 -> Ökon.
B26: =calculations!AB32 -> 0.125 | C26: =calculations!AC32 -> 0.125 | E26: 0 | F26: 0 | H26: 6 | I26: ↓ | J26: ↓ | K26: ↑→ | T26: 7 | U26: 14.288 | V26: =IF(AC$14=1,U25,IF(AC$14=3,U26,IF(AC$14=4,AVERAGE(U25,U26),IF(AC$14=6,U26,100)))) -> 28.574 | X26: =IF(W24<W26,0,1) -> 1 | Y26: =IF(W26>W25,0,1) -> 1 | Z26: =IF(W26>W24,0,1) -> 1 | AA26: =IF(W26>W23,0,1) -> 1 | AB26: =IF(W26>W22,0,1) -> 1 | AG26: =(1-$I$35)*(1-$J$35)*$K$35 -> 0 | AH26: =(1-$I$36)*(1-$J$36)*$K$36 -> 0 | AI26: 0 | AL26: ='1.2.1 eigene Rangliste'!$O$25 -> Soz.kult.
B27: =calculations!AB33 -> 0.1245117188 | C27: =calculations!AC33 -> 0.125 | E27: =B27*$W27 -> 0 | F27: 0 | I27: ↓ | J27: ↓ | K27: ↓ | L27: X | T27: 8 | U27: 0.002 | V27: 0 | AG27: =(1-$I$35)*(1-$J$35)*(1-$K$35) -> 1 | AH27: =(1-$I$36)*(1-$J$36)*(1-$K$36) -> 1 | AI27: =#REF! -> 
A28: Sum | B28: =SUM(B20:B27) -> 0.9995117188 | C28: =SUM(C20:C27) -> 1 | E28: =SUM(E20:E27) -> 0 | F28: =SUM(F20:F27) -> 0 | AI28: =W28 -> 0
I33: Farblegende | K33: Eintragung widerspricht Arbeitsblatt 1.3.1

Sheet t Abwägung der Int.gruppe 2 (hidden)
A1: alphaOrder | B1: Ökol. | C1: Ökon. | D1: Soz.kult. | E1: util
A2: 1 | B2: ↑→ | C2: ↑→ | D2: ↓ | E2: 71.432
A3: 2 | B3: ↑→ | C3: ↓ | D3: ↑→ | E3: 71.432
A4: 3 | B4: ↓ | C4: ↑→ | D4: ↑→ | E4: 71.432
A5: 4 | B5: ↑→ | C5: ↓ | D5: ↓ | E5: 28.574
A6: 5 | B6: ↓ | C6: ↑→ | D6: ↓ | E6: 28.574
A7: 6 | B7: ↓ | C7: ↓ | D7: ↑→ | E7: 28.574

Sheet t Maßnahmen (hidden)
A1: Etikett -> | B1: [ keine weitere Maßnahme ] | C1: NA
A2: 34 | B2: Abschussplanung, -durchführung und Kontrolle | C2: Berücksichtigung von Bestandesschwankungen; Durchführung von Hegeschauen; Grünvorlagen; Abschuss männlicher Stücke an den Abschuss weiblicher Stücke binden; ehrliche Zahlen für die Planung; Kontrollfunktionen im Rahmen der Abschussdurchführung (in den Abschusslisten sollten nur Abschüsse erfasst werden, welche auch tatsächlich getätigt wurden); Einsatz interaktiver Medien (WhatsApp, Instagram, etc.) um körperlichen Nachweis eines Abschusses vorlegen zu können; Stichprobenkontrollen; System der Selbstkontrolle der Jägerschaft auf Hegeringebene bzw. Hegeringübergreifend anbieten; Abschussplanung, -durchführung und Kontrolle in einer Art und Weise, welche dazu beitragen die Waldfunktionen (Schutz und Erholung) sicherzustellen, die Entscheidungsfreiheit der Grundeigentümer erhält, etc.; Durchführung von Wildbestandsschätzungen; Abschussplanung basierend auf fundierten Zahlen/Grundlagen; Ziel: gesunde an den Lebensraum angepasste Wildbestände
A3: 44 | B3: Aufklärungsarbeit/Bewusstseinsbildung | C3: Aufklärungskampagnen; Anbringen von Hinweisschildern; Bewusstseinsbildung der jagdfernen Gesellschaft; Bewusstsein für eine gewisse Disziplin in der Natur schaffen; das Zusammenspiel zwischen Wald und Wild stärker in den Unterrichtsplan involvieren; Naturvermittlung
A4: 38 | B4: Berücksichtigung der Wildschadenanfälligkeit | C4: Wildschadenanfälligkeit unterschiedlicher Waldbestände bei der Planung berücksichtigen; Welche Bereiche eignen sich als Lebensraum für Wildwiederkäuer, in welchen Bereichen müssen die Wildwiederkäuerbestände reduziert werden; mögliches Ziel: Schutz- und Erholungsfunktionen der Wälder sicherzustellen
A5: 30 | B5: Berücksichtigung der Wildwiederkäuer-Biolgie | C5: Rücksichtnahme auf die Reproduktionsbiologie; Rücksichtnahme auf den Lebensrhythmus von Wildwiederkäuern um unerwünschtem Wildeinfluss vorzubeugen
A6: 45 | B6: Besucherlenkung | C6: Gezielte Besucherlenkung im Lebensraum der Wildtiere, um eine räumliche Entflechtung zu erzielen; räumliche und zeitliche Planungen
A7: 32 | B7: Durchführung von Hegeabschüssen | C7: Erlegung von krankem und schwachem Wild
A8: 41 | B8: Durchführung von Hegeabschüssen | C8: Hegeabschüsse um die Ausbreitung von Wildkrankheiten zu verhindern, wodurch es zu jagdökonomischen Schäden kommen könnte; Die Jagd als Dienstleister für die Gesellschaft
A9: 29 | B9: Etablierung / Erhalt revierübergreifender Bejagungskonzepte | C9: Wildökologische Raumplanung; Organisation der Wildwiederkäuer-Bewirtschaftung auf Hegeringebene od. Hegegmeinschaftsebene; Wildlenkungsmaßnahmen; Zusammenarbeit über die Reviersgrenze hinweg; Effiziente und zielführende Bejagungskonzepte, um Waldfunktionen sicherzustellen (Erholung und Schutz), den jagdlichen Erholungswert zu erhalten, etc.
A10: 36 | B10: Etablierung / Förderung eines Wildwarnsystems entlang von Straßen | C10: Reduktion von Straßenfallwild; Erhöhung der Verkehrssicherheit um Sachschäden entgegenwirken zu können; Einsatz von optischen und akustischen Wildwarnreflektoren (z.B. auf unfalltreichen Strecken)
A11: 25 | B11: Förderung / Erhalt der Aus- und Fortbildung | C11: Verbesserung bzw. Aktualisierung des Wissenstandes im Bereich der Wildwiederkäuer-Biologie; Beleuchtung jagdökonomischer Aspekte im Rahmen der Ausbildung; Auswirkungen der Jagd auf andere Landnutzergruppen und vice versa bewusst machen; Einfluss von Jägern und Jägerinnern auf das Image der Jagd in der Gesellschaft bewusst machen; Möglichkeiten aufzeigen, wie die Leistungen der Jagd besser vermittelt werden können; Erhalt der jagdlichen Tradition und des jagdlichen Brauchstums
A12: 43 | B12: Grundlagenforschung | C12: Investition in Grundlagenforschung um wildbiologische Zusammenhänge besser verstehen und Maßnahmen ableiten zu können; Schaffung wissenschaftlich fundierter Grundlagen
A13: 27 | B13: Lebensraumverbesserungsmaßnahmen | C13: der Fragmentierung/Zerschneidung der Lebensräume entgegenwirken; Schaffung von Wildkorridoren; Anlage von Äsungsflächen; Schaffung von geeigneten Einstandsmöglichkeiten; Steigerung des jagdlichen Erholungswertes, indem die Artenvielfalt erhöht wird und das Wild gesünder ist (genetischer Austausch kann mittels Lebensraumvernetzung erfolgen); Beobachtung von Wild auf Äsungsflächen, etc.; Berücksichtigung von wildökologischen Aspekten bei Flächenwidmungsplänen
A14: 39 | B14: Pflege von Reviereinrichtungen | C14: Pflege von Ansitzen; Schussschneise; Jagdhütten und ähnlichem, um diese bei Bedarf (z.B. Reduktion der Wildbestände) sofort und zielführend nutzen zu können; Reviere mit gepflegter jagdlicher Infrastruktur werden sich leichter verpachten lassen (Erhalt des ökonomischen Jagdwerts); Erhalt des jagdlichen Erholungswerts
A15: 42 | B15: Rechtliche Kontrolle | C15: Krisenmanagement bei jagdrechtlichen Übertretungen; Jagdaufsicht; Jagdschutzorgane; angemessenes Vorgehen bei jagdrechtlichen Übertretungen
A16: 31 | B16: Reduktion der menschlichen Selektion | C16: selektive Bejagung von Wildwiederkäuern mit bestimmten Merkmalen (z.B. Trophäenmerkmalen) reduzieren
A17: 37 | B17: Umgang mit erlegtem Wild und Fallwild | C17: Wildbretvermarktung; Wildbrethygiene; Entsorgung (Aufruch und Fallwild); Jagd als Dienstleister für die Gesellschaft; Image der Jagd in der Gesellschaft kann über den Umgang mit erlegtem Wild und Fallwild beeinflusst werden (weidgerechte Jagd als Dienstleister für die Gesellschaft)
A18: 26 | B18: Verbesserung / Erhalt der integralen Koordination | C18: Zusammenarbeit mit der Wissenschaft (z.B. Wildwiederkäuer-Biologie); Abstimmung mit naturschutzrelevanten Themen (z.B. Ausweisung von Schutzgebieten); Integrale Koordination von Maßnahmen mit anderen Landnutzergruppen; Reduktion von unerwünschtem Wildeinfluss; Revierübergreifende Abstimmung in der Bewirtschaftung von Wildwiederkäuern, um Erholungs- und Schutzfunktionen des Waldes sicherstellen zu können; Konfliktvermeidung zwischen verschiedenen Landnutzergruppen/Interessensgruppen; Allianzen schaffen zwischen Grundeigentümern, Kammer, Behörden, Jagd, Organisationen, Tourismus, etc.
A19: 40 | B19: Vermarktungsstrategie Jagd | C19: Wildbretvermarktung; Jagd als Dienstleister der Forstwirtschaft indem Wildwiederkäuerbestände auf Niveau gebracht werden, welches für den jeweiligen Lebensraum passend ist; Vermarktung von Abschüssen
A20: 33 | B20: Vertrautheit des Wildes erhöhen | C20: Anpassung des Jagddrucks um Wild wieder vertrauter, sichtbarer und damit regulierbarer zu machen; Einsatz von Jagdstrategien wie der Intervallbejagung; Etablierung von Wildruhezonen; Wild tagaktiv machen; Störungen durch den Menschen reduzieren; integrale Abstimmung zwischen verschiedenen Landnutzergruppen; Energiebedarf des Wildes reduzieren, indem Störungen reduziert werden und somit unerwünschtem Wildeinfluss entgegen gewirkt werden kann; Energiebedarf des Wildes reduzieren, um Waldunfktionen (Schutz und Erholung) sicherzustellen; Kooperationen mit dem Freizeit- und Erholungssektor bei der Ausweisung von Wildruhezonen
A21: 35 | B21: Wildlenkungsmaßnahmen | C21: Maßnahmen um Wild in Bereiche zu lenken, in welchen dieses Ruhe vorfindet; Maßnahmen um Wild in Bereiche zu lenken, in welchen keine oder kaum Wildschäden entstehen können
A22: 28 | B22: Winterfütterung | C22: Verteilung der Fütterungen im Raum; Abstimmung mit Reviersnachbarn, Handhabung der Fütterung; Wildlenkungseffekte; Winterfütterung als Maßnahme um verloren gegangene Winterlebensräume zu kompensieren; Verhinderung / Reduktion von unerwünschtem Wildeinfluss mittels Wildlenkung durch Fütterung; Abstimmung mit Reviersnachbarn; Handhabung der Fütterung; Jagd als Dienstleister für die Gesellschaft (Vermeidung von Wildschäden); wiederkäuergerechte Futtermittelwahl

Sheet t Ext. Faktoren (hidden)
B1: [_keinen_weiteren_externen_Faktor_] | D1: Szenario a1 | E1: Szenario a2 | F1: Szenario b1 | G1: Szenario b2 | I1: Beschreibung | K1: Anmerkung
A2: 46 | B2: Wolfsbestand | C2: [_Szenario_auswählen_] | D2: nimmt ab | E2: =CONCATENATE(D2," oder ",H2) -> nimmt ab oder bleibt gleich | F2: =CONCATENATE(H2," oder ",G2) -> bleibt gleich oder nimmt zu | G2: nimmt zu | H2: bleibt gleich | I2: Wie wird sich der Wolfsbestand in der gewählten Verwaltungseinheit zukünftig verändern?
A3: 47 | B3: Erholungssuchende | C3: [_Szenario_auswählen_] | D3: nimmt ab | E3: =CONCATENATE(D3," oder ",H3) -> nimmt ab oder bleibt gleich | F3: =CONCATENATE(H3," oder ",G3) -> bleibt gleich oder nimmt zu | G3: nimmt zu | H3: bleibt gleich | I3: Wie wird sich die Nutzung der Landschaft durch Erholungssuchende in der gewählten Verwaltungseinheit zukünftig verändern?
A4: 48 | B4: Wildeinflussbeurteilung | C4: [_Szenario_auswählen_] | D4: wird weniger streng | E4: =CONCATENATE(D4," oder ",H4) -> wird weniger streng oder bleibt gleich | F4: =CONCATENATE(H4," oder ",G4) -> bleibt gleich oder wird strenger | G4: wird strenger | H4: bleibt gleich | I4: Wie wird sich das Beurteilungssystem hinsichtlich Wildeinfluss in der gewählten Verwaltungseinheit zukünftig verändern?
A5: 49 | B5: Wildschadenanfälligkeit des Waldes | C5: [_Szenario_auswählen_] | D5: nimmt ab | E5: =CONCATENATE(D5," oder ",H5) -> nimmt ab oder bleibt gleich | F5: =CONCATENATE(H5," oder ",G5) -> bleibt gleich oder nimmt zu | G5: nimmt zu | H5: bleibt gleich | I5: Wie wird sich die Wildschadenanfälligkeit des Waldes in der gewählten Verwaltungseinheit zukünftig verändern? | K5: Ausschließlich externer Faktor, wenn Forstwirtschaft kein Entscheidungsträger
A6: 50 | B6: Bejagbarkeit | C6: [_Szenario_auswählen_] | D6: nimmt ab | E6: =CONCATENATE(D6," oder ",H6) -> nimmt ab oder bleibt gleich | F6: =CONCATENATE(H6," oder ",G6) -> bleibt gleich oder nimmt zu | G6: nimmt zu | H6: bleibt gleich | I6: Wie wird sich die Bejagbarkeit im Hinblick auf Wildwiederkäuer in der gewählten Verwaltungseinheit zukünftig verändern? | K6: Ausschließlich externer Faktor, wenn Land- und Forstwirtschaft keine Entscheidungsträger
A7: 51 | B7: Bewirtschaftungsform des Waldes | C7: [_Szenario_auswählen_] | D7: negativer Einfluss auf die Bewirtschaftung von Wildwiederkäuern | E7: negativer Einfluss oder kein Effekt auf die Bewirtschaftung von Wildwiederkäuern | F7: positiver Einfluss oder kein Effekt auf die Bewirtschaftung von Wildwiederkäuern | G7: positiver Einfluss auf die Bewirtschaftung von Wildwiederkäuern | H7: bleibt gleich | I7: Wie wird sich die Bewirtschaftungsform des Waldes zukünftig auf die Bewirtschaftung von Wildwiederkäuern auswirken?
A8: 52 | B8: Einfluss verschiedener Wildarten aufeinander | C8: [_Szenario_auswählen_] | D8: nimmt ab | E8: =CONCATENATE(D8," oder ",H8) -> nimmt ab oder bleibt gleich | F8: =CONCATENATE(H8," oder ",G8) -> bleibt gleich oder nimmt zu | G8: nimmt zu | H8: bleibt gleich | I8: Wie wird sich der Einfluss verschiedener Wildarten (z.B. Rot-, Reh-, Gams- und Schwarzwild) aufeinander zukünftig verändern?
A9: 53 | B9: Einfluss des Klimas auf die Baumartenzusammensetzung | C9: [_Szenario_auswählen_] | D9: nimmt ab | E9: =CONCATENATE(D9," oder ",H9) -> nimmt ab oder bleibt gleich | F9: =CONCATENATE(H9," oder ",G9) -> bleibt gleich oder nimmt zu | G9: nimmt zu | H9: bleibt gleich | I9: Wie wird sich der Einfluss des Klimas auf die Baumartenzusammensetzung zukünftig verändern?

Sheet t Ext. Faktoren Fragen (hidden)
B1: [ keinen weiteren externen Faktor ] | C1: [ keinen weiteren externen Faktor ] | E1: Anmerkung
B2: Bejagbarkeit | C2: Wie wird sich die Bejagbarkeit im Hinblick auf Wildwiederkäuer in der gewählten Verwaltungseinheit zukünftig verändern? | E2: Ausschließlich externer Faktor, wenn Land- und Forstwirtschaft keine Entscheidungsträger
B3: Nutzungsintensität_der_Landschaft_durch_Erholungssuchende | C3: Wie wird sich die Nutzung der Landschaft durch Erholungssuchende in der gewählten Verwaltungseinheit zukünftig verändern?
B4: Wildeinflussbeurteilung | C4: Wie wird sich das Beurteilungssystem hinsichtlich Wildeinfluss in der gewählten Verwaltungseinheit zukünftig verändern?
B5: Wildschadenanfälligkeit_des_Waldes | C5: Wie wird sich die Wildschadenanfälligkeit des Waldes in der gewählten Verwaltungseinheit zukünftig verändern? | E5: Ausschließlich externer Faktor, wenn Forstwirtschaft kein Entscheidungsträger
B6: Wolfsbestand | C6: Wie wird sich der Wolfsbestand in der gewählten Verwaltungseinheit zukünftig verändern?

Sheet 2.0 Ext.Faktor-Wahl
C3: Verwaltungseinheit (Revier, Hegering, etc.):
C4: ='1.0 Int.gruppen-Auswahl'!C4 -> 0
C6: Zeitraum (Jahr in der Zukunft):
C7: ='1.0 Int.gruppen-Auswahl'!C7 -> 0
C9: Bitte wählen Sie bis zu zwei externe Faktoren sowie zwei Szenarien pro Faktor, welche zusammen die gesamte Bandbreite an möglichen Veränderungen abdecken. Szenarien beziehen sich hierbei auf mögliche Änderungen des externen Faktors in der Zukunft. Beschreiben Sie zusätzlich die gewählten Szenarien kurz.
F10: Szenarien | J10: Beschreibung des jeweiligen Szenarios
C11: externer Faktor | F11: Szenario 1 | G11: Szenario 2 | H11: optimistisch | J11: =F11 -> Szenario 1 | K11: =G11 -> Szenario 2 | L11: optimistisch
C12: 1 | D12: [_keinen_weiteren_externen_Faktor_] | F12: =VLOOKUP(D12,'t Ext. Faktoren'!B2:I9,8,0) ->  | L12: Das system wird besser und die Jagd-relevante Information ist präziser
H13: Wird besser
C15: 2 | D15: [_keinen_weiteren_externen_Faktor_] | F15: =VLOOKUP(D15,'t Ext. Faktoren'!B2:I9,8,0) -> 

Sheet 2.1 Ext.Faktor Vorhersag.
C3: ='t eigene Abwägung Abb. '!J10 -> Verwaltungseinheit:
C4: ='1.2.1 eigene Rangliste'!C5:J5 -> 0
C6: ='t eigene Abwägung Abb. '!J13 -> Zeitraum:
C7: ='t eigene Abwägung Abb. '!J14 -> 0
X9: FALSE | Y9: FALSE
C10: ='2.0 Ext.Faktor-Wahl'!D12 -> [_keinen_weiteren_externen_Faktor_]
C11: =VLOOKUP(C10,'t Ext. Faktoren'!B$2:I$9,8,0) -> 
C12: =CONCATENATE("Komplett sicher: ",'2.0 Ext.Faktor-Wahl'!F13) -> Komplett sicher: | E12: =CONCATENATE("Komplett unsicher: ",'2.0 Ext.Faktor-Wahl'!F13, " oder ", '2.0 Ext.Faktor-Wahl'!G13) -> Komplett unsicher: oder | G12: =CONCATENATE("Komplett sicher: ",'2.0 Ext.Faktor-Wahl'!G13) -> Komplett sicher: | N12: +
C13: | | E13: | | G13: |
I14: 0 | J14: =IF(I14=0,50,CHOOSE(I14,0,25,50,75,100)) -> 50 | N14: =RANDBETWEEN(51,100) -> 62
C17: ='2.0 Ext.Faktor-Wahl'!D15 -> [_keinen_weiteren_externen_Faktor_]
C18: =VLOOKUP(C17,'t Ext. Faktoren'!B$2:I$9,8,0) -> 
C19: =CONCATENATE("Komplett sicher: ",'2.0 Ext.Faktor-Wahl'!F16) -> Komplett sicher: | E19: =CONCATENATE("Komplett unsicher: ",'2.0 Ext.Faktor-Wahl'!F16, " oder ", '2.0 Ext.Faktor-Wahl'!G16) -> Komplett unsicher: oder | G19: =CONCATENATE("Komplett sicher: ",'2.0 Ext.Faktor-Wahl'!G16) -> Komplett sicher:
C20: | | E20: | | G20: |
I21: 0 | J21: =IF(I21=0,50,CHOOSE(I21,0,25,50,75,100)) -> 50

Sheet 3.0 Ressourcenverteilung
C3: ='t eigene Abwägung Abb. '!J10 -> Verwaltungseinheit: | H3: ='t eigene Abwägung Abb. '!J13 -> Zeitraum:
C4: ='1.2.1 eigene Rangliste'!C5 -> 0 | H4: ='t eigene Abwägung Abb. '!J14 -> 0 | I4: ='t eigene Abwägung Abb. '!J14 -> 0
C6: Wählen Sie eine Ressource die Ihnen zur Verfügung steht : | G6: Geld | P6: Geld
P7: Arbeitsstunden
C8: Ressourcenverteilung A | I8: Ressourcenverteilung B
C9: Wählen Sie bis zu 4 Maßnahmen und geben Sie an, wie viel Prozent der gewählten Ressource, Sie gerne in die jeweilige Maßnahme investieren möchten. | I9: =C9 -> Wählen Sie bis zu 4 Maßnahmen und geben Sie an, wie viel Prozent der gewählten Ressource, Sie gerne in die jeweilige Maßnahme investieren möchten. | Q9: Ziele
C10: [ keine weitere Maßnahme ] | I10: =C10 -> [ keine weitere Maßnahme ] | R10: Ökologischer Bereich | U10: Ökonomischer Bereich | X10: Soziokultureller Bereich
C11: [ keine weitere Maßnahme ] | I11: =C11 -> [ keine weitere Maßnahme ] | R11: 1 | S11: ='1.1 Ziele-Auswahl'!E13 -> [_kein_weiteres_Ziel_] | U11: 1 | V11: ='1.1 Ziele-Auswahl'!E17 -> [_kein_weiteres_Ziel_] | X11: 1 | Y11: ='1.1 Ziele-Auswahl'!E21 -> [_kein_weiteres_Ziel_]
C12: [ keine weitere Maßnahme ] | I12: =C12 -> [ keine weitere Maßnahme ] | R12: 2 | S12: ='1.1 Ziele-Auswahl'!E14 -> [_kein_weiteres_Ziel_] | U12: 2 | V12: ='1.1 Ziele-Auswahl'!E18 -> [_kein_weiteres_Ziel_] | X12: 2 | Y12: ='1.1 Ziele-Auswahl'!E22 -> [_kein_weiteres_Ziel_]
C13: [ keine weitere Maßnahme ] | I13: =C13 -> [ keine weitere Maßnahme ] | Q13: Externe Faktoren | S13: =CONCATENATE("1 ", '2.0 Ext.Faktor-Wahl'!D12) -> 1 [_keinen_weiteren_externen_Faktor_]
F14: Summe = 100% | G14: =SUM(G10:G13) -> 0 | L14: =F14 -> Summe = 100% | M14: =SUM(M10:M13) -> 0 | S14: =CONCATENATE("2 ", '2.0 Ext.Faktor-Wahl'!D15) -> 2 [_keinen_weiteren_externen_Faktor_]
C16: Warum würden Sie die Ressourcen so verteilen? Bitte berücksichtigen Sie die Auswirkungen der von Ihnen gesetzten Maßnahmen sowie die Einflüsse externer Faktoren auf die von Ihnen gewählten Ziele (siehe rechts). | I16: =C16 -> Warum würden Sie die Ressourcen so verteilen? Bitte berücksichtigen Sie die Auswirkungen der von Ihnen gesetzten Maßnahmen sowie die Einflüsse externer Faktoren auf die von Ihnen gewählten Ziele (siehe rechts).
C19: Definieren Sie bitte die jeweilige(n) Maßnahme(n), in welche Sie gerne Ressourcen investieren würden (Was verstehen Sie unter Maßnahme XY?).
C20: =C10 -> [ keine weitere Maßnahme ] | E20: =VLOOKUP(C20,'t Maßnahmen'!B2:C22,2,0) -> 
C21: Ihre Beschreibung->
C22: =C11 -> [ keine weitere Maßnahme ] | E22: =VLOOKUP(C22,'t Maßnahmen'!B2:C22,2,0) -> 
C23: Ihre Beschreibung->
C24: =C12 -> [ keine weitere Maßnahme ] | E24: =VLOOKUP(C24,'t Maßnahmen'!B2:C22,2,0) -> 
C25: Ihre Beschreibung->
C26: =C13 -> [ keine weitere Maßnahme ] | E26: =VLOOKUP(C26,'t Maßnahmen'!B2:C22,2,0) -> 
C27: Ihre Beschreibung->

Sheet 4.0.1 Ökol. Vorhersagen (hidden)
X2: =RANDBETWEEN(0,100) -> 50 | AF2: =RANDBETWEEN(0,100) -> 30
F3: ='t eigene Abwägung Abb. '!J10 -> Verwaltungseinheit:
F4: ='1.0 Int.gruppen-Auswahl'!C4 -> 0
F6: ='t eigene Abwägung Abb. '!J13 -> Zeitraum:
F7: ='1.0 Int.gruppen-Auswahl'!C7 -> 0 | X7: =RANDBETWEEN(0,100) -> 11 | AF7: =RANDBETWEEN(0,100) -> 28
F9: =CONCATENATE("Ziel: ", '1.1 Ziele-Auswahl'!E13) -> Ziel: [_kein_weiteres_Ziel_] | N9: =F9 -> Ziel: [_kein_weiteres_Ziel_] | X9: TRUE | Z9: FALSE
F10: =CONCATENATE('1.1 Ziele-Auswahl'!J11, ":") -> IST-Zustand: | H10: ='1.1 Ziele-Auswahl'!$J13 -> 0 | N10: =F10 -> IST-Zustand: | P10: ='1.1 Ziele-Auswahl'!$J13 -> 0
F11: =CONCATENATE('1.1 Ziele-Auswahl'!K11, ":") -> SOLL-Zustand: | H11: ='1.1 Ziele-Auswahl'!$K13 -> 0 | N11: =F11 -> SOLL-Zustand: | P11: ='1.1 Ziele-Auswahl'!$K13 -> 0
C12: verschiedene Szenarien der externen Faktoren | F12: Wie sicher sind Sie, dass das oberhalb genannte Ziel unter Ressourcenverteilung A erreicht wird? Berücksichtigen Sie hierbei den externen Faktor, bzw. die externen Faktoren auf der linken Seite. | N12: Wie sicher sind Sie, dass das oberhalb genannte Ziel unter Ressourcenverteilung B erreicht wird? Berücksichtigen Sie hierbei den externen Faktor, bzw. die externen Faktoren auf der linken Seite. | X12: =IF(C13=0,"","Berücksichtigen Sie hierbei die externen Faktoren auf der linken Seite.") -> Berücksichtigen Sie hierbei die externen Faktoren auf der linken Seite.
C13: ='2.0 Ext.Faktor-Wahl'!D12 -> [_keinen_weiteren_externen_Faktor_] | D13: ='2.0 Ext.Faktor-Wahl'!D15 -> [_keinen_weiteren_externen_Faktor_] | F13: Komplett sicher: SOLL-Zustand nicht erreicht | H13: Komplett unsicher, ob SOLL-Zustand erreicht | J13: Komplett sicher: SOLL-Zustand erreicht | N13: =F13 -> Komplett sicher: SOLL-Zustand nicht erreicht | P13: =H13 -> Komplett unsicher, ob SOLL-Zustand erreicht | R13: =J13 -> Komplett sicher: SOLL-Zustand erreicht | AO13: =F14 -> 50
C14: ='2.0 Ext.Faktor-Wahl'!F13 -> 0 | D14: ='2.0 Ext.Faktor-Wahl'!F16 -> 0 | F14: 50 | N14: 75 | U14: =RANDBETWEEN(0,100) -> 87 | W14: 0 | X14: =IF(W14=0,50,CHOOSE(W14,0,25,50,75,100)) -> 50 | Y14: 0 | Z14: =IF(Y14=0,50,CHOOSE(Y14,0,25,50,75,100)) -> 50 | AM14: =RANDBETWEEN(51,100) -> 76 | AO14: =F16 -> 75
AO15: =F18 -> 75
C16: =C14 -> 0 | D16: ='2.0 Ext.Faktor-Wahl'!G16 -> 0 | F16: 75 | N16: 75 | W16: 0 | X16: =IF(W16=0,50,CHOOSE(W16,0,25,50,75,100)) -> 50 | Y16: 0 | Z16: =IF(Y16=0,50,CHOOSE(Y16,0,25,50,75,100)) -> 50 | AO16: =F20 -> 50
AO17: =N14 -> 75
C18: ='2.0 Ext.Faktor-Wahl'!G13 -> 0 | D18: =D14 -> 0 | F18: 75 | N18: 75 | W18: 0 | X18: =IF(W18=0,50,CHOOSE(W18,0,25,50,75,100)) -> 50 | Y18: 0 | Z18: =IF(Y18=0,50,CHOOSE(Y18,0,25,50,75,100)) -> 50 | AO18: =N16 -> 75
AO19: =N18 -> 75
C20: =C18 -> 0 | D20: =D16 -> 0 | F20: 50 | N20: 50 | W20: 0 | X20: =IF(W20=0,50,CHOOSE(W20,0,25,50,75,100)) -> 50 | Y20: 0 | Z20: =IF(Y20=0,50,CHOOSE(Y20,0,25,50,75,100)) -> 50 | AO20: =N20 -> 50

Sheet 4.0.2 Ökol. Vorhersagen (hidden)
X2: =RANDBETWEEN(0,100) -> 27 | AF2: =RANDBETWEEN(0,100) -> 60
F3: ='t eigene Abwägung Abb. '!J10 -> Verwaltungseinheit:
F4: ='1.0 Int.gruppen-Auswahl'!C4 -> 0
F6: ='t eigene Abwägung Abb. '!J13 -> Zeitraum:
F7: ='1.0 Int.gruppen-Auswahl'!C7 -> 0 | X7: =RANDBETWEEN(0,100) -> 54 | AF7: =RANDBETWEEN(0,100) -> 84
F9: =CONCATENATE("Ziel: ", '1.1 Ziele-Auswahl'!E14) -> Ziel: [_kein_weiteres_Ziel_] | N9: =F9 -> Ziel: [_kein_weiteres_Ziel_] | X9: TRUE | Z9: FALSE
F10: =CONCATENATE('1.1 Ziele-Auswahl'!J11, ":") -> IST-Zustand: | H10: ='1.1 Ziele-Auswahl'!$J14 -> 0 | N10: =F10 -> IST-Zustand: | P10: ='1.1 Ziele-Auswahl'!$J14 -> 0
F11: =CONCATENATE('1.1 Ziele-Auswahl'!K11, ":") -> SOLL-Zustand: | H11: ='1.1 Ziele-Auswahl'!$K14 -> 0 | N11: =F11 -> SOLL-Zustand: | P11: ='1.1 Ziele-Auswahl'!$K14 -> 0
C12: verschiedene Szenarien der externen Faktoren | F12: Wie sicher sind Sie, dass das oberhalb genannte Ziel unter Ressourcenverteilung A erreicht wird? Berücksichtigen Sie hierbei den externen Faktor, bzw. die externen Faktoren auf der linken Seite. | N12: Wie sicher sind Sie, dass das oberhalb genannte Ziel unter Ressourcenverteilung B erreicht wird? Berücksichtigen Sie hierbei den externen Faktor, bzw. die externen Faktoren auf der linken Seite.
C13: ='2.0 Ext.Faktor-Wahl'!D12 -> [_keinen_weiteren_externen_Faktor_] | D13: ='2.0 Ext.Faktor-Wahl'!D15 -> [_keinen_weiteren_externen_Faktor_] | F13: Komplett sicher: SOLL-Zustand nicht erreicht | H13: Komplett unsicher, ob SOLL-Zustand erreicht | J13: Komplett sicher: SOLL-Zustand erreicht | N13: Komplett sicher: SOLL-Zustand nicht erreicht | P13: Komplett unsicher, ob SOLL-Zustand erreicht | R13: Komplett sicher: SOLL-Zustand erreicht | AO13: =F14 -> 0
C14: ='2.0 Ext.Faktor-Wahl'!F13 -> 0 | D14: ='2.0 Ext.Faktor-Wahl'!F16 -> 0 | U14: =RANDBETWEEN(0,100) -> 82 | W14: 0 | X14: =IF(W14=0,50,CHOOSE(W14,0,25,50,75,100)) -> 50 | Y14: 0 | Z14: =IF(Y14=0,50,CHOOSE(Y14,0,25,50,75,100)) -> 50 | AN14: =RANDBETWEEN(51,100) -> 54 | AO14: =F16 -> 0
AO15: =F18 -> 0
C16: =C14 -> 0 | D16: ='2.0 Ext.Faktor-Wahl'!G16 -> 0 | W16: 0 | X16: =IF(W16=0,50,CHOOSE(W16,0,25,50,75,100)) -> 50 | Y16: 0 | Z16: =IF(Y16=0,50,CHOOSE(Y16,0,25,50,75,100)) -> 50 | AO16: =F20 -> 0
AO17: =N14 -> 0 | AS17: Scroll Bar 2 | AU17: Scroll Bar 4
C18: ='2.0 Ext.Faktor-Wahl'!G13 -> 0 | D18: =D14 -> 0 | W18: 0 | X18: =IF(W18=0,50,CHOOSE(W18,0,25,50,75,100)) -> 50 | Y18: 0 | Z18: =IF(Y18=0,50,CHOOSE(Y18,0,25,50,75,100)) -> 50 | AO18: =N16 -> 0
AO19: =N18 -> 0 | AS19: Scroll Bar 5 | AU19: Scroll Bar 7
C20: =C18 -> 0 | D20: =D16 -> 0 | W20: 0 | X20: =IF(W20=0,50,CHOOSE(W20,0,25,50,75,100)) -> 50 | Y20: 0 | Z20: =IF(Y20=0,50,CHOOSE(Y20,0,25,50,75,100)) -> 50 | AO20: =N20 -> 0

Sheet 4.1.1 Ökon. Vorhersagen (hidden)
X2: =RANDBETWEEN(0,100) -> 71 | AF2: =RANDBETWEEN(0,100) -> 47
F3: ='t eigene Abwägung Abb. '!J10 -> Verwaltungseinheit:
F4: ='1.0 Int.gruppen-Auswahl'!C4 -> 0
F6: ='t eigene Abwägung Abb. '!J13 -> Zeitraum:
F7: ='1.0 Int.gruppen-Auswahl'!C7 -> 0 | X7: =RANDBETWEEN(0,100) -> 96 | AF7: =RANDBETWEEN(0,100) -> 66
F9: =CONCATENATE("Ziel: ", '1.1 Ziele-Auswahl'!E17) -> Ziel: [_kein_weiteres_Ziel_] | N9: =F9 -> Ziel: [_kein_weiteres_Ziel_] | X9: TRUE | Z9: FALSE
F10: =CONCATENATE('1.1 Ziele-Auswahl'!J11, ":") -> IST-Zustand: | H10: ='1.1 Ziele-Auswahl'!$J17 -> 0 | N10: =F10 -> IST-Zustand: | P10: ='1.1 Ziele-Auswahl'!$J17 -> 0
F11: =CONCATENATE('1.1 Ziele-Auswahl'!K11, ":") -> SOLL-Zustand: | H11: ='1.1 Ziele-Auswahl'!$K17 -> 0 | N11: =F11 -> SOLL-Zustand: | P11: ='1.1 Ziele-Auswahl'!$K17 -> 0
C12: verschiedene Szenarien der externen Faktoren | F12: Wie sicher sind Sie, dass das oberhalb genannte Ziel unter Ressourcenverteilung A erreicht wird? Berücksichtigen Sie hierbei den externen Faktor, bzw. die externen Faktoren auf der linken Seite. | N12: Wie sicher sind Sie, dass das oberhalb genannte Ziel unter Ressourcenverteilung B erreicht wird? Berücksichtigen Sie hierbei den externen Faktor, bzw. die externen Faktoren auf der linken Seite.
C13: ='2.0 Ext.Faktor-Wahl'!D12 -> [_keinen_weiteren_externen_Faktor_] | D13: ='2.0 Ext.Faktor-Wahl'!D15 -> [_keinen_weiteren_externen_Faktor_] | F13: Komplett sicher: SOLL-Zustand nicht erreicht | H13: Komplett unsicher, ob SOLL-Zustand erreicht | J13: Komplett sicher: SOLL-Zustand erreicht | N13: =F13 -> Komplett sicher: SOLL-Zustand nicht erreicht | P13: =H13 -> Komplett unsicher, ob SOLL-Zustand erreicht | R13: =J13 -> Komplett sicher: SOLL-Zustand erreicht | AO13: =F14 -> 75
C14: ='2.0 Ext.Faktor-Wahl'!F13 -> 0 | D14: ='2.0 Ext.Faktor-Wahl'!F16 -> 0 | F14: 75 | N14: 50 | U14: =RANDBETWEEN(0,100) -> 57 | W14: 0 | X14: =IF(W14=0,50,CHOOSE(W14,0,25,50,75,100)) -> 50 | Y14: 0 | Z14: =IF(Y14=0,50,CHOOSE(Y14,0,25,50,75,100)) -> 50 | AN14: =RANDBETWEEN(51,100) -> 64 | AO14: =F16 -> 50
AO15: =F18 -> 50
C16: =C14 -> 0 | D16: ='2.0 Ext.Faktor-Wahl'!G16 -> 0 | F16: 50 | N16: 50 | W16: 0 | X16: =IF(W16=0,50,CHOOSE(W16,0,25,50,75,100)) -> 50 | Y16: 0 | Z16: =IF(Y16=0,50,CHOOSE(Y16,0,25,50,75,100)) -> 50 | AO16: =F20 -> 50
AO17: =N14 -> 50
C18: ='2.0 Ext.Faktor-Wahl'!G13 -> 0 | D18: =D14 -> 0 | F18: 50 | N18: 50 | W18: 0 | X18: =IF(W18=0,50,CHOOSE(W18,0,25,50,75,100)) -> 50 | Y18: 0 | Z18: =IF(Y18=0,50,CHOOSE(Y18,0,25,50,75,100)) -> 50 | AO18: =N16 -> 50
AO19: =N18 -> 50
C20: =C18 -> 0 | D20: =D16 -> 0 | F20: 50 | N20: 75 | W20: 0 | X20: =IF(W20=0,50,CHOOSE(W20,0,25,50,75,100)) -> 50 | Y20: 0 | Z20: =IF(Y20=0,50,CHOOSE(Y20,0,25,50,75,100)) -> 50 | AO20: =N20 -> 75

Sheet 4.1.2 Ökon. Vorhersagen (hidden)
X2: =RANDBETWEEN(0,100) -> 51 | AF2: =RANDBETWEEN(0,100) -> 93
F3: ='t eigene Abwägung Abb. '!J10 -> Verwaltungseinheit:
F4: ='1.0 Int.gruppen-Auswahl'!C4 -> 0
F6: ='t eigene Abwägung Abb. '!J13 -> Zeitraum:
F7: ='1.0 Int.gruppen-Auswahl'!C7 -> 0 | X7: =RANDBETWEEN(0,100) -> 59 | AF7: =RANDBETWEEN(0,100) -> 62
F9: =CONCATENATE("Ziel: ", '1.1 Ziele-Auswahl'!E18) -> Ziel: [_kein_weiteres_Ziel_] | N9: =F9 -> Ziel: [_kein_weiteres_Ziel_] | X9: TRUE | Z9: FALSE
F10: =CONCATENATE('1.1 Ziele-Auswahl'!J11, ":") -> IST-Zustand: | H10: ='1.1 Ziele-Auswahl'!$J18 -> 0 | N10: =F10 -> IST-Zustand: | P10: ='1.1 Ziele-Auswahl'!$J18 -> 0
F11: =CONCATENATE('1.1 Ziele-Auswahl'!K11, ":") -> SOLL-Zustand: | H11: ='1.1 Ziele-Auswahl'!$K18 -> 0 | N11: =F11 -> SOLL-Zustand: | P11: ='1.1 Ziele-Auswahl'!$K18 -> 0
C12: verschiedene Szenarien der externen Faktoren | F12: Wie sicher sind Sie, dass das oberhalb genannte Ziel unter Ressourcenverteilung A erreicht wird? Berücksichtigen Sie hierbei den externen Faktor, bzw. die externen Faktoren auf der linken Seite. | N12: Wie sicher sind Sie, dass das oberhalb genannte Ziel unter Ressourcenverteilung B erreicht wird? Berücksichtigen Sie hierbei den externen Faktor, bzw. die externen Faktoren auf der linken Seite.
C13: ='2.0 Ext.Faktor-Wahl'!D12 -> [_keinen_weiteren_externen_Faktor_] | D13: ='2.0 Ext.Faktor-Wahl'!D15 -> [_keinen_weiteren_externen_Faktor_] | F13: Komplett sicher: SOLL-Zustand nicht erreicht | H13: Komplett unsicher, ob SOLL-Zustand erreicht | J13: Komplett sicher: SOLL-Zustand erreicht | N13: =F13 -> Komplett sicher: SOLL-Zustand nicht erreicht | P13: =H13 -> Komplett unsicher, ob SOLL-Zustand erreicht | R13: =J13 -> Komplett sicher: SOLL-Zustand erreicht | AO13: =F14 -> 75
C14: ='2.0 Ext.Faktor-Wahl'!F13 -> 0 | D14: ='2.0 Ext.Faktor-Wahl'!F16 -> 0 | F14: 75 | N14: 50 | W14: 0 | X14: =IF(W14=0,50,CHOOSE(W14,0,25,50,75,100)) -> 50 | Y14: 0 | Z14: =IF(Y14=0,50,CHOOSE(Y14,0,25,50,75,100)) -> 50 | AN14: =RANDBETWEEN(51,100) -> 83 | AO14: =F16 -> 50
AO15: =F18 -> 50
C16: =C14 -> 0 | D16: ='2.0 Ext.Faktor-Wahl'!G16 -> 0 | F16: 50 | N16: 50 | W16: 0 | X16: =IF(W16=0,50,CHOOSE(W16,0,25,50,75,100)) -> 50 | Y16: 0 | Z16: =IF(Y16=0,50,CHOOSE(Y16,0,25,50,75,100)) -> 50 | AO16: =F20 -> 50
AO17: =N14 -> 50
C18: ='2.0 Ext.Faktor-Wahl'!G13 -> 0 | D18: =D14 -> 0 | F18: 50 | N18: 50 | W18: 0 | X18: =IF(W18=0,50,CHOOSE(W18,0,25,50,75,100)) -> 50 | Y18: 0 | Z18: =IF(Y18=0,50,CHOOSE(Y18,0,25,50,75,100)) -> 50 | AO18: =N16 -> 50
AO19: =N18 -> 50
C20: =C18 -> 0 | D20: =D16 -> 0 | F20: 50 | N20: 75 | W20: 0 | X20: =IF(W20=0,50,CHOOSE(W20,0,25,50,75,100)) -> 50 | Y20: 0 | Z20: =IF(Y20=0,50,CHOOSE(Y20,0,25,50,75,100)) -> 50 | AO20: =N20 -> 75

Sheet 4.2.1 Soz.kul. Vorhersagen (hidden)
X2: =RANDBETWEEN(0,100) -> 2 | AF2: =RANDBETWEEN(0,100) -> 82
F3: ='t eigene Abwägung Abb. '!J10 -> Verwaltungseinheit:
F4: ='1.0 Int.gruppen-Auswahl'!C4 -> 0
F6: ='t eigene Abwägung Abb. '!J13 -> Zeitraum:
F7: ='1.0 Int.gruppen-Auswahl'!C7 -> 0 | X7: =RANDBETWEEN(0,100) -> 43 | AF7: =RANDBETWEEN(0,100) -> 60
F9: =CONCATENATE("Ziel: ", '1.1 Ziele-Auswahl'!E21) -> Ziel: [_kein_weiteres_Ziel_] | N9: =F9 -> Ziel: [_kein_weiteres_Ziel_] | X9: TRUE | Z9: FALSE
F10: =CONCATENATE('1.1 Ziele-Auswahl'!J11, ":") -> IST-Zustand: | H10: ='1.1 Ziele-Auswahl'!$J21 -> 0 | N10: =F10 -> IST-Zustand: | P10: ='1.1 Ziele-Auswahl'!$J21 -> 0
F11: =CONCATENATE('1.1 Ziele-Auswahl'!K11, ":") -> SOLL-Zustand: | H11: ='1.1 Ziele-Auswahl'!$K21 -> 0 | N11: =F11 -> SOLL-Zustand: | P11: ='1.1 Ziele-Auswahl'!$K21 -> 0
C12: verschiedene Szenarien der externen Faktoren | F12: Wie sicher sind Sie, dass das oberhalb genannte Ziel unter Ressourcenverteilung A erreicht wird? Berücksichtigen Sie hierbei den externen Faktor, bzw. die externen Faktoren auf der linken Seite. | N12: Wie sicher sind Sie, dass das oberhalb genannte Ziel unter Ressourcenverteilung B erreicht wird? Berücksichtigen Sie hierbei den externen Faktor, bzw. die externen Faktoren auf der linken Seite.
C13: ='2.0 Ext.Faktor-Wahl'!D12 -> [_keinen_weiteren_externen_Faktor_] | D13: ='2.0 Ext.Faktor-Wahl'!D15 -> [_keinen_weiteren_externen_Faktor_] | F13: Komplett sicher: SOLL-Zustand nicht erreicht | H13: Komplett unsicher, ob SOLL-Zustand erreicht | J13: Komplett sicher: SOLL-Zustand erreicht | N13: Komplett sicher: SOLL-Zustand nicht erreicht | P13: Komplett unsicher, ob SOLL-Zustand erreicht | R13: Komplett sicher: SOLL-Zustand erreicht | AO13: =F14 -> 100
C14: ='2.0 Ext.Faktor-Wahl'!F13 -> 0 | D14: ='2.0 Ext.Faktor-Wahl'!F16 -> 0 | F14: 100 | N14: 75 | W14: 0 | X14: =IF(W14=0,50,CHOOSE(W14,0,25,50,75,100)) -> 50 | Y14: 0 | Z14: =IF(Y14=0,50,CHOOSE(Y14,0,25,50,75,100)) -> 50 | AN14: =RANDBETWEEN(51,100) -> 98 | AO14: =F16 -> 50
AO15: =F18 -> 50
C16: =C14 -> 0 | D16: ='2.0 Ext.Faktor-Wahl'!G16 -> 0 | F16: 50 | N16: 50 | W16: 0 | X16: =IF(W16=0,50,CHOOSE(W16,0,25,50,75,100)) -> 50 | Y16: 0 | Z16: =IF(Y16=0,50,CHOOSE(Y16,0,25,50,75,100)) -> 50 | AO16: =F20 -> 50
AO17: =N14 -> 75
C18: ='2.0 Ext.Faktor-Wahl'!G13 -> 0 | D18: =D14 -> 0 | F18: 50 | N18: 50 | W18: 0 | X18: =IF(W18=0,50,CHOOSE(W18,0,25,50,75,100)) -> 50 | Y18: 0 | Z18: =IF(Y18=0,50,CHOOSE(Y18,0,25,50,75,100)) -> 50 | AO18: =N16 -> 50
AO19: =N18 -> 50
C20: =C18 -> 0 | D20: =D16 -> 0 | F20: 50 | N20: 75 | W20: 0 | X20: =IF(W20=0,50,CHOOSE(W20,0,25,50,75,100)) -> 50 | Y20: 0 | Z20: =IF(Y20=0,50,CHOOSE(Y20,0,25,50,75,100)) -> 50 | AO20: =N20 -> 75

Sheet 4.2.2 Soz.kul. Vorhersagen (hidden)
X2: =RANDBETWEEN(0,100) -> 79 | AF2: =RANDBETWEEN(0,100) -> 79
F3: ='t eigene Abwägung Abb. '!J10 -> Verwaltungseinheit:
F4: ='1.0 Int.gruppen-Auswahl'!C4 -> 0
F6: ='t eigene Abwägung Abb. '!J13 -> Zeitraum:
F7: ='1.0 Int.gruppen-Auswahl'!C7 -> 0 | X7: =RANDBETWEEN(0,100) -> 83 | AF7: =RANDBETWEEN(0,100) -> 64
F9: =CONCATENATE("Ziel: ", '1.1 Ziele-Auswahl'!E22) -> Ziel: [_kein_weiteres_Ziel_] | N9: =F9 -> Ziel: [_kein_weiteres_Ziel_] | X9: TRUE | Z9: FALSE
F10: =CONCATENATE('1.1 Ziele-Auswahl'!J11, ":") -> IST-Zustand: | H10: ='1.1 Ziele-Auswahl'!$J22 -> 0 | N10: =F10 -> IST-Zustand: | P10: ='1.1 Ziele-Auswahl'!$J22 -> 0
F11: =CONCATENATE('1.1 Ziele-Auswahl'!K11, ":") -> SOLL-Zustand: | H11: ='1.1 Ziele-Auswahl'!$K22 -> 0 | N11: =F11 -> SOLL-Zustand: | P11: ='1.1 Ziele-Auswahl'!$K22 -> 0
C12: verschiedene Szenarien der externen Faktoren | F12: Wie sicher sind Sie, dass das oberhalb genannte Ziel unter Ressourcenverteilung A erreicht wird? Berücksichtigen Sie hierbei den externen Faktor, bzw. die externen Faktoren auf der linken Seite. | N12: Wie sicher sind Sie, dass das oberhalb genannte Ziel unter Ressourcenverteilung B erreicht wird? Berücksichtigen Sie hierbei den externen Faktor, bzw. die externen Faktoren auf der linken Seite.
C13: ='2.0 Ext.Faktor-Wahl'!D12 -> [_keinen_weiteren_externen_Faktor_] | D13: ='2.0 Ext.Faktor-Wahl'!D15 -> [_keinen_weiteren_externen_Faktor_] | F13: Komplett sicher: SOLL-Zustand nicht erreicht | H13: Komplett unsicher, ob SOLL-Zustand erreicht | J13: Komplett sicher: SOLL-Zustand erreicht | N13: =F13 -> Komplett sicher: SOLL-Zustand nicht erreicht | P13: =H13 -> Komplett unsicher, ob SOLL-Zustand erreicht | R13: =J13 -> Komplett sicher: SOLL-Zustand erreicht | AO13: =F14 -> 50
C14: ='2.0 Ext.Faktor-Wahl'!F13 -> 0 | D14: ='2.0 Ext.Faktor-Wahl'!F16 -> 0 | F14: 50 | N14: 50 | U14: =RANDBETWEEN(0,100) -> 21 | W14: 0 | X14: =IF(W14=0,50,CHOOSE(W14,0,25,50,75,100)) -> 50 | Y14: 0 | Z14: =IF(Y14=0,50,CHOOSE(Y14,0,25,50,75,100)) -> 50 | AN14: =RANDBETWEEN(51,100) -> 84 | AO14: =F16 -> 50
AO15: =F18 -> 50
C16: =C14 -> 0 | D16: ='2.0 Ext.Faktor-Wahl'!G16 -> 0 | F16: 50 | N16: 50 | W16: 0 | X16: =IF(W16=0,50,CHOOSE(W16,0,25,50,75,100)) -> 50 | Y16: 0 | Z16: =IF(Y16=0,50,CHOOSE(Y16,0,25,50,75,100)) -> 50 | AO16: =F20 -> 50
AO17: =N14 -> 50
C18: ='2.0 Ext.Faktor-Wahl'!G13 -> 0 | D18: =D14 -> 0 | F18: 50 | N18: 50 | W18: 0 | X18: =IF(W18=0,50,CHOOSE(W18,0,25,50,75,100)) -> 50 | Y18: 0 | Z18: =IF(Y18=0,50,CHOOSE(Y18,0,25,50,75,100)) -> 50 | AO18: =N16 -> 50
AO19: =N18 -> 50
C20: =C18 -> 0 | D20: =D16 -> 0 | F20: 50 | N20: 50 | W20: 0 | X20: =IF(W20=0,50,CHOOSE(W20,0,25,50,75,100)) -> 50 | Y20: 0 | Z20: =IF(Y20=0,50,CHOOSE(Y20,0,25,50,75,100)) -> 50 | AO20: =N20 -> 50

Sheet t Vorhersagen zusammengefasst (hidden)
W1: Bitte diese Spalte sichtlich lassen!
D2: 4 | E2: 5 | F2: 6 | G2: 7 | H2: 8 | I2: 9 | J2: 10 | K2: 11 | L2: 12 | M2: 13 | N2: 14 | O2: 15 | P2: 16 | Q2: 17 | R2: 18 | S2: 19
W4: ='t eigene Abwägung Abb. '!J10 -> Verwaltungseinheit:
W5: ='1.2.1 eigene Rangliste'!C5 -> 0
W7: ='t eigene Abwägung Abb. '!J13 -> Zeitraum:
W8: ='1.2.1 eigene Rangliste'!C8 -> 0
D10: ='4.0.1 Ökol. Vorhersagen'!C12 -> verschiedene Szenarien der externen Faktoren | G10: 0 = negative Veränderung 50 = keine Veränderung 100 = positive Veränderung | W10: Run macro-> | X10: TRUE
G11: Ressourcenverteilung A | N11: Ressourcenverteilung B | W11: =CONCATENATE($D$12, "| ", $F$12) -> [_keinen_weiteren_externen_Faktor_]| [_keinen_weiteren_externen_Faktor_]
D12: ='2.0 Ext.Faktor-Wahl'!D12 -> [_keinen_weiteren_externen_Faktor_] | F12: ='2.0 Ext.Faktor-Wahl'!D15 -> [_keinen_weiteren_externen_Faktor_] | G12: =calculations!X3 -> 4.1.1) [_kein_weiteres_Ziel_] | H12: =calculations!Y3 -> 4.1.2) [_kein_weiteres_Ziel_] | I12: =calculations!Z3 -> 4.2.1) [_kein_weiteres_Ziel_] | J12: =calculations!AA3 -> 4.2.2) [_kein_weiteres_Ziel_] | K12: =calculations!AB3 -> 4.3.1) [_kein_weiteres_Ziel_] | L12: =calculations!AC3 -> 4.3.2) [_kein_weiteres_Ziel_] | N12: =G12 -> 4.1.1) [_kein_weiteres_Ziel_] | O12: 4.1.2) [_kein_weiteres_Ziel_] | P12: 4.2.1) [_kein_weiteres_Ziel_] | Q12: 4.2.2) [_kein_weiteres_Ziel_] | R12: 4.3.1) [_kein_weiteres_Ziel_] | S12: 4.3.2) [_kein_weiteres_Ziel_]
D13: ='4.0.1 Ökol. Vorhersagen'!C14 -> 0 | E13: | | F13: ='4.0.1 Ökol. Vorhersagen'!D14 -> 0 | G13: =100*calculations!X4 -> 50 | H13: =100*calculations!Y4 -> 50 | I13: =100*calculations!Z4 -> 50 | J13: =100*calculations!AA4 -> 50 | K13: =100*calculations!AB4 -> 50 | L13: =100*calculations!AC4 -> 50 | N13: =100*calculations!X8 -> 50 | O13: =100*calculations!Y8 -> 50 | P13: =100*calculations!Z8 -> 50 | Q13: =100*calculations!AA8 -> 50 | R13: =100*calculations!AB8 -> 50 | S13: =100*calculations!AC8 -> 50
D14: ='4.0.1 Ökol. Vorhersagen'!C16 -> 0 | E14: | | F14: ='4.0.1 Ökol. Vorhersagen'!D16 -> 0 | G14: =100*calculations!X5 -> 50 | H14: =100*calculations!Y5 -> 50 | I14: =100*calculations!Z5 -> 50 | J14: =100*calculations!AA5 -> 50 | K14: =100*calculations!AB5 -> 50 | L14: =100*calculations!AC5 -> 50 | N14: =100*calculations!X9 -> 50 | O14: =100*calculations!Y9 -> 50 | P14: =100*calculations!Z9 -> 50 | Q14: =100*calculations!AA9 -> 50 | R14: =100*calculations!AB9 -> 50 | S14: =100*calculations!AC9 -> 50
D15: ='4.0.1 Ökol. Vorhersagen'!C18 -> 0 | E15: | | F15: ='4.0.1 Ökol. Vorhersagen'!D18 -> 0 | G15: =100*calculations!X6 -> 50 | H15: =100*calculations!Y6 -> 50 | I15: =100*calculations!Z6 -> 50 | J15: =100*calculations!AA6 -> 50 | K15: =100*calculations!AB6 -> 50 | L15: =100*calculations!AC6 -> 50 | N15: =100*calculations!X10 -> 50 | O15: =100*calculations!Y10 -> 50 | P15: =100*calculations!Z10 -> 50 | Q15: =100*calculations!AA10 -> 50 | R15: =100*calculations!AB10 -> 50 | S15: =100*calculations!AC10 -> 50
D16: ='4.0.1 Ökol. Vorhersagen'!C20 -> 0 | E16: | | F16: ='4.0.1 Ökol. Vorhersagen'!D20 -> 0 | G16: =100*calculations!X7 -> 50 | H16: =100*calculations!Y7 -> 50 | I16: =100*calculations!Z7 -> 50 | J16: =100*calculations!AA7 -> 50 | K16: =100*calculations!AB7 -> 50 | L16: =100*calculations!AC7 -> 50 | N16: =100*calculations!X11 -> 50 | O16: =100*calculations!Y11 -> 50 | P16: =100*calculations!Z11 -> 50 | Q16: =100*calculations!AA11 -> 50 | R16: =100*calculations!AB11 -> 50 | S16: =100*calculations!AC11 -> 50
W17: Bayes net CPT
X18: Wolf_strong_inc | Y18: Ressourcenverteilungen | Z18: Ökol. | AA18: Ökon. | AB18: Soz.kult. | AD18: Ökol. | AF18: Ökon. | AH18: Soz.kult.
G19: Random numbers | X19: Ja | Y19: A | Z19: =G13 -> 50 | AA19: =K13 -> 50 | AB19: =L13 -> 50 | AD19: =Z19 -> 50 | AF19: =AA19 -> 50 | AH19: =AB19 -> 50 | AJ19: 0
G20: =RANDBETWEEN(0,100) -> 25 | K20: =RANDBETWEEN(0,100) -> 12 | L20: =RANDBETWEEN(0,100) -> 45 | X20: Ja | Y20: B | Z20: =N13 -> 50 | AA20: =R13 -> 50 | AB20: =S13 -> 50 | AD20: =Z20 -> 50 | AF20: =AA20 -> 50 | AH20: =AB20 -> 50 | AJ20: 0
D21: =CONCATENATE(D$12, " ", D13) -> [_keinen_weiteren_externen_Faktor_] 0 | F21: =CONCATENATE(F$12, " ", F13) -> [_keinen_weiteren_externen_Faktor_] 0 | X21: Nein | Y21: A | Z21: =G14 -> 50 | AA21: =K14 -> 50 | AB21: =L14 -> 50 | AD21: =Z21 -> 50 | AF21: =AA21 -> 50 | AH21: =AB21 -> 50 | AJ21: 0
D22: =CONCATENATE(D$12, " ", D14) -> [_keinen_weiteren_externen_Faktor_] 0 | F22: [_keinen_weiteren_externen_Faktor_] 0 | X22: Nein | Y22: B | Z22: =N14 -> 50 | AA22: =R14 -> 50 | AB22: =S14 -> 50 | AD22: =Z22 -> 50 | AF22: =AA22 -> 50 | AH22: =AB22 -> 50 | AJ22: 0
D23: [_keinen_weiteren_externen_Faktor_] 0 | F23: [_keinen_weiteren_externen_Faktor_] 0
D24: [_keinen_weiteren_externen_Faktor_] 0 | F24: [_keinen_weiteren_externen_Faktor_] 0

Sheet 5.0 eigene erwart. Zufriedenht.
O2: A | W2: B
C4: ='t eigene Abwägung Abb. '!J10 -> Verwaltungseinheit:
C5: ='1.2.1 eigene Rangliste'!C5:J5 -> 0
C7: ='t eigene Abwägung Abb. '!J13 -> Zeitraum:
C8: ='t eigene Abwägung Abb. '!J14 -> 0
I10: ='3.0 Ressourcenverteilung'!C8 -> Ressourcenverteilung A | O10: Erwartete Zufriedenheit [0 = komplett unzufrieden; 100 = komplett zufrieden] | Q10: ='3.0 Ressourcenverteilung'!I8 -> Ressourcenverteilung B | W10: Erwartete Zufriedenheit [0 = komplett unzufrieden; 100 = komplett zufrieden]
I11: ='3.0 Ressourcenverteilung'!C10 -> [ keine weitere Maßnahme ] | J11: ='3.0 Ressourcenverteilung'!C11 -> [ keine weitere Maßnahme ] | K11: ='3.0 Ressourcenverteilung'!C12 -> [ keine weitere Maßnahme ] | L11: ='3.0 Ressourcenverteilung'!C13 -> [ keine weitere Maßnahme ] | M11: Summe = 100% | Q11: =I11 -> [ keine weitere Maßnahme ] | R11: =J11 -> [ keine weitere Maßnahme ] | S11: =K11 -> [ keine weitere Maßnahme ] | T11: =L11 -> [ keine weitere Maßnahme ] | U11: Summe = 100%
I13: ='3.0 Ressourcenverteilung'!G$10 -> 0 | J13: ='3.0 Ressourcenverteilung'!G$11 -> 0 | K13: ='3.0 Ressourcenverteilung'!G$12 -> 0 | L13: ='3.0 Ressourcenverteilung'!G$13 -> 0 | M13: =SUM(I13:L13) -> 0 | O13: ='t eigene Abwägung Abb. '!E28 -> 50.00225 | Q13: ='3.0 Ressourcenverteilung'!M$10 -> 0 | R13: ='3.0 Ressourcenverteilung'!M$11 -> 0 | S13: ='3.0 Ressourcenverteilung'!M$12 -> 0 | T13: ='3.0 Ressourcenverteilung'!M$13 -> 0 | U13: =SUM(Q13:T13) -> 0 | W13: ='t eigene Abwägung Abb. '!F28 -> 50.00225
O17: =MAX(O13,W13) -> 50.00225
I18: ='3.0 Ressourcenverteilung'!C20 -> [ keine weitere Maßnahme ] | K18: ='3.0 Ressourcenverteilung'!E20:M20 -> 0
I19: ='3.0 Ressourcenverteilung'!#REF! ->  | K19: ='3.0 Ressourcenverteilung'!#REF! -> 
I20: ='3.0 Ressourcenverteilung'!#REF! ->  | K20: ='3.0 Ressourcenverteilung'!#REF! -> 
I21: ='3.0 Ressourcenverteilung'!#REF! ->  | K21: ='3.0 Ressourcenverteilung'!#REF! -> 
I22: ='3.0 Ressourcenverteilung'!#REF! ->  | K22: ='3.0 Ressourcenverteilung'!#REF! -> 

Sheet 5.1 gemnsm.erwart. Zufriedenht.
O2: A | W2: B
C4: ='t eigene Abwägung Abb. '!J10 -> Verwaltungseinheit:
C5: ='1.2.1 eigene Rangliste'!C5:J5 -> 0
C7: ='t eigene Abwägung Abb. '!J13 -> Zeitraum:
C8: ='t eigene Abwägung Abb. '!J14 -> 0
I10: ='3.0 Ressourcenverteilung'!C8 -> Ressourcenverteilung A | O10: Erwartete Zufriedenheit [0 = komplett unzufrieden; 100 = komplett zufrieden] | Q10: ='3.0 Ressourcenverteilung'!I8 -> Ressourcenverteilung B | W10: Erwartete Zufriedenheit [0 = komplett unzufrieden; 100 = komplett zufrieden]
I11: ='3.0 Ressourcenverteilung'!C10 -> [ keine weitere Maßnahme ] | J11: ='3.0 Ressourcenverteilung'!C11 -> [ keine weitere Maßnahme ] | K11: ='3.0 Ressourcenverteilung'!C12 -> [ keine weitere Maßnahme ] | L11: ='3.0 Ressourcenverteilung'!C13 -> [ keine weitere Maßnahme ] | M11: Summe = 100% | Q11: =I11 -> [ keine weitere Maßnahme ] | R11: =J11 -> [ keine weitere Maßnahme ] | S11: =K11 -> [ keine weitere Maßnahme ] | T11: =L11 -> [ keine weitere Maßnahme ] | U11: Summe = 100%
I13: ='3.0 Ressourcenverteilung'!G$10 -> 0 | J13: ='3.0 Ressourcenverteilung'!G$11 -> 0 | K13: ='3.0 Ressourcenverteilung'!G$12 -> 0 | L13: ='3.0 Ressourcenverteilung'!G$13 -> 0 | M13: =SUM(I13:L13) -> 0 | O13: ='1.5 Abwägung-Ergebnis'!F12 -> 50.00225 | Q13: ='3.0 Ressourcenverteilung'!M$10 -> 0 | R13: ='3.0 Ressourcenverteilung'!M$11 -> 0 | S13: ='3.0 Ressourcenverteilung'!M$12 -> 0 | T13: ='3.0 Ressourcenverteilung'!M$13 -> 0 | U13: =SUM(Q13:T13) -> 0 | W13: ='1.5 Abwägung-Ergebnis'!G12 -> 50.00225
O17: =MAX(O13,W13) -> 50.00225
I20: ='3.0 Ressourcenverteilung'!C20 -> [ keine weitere Maßnahme ] | K20: ='3.0 Ressourcenverteilung'!E20:M20 -> 0
I21: ='3.0 Ressourcenverteilung'!#REF! ->  | K21: ='3.0 Ressourcenverteilung'!#REF! -> 
I22: ='3.0 Ressourcenverteilung'!#REF! ->  | K22: ='3.0 Ressourcenverteilung'!#REF! -> 
I23: ='3.0 Ressourcenverteilung'!#REF! ->  | K23: ='3.0 Ressourcenverteilung'!#REF! -> 
I24: ='3.0 Ressourcenverteilung'!#REF! ->  | K24: ='3.0 Ressourcenverteilung'!#REF! -> 

Sheet 1.5 Abwägung-Ergebnis (hidden)
AD1: =COLUMN(AD3) -> 30
AC2: Run Macro -> | AD2: TRUE
S3: Verwaltungseinheit: | AD3: =S13 -> Ökol.
S4: ='1.0 Int.gruppen-Auswahl'!C4 -> 0 | AD4: =$W11 -> bei Ihnen | AE4: =$X11 -> [_keine_weitere_Interessensgruppe_] | AF4: =$Y11 -> [_keine_weitere_Interessensgruppe_] | AG4: Gemeinsam
AC5: Wichtigkeit | AD5: =AD6/$AD22 -> 0.3333333333 | AE5: =AE6/$AE22 -> 0.3333333333 | AF5: =AF6/$AF22 -> 0.3333333333 | AR5: =AG6/$AG22 -> 0.3333333333
S6: Zeitraum: | AC6: score | AD6: =(W14-W17)+W18 -> 57.142 | AE6: =(X14-X17)+X18 -> 57.142 | AF6: =(Y14-Y17)+Y18 -> 57.142 | AG6: =SUM(AD6:AF6) -> 171.426
S7: ='1.0 Int.gruppen-Auswahl'!C7 -> 0
AD8: =T13 -> Ökon.
S9: ='t eigene Abwägung Abb. '!J16 -> Hypothetische Änderung der Nachhaltigkeitsbereiche* innerhalb der Verwaltungseinheit und des gewählten Zeitraumes | V9: erwartete Zufriedenheit | AD9: =$W11 -> bei Ihnen | AE9: =$X11 -> [_keine_weitere_Interessensgruppe_] | AF9: =$Y11 -> [_keine_weitere_Interessensgruppe_] | AG9: =AG4 -> Gemeinsam
AC10: Wichtigkeit | AD10: =AD11/$AD22 -> 0.3333333333 | AE10: =AE11/$AE22 -> 0.3333333333 | AF10: =AF11/$AF22 -> 0.3333333333 | AG10: =AG11/$AG22 -> 0.3333333333
C11: Möglichkeit unter Entscheidungs- optionen | F11: Erwartete Zufriedenheit unter Unsicherheit | V11: gewichteter Durchschnitt | W11: bei Ihnen | X11: ='1.0 Int.gruppen-Auswahl'!E13 -> [_keine_weitere_Interessensgruppe_] | Y11: ='1.0 Int.gruppen-Auswahl'!E14 -> [_keine_weitere_Interessensgruppe_] | AC11: score | AD11: =W14-W16+W18 -> 57.142 | AE11: =X14-X16+X18 -> 57.142 | AF11: =Y14-Y16+Y18 -> 57.142 | AG11: =SUM(AD11:AF11) -> 171.426
B12: Sum | C12: =SUM(C14:C21) -> 0.9995117188 | D12: =SUM(D14:D21) -> 1 | F12: =SUM(F14:F21) -> 50.00225 | G12: =SUM(G14:G21) -> 50.00225
C13: A | D13: 45 | F13: A | G13: B | R13: alphOrder | S13: ='1.2.1 eigene Rangliste'!O13 -> Ökol. | T13: ='1.2.1 eigene Rangliste'!O19 -> Ökon. | U13: ='1.2.1 eigene Rangliste'!O25 -> Soz.kult. | AD13: =U13 -> Soz.kult.
C14: =calculations!AB22 -> 0.125 | D14: =calculations!AC22 -> 0.125 | F14: =C14*$V14 -> 12.5 | G14: 12.5 | S14: ↑→ | T14: ↑→ | U14: ↑→ | V14: 100 | W14: 100 | X14: 100 | Y14: 100 | AD14: =$W11 -> bei Ihnen | AE14: =$X11 -> [_keine_weitere_Interessensgruppe_] | AF14: =$Y11 -> [_keine_weitere_Interessensgruppe_] | AG14: =AG4 -> Gemeinsam
C15: =calculations!AB23 -> 0.125 | D15: =calculations!AC23 -> 0.125 | F15: 8.929 | G15: 8.929 | R15: 1 | S15: ↑→ | T15: ↑→ | U15: ↓ | V15: =W$23*W15+X$23*X15+Y$23*Y15 -> 71.432 | W15: ='t eigene Abwägung Abb. '!E2 -> 71.432 | X15: ='t Abwägung der Int.gruppe 1'!E2 -> 71.432 | Y15: ='t Abwägung der Int.gruppe 2'!E2 -> 71.432 | AC15: Wichtigkeit | AD15: =AD16/$AD22 -> 0.3333333333 | AE15: =AE16/$AE22 -> 0.3333333333 | AF15: =AF16/$AF22 -> 0.3333333333 | AG15: =AG16/$AG22 -> 0.3333333333
C16: =calculations!AB25 -> 0.125 | D16: =calculations!AC25 -> 0.125 | F16: 8.929 | G16: 8.929 | R16: 2 | S16: ↑→ | T16: ↓ | U16: ↑→ | V16: 71.432 | W16: ='t eigene Abwägung Abb. '!E3 -> 71.432 | X16: ='t Abwägung der Int.gruppe 1'!E3 -> 71.432 | Y16: ='t Abwägung der Int.gruppe 2'!E3 -> 71.432 | AC16: score | AD16: =W14-W15+W20 -> 57.142 | AE16: =X14-X15+X20 -> 57.142 | AF16: =Y14-Y15+Y20 -> 57.142 | AG16: =SUM(AD16:AF16) -> 171.426
C17: =calculations!AB26 -> 0.125 | D17: =calculations!AC26 -> 0.125 | F17: =C17*$V17 -> 8.929 | G17: 8.929 | R17: 3 | S17: ↓ | T17: ↑→ | U17: ↑→ | V17: =W$23*W17+X$23*X17+Y$23*Y17 -> 71.432 | W17: ='t eigene Abwägung Abb. '!E4 -> 71.432 | X17: ='t Abwägung der Int.gruppe 1'!E4 -> 71.432 | Y17: ='t Abwägung der Int.gruppe 2'!E4 -> 71.432
C18: =calculations!AB29 -> 0.125 | D18: =calculations!AC29 -> 0.125 | F18: 3.57175 | G18: 3.57175 | R18: 4 | S18: ↑→ | T18: ↓ | U18: ↓ | V18: 28.574 | W18: ='t eigene Abwägung Abb. '!E5 -> 28.574 | X18: ='t Abwägung der Int.gruppe 1'!E5 -> 28.574 | Y18: ='t Abwägung der Int.gruppe 2'!E5 -> 28.574
C19: =calculations!AB30 -> 0.125 | D19: =calculations!AC30 -> 0.125 | F19: 3.57175 | G19: 3.57175 | R19: 5 | S19: ↓ | T19: ↑→ | U19: ↓ | V19: 28.574 | W19: ='t eigene Abwägung Abb. '!E6 -> 28.574 | X19: ='t Abwägung der Int.gruppe 1'!E6 -> 28.574 | Y19: ='t Abwägung der Int.gruppe 2'!E6 -> 28.574 | AD19: sum
C20: =calculations!AB32 -> 0.125 | D20: =calculations!AC32 -> 0.125 | F20: 3.57175 | G20: 3.57175 | R20: 6 | S20: ↓ | T20: ↓ | U20: ↑→ | V20: 28.574 | W20: ='t eigene Abwägung Abb. '!E7 -> 28.574 | X20: ='t Abwägung der Int.gruppe 1'!E7 -> 28.574 | Y20: ='t Abwägung der Int.gruppe 2'!E7 -> 28.574 | AD20: =$W11 -> bei Ihnen | AE20: =$X11 -> [_keine_weitere_Interessensgruppe_] | AF20: =$Y11 -> [_keine_weitere_Interessensgruppe_] | AG20: Grand tot
C21: =calculations!AB33 -> 0.1245117188 | D21: =calculations!AC33 -> 0.125 | F21: =C21*$V21 -> 0 | G21: 0 | S21: ↓ | T21: ↓ | U21: ↓ | V21: 0 | W21: 0 | X21: 0 | Y21: 0 | AD21: =SUM(AD5,AD10,AD15) -> 1 | AE21: 1 | AF21: 1 | AG21: =SUM(AR5,AG10,AG15) -> 1
AD22: 171.426 | AE22: 171.426 | AF22: 171.426 | AG22: =SUM(AG6,AG11,AG16) -> 514.278
U23: Gewicht-> | W23: ='1.0 Int.gruppen-Auswahl'!V12 -> 1 | X23: ='1.0 Int.gruppen-Auswahl'!V13 -> 0 | Y23: ='1.0 Int.gruppen-Auswahl'!V14 -> 0
C25: 0.65 | S25: Wolfsbestand steigt in NÖ stark an…
Q26: A | S26: 0.6 | T26: 0.4 | U26: 0.5 | W26: Gwicht auf Vertreter X: | Y26: =100-#REF! -> 
Q27: B | S27: 0.3 | T27: 0.2 | U27: 0.3
C28: =1-C25 -> 0.35 | S28: Wolfsbestand steigt in NÖ nicht an… | Y28: 52
Q29: =Q26 -> A | S29: 0.75 | T29: 0.5 | U29: 0.7
Q30: =Q27 -> B | S30: 0.4 | T30: 0.6 | U30: 0.6

Sheet Ende -- DANKE!

Sheet x1.3.1) Ökol.BereichVorhersag. (hidden)
O2: =RANDBETWEEN(0,100) -> 83
C3: ='t eigene Abwägung Abb. '!J10 -> Verwaltungseinheit:
C4: ='1.2.1 eigene Rangliste'!C5:J5 -> 0
C6: ='t eigene Abwägung Abb. '!J13 -> Zeitraum:
C7: ='t eigene Abwägung Abb. '!J14 -> 0 | O7: =RANDBETWEEN(0,100) -> 53
C9: Szenario des jeweiligen ökologischen Ziels | F9: Basierend auf Ihrem Wissen und Ihrer Einschätzungen: Wie wird sich der Nachhaltigkeitsbereich der Ökologie beim jeweiligen Szenario verändern?
C10: 1 | D10: =IF(OR('1.2.1 eigene Rangliste'!M14=2,'1.2.1 eigene Rangliste'!M16=2),2,1) -> 1 | F10: Komplett sicher, dass diese abnimmt | H10: Komplett unsicher, ob diese gleich bleibt, ab- oder zunimmt | J10: Komplett sicher, dass diese gleich bleibt oder zunimmt
C11: ='1.1 Ziele-Auswahl'!E13 -> [_kein_weiteres_Ziel_] | D11: ='1.1 Ziele-Auswahl'!E14 -> [_kein_weiteres_Ziel_]
C12: ↑→ | D12: ↑→ | M12: =RANDBETWEEN(0,100) -> 54 | O12: =F12 -> 0 | P12: =RANDBETWEEN(80,100) -> 85
O13: =F14 -> 0
C14: ↑→ | D14: ↓ | O14: =F16 -> 0 | P14: =RANDBETWEEN(21,79) -> 21
O15: =F18 -> 0
C16: ↓ | D16: ↑→ | M16: =RANDBETWEEN(0,100) -> 90 | P16: =RANDBETWEEN(21,79) -> 27
C18: ↓ | D18: ↓ | P18: =100-P12 -> 15

Sheet x1.3.2) Ökon.BereichVorhersag. (hidden)
C3: ='t eigene Abwägung Abb. '!J10 -> Verwaltungseinheit:
C4: ='1.2.1 eigene Rangliste'!C5:J5 -> 0
C6: ='t eigene Abwägung Abb. '!J13 -> Zeitraum:
C7: ='t eigene Abwägung Abb. '!J14 -> 0
C9: Szenario des jeweiligen ökonomischen Faktor | F9: Basierend auf Ihrem Wissen und Ihrer Einschätzungen: Wie wird sich der Nachhaltigkeitsbereich der Ökonomie beim jeweiligen Szenario verändern?
C10: =SUBSTITUTE('1.1 Ziele-Auswahl'!E17,"_", " ") -> [ kein weiteres Ziel ] | D10: ='1.1 Ziele-Auswahl'!E18 -> [_kein_weiteres_Ziel_] | F10: Komplett sicher, dass diese abnimmt | H10: Komplett unsicher, ob diese gleich bleibt, ab- oder zunimmt | J10: Komplett sicher, dass diese gleich bleibt oder zunimmt
C12: ↑→ | D12: ↑→ | F12: 94 | N12: =RANDBETWEEN(0,100) -> 21 | P12: =F12 -> 94 | Q12: =RANDBETWEEN(80,100) -> 80
P13: =F14 -> 35
C14: ↑→ | D14: ↓ | F14: 35 | P14: =F16 -> 31 | Q14: =RANDBETWEEN(21,79) -> 26
P15: =F18 -> 8
C16: ↓ | D16: ↑→ | F16: 31 | N16: =RANDBETWEEN(0,100) -> 85 | Q16: =RANDBETWEEN(21,79) -> 59
C18: ↓ | D18: ↓ | F18: 8 | Q18: =100-Q12 -> 20

Sheet x1.3.3) Soz.kul.BereichVorhersg (hidden)
P2: =RANDBETWEEN(0,100) -> 93
C3: ='t eigene Abwägung Abb. '!J10 -> Verwaltungseinheit:
C4: ='1.2.1 eigene Rangliste'!C5:J5 -> 0
C6: ='t eigene Abwägung Abb. '!J13 -> Zeitraum:
C7: ='t eigene Abwägung Abb. '!J14 -> 0 | P7: =RANDBETWEEN(0,100) -> 17
C9: Szenario | F9: Basierend auf Ihrem Wissen und Ihrer Einschätzungen: Wie wird sich der Nachhaltigkeitsbereich der Soziokultur beim jeweiligen Szenario verändern?
C10: ='1.1 Ziele-Auswahl'!E21 -> [_kein_weiteres_Ziel_] | D10: ='1.1 Ziele-Auswahl'!E22 -> [_kein_weiteres_Ziel_] | F10: Komplett sicher, dass diese abnimmt | H10: Komplett unsicher, ob diese gleich bleibt, ab- oder zunimmt | J10: Komplett sicher, dass diese gleich bleibt oder zunimmt
C12: ↑→ | D12: ↑→ | F12: 90 | N12: =RANDBETWEEN(0,100) -> 61 | P12: =F12 -> 90 | R12: =RANDBETWEEN(80,100) -> 80
P13: =F14 -> 58
C14: ↑→ | D14: ↓ | F14: 58 | P14: =F16 -> 30 | R14: =RANDBETWEEN(21,79) -> 64
P15: =F18 -> 19
C16: ↓ | D16: ↑→ | F16: 30 | N16: =RANDBETWEEN(0,100) -> 37 | R16: =RANDBETWEEN(21,79) -> 70
C18: ↓ | D18: ↓ | F18: 19 | R18: =100-R12 -> 20

Sheet Maßnahmen Investion (hidden)
C1: Investition (€ oder %)
B2: Maßnahme | C2: Option A | D2: Option B | F2: Beschreibung
B3: Abschussplanung, Abschussdurchführung + Kontrolle | F3: Berücksichtigung von Bestandesschwankungen, Hegeschau, Grünvorlage, Abschussplanung ist nicht gleich Abschussdurchführung
B4: Anthropogene Selektion von Wildwiederkäuern | F4: Anthropogene Selektion reduzieren, selektive Bejagung von Wildwiederkäuern mit bestimmten Merkmalen, Trophäenjagd, Kronenhirschregelung
B5: Aus- und Fortbildung | F5: Verbesserung bzw. Aktualisierung Wissensstand (Auswirkungen der Jagd, ...)
B6: Berücksichtigung der Wildschadensanfälligkeit | F6: Wildschadensdisposition bei der jagdlichen Planung berücksichtigen
B7: Berücksichtigung der Wildwiederkäuer-Biologie | F7: Rücksichtnahme auf den Lebensrhytmus von Wildwiederkäuern, Rücksichtnahme auf die Reproduktionsbiologie (jährliche Zuwachsrate)
B8: Förderung der natürliche Bewegungen (Vertrauheit) des Wildes | F8: regulierbares Wild schaffen, Jagdstrategien, Zonierung, Jagddruck, Jagdtechnik/Jagdarten, Wild tagaktiv machen, Störungen reduzieren, Energiebedarf des Wildes reduzieren. Mit vertrauteres Wild ist gemeint, dass die Bejagung so gestaltet wird, dass ein möglichst geringer Jagddruck ausgeübt wird und Wild die Verknüpfung zwischen Schuss-Tod eines Artgenossen zum Mensch nicht gemacht wird. Es soll verhindert werden, dass Wild den Menschen mit einer Gefahr assoziiert. Um dies zu erreichen werden Jagdstrategien und Zonierungen eingesetzt sowie der Jagddruck im Rahmen von Jagdarten (Ansitz, Pirsch,…) reduziert/angepasst. Indem das Wild wieder vertrauerter wird, wird es automatisch wieder tagaktiver und damit leichter regulierbar für den Jäger, weil Wild öfter bei gutem Licht in Anblick kommt. Dadurch entstehen auch Vorteile für das Wild, da es Äsungsflächen auch während des Tages nutzen kann und sich die Lebensraumnutzung nicht auf spärliche Rückzugsgebiete oder die Dunkelheit beschränken muss. Für Freizeitnutzer ergeben sich auch Vorteile, da Wild häufiger beobachtet werden kann (schöne Erlebnisse).
B9: Handhabung Wildfütterung | F9: Wildfütterung ja/nein, Verteilung im Raum, Handhabung, Wildlenkung
B10: Hegeabschüsse (krankes, schwaches Wild)
B11: Integrale Koordination | F11: Integrale Koordination von Maßnahmen mit anderen Landnutzern, Austausch mit nicht jagender Bevölkerung, Berücksichtigung von öffentlichen Meinungen, Konfliktbewältigungsstrategien, Einbeziehung örtlicher Interessensgruppen, Zusammenarbeit mit der Wissenschaft, Existenz einer Abstimmungsstrategie, Wissenschaftliche Erkenntnisse sollten bei der jagdlichen Bewirtschaftung von Wildwiederkäuern berücksichtigt werden. Zonierung (Schutzgebiete, etc.)
B12: Lebensraumverbesserungsmaßnahmen | F12: Entgegenwirken der Fragementierung (Wildkorridore), Lebensraumverbesserungsmaßnahmen (Äsungsflächen, etc.)
B13: Pflege von Reviereinrichtungen
B14: Rechtliche Kontrolle | F14: Krisenmanagement bei jagdrechtlichen Übertretungen, Jagdaufsicht
B15: Revierübergreifende Bejagungskonzepte | F15: Wildökologische Raumplanung, Organisation auf Hegeringebene, Jagdstrategien (Zonierung), Wildlenkungsmaßnahmen, Blick über die Verwaltungsgrenzen, Eine überregionale Zusammenarbeit, über die Revier-, Bezirks- sowie Landesgrenzen hinaus wäre wünschenswert.
B16: Umgang mit der Bejagung von Wildwiederkäuern bei Nacht | F16: Limitierung der Wildbejagung bei Nacht?
B17: Umgang mit erlegtem Wild sowie Fallwild | F17: Wildbretvermarktung, Entsorgung (Aufbruch, Fallwild)
B18: Vermarktungsstrategie "Jagd"
B20: Summe | C20: =SUM(C3:C18) -> 0 | D20: =SUM(D3:D18) -> 0 | E20: =SUM(E3:E18) -> 0
B22: Anthropogene Selektion von Wildwiederkäuern | E22: Anthropogene Selektion von Wildwiederkäuern | F22: Berücksichtigung der Wildschadensanfälligkeit | G22: Berücksichtigung der Wildwiederkäuer-Biologie | H22: Förderung der natürliche Bewegungen (Vertrauheit) des Wildes | I22: Handhabung Wildfütterung | J22: Hegeabschüsse (krankes, schwaches Wild) | K22: Integrale Koordination | L22: Pflege von Reviereinrichtungen | M22: Rechtliche Kontrolle | N22: Umgang mit der Bejagung von Wildwiederkäuern bei Nacht | O22: Umgang mit erlegtem Wild sowie Fallwild | P22: Vermarktungsstrategie "Jagd"
B23: Berücksichtigung der Wildschadensanfälligkeit
B24: Berücksichtigung der Wildwiederkäuer-Biologie
B25: Förderung der natürliche Bewegungen (Vertrauheit) des Wildes
B26: Handhabung Wildfütterung
B27: Hegeabschüsse (krankes, schwaches Wild)
B28: Integrale Koordination
B29: Pflege von Reviereinrichtungen
B30: Rechtliche Kontrolle
B31: Umgang mit der Bejagung von Wildwiederkäuern bei Nacht
B32: Umgang mit erlegtem Wild sowie Fallwild
B33: Vermarktungsstrategie "Jagd"

Sheet verfügbare Maßnahmen (hidden)
C3: ='t eigene Abwägung Abb. '!J10 -> Verwaltungseinheit:
C4: ='1.2.1 eigene Rangliste'!C5:J5 -> 0
C6: ='t eigene Abwägung Abb. '!J13 -> Zeitraum:
C7: ='t eigene Abwägung Abb. '!J14 -> 0
C9: Anpassen und kreuzen Sie bis zu fünf relevanten und verfügbaren Maßnahmen | E9: Beschreibung
C11: Abschussplanung, Abschussdurchführung + Kontrolle | D11: TRUE | E11: Berücksichtigung von Bestandesschwankungen, Hegeschau, Grünvorlage, Abschussplanung ist nicht gleich Abschussdurchführung
C12: Anthropogene Selektion von Wildwiederkäuern | E12: Anthropogene Selektion reduzieren, selektive Bejagung von Wildwiederkäuern mit bestimmten Merkmalen, Trophäenjagd, Kronenhirschregelung
C13: Aus- und Fortbildung | E13: Verbesserung bzw. Aktualisierung Wissensstand (Auswirkungen der Jagd, ...)
C14: Berücksichtigung der Wildschadensanfälligkeit | E14: Wildschadensdisposition bei der jagdlichen Planung berücksichtigen
C15: Berücksichtigung der Wildwiederkäuer-Biologie | E15: Rücksichtnahme auf den Lebensrhytmus von Wildwiederkäuern, Rücksichtnahme auf die Reproduktionsbiologie (jährliche Zuwachsrate)
C16: Förderung der Vertrauheit des Wildes | E16: regulierbares Wild schaffen, Jagdstrategien, Zonierung, Jagddruck, Jagdtechnik/Jagdarten, Wild tagaktiv machen, Störungen reduzieren, Energiebedarf des Wildes reduzieren. Mit vertrauteres Wild ist gemeint, dass die Bejagung so gestaltet wird, dass ein möglichst geringer Jagddruck ausgeübt wird und Wild die Verknüpfung zwischen Schuss-Tod eines Artgenossen zum Mensch nicht gemacht wird. Es soll verhindert werden, dass Wild den Menschen mit einer Gefahr assoziiert. Um dies zu erreichen werden Jagdstrategien und Zonierungen eingesetzt sowie der Jagddruck im Rahmen von Jagdarten (Ansitz, Pirsch,…) reduziert/angepasst. Indem das Wild wieder vertrauerter wird, wird es automatisch wieder tagaktiver und damit leichter regulierbar für den Jäger, weil Wild öfter bei gutem Licht in Anblick kommt. Dadurch entstehen auch Vorteile für das Wild, da es Äsungsflächen auch während des Tages nutzen kann und sich die Lebensraumnutzung nicht auf spärliche Rückzugsgebiete oder die Dunkelheit beschränken muss. Für Freizeitnutzer ergeben sich auch Vorteile, da Wild häufiger beobachtet werden kann (schöne Erlebnisse).
C17: Handhabung Wildfütterung | E17: Wildfütterung ja/nein, Verteilung im Raum, Handhabung, Wildlenkung
C18: Hegeabschüsse (krankes, schwaches Wild)
C19: Integrale Koordination | E19: Integrale Koordination von Maßnahmen mit anderen Landnutzern, Austausch mit nicht jagender Bevölkerung, Berücksichtigung von öffentlichen Meinungen, Konfliktbewältigungsstrategien, Einbeziehung örtlicher Interessensgruppen, Zusammenarbeit mit der Wissenschaft, Existenz einer Abstimmungsstrategie, Wissenschaftliche Erkenntnisse sollten bei der jagdlichen Bewirtschaftung von Wildwiederkäuern berücksichtigt werden. Zonierung (Schutzgebiete, etc.)
C20: Lebensraumverbesserungsmaßnahmen | E20: Entgegenwirken der Fragementierung (Wildkorridore), Lebensraumverbesserungsmaßnahmen (Äsungsflächen, etc.)
C21: Pflege von Reviereinrichtungen
C22: Rechtliche Kontrolle | E22: Krisenmanagement bei jagdrechtlichen Übertretungen, Jagdaufsicht
C23: Revierübergreifende Bejagungskonzepte | E23: Wildökologische Raumplanung, Organisation auf Hegeringebene, Jagdstrategien (Zonierung), Wildlenkungsmaßnahmen, Blick über die Verwaltungsgrenzen, Eine überregionale Zusammenarbeit, über die Revier-, Bezirks- sowie Landesgrenzen hinaus wäre wünschenswert.
C24: Umgang mit der Bejagung von Wildwiederkäuern bei Nacht | E24: Limitierung der Wildbejagung bei Nacht?
C25: Umgang mit erlegtem Wild sowie Fallwild | E25: Wildbretvermarktung, Entsorgung (Aufbruch, Fallwild)
C26: Vermarktungsstrategie "Jagd"
D31: =COUNTA(D11:D30) -> 1
C32: Anzahl der gewählten Maßnahmen: | D32: =COUNTA(D11:D31) -> 2

Sheet Einstellung (hidden)
A1: Einstellung um Szenarien der jeweiligen externen Faktoren | B1: eher pessimistisch
B2: eher pessimistisch bis neutral
B3: eher optimistisch
B4: eher neutral bis optimistisch

Sheet Entsch.optionen blank print (hidden)
C2: "Zukunft"(siehe Blatt 1) Abwägungen):
C3: ='t eigene Abwägung Abb. '!J14 -> 0
C5: Ressourcenverteilung innerhalb des definierten Zeitraums (0 bis 100 %) | J5: Ressourcenverteilung innerhalb des definierten Zeitraums (0 bis 100 %)
C6: Abschuss-planung, Abschuss-durchführung + Kontrolle | D6: Aus- und Fortbildung | E6: Lebensraum-verbesserungsmaßnahmen | F6: Revierüber-greifende Bejagungs-konzepte | G6: Zusätzliche Maßnahmen | H6: Summe = 100% | J6: =C6 -> Abschuss-planung, Abschuss-durchführung + Kontrolle | K6: =D6 -> Aus- und Fortbildung | L6: =E6 -> Lebensraum-verbesserungsmaßnahmen | M6: =F6 -> Revierüber-greifende Bejagungs-konzepte | N6: =G6 -> Zusätzliche Maßnahmen | O6: Summe = 100%
H8: =SUM(C8:G8) -> 0 | N8: =100-SUM(J8:L8) -> 100 | O8: =SUM(J8:N8) -> 100
S10: Revierübergreifende Bejagungskonzepte

Sheet combos (hidden)
A1: Ressourcenverteilungen | B1: Ecology | C1: Econ | D1: Socio_Cult | E1: Wolf_strong_inc | F1: ExtFaktor2_strong_inc1 | G1: Ecology1 | H1: Ecology2 | I1: Econ1 | J1: Econ2 | K1: Socio_Cult1 | L1: Socio_Cult2
A2: Entsch Option A | B2: Erhalt Zugenom | C2: Erhalt Zugenom | D2: Erhalt Zugenom | E2: Ja | F2: Ja | G2: Erhalt Zugenom | H2: Erhalt Zugenom | I2: Erhalt Zugenom | J2: Erhalt Zugenom | K2: Erhalt Zugenom | L2: Erhalt Zugenom
A3: Entsch Option A | B3: Erhalt Zugenom | C3: Erhalt Zugenom | D3: Erhalt Zugenom | E3: Ja | F3: Ja | G3: Erhalt Zugenom | H3: Erhalt Zugenom | I3: Erhalt Zugenom | J3: Erhalt Zugenom | K3: Erhalt Zugenom | L3: Abgenom
A4: Entsch Option A | B4: Erhalt Zugenom | C4: Erhalt Zugenom | D4: Erhalt Zugenom | E4: Ja | F4: Ja | G4: Erhalt Zugenom | H4: Erhalt Zugenom | I4: Erhalt Zugenom | J4: Erhalt Zugenom | K4: Abgenom | L4: Erhalt Zugenom
A5: Entsch Option A | B5: Erhalt Zugenom | C5: Erhalt Zugenom | D5: Erhalt Zugenom | E5: Ja | F5: Ja | G5: Erhalt Zugenom | H5: Erhalt Zugenom | I5: Erhalt Zugenom | J5: Erhalt Zugenom | K5: Abgenom | L5: Abgenom
A6: Entsch Option A | B6: Erhalt Zugenom | C6: Erhalt Zugenom | D6: Erhalt Zugenom | E6: Ja | F6: Ja | G6: Erhalt Zugenom | H6: Erhalt Zugenom | I6: Erhalt Zugenom | J6: Abgenom | K6: Erhalt Zugenom | L6: Erhalt Zugenom
A7: Entsch Option A | B7: Erhalt Zugenom | C7: Erhalt Zugenom | D7: Erhalt Zugenom | E7: Ja | F7: Ja | G7: Erhalt Zugenom | H7: Erhalt Zugenom | I7: Erhalt Zugenom | J7: Abgenom | K7: Erhalt Zugenom | L7: Abgenom
A8: Entsch Option A | B8: Erhalt Zugenom | C8: Erhalt Zugenom | D8: Erhalt Zugenom | E8: Ja | F8: Ja | G8: Erhalt Zugenom | H8: Erhalt Zugenom | I8: Erhalt Zugenom | J8: Abgenom | K8: Abgenom | L8: Erhalt Zugenom
A9: Entsch Option A | B9: Erhalt Zugenom | C9: Erhalt Zugenom | D9: Erhalt Zugenom | E9: Ja | F9: Ja | G9: Erhalt Zugenom | H9: Erhalt Zugenom | I9: Erhalt Zugenom | J9: Abgenom | K9: Abgenom | L9: Abgenom
A10: Entsch Option A | B10: Erhalt Zugenom | C10: Erhalt Zugenom | D10: Erhalt Zugenom | E10: Ja | F10: Ja | G10: Erhalt Zugenom | H10: Erhalt Zugenom | I10: Abgenom | J10: Erhalt Zugenom | K10: Erhalt Zugenom | L10: Erhalt Zugenom
A11: Entsch Option A | B11: Erhalt Zugenom | C11: Erhalt Zugenom | D11: Erhalt Zugenom | E11: Ja | F11: Ja | G11: Erhalt Zugenom | H11: Erhalt Zugenom | I11: Abgenom | J11: Erhalt Zugenom | K11: Erhalt Zugenom | L11: Abgenom
A12: Entsch Option A | B12: Erhalt Zugenom | C12: Erhalt Zugenom | D12: Erhalt Zugenom | E12: Ja | F12: Ja | G12: Erhalt Zugenom | H12: Erhalt Zugenom | I12: Abgenom | J12: Erhalt Zugenom | K12: Abgenom | L12: Erhalt Zugenom
A13: Entsch Option A | B13: Erhalt Zugenom | C13: Erhalt Zugenom | D13: Erhalt Zugenom | E13: Ja | F13: Ja | G13: Erhalt Zugenom | H13: Erhalt Zugenom | I13: Abgenom | J13: Erhalt Zugenom | K13: Abgenom | L13: Abgenom
A14: Entsch Option A | B14: Erhalt Zugenom | C14: Erhalt Zugenom | D14: Erhalt Zugenom | E14: Ja | F14: Ja | G14: Erhalt Zugenom | H14: Erhalt Zugenom | I14: Abgenom | J14: Abgenom | K14: Erhalt Zugenom | L14: Erhalt Zugenom
A15: Entsch Option A | B15: Erhalt Zugenom | C15: Erhalt Zugenom | D15: Erhalt Zugenom | E15: Ja | F15: Ja | G15: Erhalt Zugenom | H15: Erhalt Zugenom | I15: Abgenom | J15: Abgenom | K15: Erhalt Zugenom | L15: Abgenom
A16: Entsch Option A | B16: Erhalt Zugenom | C16: Erhalt Zugenom | D16: Erhalt Zugenom | E16: Ja | F16: Ja | G16: Erhalt Zugenom | H16: Erhalt Zugenom | I16: Abgenom | J16: Abgenom | K16: Abgenom | L16: Erhalt Zugenom
A17: Entsch Option A | B17: Erhalt Zugenom | C17: Erhalt Zugenom | D17: Erhalt Zugenom | E17: Ja | F17: Ja | G17: Erhalt Zugenom | H17: Erhalt Zugenom | I17: Abgenom | J17: Abgenom | K17: Abgenom | L17: Abgenom
A18: Entsch Option A | B18: Erhalt Zugenom | C18: Erhalt Zugenom | D18: Erhalt Zugenom | E18: Ja | F18: Ja | G18: Erhalt Zugenom | H18: Abgenom | I18: Erhalt Zugenom | J18: Erhalt Zugenom | K18: Erhalt Zugenom | L18: Erhalt Zugenom
A19: Entsch Option A | B19: Erhalt Zugenom | C19: Erhalt Zugenom | D19: Erhalt Zugenom | E19: Ja | F19: Ja | G19: Erhalt Zugenom | H19: Abgenom | I19: Erhalt Zugenom | J19: Erhalt Zugenom | K19: Erhalt Zugenom | L19: Abgenom
A20: Entsch Option A | B20: Erhalt Zugenom | C20: Erhalt Zugenom | D20: Erhalt Zugenom | E20: Ja | F20: Ja | G20: Erhalt Zugenom | H20: Abgenom | I20: Erhalt Zugenom | J20: Erhalt Zugenom | K20: Abgenom | L20: Erhalt Zugenom
A21: Entsch Option A | B21: Erhalt Zugenom | C21: Erhalt Zugenom | D21: Erhalt Zugenom | E21: Ja | F21: Ja | G21: Erhalt Zugenom | H21: Abgenom | I21: Erhalt Zugenom | J21: Erhalt Zugenom | K21: Abgenom | L21: Abgenom
A22: Entsch Option A | B22: Erhalt Zugenom | C22: Erhalt Zugenom | D22: Erhalt Zugenom | E22: Ja | F22: Ja | G22: Erhalt Zugenom | H22: Abgenom | I22: Erhalt Zugenom | J22: Abgenom | K22: Erhalt Zugenom | L22: Erhalt Zugenom
A23: Entsch Option A | B23: Erhalt Zugenom | C23: Erhalt Zugenom | D23: Erhalt Zugenom | E23: Ja | F23: Ja | G23: Erhalt Zugenom | H23: Abgenom | I23: Erhalt Zugenom | J23: Abgenom | K23: Erhalt Zugenom | L23: Abgenom
A24: Entsch Option A | B24: Erhalt Zugenom | C24: Erhalt Zugenom | D24: Erhalt Zugenom | E24: Ja | F24: Ja | G24: Erhalt Zugenom | H24: Abgenom | I24: Erhalt Zugenom | J24: Abgenom | K24: Abgenom | L24: Erhalt Zugenom
A25: Entsch Option A | B25: Erhalt Zugenom | C25: Erhalt Zugenom | D25: Erhalt Zugenom | E25: Ja | F25: Ja | G25: Erhalt Zugenom | H25: Abgenom | I25: Erhalt Zugenom | J25: Abgenom | K25: Abgenom | L25: Abgenom
A26: Entsch Option A | B26: Erhalt Zugenom | C26: Erhalt Zugenom | D26: Erhalt Zugenom | E26: Ja | F26: Ja | G26: Erhalt Zugenom | H26: Abgenom | I26: Abgenom | J26: Erhalt Zugenom | K26: Erhalt Zugenom | L26: Erhalt Zugenom
A27: Entsch Option A | B27: Erhalt Zugenom | C27: Erhalt Zugenom | D27: Erhalt Zugenom | E27: Ja | F27: Ja | G27: Erhalt Zugenom | H27: Abgenom | I27: Abgenom | J27: Erhalt Zugenom | K27: Erhalt Zugenom | L27: Abgenom
A28: Entsch Option A | B28: Erhalt Zugenom | C28: Erhalt Zugenom | D28: Erhalt Zugenom | E28: Ja | F28: Ja | G28: Erhalt Zugenom | H28: Abgenom | I28: Abgenom | J28: Erhalt Zugenom | K28: Abgenom | L28: Erhalt Zugenom
A29: Entsch Option A | B29: Erhalt Zugenom | C29: Erhalt Zugenom | D29: Erhalt Zugenom | E29: Ja | F29: Ja | G29: Erhalt Zugenom | H29: Abgenom | I29: Abgenom | J29: Erhalt Zugenom | K29: Abgenom | L29: Abgenom
A30: Entsch Option A | B30: Erhalt Zugenom | C30: Erhalt Zugenom | D30: Erhalt Zugenom | E30: Ja | F30: Ja | G30: Erhalt Zugenom | H30: Abgenom | I30: Abgenom | J30: Abgenom | K30: Erhalt Zugenom | L30: Erhalt Zugenom
A31: Entsch Option A | B31: Erhalt Zugenom | C31: Erhalt Zugenom | D31: Erhalt Zugenom | E31: Ja | F31: Ja | G31: Erhalt Zugenom | H31: Abgenom | I31: Abgenom | J31: Abgenom | K31: Erhalt Zugenom | L31: Abgenom
A32: Entsch Option A | B32: Erhalt Zugenom | C32: Erhalt Zugenom | D32: Erhalt Zugenom | E32: Ja | F32: Ja | G32: Erhalt Zugenom | H32: Abgenom | I32: Abgenom | J32: Abgenom | K32: Abgenom | L32: Erhalt Zugenom
A33: Entsch Option A | B33: Erhalt Zugenom | C33: Erhalt Zugenom | D33: Erhalt Zugenom | E33: Ja | F33: Ja | G33: Erhalt Zugenom | H33: Abgenom | I33: Abgenom | J33: Abgenom | K33: Abgenom | L33: Abgenom
A34: Entsch Option A | B34: Erhalt Zugenom | C34: Erhalt Zugenom | D34: Erhalt Zugenom | E34: Ja | F34: Ja | G34: Abgenom | H34: Erhalt Zugenom | I34: Erhalt Zugenom | J34: Erhalt Zugenom | K34: Erhalt Zugenom | L34: Erhalt Zugenom
A35: Entsch Option A | B35: Erhalt Zugenom | C35: Erhalt Zugenom | D35: Erhalt Zugenom | E35: Ja | F35: Ja | G35: Abgenom | H35: Erhalt Zugenom | I35: Erhalt Zugenom | J35: Erhalt Zugenom | K35: Erhalt Zugenom | L35: Abgenom
A36: Entsch Option A | B36: Erhalt Zugenom | C36: Erhalt Zugenom | D36: Erhalt Zugenom | E36: Ja | F36: Ja | G36: Abgenom | H36: Erhalt Zugenom | I36: Erhalt Zugenom | J36: Erhalt Zugenom | K36: Abgenom | L36: Erhalt Zugenom
A37: Entsch Option A | B37: Erhalt Zugenom | C37: Erhalt Zugenom | D37: Erhalt Zugenom | E37: Ja | F37: Ja | G37: Abgenom | H37: Erhalt Zugenom | I37: Erhalt Zugenom | J37: Erhalt Zugenom | K37: Abgenom | L37: Abgenom
A38: Entsch Option A | B38: Erhalt Zugenom | C38: Erhalt Zugenom | D38: Erhalt Zugenom | E38: Ja | F38: Ja | G38: Abgenom | H38: Erhalt Zugenom | I38: Erhalt Zugenom | J38: Abgenom | K38: Erhalt Zugenom | L38: Erhalt Zugenom
A39: Entsch Option A | B39: Erhalt Zugenom | C39: Erhalt Zugenom | D39: Erhalt Zugenom | E39: Ja | F39: Ja | G39: Abgenom | H39: Erhalt Zugenom | I39: Erhalt Zugenom | J39: Abgenom | K39: Erhalt Zugenom | L39: Abgenom
A40: Entsch Option A | B40: Erhalt Zugenom | C40: Erhalt Zugenom | D40: Erhalt Zugenom | E40: Ja | F40: Ja | G40: Abgenom | H40: Erhalt Zugenom | I40: Erhalt Zugenom | J40: Abgenom | K40: Abgenom | L40: Erhalt Zugenom
A41: Entsch Option A | B41: Erhalt Zugenom | C41: Erhalt Zugenom | D41: Erhalt Zugenom | E41: Ja | F41: Ja | G41: Abgenom | H41: Erhalt Zugenom | I41: Erhalt Zugenom | J41: Abgenom | K41: Abgenom | L41: Abgenom
A42: Entsch Option A | B42: Erhalt Zugenom | C42: Erhalt Zugenom | D42: Erhalt Zugenom | E42: Ja | F42: Ja | G42: Abgenom | H42: Erhalt Zugenom | I42: Abgenom | J42: Erhalt Zugenom | K42: Erhalt Zugenom | L42: Erhalt Zugenom
A43: Entsch Option A | B43: Erhalt Zugenom | C43: Erhalt Zugenom | D43: Erhalt Zugenom | E43: Ja | F43: Ja | G43: Abgenom | H43: Erhalt Zugenom | I43: Abgenom | J43: Erhalt Zugenom | K43: Erhalt Zugenom | L43: Abgenom
A44: Entsch Option A | B44: Erhalt Zugenom | C44: Erhalt Zugenom | D44: Erhalt Zugenom | E44: Ja | F44: Ja | G44: Abgenom | H44: Erhalt Zugenom | I44: Abgenom | J44: Erhalt Zugenom | K44: Abgenom | L44: Erhalt Zugenom
A45: Entsch Option A | B45: Erhalt Zugenom | C45: Erhalt Zugenom | D45: Erhalt Zugenom | E45: Ja | F45: Ja | G45: Abgenom | H45: Erhalt Zugenom | I45: Abgenom | J45: Erhalt Zugenom | K45: Abgenom | L45: Abgenom
A46: Entsch Option A | B46: Erhalt Zugenom | C46: Erhalt Zugenom | D46: Erhalt Zugenom | E46: Ja | F46: Ja | G46: Abgenom | H46: Erhalt Zugenom | I46: Abgenom | J46: Abgenom | K46: Erhalt Zugenom | L46: Erhalt Zugenom
A47: Entsch Option A | B47: Erhalt Zugenom | C47: Erhalt Zugenom | D47: Erhalt Zugenom | E47: Ja | F47: Ja | G47: Abgenom | H47: Erhalt Zugenom | I47: Abgenom | J47: Abgenom | K47: Erhalt Zugenom | L47: Abgenom
A48: Entsch Option A | B48: Erhalt Zugenom | C48: Erhalt Zugenom | D48: Erhalt Zugenom | E48: Ja | F48: Ja | G48: Abgenom | H48: Erhalt Zugenom | I48: Abgenom | J48: Abgenom | K48: Abgenom | L48: Erhalt Zugenom
A49: Entsch Option A | B49: Erhalt Zugenom | C49: Erhalt Zugenom | D49: Erhalt Zugenom | E49: Ja | F49: Ja | G49: Abgenom | H49: Erhalt Zugenom | I49: Abgenom | J49: Abgenom | K49: Abgenom | L49: Abgenom
A50: Entsch Option A | B50: Erhalt Zugenom | C50: Erhalt Zugenom | D50: Erhalt Zugenom | E50: Ja | F50: Ja | G50: Abgenom | H50: Abgenom | I50: Erhalt Zugenom | J50: Erhalt Zugenom | K50: Erhalt Zugenom | L50: Erhalt Zugenom
A51: Entsch Option A | B51: Erhalt Zugenom | C51: Erhalt Zugenom | D51: Erhalt Zugenom | E51: Ja | F51: Ja | G51: Abgenom | H51: Abgenom | I51: Erhalt Zugenom | J51: Erhalt Zugenom | K51: Erhalt Zugenom | L51: Abgenom
A52: Entsch Option A | B52: Erhalt Zugenom | C52: Erhalt Zugenom | D52: Erhalt Zugenom | E52: Ja | F52: Ja | G52: Abgenom | H52: Abgenom | I52: Erhalt Zugenom | J52: Erhalt Zugenom | K52: Abgenom | L52: Erhalt Zugenom
A53: Entsch Option A | B53: Erhalt Zugenom | C53: Erhalt Zugenom | D53: Erhalt Zugenom | E53: Ja | F53: Ja | G53: Abgenom | H53: Abgenom | I53: Erhalt Zugenom | J53: Erhalt Zugenom | K53: Abgenom | L53: Abgenom
A54: Entsch Option A | B54: Erhalt Zugenom | C54: Erhalt Zugenom | D54: Erhalt Zugenom | E54: Ja | F54: Ja | G54: Abgenom | H54: Abgenom | I54: Erhalt Zugenom | J54: Abgenom | K54: Erhalt Zugenom | L54: Erhalt Zugenom
A55: Entsch Option A | B55: Erhalt Zugenom | C55: Erhalt Zugenom | D55: Erhalt Zugenom | E55: Ja | F55: Ja | G55: Abgenom | H55: Abgenom | I55: Erhalt Zugenom | J55: Abgenom | K55: Erhalt Zugenom | L55: Abgenom
A56: Entsch Option A | B56: Erhalt Zugenom | C56: Erhalt Zugenom | D56: Erhalt Zugenom | E56: Ja | F56: Ja | G56: Abgenom | H56: Abgenom | I56: Erhalt Zugenom | J56: Abgenom | K56: Abgenom | L56: Erhalt Zugenom
A57: Entsch Option A | B57: Erhalt Zugenom | C57: Erhalt Zugenom | D57: Erhalt Zugenom | E57: Ja | F57: Ja | G57: Abgenom | H57: Abgenom | I57: Erhalt Zugenom | J57: Abgenom | K57: Abgenom | L57: Abgenom
A58: Entsch Option A | B58: Erhalt Zugenom | C58: Erhalt Zugenom | D58: Erhalt Zugenom | E58: Ja | F58: Ja | G58: Abgenom | H58: Abgenom | I58: Abgenom | J58: Erhalt Zugenom | K58: Erhalt Zugenom | L58: Erhalt Zugenom
A59: Entsch Option A | B59: Erhalt Zugenom | C59: Erhalt Zugenom | D59: Erhalt Zugenom | E59: Ja | F59: Ja | G59: Abgenom | H59: Abgenom | I59: Abgenom | J59: Erhalt Zugenom | K59: Erhalt Zugenom | L59: Abgenom
A60: Entsch Option A | B60: Erhalt Zugenom | C60: Erhalt Zugenom | D60: Erhalt Zugenom | E60: Ja | F60: Ja | G60: Abgenom | H60: Abgenom | I60: Abgenom | J60: Erhalt Zugenom | K60: Abgenom | L60: Erhalt Zugenom
A61: Entsch Option A | B61: Erhalt Zugenom | C61: Erhalt Zugenom | D61: Erhalt Zugenom | E61: Ja | F61: Ja | G61: Abgenom | H61: Abgenom | I61: Abgenom | J61: Erhalt Zugenom | K61: Abgenom | L61: Abgenom
A62: Entsch Option A | B62: Erhalt Zugenom | C62: Erhalt Zugenom | D62: Erhalt Zugenom | E62: Ja | F62: Ja | G62: Abgenom | H62: Abgenom | I62: Abgenom | J62: Abgenom | K62: Erhalt Zugenom | L62: Erhalt Zugenom
A63: Entsch Option A | B63: Erhalt Zugenom | C63: Erhalt Zugenom | D63: Erhalt Zugenom | E63: Ja | F63: Ja | G63: Abgenom | H63: Abgenom | I63: Abgenom | J63: Abgenom | K63: Erhalt Zugenom | L63: Abgenom
A64: Entsch Option A | B64: Erhalt Zugenom | C64: Erhalt Zugenom | D64: Erhalt Zugenom | E64: Ja | F64: Ja | G64: Abgenom | H64: Abgenom | I64: Abgenom | J64: Abgenom | K64: Abgenom | L64: Erhalt Zugenom
A65: Entsch Option A | B65: Erhalt Zugenom | C65: Erhalt Zugenom | D65: Erhalt Zugenom | E65: Ja | F65: Ja | G65: Abgenom | H65: Abgenom | I65: Abgenom | J65: Abgenom | K65: Abgenom | L65: Abgenom
A66: Entsch Option A | B66: Erhalt Zugenom | C66: Erhalt Zugenom | D66: Erhalt Zugenom | E66: Ja | F66: Nein | G66: Erhalt Zugenom | H66: Erhalt Zugenom | I66: Erhalt Zugenom | J66: Erhalt Zugenom | K66: Erhalt Zugenom | L66: Erhalt Zugenom
A67: Entsch Option A | B67: Erhalt Zugenom | C67: Erhalt Zugenom | D67: Erhalt Zugenom | E67: Ja | F67: Nein | G67: Erhalt Zugenom | H67: Erhalt Zugenom | I67: Erhalt Zugenom | J67: Erhalt Zugenom | K67: Erhalt Zugenom | L67: Abgenom
A68: Entsch Option A | B68: Erhalt Zugenom | C68: Erhalt Zugenom | D68: Erhalt Zugenom | E68: Ja | F68: Nein | G68: Erhalt Zugenom | H68: Erhalt Zugenom | I68: Erhalt Zugenom | J68: Erhalt Zugenom | K68: Abgenom | L68: Erhalt Zugenom
A69: Entsch Option A | B69: Erhalt Zugenom | C69: Erhalt Zugenom | D69: Erhalt Zugenom | E69: Ja | F69: Nein | G69: Erhalt Zugenom | H69: Erhalt Zugenom | I69: Erhalt Zugenom | J69: Erhalt Zugenom | K69: Abgenom | L69: Abgenom
A70: Entsch Option A | B70: Erhalt Zugenom | C70: Erhalt Zugenom | D70: Erhalt Zugenom | E70: Ja | F70: Nein | G70: Erhalt Zugenom | H70: Erhalt Zugenom | I70: Erhalt Zugenom | J70: Abgenom | K70: Erhalt Zugenom | L70: Erhalt Zugenom
A71: Entsch Option A | B71: Erhalt Zugenom | C71: Erhalt Zugenom | D71: Erhalt Zugenom | E71: Ja | F71: Nein | G71: Erhalt Zugenom | H71: Erhalt Zugenom | I71: Erhalt Zugenom | J71: Abgenom | K71: Erhalt Zugenom | L71: Abgenom
A72: Entsch Option A | B72: Erhalt Zugenom | C72: Erhalt Zugenom | D72: Erhalt Zugenom | E72: Ja | F72: Nein | G72: Erhalt Zugenom | H72: Erhalt Zugenom | I72: Erhalt Zugenom | J72: Abgenom | K72: Abgenom | L72: Erhalt Zugenom
A73: Entsch Option A | B73: Erhalt Zugenom | C73: Erhalt Zugenom | D73: Erhalt Zugenom | E73: Ja | F73: Nein | G73: Erhalt Zugenom | H73: Erhalt Zugenom | I73: Erhalt Zugenom | J73: Abgenom | K73: Abgenom | L73: Abgenom
A74: Entsch Option A | B74: Erhalt Zugenom | C74: Erhalt Zugenom | D74: Erhalt Zugenom | E74: Ja | F74: Nein | G74: Erhalt Zugenom | H74: Erhalt Zugenom | I74: Abgenom | J74: Erhalt Zugenom | K74: Erhalt Zugenom | L74: Erhalt Zugenom
A75: Entsch Option A | B75: Erhalt Zugenom | C75: Erhalt Zugenom | D75: Erhalt Zugenom | E75: Ja | F75: Nein | G75: Erhalt Zugenom | H75: Erhalt Zugenom | I75: Abgenom | J75: Erhalt Zugenom | K75: Erhalt Zugenom | L75: Abgenom
A76: Entsch Option A | B76: Erhalt Zugenom | C76: Erhalt Zugenom | D76: Erhalt Zugenom | E76: Ja | F76: Nein | G76: Erhalt Zugenom | H76: Erhalt Zugenom | I76: Abgenom | J76: Erhalt Zugenom | K76: Abgenom | L76: Erhalt Zugenom
A77: Entsch Option A | B77: Erhalt Zugenom | C77: Erhalt Zugenom | D77: Erhalt Zugenom | E77: Ja | F77: Nein | G77: Erhalt Zugenom | H77: Erhalt Zugenom | I77: Abgenom | J77: Erhalt Zugenom | K77: Abgenom | L77: Abgenom
A78: Entsch Option A | B78: Erhalt Zugenom | C78: Erhalt Zugenom | D78: Erhalt Zugenom | E78: Ja | F78: Nein | G78: Erhalt Zugenom | H78: Erhalt Zugenom | I78: Abgenom | J78: Abgenom | K78: Erhalt Zugenom | L78: Erhalt Zugenom
A79: Entsch Option A | B79: Erhalt Zugenom | C79: Erhalt Zugenom | D79: Erhalt Zugenom | E79: Ja | F79: Nein | G79: Erhalt Zugenom | H79: Erhalt Zugenom | I79: Abgenom | J79: Abgenom | K79: Erhalt Zugenom | L79: Abgenom
A80: Entsch Option A | B80: Erhalt Zugenom | C80: Erhalt Zugenom | D80: Erhalt Zugenom | E80: Ja | F80: Nein | G80: Erhalt Zugenom | H80: Erhalt Zugenom | I80: Abgenom | J80: Abgenom | K80: Abgenom | L80: Erhalt Zugenom
A81: Entsch Option A | B81: Erhalt Zugenom | C81: Erhalt Zugenom | D81: Erhalt Zugenom | E81: Ja | F81: Nein | G81: Erhalt Zugenom | H81: Erhalt Zugenom | I81: Abgenom | J81: Abgenom | K81: Abgenom | L81: Abgenom
A82: Entsch Option A | B82: Erhalt Zugenom | C82: Erhalt Zugenom | D82: Erhalt Zugenom | E82: Ja | F82: Nein | G82: Erhalt Zugenom | H82: Abgenom | I82: Erhalt Zugenom | J82: Erhalt Zugenom | K82: Erhalt Zugenom | L82: Erhalt Zugenom
A83: Entsch Option A | B83: Erhalt Zugenom | C83: Erhalt Zugenom | D83: Erhalt Zugenom | E83: Ja | F83: Nein | G83: Erhalt Zugenom | H83: Abgenom | I83: Erhalt Zugenom | J83: Erhalt Zugenom | K83: Erhalt Zugenom | L83: Abgenom
A84: Entsch Option A | B84: Erhalt Zugenom | C84: Erhalt Zugenom | D84: Erhalt Zugenom | E84: Ja | F84: Nein | G84: Erhalt Zugenom | H84: Abgenom | I84: Erhalt Zugenom | J84: Erhalt Zugenom | K84: Abgenom | L84: Erhalt Zugenom
A85: Entsch Option A | B85: Erhalt Zugenom | C85: Erhalt Zugenom | D85: Erhalt Zugenom | E85: Ja | F85: Nein | G85: Erhalt Zugenom | H85: Abgenom | I85: Erhalt Zugenom | J85: Erhalt Zugenom | K85: Abgenom | L85: Abgenom
A86: Entsch Option A | B86: Erhalt Zugenom | C86: Erhalt Zugenom | D86: Erhalt Zugenom | E86: Ja | F86: Nein | G86: Erhalt Zugenom | H86: Abgenom | I86: Erhalt Zugenom | J86: Abgenom | K86: Erhalt Zugenom | L86: Erhalt Zugenom
A87: Entsch Option A | B87: Erhalt Zugenom | C87: Erhalt Zugenom | D87: Erhalt Zugenom | E87: Ja | F87: Nein | G87: Erhalt Zugenom | H87: Abgenom | I87: Erhalt Zugenom | J87: Abgenom | K87: Erhalt Zugenom | L87: Abgenom
A88: Entsch Option A | B88: Erhalt Zugenom | C88: Erhalt Zugenom | D88: Erhalt Zugenom | E88: Ja | F88: Nein | G88: Erhalt Zugenom | H88: Abgenom | I88: Erhalt Zugenom | J88: Abgenom | K88: Abgenom | L88: Erhalt Zugenom
A89: Entsch Option A | B89: Erhalt Zugenom | C89: Erhalt Zugenom | D89: Erhalt Zugenom | E89: Ja | F89: Nein | G89: Erhalt Zugenom | H89: Abgenom | I89: Erhalt Zugenom | J89: Abgenom | K89: Abgenom | L89: Abgenom
A90: Entsch Option A | B90: Erhalt Zugenom | C90: Erhalt Zugenom | D90: Erhalt Zugenom | E90: Ja | F90: Nein | G90: Erhalt Zugenom | H90: Abgenom | I90: Abgenom | J90: Erhalt Zugenom | K90: Erhalt Zugenom | L90: Erhalt Zugenom
A91: Entsch Option A | B91: Erhalt Zugenom | C91: Erhalt Zugenom | D91: Erhalt Zugenom | E91: Ja | F91: Nein | G91: Erhalt Zugenom | H91: Abgenom | I91: Abgenom | J91: Erhalt Zugenom | K91: Erhalt Zugenom | L91: Abgenom
A92: Entsch Option A | B92: Erhalt Zugenom | C92: Erhalt Zugenom | D92: Erhalt Zugenom | E92: Ja | F92: Nein | G92: Erhalt Zugenom | H92: Abgenom | I92: Abgenom | J92: Erhalt Zugenom | K92: Abgenom | L92: Erhalt Zugenom
A93: Entsch Option A | B93: Erhalt Zugenom | C93: Erhalt Zugenom | D93: Erhalt Zugenom | E93: Ja | F93: Nein | G93: Erhalt Zugenom | H93: Abgenom | I93: Abgenom | J93: Erhalt Zugenom | K93: Abgenom | L93: Abgenom
A94: Entsch Option A | B94: Erhalt Zugenom | C94: Erhalt Zugenom | D94: Erhalt Zugenom | E94: Ja | F94: Nein | G94: Erhalt Zugenom | H94: Abgenom | I94: Abgenom | J94: Abgenom | K94: Erhalt Zugenom | L94: Erhalt Zugenom
A95: Entsch Option A | B95: Erhalt Zugenom | C95: Erhalt Zugenom | D95: Erhalt Zugenom | E95: Ja | F95: Nein | G95: Erhalt Zugenom | H95: Abgenom | I95: Abgenom | J95: Abgenom | K95: Erhalt Zugenom | L95: Abgenom
A96: Entsch Option A | B96: Erhalt Zugenom | C96: Erhalt Zugenom | D96: Erhalt Zugenom | E96: Ja | F96: Nein | G96: Erhalt Zugenom | H96: Abgenom | I96: Abgenom | J96: Abgenom | K96: Abgenom | L96: Erhalt Zugenom
A97: Entsch Option A | B97: Erhalt Zugenom | C97: Erhalt Zugenom | D97: Erhalt Zugenom | E97: Ja | F97: Nein | G97: Erhalt Zugenom | H97: Abgenom | I97: Abgenom | J97: Abgenom | K97: Abgenom | L97: Abgenom
A98: Entsch Option A | B98: Erhalt Zugenom | C98: Erhalt Zugenom | D98: Erhalt Zugenom | E98: Ja | F98: Nein | G98: Abgenom | H98: Erhalt Zugenom | I98: Erhalt Zugenom | J98: Erhalt Zugenom | K98: Erhalt Zugenom | L98: Erhalt Zugenom
A99: Entsch Option A | B99: Erhalt Zugenom | C99: Erhalt Zugenom | D99: Erhalt Zugenom | E99: Ja | F99: Nein | G99: Abgenom | H99: Erhalt Zugenom | I99: Erhalt Zugenom | J99: Erhalt Zugenom | K99: Erhalt Zugenom | L99: Abgenom
A100: Entsch Option A | B100: Erhalt Zugenom | C100: Erhalt Zugenom | D100: Erhalt Zugenom | E100: Ja | F100: Nein | G100: Abgenom | H100: Erhalt Zugenom | I100: Erhalt Zugenom | J100: Erhalt Zugenom | K100: Abgenom | L100: Erhalt Zugenom
A101: Entsch Option A | B101: Erhalt Zugenom | C101: Erhalt Zugenom | D101: Erhalt Zugenom | E101: Ja | F101: Nein | G101: Abgenom | H101: Erhalt Zugenom | I101: Erhalt Zugenom | J101: Erhalt Zugenom | K101: Abgenom | L101: Abgenom
A102: Entsch Option A | B102: Erhalt Zugenom | C102: Erhalt Zugenom | D102: Erhalt Zugenom | E102: Ja | F102: Nein | G102: Abgenom | H102: Erhalt Zugenom | I102: Erhalt Zugenom | J102: Abgenom | K102: Erhalt Zugenom | L102: Erhalt Zugenom
A103: Entsch Option A | B103: Erhalt Zugenom | C103: Erhalt Zugenom | D103: Erhalt Zugenom | E103: Ja | F103: Nein | G103: Abgenom | H103: Erhalt Zugenom | I103: Erhalt Zugenom | J103: Abgenom | K103: Erhalt Zugenom | L103: Abgenom
A104: Entsch Option A | B104: Erhalt Zugenom | C104: Erhalt Zugenom | D104: Erhalt Zugenom | E104: Ja | F104: Nein | G104: Abgenom | H104: Erhalt Zugenom | I104: Erhalt Zugenom | J104: Abgenom | K104: Abgenom | L104: Erhalt Zugenom
A105: Entsch Option A | B105: Erhalt Zugenom | C105: Erhalt Zugenom | D105: Erhalt Zugenom | E105: Ja | F105: Nein | G105: Abgenom | H105: Erhalt Zugenom | I105: Erhalt Zugenom | J105: Abgenom | K105: Abgenom | L105: Abgenom
A106: Entsch Option A | B106: Erhalt Zugenom | C106: Erhalt Zugenom | D106: Erhalt Zugenom | E106: Ja | F106: Nein | G106: Abgenom | H106: Erhalt Zugenom | I106: Abgenom | J106: Erhalt Zugenom | K106: Erhalt Zugenom | L106: Erhalt Zugenom
A107: Entsch Option A | B107: Erhalt Zugenom | C107: Erhalt Zugenom | D107: Erhalt Zugenom | E107: Ja | F107: Nein | G107: Abgenom | H107: Erhalt Zugenom | I107: Abgenom | J107: Erhalt Zugenom | K107: Erhalt Zugenom | L107: Abgenom
A108: Entsch Option A | B108: Erhalt Zugenom | C108: Erhalt Zugenom | D108: Erhalt Zugenom | E108: Ja | F108: Nein | G108: Abgenom | H108: Erhalt Zugenom | I108: Abgenom | J108: Erhalt Zugenom | K108: Abgenom | L108: Erhalt Zugenom
A109: Entsch Option A | B109: Erhalt Zugenom | C109: Erhalt Zugenom | D109: Erhalt Zugenom | E109: Ja | F109: Nein | G109: Abgenom | H109: Erhalt Zugenom | I109: Abgenom | J109: Erhalt Zugenom | K109: Abgenom | L109: Abgenom
A110: Entsch Option A | B110: Erhalt Zugenom | C110: Erhalt Zugenom | D110: Erhalt Zugenom | E110: Ja | F110: Nein | G110: Abgenom | H110: Erhalt Zugenom | I110: Abgenom | J110: Abgenom | K110: Erhalt Zugenom | L110: Erhalt Zugenom
A111: Entsch Option A | B111: Erhalt Zugenom | C111: Erhalt Zugenom | D111: Erhalt Zugenom | E111: Ja | F111: Nein | G111: Abgenom | H111: Erhalt Zugenom | I111: Abgenom | J111: Abgenom | K111: Erhalt Zugenom | L111: Abgenom
A112: Entsch Option A | B112: Erhalt Zugenom | C112: Erhalt Zugenom | D112: Erhalt Zugenom | E112: Ja | F112: Nein | G112: Abgenom | H112: Erhalt Zugenom | I112: Abgenom | J112: Abgenom | K112: Abgenom | L112: Erhalt Zugenom
A113: Entsch Option A | B113: Erhalt Zugenom | C113: Erhalt Zugenom | D113: Erhalt Zugenom | E113: Ja | F113: Nein | G113: Abgenom | H113: Erhalt Zugenom | I113: Abgenom | J113: Abgenom | K113: Abgenom | L113: Abgenom
A114: Entsch Option A | B114: Erhalt Zugenom | C114: Erhalt Zugenom | D114: Erhalt Zugenom | E114: Ja | F114: Nein | G114: Abgenom | H114: Abgenom | I114: Erhalt Zugenom | J114: Erhalt Zugenom | K114: Erhalt Zugenom | L114: Erhalt Zugenom
A115: Entsch Option A | B115: Erhalt Zugenom | C115: Erhalt Zugenom | D115: Erhalt Zugenom | E115: Ja | F115: Nein | G115: Abgenom | H115: Abgenom | I115: Erhalt Zugenom | J115: Erhalt Zugenom | K115: Erhalt Zugenom | L115: Abgenom
A116: Entsch Option A | B116: Erhalt Zugenom | C116: Erhalt Zugenom | D116: Erhalt Zugenom | E116: Ja | F116: Nein | G116: Abgenom | H116: Abgenom | I116: Erhalt Zugenom | J116: Erhalt Zugenom | K116: Abgenom | L116: Erhalt Zugenom
A117: Entsch Option A | B117: Erhalt Zugenom | C117: Erhalt Zugenom | D117: Erhalt Zugenom | E117: Ja | F117: Nein | G117: Abgenom | H117: Abgenom | I117: Erhalt Zugenom | J117: Erhalt Zugenom | K117: Abgenom | L117: Abgenom
A118: Entsch Option A | B118: Erhalt Zugenom | C118: Erhalt Zugenom | D118: Erhalt Zugenom | E118: Ja | F118: Nein | G118: Abgenom | H118: Abgenom | I118: Erhalt Zugenom | J118: Abgenom | K118: Erhalt Zugenom | L118: Erhalt Zugenom
A119: Entsch Option A | B119: Erhalt Zugenom | C119: Erhalt Zugenom | D119: Erhalt Zugenom | E119: Ja | F119: Nein | G119: Abgenom | H119: Abgenom | I119: Erhalt Zugenom | J119: Abgenom | K119: Erhalt Zugenom | L119: Abgenom
A120: Entsch Option A | B120: Erhalt Zugenom | C120: Erhalt Zugenom | D120: Erhalt Zugenom | E120: Ja | F120: Nein | G120: Abgenom | H120: Abgenom | I120: Erhalt Zugenom | J120: Abgenom | K120: Abgenom | L120: Erhalt Zugenom
A121: Entsch Option A | B121: Erhalt Zugenom | C121: Erhalt Zugenom | D121: Erhalt Zugenom | E121: Ja | F121: Nein | G121: Abgenom | H121: Abgenom | I121: Erhalt Zugenom | J121: Abgenom | K121: Abgenom | L121: Abgenom
A122: Entsch Option A | B122: Erhalt Zugenom | C122: Erhalt Zugenom | D122: Erhalt Zugenom | E122: Ja | F122: Nein | G122: Abgenom | H122: Abgenom | I122: Abgenom | J122: Erhalt Zugenom | K122: Erhalt Zugenom | L122: Erhalt Zugenom
A123: Entsch Option A | B123: Erhalt Zugenom | C123: Erhalt Zugenom | D123: Erhalt Zugenom | E123: Ja | F123: Nein | G123: Abgenom | H123: Abgenom | I123: Abgenom | J123: Erhalt Zugenom | K123: Erhalt Zugenom | L123: Abgenom
A124: Entsch Option A | B124: Erhalt Zugenom | C124: Erhalt Zugenom | D124: Erhalt Zugenom | E124: Ja | F124: Nein | G124: Abgenom | H124: Abgenom | I124: Abgenom | J124: Erhalt Zugenom | K124: Abgenom | L124: Erhalt Zugenom
A125: Entsch Option A | B125: Erhalt Zugenom | C125: Erhalt Zugenom | D125: Erhalt Zugenom | E125: Ja | F125: Nein | G125: Abgenom | H125: Abgenom | I125: Abgenom | J125: Erhalt Zugenom | K125: Abgenom | L125: Abgenom
A126: Entsch Option A | B126: Erhalt Zugenom | C126: Erhalt Zugenom | D126: Erhalt Zugenom | E126: Ja | F126: Nein | G126: Abgenom | H126: Abgenom | I126: Abgenom | J126: Abgenom | K126: Erhalt Zugenom | L126: Erhalt Zugenom
A127: Entsch Option A | B127: Erhalt Zugenom | C127: Erhalt Zugenom | D127: Erhalt Zugenom | E127: Ja | F127: Nein | G127: Abgenom | H127: Abgenom | I127: Abgenom | J127: Abgenom | K127: Erhalt Zugenom | L127: Abgenom
A128: Entsch Option A | B128: Erhalt Zugenom | C128: Erhalt Zugenom | D128: Erhalt Zugenom | E128: Ja | F128: Nein | G128: Abgenom | H128: Abgenom | I128: Abgenom | J128: Abgenom | K128: Abgenom | L128: Erhalt Zugenom
A129: Entsch Option A | B129: Erhalt Zugenom | C129: Erhalt Zugenom | D129: Erhalt Zugenom | E129: Ja | F129: Nein | G129: Abgenom | H129: Abgenom | I129: Abgenom | J129: Abgenom | K129: Abgenom | L129: Abgenom
A130: Entsch Option A | B130: Erhalt Zugenom | C130: Erhalt Zugenom | D130: Erhalt Zugenom | E130: Nein | F130: Ja | G130: Erhalt Zugenom | H130: Erhalt Zugenom | I130: Erhalt Zugenom | J130: Erhalt Zugenom | K130: Erhalt Zugenom | L130: Erhalt Zugenom
A131: Entsch Option A | B131: Erhalt Zugenom | C131: Erhalt Zugenom | D131: Erhalt Zugenom | E131: Nein | F131: Ja | G131: Erhalt Zugenom | H131: Erhalt Zugenom | I131: Erhalt Zugenom | J131: Erhalt Zugenom | K131: Erhalt Zugenom | L131: Abgenom
A132: Entsch Option A | B132: Erhalt Zugenom | C132: Erhalt Zugenom | D132: Erhalt Zugenom | E132: Nein | F132: Ja | G132: Erhalt Zugenom | H132: Erhalt Zugenom | I132: Erhalt Zugenom | J132: Erhalt Zugenom | K132: Abgenom | L132: Erhalt Zugenom
A133: Entsch Option A | B133: Erhalt Zugenom | C133: Erhalt Zugenom | D133: Erhalt Zugenom | E133: Nein | F133: Ja | G133: Erhalt Zugenom | H133: Erhalt Zugenom | I133: Erhalt Zugenom | J133: Erhalt Zugenom | K133: Abgenom | L133: Abgenom
A134: Entsch Option A | B134: Erhalt Zugenom | C134: Erhalt Zugenom | D134: Erhalt Zugenom | E134: Nein | F134: Ja | G134: Erhalt Zugenom | H134: Erhalt Zugenom | I134: Erhalt Zugenom | J134: Abgenom | K134: Erhalt Zugenom | L134: Erhalt Zugenom
A135: Entsch Option A | B135: Erhalt Zugenom | C135: Erhalt Zugenom | D135: Erhalt Zugenom | E135: Nein | F135: Ja | G135: Erhalt Zugenom | H135: Erhalt Zugenom | I135: Erhalt Zugenom | J135: Abgenom | K135: Erhalt Zugenom | L135: Abgenom
A136: Entsch Option A | B136: Erhalt Zugenom | C136: Erhalt Zugenom | D136: Erhalt Zugenom | E136: Nein | F136: Ja | G136: Erhalt Zugenom | H136: Erhalt Zugenom | I136: Erhalt Zugenom | J136: Abgenom | K136: Abgenom | L136: Erhalt Zugenom
A137: Entsch Option A | B137: Erhalt Zugenom | C137: Erhalt Zugenom | D137: Erhalt Zugenom | E137: Nein | F137: Ja | G137: Erhalt Zugenom | H137: Erhalt Zugenom | I137: Erhalt Zugenom | J137: Abgenom | K137: Abgenom | L137: Abgenom
A138: Entsch Option A | B138: Erhalt Zugenom | C138: Erhalt Zugenom | D138: Erhalt Zugenom | E138: Nein | F138: Ja | G138: Erhalt Zugenom | H138: Erhalt Zugenom | I138: Abgenom | J138: Erhalt Zugenom | K138: Erhalt Zugenom | L138: Erhalt Zugenom
A139: Entsch Option A | B139: Erhalt Zugenom | C139: Erhalt Zugenom | D139: Erhalt Zugenom | E139: Nein | F139: Ja | G139: Erhalt Zugenom | H139: Erhalt Zugenom | I139: Abgenom | J139: Erhalt Zugenom | K139: Erhalt Zugenom | L139: Abgenom
A140: Entsch Option A | B140: Erhalt Zugenom | C140: Erhalt Zugenom | D140: Erhalt Zugenom | E140: Nein | F140: Ja | G140: Erhalt Zugenom | H140: Erhalt Zugenom | I140: Abgenom | J140: Erhalt Zugenom | K140: Abgenom | L140: Erhalt Zugenom
A141: Entsch Option A | B141: Erhalt Zugenom | C141: Erhalt Zugenom | D141: Erhalt Zugenom | E141: Nein | F141: Ja | G141: Erhalt Zugenom | H141: Erhalt Zugenom | I141: Abgenom | J141: Erhalt Zugenom | K141: Abgenom | L141: Abgenom
A142: Entsch Option A | B142: Erhalt Zugenom | C142: Erhalt Zugenom | D142: Erhalt Zugenom | E142: Nein | F142: Ja | G142: Erhalt Zugenom | H142: Erhalt Zugenom | I142: Abgenom | J142: Abgenom | K142: Erhalt Zugenom | L142: Erhalt Zugenom
A143: Entsch Option A | B143: Erhalt Zugenom | C143: Erhalt Zugenom | D143: Erhalt Zugenom | E143: Nein | F143: Ja | G143: Erhalt Zugenom | H143: Erhalt Zugenom | I143: Abgenom | J143: Abgenom | K143: Erhalt Zugenom | L143: Abgenom
A144: Entsch Option A | B144: Erhalt Zugenom | C144: Erhalt Zugenom | D144: Erhalt Zugenom | E144: Nein | F144: Ja | G144: Erhalt Zugenom | H144: Erhalt Zugenom | I144: Abgenom | J144: Abgenom | K144: Abgenom | L144: Erhalt Zugenom
A145: Entsch Option A | B145: Erhalt Zugenom | C145: Erhalt Zugenom | D145: Erhalt Zugenom | E145: Nein | F145: Ja | G145: Erhalt Zugenom | H145: Erhalt Zugenom | I145: Abgenom | J145: Abgenom | K145: Abgenom | L145: Abgenom
A146: Entsch Option A | B146: Erhalt Zugenom | C146: Erhalt Zugenom | D146: Erhalt Zugenom | E146: Nein | F146: Ja | G146: Erhalt Zugenom | H146: Abgenom | I146: Erhalt Zugenom | J146: Erhalt Zugenom | K146: Erhalt Zugenom | L146: Erhalt Zugenom
A147: Entsch Option A | B147: Erhalt Zugenom | C147: Erhalt Zugenom | D147: Erhalt Zugenom | E147: Nein | F147: Ja | G147: Erhalt Zugenom | H147: Abgenom | I147: Erhalt Zugenom | J147: Erhalt Zugenom | K147: Erhalt Zugenom | L147: Abgenom
A148: Entsch Option A | B148: Erhalt Zugenom | C148: Erhalt Zugenom | D148: Erhalt Zugenom | E148: Nein | F148: Ja | G148: Erhalt Zugenom | H148: Abgenom | I148: Erhalt Zugenom | J148: Erhalt Zugenom | K148: Abgenom | L148: Erhalt Zugenom
A149: Entsch Option A | B149: Erhalt Zugenom | C149: Erhalt Zugenom | D149: Erhalt Zugenom | E149: Nein | F149: Ja | G149: Erhalt Zugenom | H149: Abgenom | I149: Erhalt Zugenom | J149: Erhalt Zugenom | K149: Abgenom | L149: Abgenom
A150: Entsch Option A | B150: Erhalt Zugenom | C150: Erhalt Zugenom | D150: Erhalt Zugenom | E150: Nein | F150: Ja | G150: Erhalt Zugenom | H150: Abgenom | I150: Erhalt Zugenom | J150: Abgenom | K150: Erhalt Zugenom | L150: Erhalt Zugenom
A151: Entsch Option A | B151: Erhalt Zugenom | C151: Erhalt Zugenom | D151: Erhalt Zugenom | E151: Nein | F151: Ja | G151: Erhalt Zugenom | H151: Abgenom | I151: Erhalt Zugenom | J151: Abgenom | K151: Erhalt Zugenom | L151: Abgenom
A152: Entsch Option A | B152: Erhalt Zugenom | C152: Erhalt Zugenom | D152: Erhalt Zugenom | E152: Nein | F152: Ja | G152: Erhalt Zugenom | H152: Abgenom | I152: Erhalt Zugenom | J152: Abgenom | K152: Abgenom | L152: Erhalt Zugenom
A153: Entsch Option A | B153: Erhalt Zugenom | C153: Erhalt Zugenom | D153: Erhalt Zugenom | E153: Nein | F153: Ja | G153: Erhalt Zugenom | H153: Abgenom | I153: Erhalt Zugenom | J153: Abgenom | K153: Abgenom | L153: Abgenom
A154: Entsch Option A | B154: Erhalt Zugenom | C154: Erhalt Zugenom | D154: Erhalt Zugenom | E154: Nein | F154: Ja | G154: Erhalt Zugenom | H154: Abgenom | I154: Abgenom | J154: Erhalt Zugenom | K154: Erhalt Zugenom | L154: Erhalt Zugenom
A155: Entsch Option A | B155: Erhalt Zugenom | C155: Erhalt Zugenom | D155: Erhalt Zugenom | E155: Nein | F155: Ja | G155: Erhalt Zugenom | H155: Abgenom | I155: Abgenom | J155: Erhalt Zugenom | K155: Erhalt Zugenom | L155: Abgenom
A156: Entsch Option A | B156: Erhalt Zugenom | C156: Erhalt Zugenom | D156: Erhalt Zugenom | E156: Nein | F156: Ja | G156: Erhalt Zugenom | H156: Abgenom | I156: Abgenom | J156: Erhalt Zugenom | K156: Abgenom | L156: Erhalt Zugenom
A157: Entsch Option A | B157: Erhalt Zugenom | C157: Erhalt Zugenom | D157: Erhalt Zugenom | E157: Nein | F157: Ja | G157: Erhalt Zugenom | H157: Abgenom | I157: Abgenom | J157: Erhalt Zugenom | K157: Abgenom | L157: Abgenom
A158: Entsch Option A | B158: Erhalt Zugenom | C158: Erhalt Zugenom | D158: Erhalt Zugenom | E158: Nein | F158: Ja | G158: Erhalt Zugenom | H158: Abgenom | I158: Abgenom | J158: Abgenom | K158: Erhalt Zugenom | L158: Erhalt Zugenom
A159: Entsch Option A | B159: Erhalt Zugenom | C159: Erhalt Zugenom | D159: Erhalt Zugenom | E159: Nein | F159: Ja | G159: Erhalt Zugenom | H159: Abgenom | I159: Abgenom | J159: Abgenom | K159: Erhalt Zugenom | L159: Abgenom
A160: Entsch Option A | B160: Erhalt Zugenom | C160: Erhalt Zugenom | D160: Erhalt Zugenom | E160: Nein | F160: Ja | G160: Erhalt Zugenom | H160: Abgenom | I160: Abgenom | J160: Abgenom | K160: Abgenom | L160: Erhalt Zugenom
A161: Entsch Option A | B161: Erhalt Zugenom | C161: Erhalt Zugenom | D161: Erhalt Zugenom | E161: Nein | F161: Ja | G161: Erhalt Zugenom | H161: Abgenom | I161: Abgenom | J161: Abgenom | K161: Abgenom | L161: Abgenom
A162: Entsch Option A | B162: Erhalt Zugenom | C162: Erhalt Zugenom | D162: Erhalt Zugenom | E162: Nein | F162: Ja | G162: Abgenom | H162: Erhalt Zugenom | I162: Erhalt Zugenom | J162: Erhalt Zugenom | K162: Erhalt Zugenom | L162: Erhalt Zugenom
A163: Entsch Option A | B163: Erhalt Zugenom | C163: Erhalt Zugenom | D163: Erhalt Zugenom | E163: Nein | F163: Ja | G163: Abgenom | H163: Erhalt Zugenom | I163: Erhalt Zugenom | J163: Erhalt Zugenom | K163: Erhalt Zugenom | L163: Abgenom
A164: Entsch Option A | B164: Erhalt Zugenom | C164: Erhalt Zugenom | D164: Erhalt Zugenom | E164: Nein | F164: Ja | G164: Abgenom | H164: Erhalt Zugenom | I164: Erhalt Zugenom | J164: Erhalt Zugenom | K164: Abgenom | L164: Erhalt Zugenom
A165: Entsch Option A | B165: Erhalt Zugenom | C165: Erhalt Zugenom | D165: Erhalt Zugenom | E165: Nein | F165: Ja | G165: Abgenom | H165: Erhalt Zugenom | I165: Erhalt Zugenom | J165: Erhalt Zugenom | K165: Abgenom | L165: Abgenom
A166: Entsch Option A | B166: Erhalt Zugenom | C166: Erhalt Zugenom | D166: Erhalt Zugenom | E166: Nein | F166: Ja | G166: Abgenom | H166: Erhalt Zugenom | I166: Erhalt Zugenom | J166: Abgenom | K166: Erhalt Zugenom | L166: Erhalt Zugenom
A167: Entsch Option A | B167: Erhalt Zugenom | C167: Erhalt Zugenom | D167: Erhalt Zugenom | E167: Nein | F167: Ja | G167: Abgenom | H167: Erhalt Zugenom | I167: Erhalt Zugenom | J167: Abgenom | K167: Erhalt Zugenom | L167: Abgenom
A168: Entsch Option A | B168: Erhalt Zugenom | C168: Erhalt Zugenom | D168: Erhalt Zugenom | E168: Nein | F168: Ja | G168: Abgenom | H168: Erhalt Zugenom | I168: Erhalt Zugenom | J168: Abgenom | K168: Abgenom | L168: Erhalt Zugenom
A169: Entsch Option A | B169: Erhalt Zugenom | C169: Erhalt Zugenom | D169: Erhalt Zugenom | E169: Nein | F169: Ja | G169: Abgenom | H169: Erhalt Zugenom | I169: Erhalt Zugenom | J169: Abgenom | K169: Abgenom | L169: Abgenom
A170: Entsch Option A | B170: Erhalt Zugenom | C170: Erhalt Zugenom | D170: Erhalt Zugenom | E170: Nein | F170: Ja | G170: Abgenom | H170: Erhalt Zugenom | I170: Abgenom | J170: Erhalt Zugenom | K170: Erhalt Zugenom | L170: Erhalt Zugenom
A171: Entsch Option A | B171: Erhalt Zugenom | C171: Erhalt Zugenom | D171: Erhalt Zugenom | E171: Nein | F171: Ja | G171: Abgenom | H171: Erhalt Zugenom | I171: Abgenom | J171: Erhalt Zugenom | K171: Erhalt Zugenom | L171: Abgenom
A172: Entsch Option A | B172: Erhalt Zugenom | C172: Erhalt Zugenom | D172: Erhalt Zugenom | E172: Nein | F172: Ja | G172: Abgenom | H172: Erhalt Zugenom | I172: Abgenom | J172: Erhalt Zugenom | K172: Abgenom | L172: Erhalt Zugenom
A173: Entsch Option A | B173: Erhalt Zugenom | C173: Erhalt Zugenom | D173: Erhalt Zugenom | E173: Nein | F173: Ja | G173: Abgenom | H173: Erhalt Zugenom | I173: Abgenom | J173: Erhalt Zugenom | K173: Abgenom | L173: Abgenom
A174: Entsch Option A | B174: Erhalt Zugenom | C174: Erhalt Zugenom | D174: Erhalt Zugenom | E174: Nein | F174: Ja | G174: Abgenom | H174: Erhalt Zugenom | I174: Abgenom | J174: Abgenom | K174: Erhalt Zugenom | L174: Erhalt Zugenom
A175: Entsch Option A | B175: Erhalt Zugenom | C175: Erhalt Zugenom | D175: Erhalt Zugenom | E175: Nein | F175: Ja | G175: Abgenom | H175: Erhalt Zugenom | I175: Abgenom | J175: Abgenom | K175: Erhalt Zugenom | L175: Abgenom
A176: Entsch Option A | B176: Erhalt Zugenom | C176: Erhalt Zugenom | D176: Erhalt Zugenom | E176: Nein | F176: Ja | G176: Abgenom | H176: Erhalt Zugenom | I176: Abgenom | J176: Abgenom | K176: Abgenom | L176: Erhalt Zugenom
A177: Entsch Option A | B177: Erhalt Zugenom | C177: Erhalt Zugenom | D177: Erhalt Zugenom | E177: Nein | F177: Ja | G177: Abgenom | H177: Erhalt Zugenom | I177: Abgenom | J177: Abgenom | K177: Abgenom | L177: Abgenom
A178: Entsch Option A | B178: Erhalt Zugenom | C178: Erhalt Zugenom | D178: Erhalt Zugenom | E178: Nein | F178: Ja | G178: Abgenom | H178: Abgenom | I178: Erhalt Zugenom | J178: Erhalt Zugenom | K178: Erhalt Zugenom | L178: Erhalt Zugenom
A179: Entsch Option A | B179: Erhalt Zugenom | C179: Erhalt Zugenom | D179: Erhalt Zugenom | E179: Nein | F179: Ja | G179: Abgenom | H179: Abgenom | I179: Erhalt Zugenom | J179: Erhalt Zugenom | K179: Erhalt Zugenom | L179: Abgenom
A180: Entsch Option A | B180: Erhalt Zugenom | C180: Erhalt Zugenom | D180: Erhalt Zugenom | E180: Nein | F180: Ja | G180: Abgenom | H180: Abgenom | I180: Erhalt Zugenom | J180: Erhalt Zugenom | K180: Abgenom | L180: Erhalt Zugenom
A181: Entsch Option A | B181: Erhalt Zugenom | C181: Erhalt Zugenom | D181: Erhalt Zugenom | E181: Nein | F181: Ja | G181: Abgenom | H181: Abgenom | I181: Erhalt Zugenom | J181: Erhalt Zugenom | K181: Abgenom | L181: Abgenom
A182: Entsch Option A | B182: Erhalt Zugenom | C182: Erhalt Zugenom | D182: Erhalt Zugenom | E182: Nein | F182: Ja | G182: Abgenom | H182: Abgenom | I182: Erhalt Zugenom | J182: Abgenom | K182: Erhalt Zugenom | L182: Erhalt Zugenom
A183: Entsch Option A | B183: Erhalt Zugenom | C183: Erhalt Zugenom | D183: Erhalt Zugenom | E183: Nein | F183: Ja | G183: Abgenom | H183: Abgenom | I183: Erhalt Zugenom | J183: Abgenom | K183: Erhalt Zugenom | L183: Abgenom
A184: Entsch Option A | B184: Erhalt Zugenom | C184: Erhalt Zugenom | D184: Erhalt Zugenom | E184: Nein | F184: Ja | G184: Abgenom | H184: Abgenom | I184: Erhalt Zugenom | J184: Abgenom | K184: Abgenom | L184: Erhalt Zugenom
A185: Entsch Option A | B185: Erhalt Zugenom | C185: Erhalt Zugenom | D185: Erhalt Zugenom | E185: Nein | F185: Ja | G185: Abgenom | H185: Abgenom | I185: Erhalt Zugenom | J185: Abgenom | K185: Abgenom | L185: Abgenom
A186: Entsch Option A | B186: Erhalt Zugenom | C186: Erhalt Zugenom | D186: Erhalt Zugenom | E186: Nein | F186: Ja | G186: Abgenom | H186: Abgenom | I186: Abgenom | J186: Erhalt Zugenom | K186: Erhalt Zugenom | L186: Erhalt Zugenom
A187: Entsch Option A | B187: Erhalt Zugenom | C187: Erhalt Zugenom | D187: Erhalt Zugenom | E187: Nein | F187: Ja | G187: Abgenom | H187: Abgenom | I187: Abgenom | J187: Erhalt Zugenom | K187: Erhalt Zugenom | L187: Abgenom
A188: Entsch Option A | B188: Erhalt Zugenom | C188: Erhalt Zugenom | D188: Erhalt Zugenom | E188: Nein | F188: Ja | G188: Abgenom | H188: Abgenom | I188: Abgenom | J188: Erhalt Zugenom | K188: Abgenom | L188: Erhalt Zugenom
A189: Entsch Option A | B189: Erhalt Zugenom | C189: Erhalt Zugenom | D189: Erhalt Zugenom | E189: Nein | F189: Ja | G189: Abgenom | H189: Abgenom | I189: Abgenom | J189: Erhalt Zugenom | K189: Abgenom | L189: Abgenom
A190: Entsch Option A | B190: Erhalt Zugenom | C190: Erhalt Zugenom | D190: Erhalt Zugenom | E190: Nein | F190: Ja | G190: Abgenom | H190: Abgenom | I190: Abgenom | J190: Abgenom | K190: Erhalt Zugenom | L190: Erhalt Zugenom
A191: Entsch Option A | B191: Erhalt Zugenom | C191: Erhalt Zugenom | D191: Erhalt Zugenom | E191: Nein | F191: Ja | G191: Abgenom | H191: Abgenom | I191: Abgenom | J191: Abgenom | K191: Erhalt Zugenom | L191: Abgenom
A192: Entsch Option A | B192: Erhalt Zugenom | C192: Erhalt Zugenom | D192: Erhalt Zugenom | E192: Nein | F192: Ja | G192: Abgenom | H192: Abgenom | I192: Abgenom | J192: Abgenom | K192: Abgenom | L192: Erhalt Zugenom
A193: Entsch Option A | B193: Erhalt Zugenom | C193: Erhalt Zugenom | D193: Erhalt Zugenom | E193: Nein | F193: Ja | G193: Abgenom | H193: Abgenom | I193: Abgenom | J193: Abgenom | K193: Abgenom | L193: Abgenom
A194: Entsch Option A | B194: Erhalt Zugenom | C194: Erhalt Zugenom | D194: Erhalt Zugenom | E194: Nein | F194: Nein | G194: Erhalt Zugenom | H194: Erhalt Zugenom | I194: Erhalt Zugenom | J194: Erhalt Zugenom | K194: Erhalt Zugenom | L194: Erhalt Zugenom
A195: Entsch Option A | B195: Erhalt Zugenom | C195: Erhalt Zugenom | D195: Erhalt Zugenom | E195: Nein | F195: Nein | G195: Erhalt Zugenom | H195: Erhalt Zugenom | I195: Erhalt Zugenom | J195: Erhalt Zugenom | K195: Erhalt Zugenom | L195: Abgenom
A196: Entsch Option A | B196: Erhalt Zugenom | C196: Erhalt Zugenom | D196: Erhalt Zugenom | E196: Nein | F196: Nein | G196: Erhalt Zugenom | H196: Erhalt Zugenom | I196: Erhalt Zugenom | J196: Erhalt Zugenom | K196: Abgenom | L196: Erhalt Zugenom
A197: Entsch Option A | B197: Erhalt Zugenom | C197: Erhalt Zugenom | D197: Erhalt Zugenom | E197: Nein | F197: Nein | G197: Erhalt Zugenom | H197: Erhalt Zugenom | I197: Erhalt Zugenom | J197: Erhalt Zugenom | K197: Abgenom | L197: Abgenom
A198: Entsch Option A | B198: Erhalt Zugenom | C198: Erhalt Zugenom | D198: Erhalt Zugenom | E198: Nein | F198: Nein | G198: Erhalt Zugenom | H198: Erhalt Zugenom | I198: Erhalt Zugenom | J198: Abgenom | K198: Erhalt Zugenom | L198: Erhalt Zugenom
A199: Entsch Option A | B199: Erhalt Zugenom | C199: Erhalt Zugenom | D199: Erhalt Zugenom | E199: Nein | F199: Nein | G199: Erhalt Zugenom | H199: Erhalt Zugenom | I199: Erhalt Zugenom | J199: Abgenom | K199: Erhalt Zugenom | L199: Abgenom
A200: Entsch Option A | B200: Erhalt Zugenom | C200: Erhalt Zugenom | D200: Erhalt Zugenom | E200: Nein | F200: Nein | G200: Erhalt Zugenom | H200: Erhalt Zugenom | I200: Erhalt Zugenom | J200: Abgenom | K200: Abgenom | L200: Erhalt Zugenom
... 3897 more rows

Sheet calculations (hidden)
V2: Szenario | AF2: BereichVorhersag.
A3: Entsch.optionen | B3: Ecology | C3: Econ | D3: Socio_Cult | E3: Ecology pre | F3: Econ pre | G3: Socio_Cult pre | H3: Wolf_strong_inc | I3: ExtFaktor2_strong_inc1 | J3: Ecology1 | K3: Ecology2 | L3: Econ1 | M3: Econ2 | N3: Socio_Cult1 | O3: Socio_Cult2 | P3: Ecology | Q3: Econ | R3: Socio_Cult | S3: Product | V3: Wolfsbestand | W3: Ext.Faktor2 | X3: =CONCATENATE("4.1.1) ", '1.1 Ziele-Auswahl'!E13) -> 4.1.1) [_kein_weiteres_Ziel_] | Y3: =CONCATENATE("4.1.2) ",'1.1 Ziele-Auswahl'!E14) -> 4.1.2) [_kein_weiteres_Ziel_] | Z3: =CONCATENATE("4.2.1) ",'1.1 Ziele-Auswahl'!E17) -> 4.2.1) [_kein_weiteres_Ziel_] | AA3: =CONCATENATE("4.2.2) ",'1.1 Ziele-Auswahl'!E18) -> 4.2.2) [_kein_weiteres_Ziel_] | AB3: =CONCATENATE("4.3.1) ",'1.1 Ziele-Auswahl'!E21) -> 4.3.1) [_kein_weiteres_Ziel_] | AC3: =CONCATENATE("4.3.2) ",,'1.1 Ziele-Auswahl'!E22) -> 4.3.2) [_kein_weiteres_Ziel_] | AF3: Rang 1 | AG3: Rang 2 | AH3: Ökol. | AI3: Ökon | AJ3: Soz.kul
A4: Entsch Option A | B4: Ecol_up | C4: Econ_up | D4: SozKul_up | E4: =IF(AND(combos!G2=$AB$15,combos!H2=$AB$15),AH$4, IF(AND(combos!G2=$AB$15,combos!H2<>$AB$15), AH$5, IF(AND(combos!G2<>$AB$15,combos!H2=$AB$15),AH$6, IF(AND(combos!G2<>$AB$15,combos!H2<>$AB$15),AH$7 )))) -> 0.5 | F4: =IF(AND(combos!I2=$AB$15,combos!J2=$AB$15),AI$4, IF(AND(combos!I2=$AB$15,combos!J2<>$AB$15), AI$5, IF(AND(combos!I2<>$AB$15,combos!J2=$AB$15),AI$6, IF(AND(combos!I2<>$AB$15,combos!J2<>$AB$15),AI$7 )))) -> 0.5 | G4: =IF(AND(combos!K2=$AB$15,combos!L2=$AB$15),AJ$4, IF(AND(combos!K2=$AB$15,combos!L2<>$AB$15), AJ$5, IF(AND(combos!K2<>$AB$15,combos!L2=$AB$15),AJ$6, IF(AND(combos!K2<>$AB$15,combos!L2<>$AB$15),AJ$7 )))) -> 0.5 | H4: =IF(combos!E2=$AB$14,W$15,X$15) -> 0.5 | I4: =IF(combos!F2=$AB$14,$W$16,X$16) -> 0.5 | J4: =IF(combos!G2=$AC$15,-1,1) * (IF(AND($H4=$W$15,$I4=$W$16),X$4,IF(AND($H4=$W$15,$I4<>$W$16),X$5,IF(AND($H4<>$W$15,$I4=$W$16),X$6,IF(AND($H4<>$W$15,$I4<>$W$16),X$7)))) - IF(combos!G2=$AC$15,1,0)) -> 0.5 | K4: =IF(combos!H2=$AC$15,-1,1) * (IF(AND($H4=$W$15,$I4=$W$16),Y$4,IF(AND($H4=$W$15,$I4<>$W$16),Y$5,IF(AND($H4<>$W$15,$I4=$W$16),Y$6,IF(AND($H4<>$W$15,$I4<>$W$16),Y$7)))) - IF(combos!H2=$AC$15,1,0)) -> 0.5 | L4: =IF(combos!I2=$AC$15,-1,1) * (IF(AND($H4=$W$15,$I4=$W$16),Z$4,IF(AND($H4=$W$15,$I4<>$W$16),Z$5,IF(AND($H4<>$W$15,$I4=$W$16),Z$6,IF(AND($H4<>$W$15,$I4<>$W$16),Z$7)))) - IF(combos!I2=$AC$15,1,0)) -> 0.5 | M4: =IF(combos!J2=$AC$15,-1,1) * (IF(AND($H4=$W$15,$I4=$W$16),AA$4,IF(AND($H4=$W$15,$I4<>$W$16),AA$5,IF(AND($H4<>$W$15,$I4=$W$16),AA$6,IF(AND($H4<>$W$15,$I4<>$W$16),AA$7)))) - IF(combos!J2=$AC$15,1,0)) -> 0.5 | N4: =IF(combos!K2=$AC$15,-1,1) * (IF(AND($H4=$W$15,$I4=$W$16),AB$4,IF(AND($H4=$W$15,$I4<>$W$16),AB$5,IF(AND($H4<>$W$15,$I4=$W$16),AB$6,IF(AND($H4<>$W$15,$I4<>$W$16),AB$7)))) - IF(combos!K2=$AC$15,1,0)) -> 0.5 | O4: =IF(combos!L2=$AC$15,-1,1) * (IF(AND($H4=$W$15,$I4=$W$16),AC$4,IF(AND($H4=$W$15,$I4<>$W$16),AC$5,IF(AND($H4<>$W$15,$I4=$W$16),AC$6,IF(AND($H4<>$W$15,$I4<>$W$16),AC$7)))) - IF(combos!L2=$AC$15,1,0)) -> 0.5 | P4: =IF(combos!B2=$AB$15,E4,1-E4) -> 0.5 | Q4: =IF(combos!C2=$AB$15,F4,1-F4) -> 0.5 | R4: =IF(combos!D2=$AB$15,G4,1-G4) -> 0.5 | S4: =PRODUCT(H4:R4) -> 0.00048828125 | U4: A | V4: ↑→ | W4: ↑→ | X4: =0.01*'4.0.1 Ökol. Vorhersagen'!$X14 -> 0.5 | Y4: =0.01*'4.0.2 Ökol. Vorhersagen'!$X14 -> 0.5 | Z4: =0.01*'4.1.1 Ökon. Vorhersagen'!$X14 -> 0.5 | AA4: =0.01*'4.1.2 Ökon. Vorhersagen'!$X14 -> 0.5 | AB4: =0.01*'4.2.1 Soz.kul. Vorhersagen'!$X14 -> 0.5 | AC4: =0.01*'4.2.2 Soz.kul. Vorhersagen'!$X14 -> 0.5 | AE4: A | AF4: ↑→ | AG4: ↑→ | AH4: =AVERAGE(X4:Y4) -> 0.5 | AI4: =AVERAGE(Z4:AA4) -> 0.5 | AJ4: =AVERAGE(AB4:AC4) -> 0.5
A5: Entsch Option A | B5: Ecol_up | C5: Econ_up | D5: SozKul_up | E5: =IF(AND(combos!G3=$AB$15,combos!H3=$AB$15),AH$4, IF(AND(combos!G3=$AB$15,combos!H3<>$AB$15), AH$5, IF(AND(combos!G3<>$AB$15,combos!H3=$AB$15),AH$6, IF(AND(combos!G3<>$AB$15,combos!H3<>$AB$15),AH$7 )))) -> 0.5 | F5: =IF(AND(combos!I3=$AB$15,combos!J3=$AB$15),AI$4, IF(AND(combos!I3=$AB$15,combos!J3<>$AB$15), AI$5, IF(AND(combos!I3<>$AB$15,combos!J3=$AB$15),AI$6, IF(AND(combos!I3<>$AB$15,combos!J3<>$AB$15),AI$7 )))) -> 0.5 | G5: =IF(AND(combos!K3=$AB$15,combos!L3=$AB$15),AJ$4, IF(AND(combos!K3=$AB$15,combos!L3<>$AB$15), AJ$5, IF(AND(combos!K3<>$AB$15,combos!L3=$AB$15),AJ$6, IF(AND(combos!K3<>$AB$15,combos!L3<>$AB$15),AJ$7 )))) -> 0.5 | H5: =IF(combos!E3=$AB$14,W$15,X$15) -> 0.5 | I5: =IF(combos!F3=$AB$14,$W$16,X$16) -> 0.5 | J5: =IF(combos!G3=$AC$15,-1,1) * (IF(AND($H5=$W$15,$I5=$W$16),X$4,IF(AND($H5=$W$15,$I5<>$W$16),X$5,IF(AND($H5<>$W$15,$I5=$W$16),X$6,IF(AND($H5<>$W$15,$I5<>$W$16),X$7)))) - IF(combos!G3=$AC$15,1,0)) -> 0.5 | K5: =IF(combos!H3=$AC$15,-1,1) * (IF(AND($H5=$W$15,$I5=$W$16),Y$4,IF(AND($H5=$W$15,$I5<>$W$16),Y$5,IF(AND($H5<>$W$15,$I5=$W$16),Y$6,IF(AND($H5<>$W$15,$I5<>$W$16),Y$7)))) - IF(combos!H3=$AC$15,1,0)) -> 0.5 | L5: =IF(combos!I3=$AC$15,-1,1) * (IF(AND($H5=$W$15,$I5=$W$16),Z$4,IF(AND($H5=$W$15,$I5<>$W$16),Z$5,IF(AND($H5<>$W$15,$I5=$W$16),Z$6,IF(AND($H5<>$W$15,$I5<>$W$16),Z$7)))) - IF(combos!I3=$AC$15,1,0)) -> 0.5 | M5: =IF(combos!J3=$AC$15,-1,1) * (IF(AND($H5=$W$15,$I5=$W$16),AA$4,IF(AND($H5=$W$15,$I5<>$W$16),AA$5,IF(AND($H5<>$W$15,$I5=$W$16),AA$6,IF(AND($H5<>$W$15,$I5<>$W$16),AA$7)))) - IF(combos!J3=$AC$15,1,0)) -> 0.5 | N5: =IF(combos!K3=$AC$15,-1,1) * (IF(AND($H5=$W$15,$I5=$W$16),AB$4,IF(AND($H5=$W$15,$I5<>$W$16),AB$5,IF(AND($H5<>$W$15,$I5=$W$16),AB$6,IF(AND($H5<>$W$15,$I5<>$W$16),AB$7)))) - IF(combos!K3=$AC$15,1,0)) -> 0.5 | O5: =IF(combos!L3=$AC$15,-1,1) * (IF(AND($H5=$W$15,$I5=$W$16),AC$4,IF(AND($H5=$W$15,$I5<>$W$16),AC$5,IF(AND($H5<>$W$15,$I5=$W$16),AC$6,IF(AND($H5<>$W$15,$I5<>$W$16),AC$7)))) - IF(combos!L3=$AC$15,1,0)) -> 0.5 | P5: =IF(combos!B3=$AB$15,E5,1-E5) -> 0.5 | Q5: =IF(combos!C3=$AB$15,F5,1-F5) -> 0.5 | R5: =IF(combos!D3=$AB$15,G5,1-G5) -> 0.5 | S5: =PRODUCT(H5:R5) -> 0.00048828125 | U5: A | V5: ↑→ | W5: ↓ | X5: =0.01*'4.0.1 Ökol. Vorhersagen'!$X16 -> 0.5 | Y5: =0.01*'4.0.2 Ökol. Vorhersagen'!$X16 -> 0.5 | Z5: =0.01*'4.1.1 Ökon. Vorhersagen'!$X16 -> 0.5 | AA5: =0.01*'4.1.2 Ökon. Vorhersagen'!$X16 -> 0.5 | AB5: =0.01*'4.2.1 Soz.kul. Vorhersagen'!$X16 -> 0.5 | AC5: =0.01*'4.2.2 Soz.kul. Vorhersagen'!$X16 -> 0.5 | AE5: A | AF5: ↑→ | AG5: ↓ | AH5: =AVERAGE(X5:Y5) -> 0.5 | AI5: =AVERAGE(Z5:AA5) -> 0.5 | AJ5: =AVERAGE(AB5:AC5) -> 0.5
A6: Entsch Option A | B6: Ecol_up | C6: Econ_up | D6: SozKul_up | E6: =IF(AND(combos!G4=$AB$15,combos!H4=$AB$15),AH$4, IF(AND(combos!G4=$AB$15,combos!H4<>$AB$15), AH$5, IF(AND(combos!G4<>$AB$15,combos!H4=$AB$15),AH$6, IF(AND(combos!G4<>$AB$15,combos!H4<>$AB$15),AH$7 )))) -> 0.5 | F6: =IF(AND(combos!I4=$AB$15,combos!J4=$AB$15),AI$4, IF(AND(combos!I4=$AB$15,combos!J4<>$AB$15), AI$5, IF(AND(combos!I4<>$AB$15,combos!J4=$AB$15),AI$6, IF(AND(combos!I4<>$AB$15,combos!J4<>$AB$15),AI$7 )))) -> 0.5 | G6: =IF(AND(combos!K4=$AB$15,combos!L4=$AB$15),AJ$4, IF(AND(combos!K4=$AB$15,combos!L4<>$AB$15), AJ$5, IF(AND(combos!K4<>$AB$15,combos!L4=$AB$15),AJ$6, IF(AND(combos!K4<>$AB$15,combos!L4<>$AB$15),AJ$7 )))) -> 0.5 | H6: =IF(combos!E4=$AB$14,W$15,X$15) -> 0.5 | I6: =IF(combos!F4=$AB$14,$W$16,X$16) -> 0.5 | J6: =IF(combos!G4=$AC$15,-1,1) * (IF(AND($H6=$W$15,$I6=$W$16),X$4,IF(AND($H6=$W$15,$I6<>$W$16),X$5,IF(AND($H6<>$W$15,$I6=$W$16),X$6,IF(AND($H6<>$W$15,$I6<>$W$16),X$7)))) - IF(combos!G4=$AC$15,1,0)) -> 0.5 | K6: =IF(combos!H4=$AC$15,-1,1) * (IF(AND($H6=$W$15,$I6=$W$16),Y$4,IF(AND($H6=$W$15,$I6<>$W$16),Y$5,IF(AND($H6<>$W$15,$I6=$W$16),Y$6,IF(AND($H6<>$W$15,$I6<>$W$16),Y$7)))) - IF(combos!H4=$AC$15,1,0)) -> 0.5 | L6: =IF(combos!I4=$AC$15,-1,1) * (IF(AND($H6=$W$15,$I6=$W$16),Z$4,IF(AND($H6=$W$15,$I6<>$W$16),Z$5,IF(AND($H6<>$W$15,$I6=$W$16),Z$6,IF(AND($H6<>$W$15,$I6<>$W$16),Z$7)))) - IF(combos!I4=$AC$15,1,0)) -> 0.5 | M6: =IF(combos!J4=$AC$15,-1,1) * (IF(AND($H6=$W$15,$I6=$W$16),AA$4,IF(AND($H6=$W$15,$I6<>$W$16),AA$5,IF(AND($H6<>$W$15,$I6=$W$16),AA$6,IF(AND($H6<>$W$15,$I6<>$W$16),AA$7)))) - IF(combos!J4=$AC$15,1,0)) -> 0.5 | N6: =IF(combos!K4=$AC$15,-1,1) * (IF(AND($H6=$W$15,$I6=$W$16),AB$4,IF(AND($H6=$W$15,$I6<>$W$16),AB$5,IF(AND($H6<>$W$15,$I6=$W$16),AB$6,IF(AND($H6<>$W$15,$I6<>$W$16),AB$7)))) - IF(combos!K4=$AC$15,1,0)) -> 0.5 | O6: =IF(combos!L4=$AC$15,-1,1) * (IF(AND($H6=$W$15,$I6=$W$16),AC$4,IF(AND($H6=$W$15,$I6<>$W$16),AC$5,IF(AND($H6<>$W$15,$I6=$W$16),AC$6,IF(AND($H6<>$W$15,$I6<>$W$16),AC$7)))) - IF(combos!L4=$AC$15,1,0)) -> 0.5 | P6: =IF(combos!B4=$AB$15,E6,1-E6) -> 0.5 | Q6: =IF(combos!C4=$AB$15,F6,1-F6) -> 0.5 | R6: =IF(combos!D4=$AB$15,G6,1-G6) -> 0.5 | S6: 0.00048828125 | U6: A | V6: ↓ | W6: ↑→ | X6: =0.01*'4.0.1 Ökol. Vorhersagen'!$X18 -> 0.5 | Y6: =0.01*'4.0.2 Ökol. Vorhersagen'!$X18 -> 0.5 | Z6: =0.01*'4.1.1 Ökon. Vorhersagen'!$X18 -> 0.5 | AA6: =0.01*'4.1.2 Ökon. Vorhersagen'!$X18 -> 0.5 | AB6: =0.01*'4.2.1 Soz.kul. Vorhersagen'!$X18 -> 0.5 | AC6: =0.01*'4.2.2 Soz.kul. Vorhersagen'!$X18 -> 0.5 | AE6: A | AF6: ↓ | AG6: ↑→ | AH6: 0.5 | AI6: 0.5 | AJ6: 0.5
A7: Entsch Option A | B7: Ecol_up | C7: Econ_up | D7: SozKul_up | E7: =IF(AND(combos!G5=$AB$15,combos!H5=$AB$15),AH$4, IF(AND(combos!G5=$AB$15,combos!H5<>$AB$15), AH$5, IF(AND(combos!G5<>$AB$15,combos!H5=$AB$15),AH$6, IF(AND(combos!G5<>$AB$15,combos!H5<>$AB$15),AH$7 )))) -> 0.5 | F7: =IF(AND(combos!I5=$AB$15,combos!J5=$AB$15),AI$4, IF(AND(combos!I5=$AB$15,combos!J5<>$AB$15), AI$5, IF(AND(combos!I5<>$AB$15,combos!J5=$AB$15),AI$6, IF(AND(combos!I5<>$AB$15,combos!J5<>$AB$15),AI$7 )))) -> 0.5 | G7: =IF(AND(combos!K5=$AB$15,combos!L5=$AB$15),AJ$4, IF(AND(combos!K5=$AB$15,combos!L5<>$AB$15), AJ$5, IF(AND(combos!K5<>$AB$15,combos!L5=$AB$15),AJ$6, IF(AND(combos!K5<>$AB$15,combos!L5<>$AB$15),AJ$7 )))) -> 0.5 | H7: =IF(combos!E5=$AB$14,W$15,X$15) -> 0.5 | I7: =IF(combos!F5=$AB$14,$W$16,X$16) -> 0.5 | J7: =IF(combos!G5=$AC$15,-1,1) * (IF(AND($H7=$W$15,$I7=$W$16),X$4,IF(AND($H7=$W$15,$I7<>$W$16),X$5,IF(AND($H7<>$W$15,$I7=$W$16),X$6,IF(AND($H7<>$W$15,$I7<>$W$16),X$7)))) - IF(combos!G5=$AC$15,1,0)) -> 0.5 | K7: =IF(combos!H5=$AC$15,-1,1) * (IF(AND($H7=$W$15,$I7=$W$16),Y$4,IF(AND($H7=$W$15,$I7<>$W$16),Y$5,IF(AND($H7<>$W$15,$I7=$W$16),Y$6,IF(AND($H7<>$W$15,$I7<>$W$16),Y$7)))) - IF(combos!H5=$AC$15,1,0)) -> 0.5 | L7: =IF(combos!I5=$AC$15,-1,1) * (IF(AND($H7=$W$15,$I7=$W$16),Z$4,IF(AND($H7=$W$15,$I7<>$W$16),Z$5,IF(AND($H7<>$W$15,$I7=$W$16),Z$6,IF(AND($H7<>$W$15,$I7<>$W$16),Z$7)))) - IF(combos!I5=$AC$15,1,0)) -> 0.5 | M7: =IF(combos!J5=$AC$15,-1,1) * (IF(AND($H7=$W$15,$I7=$W$16),AA$4,IF(AND($H7=$W$15,$I7<>$W$16),AA$5,IF(AND($H7<>$W$15,$I7=$W$16),AA$6,IF(AND($H7<>$W$15,$I7<>$W$16),AA$7)))) - IF(combos!J5=$AC$15,1,0)) -> 0.5 | N7: =IF(combos!K5=$AC$15,-1,1) * (IF(AND($H7=$W$15,$I7=$W$16),AB$4,IF(AND($H7=$W$15,$I7<>$W$16),AB$5,IF(AND($H7<>$W$15,$I7=$W$16),AB$6,IF(AND($H7<>$W$15,$I7<>$W$16),AB$7)))) - IF(combos!K5=$AC$15,1,0)) -> 0.5 | O7: =IF(combos!L5=$AC$15,-1,1) * (IF(AND($H7=$W$15,$I7=$W$16),AC$4,IF(AND($H7=$W$15,$I7<>$W$16),AC$5,IF(AND($H7<>$W$15,$I7=$W$16),AC$6,IF(AND($H7<>$W$15,$I7<>$W$16),AC$7)))) - IF(combos!L5=$AC$15,1,0)) -> 0.5 | P7: =IF(combos!B5=$AB$15,E7,1-E7) -> 0.5 | Q7: =IF(combos!C5=$AB$15,F7,1-F7) -> 0.5 | R7: =IF(combos!D5=$AB$15,G7,1-G7) -> 0.5 | S7: 0.00048828125 | U7: A | V7: ↓ | W7: ↓ | X7: =0.01*'4.0.1 Ökol. Vorhersagen'!$X20 -> 0.5 | Y7: =0.01*'4.0.2 Ökol. Vorhersagen'!$X20 -> 0.5 | Z7: =0.01*'4.1.1 Ökon. Vorhersagen'!$X20 -> 0.5 | AA7: =0.01*'4.1.2 Ökon. Vorhersagen'!$X20 -> 0.5 | AB7: =0.01*'4.2.1 Soz.kul. Vorhersagen'!$X20 -> 0.5 | AC7: =0.01*'4.2.2 Soz.kul. Vorhersagen'!$X20 -> 0.5 | AE7: A | AF7: ↓ | AG7: ↓ | AH7: 0.5 | AI7: 0.5 | AJ7: 0.5
A8: Entsch Option A | B8: Ecol_up | C8: Econ_up | D8: SozKul_up | E8: =IF(AND(combos!G6=$AB$15,combos!H6=$AB$15),AH$4, IF(AND(combos!G6=$AB$15,combos!H6<>$AB$15), AH$5, IF(AND(combos!G6<>$AB$15,combos!H6=$AB$15),AH$6, IF(AND(combos!G6<>$AB$15,combos!H6<>$AB$15),AH$7 )))) -> 0.5 | F8: =IF(AND(combos!I6=$AB$15,combos!J6=$AB$15),AI$4, IF(AND(combos!I6=$AB$15,combos!J6<>$AB$15), AI$5, IF(AND(combos!I6<>$AB$15,combos!J6=$AB$15),AI$6, IF(AND(combos!I6<>$AB$15,combos!J6<>$AB$15),AI$7 )))) -> 0.5 | G8: =IF(AND(combos!K6=$AB$15,combos!L6=$AB$15),AJ$4, IF(AND(combos!K6=$AB$15,combos!L6<>$AB$15), AJ$5, IF(AND(combos!K6<>$AB$15,combos!L6=$AB$15),AJ$6, IF(AND(combos!K6<>$AB$15,combos!L6<>$AB$15),AJ$7 )))) -> 0.5 | H8: =IF(combos!E6=$AB$14,W$15,X$15) -> 0.5 | I8: =IF(combos!F6=$AB$14,$W$16,X$16) -> 0.5 | J8: =IF(combos!G6=$AC$15,-1,1) * (IF(AND($H8=$W$15,$I8=$W$16),X$4,IF(AND($H8=$W$15,$I8<>$W$16),X$5,IF(AND($H8<>$W$15,$I8=$W$16),X$6,IF(AND($H8<>$W$15,$I8<>$W$16),X$7)))) - IF(combos!G6=$AC$15,1,0)) -> 0.5 | K8: =IF(combos!H6=$AC$15,-1,1) * (IF(AND($H8=$W$15,$I8=$W$16),Y$4,IF(AND($H8=$W$15,$I8<>$W$16),Y$5,IF(AND($H8<>$W$15,$I8=$W$16),Y$6,IF(AND($H8<>$W$15,$I8<>$W$16),Y$7)))) - IF(combos!H6=$AC$15,1,0)) -> 0.5 | L8: =IF(combos!I6=$AC$15,-1,1) * (IF(AND($H8=$W$15,$I8=$W$16),Z$4,IF(AND($H8=$W$15,$I8<>$W$16),Z$5,IF(AND($H8<>$W$15,$I8=$W$16),Z$6,IF(AND($H8<>$W$15,$I8<>$W$16),Z$7)))) - IF(combos!I6=$AC$15,1,0)) -> 0.5 | M8: =IF(combos!J6=$AC$15,-1,1) * (IF(AND($H8=$W$15,$I8=$W$16),AA$4,IF(AND($H8=$W$15,$I8<>$W$16),AA$5,IF(AND($H8<>$W$15,$I8=$W$16),AA$6,IF(AND($H8<>$W$15,$I8<>$W$16),AA$7)))) - IF(combos!J6=$AC$15,1,0)) -> 0.5 | N8: =IF(combos!K6=$AC$15,-1,1) * (IF(AND($H8=$W$15,$I8=$W$16),AB$4,IF(AND($H8=$W$15,$I8<>$W$16),AB$5,IF(AND($H8<>$W$15,$I8=$W$16),AB$6,IF(AND($H8<>$W$15,$I8<>$W$16),AB$7)))) - IF(combos!K6=$AC$15,1,0)) -> 0.5 | O8: =IF(combos!L6=$AC$15,-1,1) * (IF(AND($H8=$W$15,$I8=$W$16),AC$4,IF(AND($H8=$W$15,$I8<>$W$16),AC$5,IF(AND($H8<>$W$15,$I8=$W$16),AC$6,IF(AND($H8<>$W$15,$I8<>$W$16),AC$7)))) - IF(combos!L6=$AC$15,1,0)) -> 0.5 | P8: =IF(combos!B6=$AB$15,E8,1-E8) -> 0.5 | Q8: =IF(combos!C6=$AB$15,F8,1-F8) -> 0.5 | R8: =IF(combos!D6=$AB$15,G8,1-G8) -> 0.5 | S8: 0.00048828125 | U8: B | V8: ↑→ | W8: ↑→ | X8: =0.01*'4.0.1 Ökol. Vorhersagen'!$Z14 -> 0.5 | Y8: =0.01*'4.0.2 Ökol. Vorhersagen'!$Z14 -> 0.5 | Z8: =0.01*'4.1.1 Ökon. Vorhersagen'!$Z14 -> 0.5 | AA8: =0.01*'4.1.2 Ökon. Vorhersagen'!$Z14 -> 0.5 | AB8: =0.01*'4.2.1 Soz.kul. Vorhersagen'!$Z14 -> 0.5 | AC8: =0.01*'4.2.2 Soz.kul. Vorhersagen'!$Z14 -> 0.5 | AE8: B | AF8: ↑→ | AG8: ↑→ | AH8: 0.5 | AI8: 0.5 | AJ8: 0.5
A9: Entsch Option A | B9: Ecol_up | C9: Econ_up | D9: SozKul_up | E9: =IF(AND(combos!G7=$AB$15,combos!H7=$AB$15),AH$4, IF(AND(combos!G7=$AB$15,combos!H7<>$AB$15), AH$5, IF(AND(combos!G7<>$AB$15,combos!H7=$AB$15),AH$6, IF(AND(combos!G7<>$AB$15,combos!H7<>$AB$15),AH$7 )))) -> 0.5 | F9: =IF(AND(combos!I7=$AB$15,combos!J7=$AB$15),AI$4, IF(AND(combos!I7=$AB$15,combos!J7<>$AB$15), AI$5, IF(AND(combos!I7<>$AB$15,combos!J7=$AB$15),AI$6, IF(AND(combos!I7<>$AB$15,combos!J7<>$AB$15),AI$7 )))) -> 0.5 | G9: =IF(AND(combos!K7=$AB$15,combos!L7=$AB$15),AJ$4, IF(AND(combos!K7=$AB$15,combos!L7<>$AB$15), AJ$5, IF(AND(combos!K7<>$AB$15,combos!L7=$AB$15),AJ$6, IF(AND(combos!K7<>$AB$15,combos!L7<>$AB$15),AJ$7 )))) -> 0.5 | H9: =IF(combos!E7=$AB$14,W$15,X$15) -> 0.5 | I9: =IF(combos!F7=$AB$14,$W$16,X$16) -> 0.5 | J9: =IF(combos!G7=$AC$15,-1,1) * (IF(AND($H9=$W$15,$I9=$W$16),X$4,IF(AND($H9=$W$15,$I9<>$W$16),X$5,IF(AND($H9<>$W$15,$I9=$W$16),X$6,IF(AND($H9<>$W$15,$I9<>$W$16),X$7)))) - IF(combos!G7=$AC$15,1,0)) -> 0.5 | K9: =IF(combos!H7=$AC$15,-1,1) * (IF(AND($H9=$W$15,$I9=$W$16),Y$4,IF(AND($H9=$W$15,$I9<>$W$16),Y$5,IF(AND($H9<>$W$15,$I9=$W$16),Y$6,IF(AND($H9<>$W$15,$I9<>$W$16),Y$7)))) - IF(combos!H7=$AC$15,1,0)) -> 0.5 | L9: =IF(combos!I7=$AC$15,-1,1) * (IF(AND($H9=$W$15,$I9=$W$16),Z$4,IF(AND($H9=$W$15,$I9<>$W$16),Z$5,IF(AND($H9<>$W$15,$I9=$W$16),Z$6,IF(AND($H9<>$W$15,$I9<>$W$16),Z$7)))) - IF(combos!I7=$AC$15,1,0)) -> 0.5 | M9: =IF(combos!J7=$AC$15,-1,1) * (IF(AND($H9=$W$15,$I9=$W$16),AA$4,IF(AND($H9=$W$15,$I9<>$W$16),AA$5,IF(AND($H9<>$W$15,$I9=$W$16),AA$6,IF(AND($H9<>$W$15,$I9<>$W$16),AA$7)))) - IF(combos!J7=$AC$15,1,0)) -> 0.5 | N9: =IF(combos!K7=$AC$15,-1,1) * (IF(AND($H9=$W$15,$I9=$W$16),AB$4,IF(AND($H9=$W$15,$I9<>$W$16),AB$5,IF(AND($H9<>$W$15,$I9=$W$16),AB$6,IF(AND($H9<>$W$15,$I9<>$W$16),AB$7)))) - IF(combos!K7=$AC$15,1,0)) -> 0.5 | O9: =IF(combos!L7=$AC$15,-1,1) * (IF(AND($H9=$W$15,$I9=$W$16),AC$4,IF(AND($H9=$W$15,$I9<>$W$16),AC$5,IF(AND($H9<>$W$15,$I9=$W$16),AC$6,IF(AND($H9<>$W$15,$I9<>$W$16),AC$7)))) - IF(combos!L7=$AC$15,1,0)) -> 0.5 | P9: =IF(combos!B7=$AB$15,E9,1-E9) -> 0.5 | Q9: =IF(combos!C7=$AB$15,F9,1-F9) -> 0.5 | R9: =IF(combos!D7=$AB$15,G9,1-G9) -> 0.5 | S9: 0.00048828125 | U9: B | V9: ↑→ | W9: ↓ | X9: =0.01*'4.0.1 Ökol. Vorhersagen'!$Z16 -> 0.5 | Y9: =0.01*'4.0.2 Ökol. Vorhersagen'!$Z16 -> 0.5 | Z9: =0.01*'4.1.1 Ökon. Vorhersagen'!$Z16 -> 0.5 | AA9: =0.01*'4.1.2 Ökon. Vorhersagen'!$Z16 -> 0.5 | AB9: =0.01*'4.2.1 Soz.kul. Vorhersagen'!$Z16 -> 0.5 | AC9: =0.01*'4.2.2 Soz.kul. Vorhersagen'!$Z16 -> 0.5 | AE9: B | AF9: ↑→ | AG9: ↓ | AH9: 0.5 | AI9: 0.5 | AJ9: 0.5
A10: Entsch Option A | B10: Ecol_up | C10: Econ_up | D10: SozKul_up | E10: =IF(AND(combos!G8=$AB$15,combos!H8=$AB$15),AH$4, IF(AND(combos!G8=$AB$15,combos!H8<>$AB$15), AH$5, IF(AND(combos!G8<>$AB$15,combos!H8=$AB$15),AH$6, IF(AND(combos!G8<>$AB$15,combos!H8<>$AB$15),AH$7 )))) -> 0.5 | F10: =IF(AND(combos!I8=$AB$15,combos!J8=$AB$15),AI$4, IF(AND(combos!I8=$AB$15,combos!J8<>$AB$15), AI$5, IF(AND(combos!I8<>$AB$15,combos!J8=$AB$15),AI$6, IF(AND(combos!I8<>$AB$15,combos!J8<>$AB$15),AI$7 )))) -> 0.5 | G10: =IF(AND(combos!K8=$AB$15,combos!L8=$AB$15),AJ$4, IF(AND(combos!K8=$AB$15,combos!L8<>$AB$15), AJ$5, IF(AND(combos!K8<>$AB$15,combos!L8=$AB$15),AJ$6, IF(AND(combos!K8<>$AB$15,combos!L8<>$AB$15),AJ$7 )))) -> 0.5 | H10: =IF(combos!E8=$AB$14,W$15,X$15) -> 0.5 | I10: =IF(combos!F8=$AB$14,$W$16,X$16) -> 0.5 | J10: =IF(combos!G8=$AC$15,-1,1) * (IF(AND($H10=$W$15,$I10=$W$16),X$4,IF(AND($H10=$W$15,$I10<>$W$16),X$5,IF(AND($H10<>$W$15,$I10=$W$16),X$6,IF(AND($H10<>$W$15,$I10<>$W$16),X$7)))) - IF(combos!G8=$AC$15,1,0)) -> 0.5 | K10: =IF(combos!H8=$AC$15,-1,1) * (IF(AND($H10=$W$15,$I10=$W$16),Y$4,IF(AND($H10=$W$15,$I10<>$W$16),Y$5,IF(AND($H10<>$W$15,$I10=$W$16),Y$6,IF(AND($H10<>$W$15,$I10<>$W$16),Y$7)))) - IF(combos!H8=$AC$15,1,0)) -> 0.5 | L10: =IF(combos!I8=$AC$15,-1,1) * (IF(AND($H10=$W$15,$I10=$W$16),Z$4,IF(AND($H10=$W$15,$I10<>$W$16),Z$5,IF(AND($H10<>$W$15,$I10=$W$16),Z$6,IF(AND($H10<>$W$15,$I10<>$W$16),Z$7)))) - IF(combos!I8=$AC$15,1,0)) -> 0.5 | M10: =IF(combos!J8=$AC$15,-1,1) * (IF(AND($H10=$W$15,$I10=$W$16),AA$4,IF(AND($H10=$W$15,$I10<>$W$16),AA$5,IF(AND($H10<>$W$15,$I10=$W$16),AA$6,IF(AND($H10<>$W$15,$I10<>$W$16),AA$7)))) - IF(combos!J8=$AC$15,1,0)) -> 0.5 | N10: =IF(combos!K8=$AC$15,-1,1) * (IF(AND($H10=$W$15,$I10=$W$16),AB$4,IF(AND($H10=$W$15,$I10<>$W$16),AB$5,IF(AND($H10<>$W$15,$I10=$W$16),AB$6,IF(AND($H10<>$W$15,$I10<>$W$16),AB$7)))) - IF(combos!K8=$AC$15,1,0)) -> 0.5 | O10: =IF(combos!L8=$AC$15,-1,1) * (IF(AND($H10=$W$15,$I10=$W$16),AC$4,IF(AND($H10=$W$15,$I10<>$W$16),AC$5,IF(AND($H10<>$W$15,$I10=$W$16),AC$6,IF(AND($H10<>$W$15,$I10<>$W$16),AC$7)))) - IF(combos!L8=$AC$15,1,0)) -> 0.5 | P10: =IF(combos!B8=$AB$15,E10,1-E10) -> 0.5 | Q10: =IF(combos!C8=$AB$15,F10,1-F10) -> 0.5 | R10: =IF(combos!D8=$AB$15,G10,1-G10) -> 0.5 | S10: 0.00048828125 | U10: B | V10: ↓ | W10: ↑→ | X10: =0.01*'4.0.1 Ökol. Vorhersagen'!$Z18 -> 0.5 | Y10: =0.01*'4.0.2 Ökol. Vorhersagen'!$Z18 -> 0.5 | Z10: =0.01*'4.1.1 Ökon. Vorhersagen'!$Z18 -> 0.5 | AA10: =0.01*'4.1.2 Ökon. Vorhersagen'!$Z18 -> 0.5 | AB10: =0.01*'4.2.1 Soz.kul. Vorhersagen'!$Z18 -> 0.5 | AC10: =0.01*'4.2.2 Soz.kul. Vorhersagen'!$Z18 -> 0.5 | AE10: B | AF10: ↓ | AG10: ↑→ | AH10: 0.5 | AI10: 0.5 | AJ10: 0.5
A11: Entsch Option A | B11: Ecol_up | C11: Econ_up | D11: SozKul_up | E11: =IF(AND(combos!G9=$AB$15,combos!H9=$AB$15),AH$4, IF(AND(combos!G9=$AB$15,combos!H9<>$AB$15), AH$5, IF(AND(combos!G9<>$AB$15,combos!H9=$AB$15),AH$6, IF(AND(combos!G9<>$AB$15,combos!H9<>$AB$15),AH$7 )))) -> 0.5 | F11: =IF(AND(combos!I9=$AB$15,combos!J9=$AB$15),AI$4, IF(AND(combos!I9=$AB$15,combos!J9<>$AB$15), AI$5, IF(AND(combos!I9<>$AB$15,combos!J9=$AB$15),AI$6, IF(AND(combos!I9<>$AB$15,combos!J9<>$AB$15),AI$7 )))) -> 0.5 | G11: =IF(AND(combos!K9=$AB$15,combos!L9=$AB$15),AJ$4, IF(AND(combos!K9=$AB$15,combos!L9<>$AB$15), AJ$5, IF(AND(combos!K9<>$AB$15,combos!L9=$AB$15),AJ$6, IF(AND(combos!K9<>$AB$15,combos!L9<>$AB$15),AJ$7 )))) -> 0.5 | H11: =IF(combos!E9=$AB$14,W$15,X$15) -> 0.5 | I11: =IF(combos!F9=$AB$14,$W$16,X$16) -> 0.5 | J11: =IF(combos!G9=$AC$15,-1,1) * (IF(AND($H11=$W$15,$I11=$W$16),X$4,IF(AND($H11=$W$15,$I11<>$W$16),X$5,IF(AND($H11<>$W$15,$I11=$W$16),X$6,IF(AND($H11<>$W$15,$I11<>$W$16),X$7)))) - IF(combos!G9=$AC$15,1,0)) -> 0.5 | K11: =IF(combos!H9=$AC$15,-1,1) * (IF(AND($H11=$W$15,$I11=$W$16),Y$4,IF(AND($H11=$W$15,$I11<>$W$16),Y$5,IF(AND($H11<>$W$15,$I11=$W$16),Y$6,IF(AND($H11<>$W$15,$I11<>$W$16),Y$7)))) - IF(combos!H9=$AC$15,1,0)) -> 0.5 | L11: =IF(combos!I9=$AC$15,-1,1) * (IF(AND($H11=$W$15,$I11=$W$16),Z$4,IF(AND($H11=$W$15,$I11<>$W$16),Z$5,IF(AND($H11<>$W$15,$I11=$W$16),Z$6,IF(AND($H11<>$W$15,$I11<>$W$16),Z$7)))) - IF(combos!I9=$AC$15,1,0)) -> 0.5 | M11: =IF(combos!J9=$AC$15,-1,1) * (IF(AND($H11=$W$15,$I11=$W$16),AA$4,IF(AND($H11=$W$15,$I11<>$W$16),AA$5,IF(AND($H11<>$W$15,$I11=$W$16),AA$6,IF(AND($H11<>$W$15,$I11<>$W$16),AA$7)))) - IF(combos!J9=$AC$15,1,0)) -> 0.5 | N11: =IF(combos!K9=$AC$15,-1,1) * (IF(AND($H11=$W$15,$I11=$W$16),AB$4,IF(AND($H11=$W$15,$I11<>$W$16),AB$5,IF(AND($H11<>$W$15,$I11=$W$16),AB$6,IF(AND($H11<>$W$15,$I11<>$W$16),AB$7)))) - IF(combos!K9=$AC$15,1,0)) -> 0.5 | O11: =IF(combos!L9=$AC$15,-1,1) * (IF(AND($H11=$W$15,$I11=$W$16),AC$4,IF(AND($H11=$W$15,$I11<>$W$16),AC$5,IF(AND($H11<>$W$15,$I11=$W$16),AC$6,IF(AND($H11<>$W$15,$I11<>$W$16),AC$7)))) - IF(combos!L9=$AC$15,1,0)) -> 0.5 | P11: =IF(combos!B9=$AB$15,E11,1-E11) -> 0.5 | Q11: =IF(combos!C9=$AB$15,F11,1-F11) -> 0.5 | R11: =IF(combos!D9=$AB$15,G11,1-G11) -> 0.5 | S11: 0.00048828125 | U11: B | V11: ↓ | W11: ↓ | X11: =0.01*'4.0.1 Ökol. Vorhersagen'!$Z20 -> 0.5 | Y11: =0.01*'4.0.2 Ökol. Vorhersagen'!$Z20 -> 0.5 | Z11: =0.01*'4.1.1 Ökon. Vorhersagen'!$Z20 -> 0.5 | AA11: =0.01*'4.1.2 Ökon. Vorhersagen'!$Z20 -> 0.5 | AB11: =0.01*'4.2.1 Soz.kul. Vorhersagen'!$Z20 -> 0.5 | AC11: =0.01*'4.2.2 Soz.kul. Vorhersagen'!$Z20 -> 0.5 | AE11: B | AF11: ↓ | AG11: ↓ | AH11: 0.5 | AI11: 0.5 | AJ11: 0.5
A12: Entsch Option A | B12: Ecol_up | C12: Econ_up | D12: SozKul_up | E12: =IF(AND(combos!G10=$AB$15,combos!H10=$AB$15),AH$4, IF(AND(combos!G10=$AB$15,combos!H10<>$AB$15), AH$5, IF(AND(combos!G10<>$AB$15,combos!H10=$AB$15),AH$6, IF(AND(combos!G10<>$AB$15,combos!H10<>$AB$15),AH$7 )))) -> 0.5 | F12: =IF(AND(combos!I10=$AB$15,combos!J10=$AB$15),AI$4, IF(AND(combos!I10=$AB$15,combos!J10<>$AB$15), AI$5, IF(AND(combos!I10<>$AB$15,combos!J10=$AB$15),AI$6, IF(AND(combos!I10<>$AB$15,combos!J10<>$AB$15),AI$7 )))) -> 0.5 | G12: =IF(AND(combos!K10=$AB$15,combos!L10=$AB$15),AJ$4, IF(AND(combos!K10=$AB$15,combos!L10<>$AB$15), AJ$5, IF(AND(combos!K10<>$AB$15,combos!L10=$AB$15),AJ$6, IF(AND(combos!K10<>$AB$15,combos!L10<>$AB$15),AJ$7 )))) -> 0.5 | H12: =IF(combos!E10=$AB$14,W$15,X$15) -> 0.5 | I12: =IF(combos!F10=$AB$14,$W$16,X$16) -> 0.5 | J12: =IF(combos!G10=$AC$15,-1,1) * (IF(AND($H12=$W$15,$I12=$W$16),X$4,IF(AND($H12=$W$15,$I12<>$W$16),X$5,IF(AND($H12<>$W$15,$I12=$W$16),X$6,IF(AND($H12<>$W$15,$I12<>$W$16),X$7)))) - IF(combos!G10=$AC$15,1,0)) -> 0.5 | K12: =IF(combos!H10=$AC$15,-1,1) * (IF(AND($H12=$W$15,$I12=$W$16),Y$4,IF(AND($H12=$W$15,$I12<>$W$16),Y$5,IF(AND($H12<>$W$15,$I12=$W$16),Y$6,IF(AND($H12<>$W$15,$I12<>$W$16),Y$7)))) - IF(combos!H10=$AC$15,1,0)) -> 0.5 | L12: =IF(combos!I10=$AC$15,-1,1) * (IF(AND($H12=$W$15,$I12=$W$16),Z$4,IF(AND($H12=$W$15,$I12<>$W$16),Z$5,IF(AND($H12<>$W$15,$I12=$W$16),Z$6,IF(AND($H12<>$W$15,$I12<>$W$16),Z$7)))) - IF(combos!I10=$AC$15,1,0)) -> 0.5 | M12: =IF(combos!J10=$AC$15,-1,1) * (IF(AND($H12=$W$15,$I12=$W$16),AA$4,IF(AND($H12=$W$15,$I12<>$W$16),AA$5,IF(AND($H12<>$W$15,$I12=$W$16),AA$6,IF(AND($H12<>$W$15,$I12<>$W$16),AA$7)))) - IF(combos!J10=$AC$15,1,0)) -> 0.5 | N12: =IF(combos!K10=$AC$15,-1,1) * (IF(AND($H12=$W$15,$I12=$W$16),AB$4,IF(AND($H12=$W$15,$I12<>$W$16),AB$5,IF(AND($H12<>$W$15,$I12=$W$16),AB$6,IF(AND($H12<>$W$15,$I12<>$W$16),AB$7)))) - IF(combos!K10=$AC$15,1,0)) -> 0.5 | O12: =IF(combos!L10=$AC$15,-1,1) * (IF(AND($H12=$W$15,$I12=$W$16),AC$4,IF(AND($H12=$W$15,$I12<>$W$16),AC$5,IF(AND($H12<>$W$15,$I12=$W$16),AC$6,IF(AND($H12<>$W$15,$I12<>$W$16),AC$7)))) - IF(combos!L10=$AC$15,1,0)) -> 0.5 | P12: =IF(combos!B10=$AB$15,E12,1-E12) -> 0.5 | Q12: =IF(combos!C10=$AB$15,F12,1-F12) -> 0.5 | R12: =IF(combos!D10=$AB$15,G12,1-G12) -> 0.5 | S12: 0.00048828125
A13: Entsch Option A | B13: Ecol_up | C13: Econ_up | D13: SozKul_up | E13: =IF(AND(combos!G11=$AB$15,combos!H11=$AB$15),AH$4, IF(AND(combos!G11=$AB$15,combos!H11<>$AB$15), AH$5, IF(AND(combos!G11<>$AB$15,combos!H11=$AB$15),AH$6, IF(AND(combos!G11<>$AB$15,combos!H11<>$AB$15),AH$7 )))) -> 0.5 | F13: =IF(AND(combos!I11=$AB$15,combos!J11=$AB$15),AI$4, IF(AND(combos!I11=$AB$15,combos!J11<>$AB$15), AI$5, IF(AND(combos!I11<>$AB$15,combos!J11=$AB$15),AI$6, IF(AND(combos!I11<>$AB$15,combos!J11<>$AB$15),AI$7 )))) -> 0.5 | G13: =IF(AND(combos!K11=$AB$15,combos!L11=$AB$15),AJ$4, IF(AND(combos!K11=$AB$15,combos!L11<>$AB$15), AJ$5, IF(AND(combos!K11<>$AB$15,combos!L11=$AB$15),AJ$6, IF(AND(combos!K11<>$AB$15,combos!L11<>$AB$15),AJ$7 )))) -> 0.5 | H13: =IF(combos!E11=$AB$14,W$15,X$15) -> 0.5 | I13: =IF(combos!F11=$AB$14,$W$16,X$16) -> 0.5 | J13: =IF(combos!G11=$AC$15,-1,1) * (IF(AND($H13=$W$15,$I13=$W$16),X$4,IF(AND($H13=$W$15,$I13<>$W$16),X$5,IF(AND($H13<>$W$15,$I13=$W$16),X$6,IF(AND($H13<>$W$15,$I13<>$W$16),X$7)))) - IF(combos!G11=$AC$15,1,0)) -> 0.5 | K13: =IF(combos!H11=$AC$15,-1,1) * (IF(AND($H13=$W$15,$I13=$W$16),Y$4,IF(AND($H13=$W$15,$I13<>$W$16),Y$5,IF(AND($H13<>$W$15,$I13=$W$16),Y$6,IF(AND($H13<>$W$15,$I13<>$W$16),Y$7)))) - IF(combos!H11=$AC$15,1,0)) -> 0.5 | L13: =IF(combos!I11=$AC$15,-1,1) * (IF(AND($H13=$W$15,$I13=$W$16),Z$4,IF(AND($H13=$W$15,$I13<>$W$16),Z$5,IF(AND($H13<>$W$15,$I13=$W$16),Z$6,IF(AND($H13<>$W$15,$I13<>$W$16),Z$7)))) - IF(combos!I11=$AC$15,1,0)) -> 0.5 | M13: =IF(combos!J11=$AC$15,-1,1) * (IF(AND($H13=$W$15,$I13=$W$16),AA$4,IF(AND($H13=$W$15,$I13<>$W$16),AA$5,IF(AND($H13<>$W$15,$I13=$W$16),AA$6,IF(AND($H13<>$W$15,$I13<>$W$16),AA$7)))) - IF(combos!J11=$AC$15,1,0)) -> 0.5 | N13: =IF(combos!K11=$AC$15,-1,1) * (IF(AND($H13=$W$15,$I13=$W$16),AB$4,IF(AND($H13=$W$15,$I13<>$W$16),AB$5,IF(AND($H13<>$W$15,$I13=$W$16),AB$6,IF(AND($H13<>$W$15,$I13<>$W$16),AB$7)))) - IF(combos!K11=$AC$15,1,0)) -> 0.5 | O13: =IF(combos!L11=$AC$15,-1,1) * (IF(AND($H13=$W$15,$I13=$W$16),AC$4,IF(AND($H13=$W$15,$I13<>$W$16),AC$5,IF(AND($H13<>$W$15,$I13=$W$16),AC$6,IF(AND($H13<>$W$15,$I13<>$W$16),AC$7)))) - IF(combos!L11=$AC$15,1,0)) -> 0.5 | P13: =IF(combos!B11=$AB$15,E13,1-E13) -> 0.5 | Q13: =IF(combos!C11=$AB$15,F13,1-F13) -> 0.5 | R13: =IF(combos!D11=$AB$15,G13,1-G13) -> 0.5 | S13: 0.00048828125
A14: Entsch Option A | B14: Ecol_up | C14: Econ_up | D14: SozKul_up | E14: =IF(AND(combos!G12=$AB$15,combos!H12=$AB$15),AH$4, IF(AND(combos!G12=$AB$15,combos!H12<>$AB$15), AH$5, IF(AND(combos!G12<>$AB$15,combos!H12=$AB$15),AH$6, IF(AND(combos!G12<>$AB$15,combos!H12<>$AB$15),AH$7 )))) -> 0.5 | F14: =IF(AND(combos!I12=$AB$15,combos!J12=$AB$15),AI$4, IF(AND(combos!I12=$AB$15,combos!J12<>$AB$15), AI$5, IF(AND(combos!I12<>$AB$15,combos!J12=$AB$15),AI$6, IF(AND(combos!I12<>$AB$15,combos!J12<>$AB$15),AI$7 )))) -> 0.5 | G14: =IF(AND(combos!K12=$AB$15,combos!L12=$AB$15),AJ$4, IF(AND(combos!K12=$AB$15,combos!L12<>$AB$15), AJ$5, IF(AND(combos!K12<>$AB$15,combos!L12=$AB$15),AJ$6, IF(AND(combos!K12<>$AB$15,combos!L12<>$AB$15),AJ$7 )))) -> 0.5 | H14: =IF(combos!E12=$AB$14,W$15,X$15) -> 0.5 | I14: =IF(combos!F12=$AB$14,$W$16,X$16) -> 0.5 | J14: =IF(combos!G12=$AC$15,-1,1) * (IF(AND($H14=$W$15,$I14=$W$16),X$4,IF(AND($H14=$W$15,$I14<>$W$16),X$5,IF(AND($H14<>$W$15,$I14=$W$16),X$6,IF(AND($H14<>$W$15,$I14<>$W$16),X$7)))) - IF(combos!G12=$AC$15,1,0)) -> 0.5 | K14: =IF(combos!H12=$AC$15,-1,1) * (IF(AND($H14=$W$15,$I14=$W$16),Y$4,IF(AND($H14=$W$15,$I14<>$W$16),Y$5,IF(AND($H14<>$W$15,$I14=$W$16),Y$6,IF(AND($H14<>$W$15,$I14<>$W$16),Y$7)))) - IF(combos!H12=$AC$15,1,0)) -> 0.5 | L14: =IF(combos!I12=$AC$15,-1,1) * (IF(AND($H14=$W$15,$I14=$W$16),Z$4,IF(AND($H14=$W$15,$I14<>$W$16),Z$5,IF(AND($H14<>$W$15,$I14=$W$16),Z$6,IF(AND($H14<>$W$15,$I14<>$W$16),Z$7)))) - IF(combos!I12=$AC$15,1,0)) -> 0.5 | M14: =IF(combos!J12=$AC$15,-1,1) * (IF(AND($H14=$W$15,$I14=$W$16),AA$4,IF(AND($H14=$W$15,$I14<>$W$16),AA$5,IF(AND($H14<>$W$15,$I14=$W$16),AA$6,IF(AND($H14<>$W$15,$I14<>$W$16),AA$7)))) - IF(combos!J12=$AC$15,1,0)) -> 0.5 | N14: =IF(combos!K12=$AC$15,-1,1) * (IF(AND($H14=$W$15,$I14=$W$16),AB$4,IF(AND($H14=$W$15,$I14<>$W$16),AB$5,IF(AND($H14<>$W$15,$I14=$W$16),AB$6,IF(AND($H14<>$W$15,$I14<>$W$16),AB$7)))) - IF(combos!K12=$AC$15,1,0)) -> 0.5 | O14: =IF(combos!L12=$AC$15,-1,1) * (IF(AND($H14=$W$15,$I14=$W$16),AC$4,IF(AND($H14=$W$15,$I14<>$W$16),AC$5,IF(AND($H14<>$W$15,$I14=$W$16),AC$6,IF(AND($H14<>$W$15,$I14<>$W$16),AC$7)))) - IF(combos!L12=$AC$15,1,0)) -> 0.5 | P14: =IF(combos!B12=$AB$15,E14,1-E14) -> 0.5 | Q14: =IF(combos!C12=$AB$15,F14,1-F14) -> 0.5 | R14: =IF(combos!D12=$AB$15,G14,1-G14) -> 0.5 | S14: 0.00048828125 | V14: 2) Ext.faktoren Vorhersag. | W14: ↑↑ | X14: ↔↓ | AA14: Ext.faktor | AB14: Ja | AC14: Nein
A15: Entsch Option A | B15: Ecol_up | C15: Econ_up | D15: SozKul_up | E15: =IF(AND(combos!G13=$AB$15,combos!H13=$AB$15),AH$4, IF(AND(combos!G13=$AB$15,combos!H13<>$AB$15), AH$5, IF(AND(combos!G13<>$AB$15,combos!H13=$AB$15),AH$6, IF(AND(combos!G13<>$AB$15,combos!H13<>$AB$15),AH$7 )))) -> 0.5 | F15: =IF(AND(combos!I13=$AB$15,combos!J13=$AB$15),AI$4, IF(AND(combos!I13=$AB$15,combos!J13<>$AB$15), AI$5, IF(AND(combos!I13<>$AB$15,combos!J13=$AB$15),AI$6, IF(AND(combos!I13<>$AB$15,combos!J13<>$AB$15),AI$7 )))) -> 0.5 | G15: =IF(AND(combos!K13=$AB$15,combos!L13=$AB$15),AJ$4, IF(AND(combos!K13=$AB$15,combos!L13<>$AB$15), AJ$5, IF(AND(combos!K13<>$AB$15,combos!L13=$AB$15),AJ$6, IF(AND(combos!K13<>$AB$15,combos!L13<>$AB$15),AJ$7 )))) -> 0.5 | H15: =IF(combos!E13=$AB$14,W$15,X$15) -> 0.5 | I15: =IF(combos!F13=$AB$14,$W$16,X$16) -> 0.5 | J15: =IF(combos!G13=$AC$15,-1,1) * (IF(AND($H15=$W$15,$I15=$W$16),X$4,IF(AND($H15=$W$15,$I15<>$W$16),X$5,IF(AND($H15<>$W$15,$I15=$W$16),X$6,IF(AND($H15<>$W$15,$I15<>$W$16),X$7)))) - IF(combos!G13=$AC$15,1,0)) -> 0.5 | K15: =IF(combos!H13=$AC$15,-1,1) * (IF(AND($H15=$W$15,$I15=$W$16),Y$4,IF(AND($H15=$W$15,$I15<>$W$16),Y$5,IF(AND($H15<>$W$15,$I15=$W$16),Y$6,IF(AND($H15<>$W$15,$I15<>$W$16),Y$7)))) - IF(combos!H13=$AC$15,1,0)) -> 0.5 | L15: =IF(combos!I13=$AC$15,-1,1) * (IF(AND($H15=$W$15,$I15=$W$16),Z$4,IF(AND($H15=$W$15,$I15<>$W$16),Z$5,IF(AND($H15<>$W$15,$I15=$W$16),Z$6,IF(AND($H15<>$W$15,$I15<>$W$16),Z$7)))) - IF(combos!I13=$AC$15,1,0)) -> 0.5 | M15: =IF(combos!J13=$AC$15,-1,1) * (IF(AND($H15=$W$15,$I15=$W$16),AA$4,IF(AND($H15=$W$15,$I15<>$W$16),AA$5,IF(AND($H15<>$W$15,$I15=$W$16),AA$6,IF(AND($H15<>$W$15,$I15<>$W$16),AA$7)))) - IF(combos!J13=$AC$15,1,0)) -> 0.5 | N15: =IF(combos!K13=$AC$15,-1,1) * (IF(AND($H15=$W$15,$I15=$W$16),AB$4,IF(AND($H15=$W$15,$I15<>$W$16),AB$5,IF(AND($H15<>$W$15,$I15=$W$16),AB$6,IF(AND($H15<>$W$15,$I15<>$W$16),AB$7)))) - IF(combos!K13=$AC$15,1,0)) -> 0.5 | O15: =IF(combos!L13=$AC$15,-1,1) * (IF(AND($H15=$W$15,$I15=$W$16),AC$4,IF(AND($H15=$W$15,$I15<>$W$16),AC$5,IF(AND($H15<>$W$15,$I15=$W$16),AC$6,IF(AND($H15<>$W$15,$I15<>$W$16),AC$7)))) - IF(combos!L13=$AC$15,1,0)) -> 0.5 | P15: =IF(combos!B13=$AB$15,E15,1-E15) -> 0.5 | Q15: =IF(combos!C13=$AB$15,F15,1-F15) -> 0.5 | R15: =IF(combos!D13=$AB$15,G15,1-G15) -> 0.5 | S15: 0.00048828125 | V15: ='4.0.1 Ökol. Vorhersagen'!C13 -> [_keinen_weiteren_externen_Faktor_] | W15: =0.01*'2.1 Ext.Faktor Vorhersag.'!J14 -> 0.5 | X15: =1-W15 -> 0.5 | AA15: Andere | AB15: Erhalt Zugenom | AC15: Abgenom
A16: Entsch Option A | B16: Ecol_up | C16: Econ_up | D16: SozKul_up | E16: =IF(AND(combos!G14=$AB$15,combos!H14=$AB$15),AH$4, IF(AND(combos!G14=$AB$15,combos!H14<>$AB$15), AH$5, IF(AND(combos!G14<>$AB$15,combos!H14=$AB$15),AH$6, IF(AND(combos!G14<>$AB$15,combos!H14<>$AB$15),AH$7 )))) -> 0.5 | F16: =IF(AND(combos!I14=$AB$15,combos!J14=$AB$15),AI$4, IF(AND(combos!I14=$AB$15,combos!J14<>$AB$15), AI$5, IF(AND(combos!I14<>$AB$15,combos!J14=$AB$15),AI$6, IF(AND(combos!I14<>$AB$15,combos!J14<>$AB$15),AI$7 )))) -> 0.5 | G16: =IF(AND(combos!K14=$AB$15,combos!L14=$AB$15),AJ$4, IF(AND(combos!K14=$AB$15,combos!L14<>$AB$15), AJ$5, IF(AND(combos!K14<>$AB$15,combos!L14=$AB$15),AJ$6, IF(AND(combos!K14<>$AB$15,combos!L14<>$AB$15),AJ$7 )))) -> 0.5 | H16: =IF(combos!E14=$AB$14,W$15,X$15) -> 0.5 | I16: =IF(combos!F14=$AB$14,$W$16,X$16) -> 0.5 | J16: =IF(combos!G14=$AC$15,-1,1) * (IF(AND($H16=$W$15,$I16=$W$16),X$4,IF(AND($H16=$W$15,$I16<>$W$16),X$5,IF(AND($H16<>$W$15,$I16=$W$16),X$6,IF(AND($H16<>$W$15,$I16<>$W$16),X$7)))) - IF(combos!G14=$AC$15,1,0)) -> 0.5 | K16: =IF(combos!H14=$AC$15,-1,1) * (IF(AND($H16=$W$15,$I16=$W$16),Y$4,IF(AND($H16=$W$15,$I16<>$W$16),Y$5,IF(AND($H16<>$W$15,$I16=$W$16),Y$6,IF(AND($H16<>$W$15,$I16<>$W$16),Y$7)))) - IF(combos!H14=$AC$15,1,0)) -> 0.5 | L16: =IF(combos!I14=$AC$15,-1,1) * (IF(AND($H16=$W$15,$I16=$W$16),Z$4,IF(AND($H16=$W$15,$I16<>$W$16),Z$5,IF(AND($H16<>$W$15,$I16=$W$16),Z$6,IF(AND($H16<>$W$15,$I16<>$W$16),Z$7)))) - IF(combos!I14=$AC$15,1,0)) -> 0.5 | M16: =IF(combos!J14=$AC$15,-1,1) * (IF(AND($H16=$W$15,$I16=$W$16),AA$4,IF(AND($H16=$W$15,$I16<>$W$16),AA$5,IF(AND($H16<>$W$15,$I16=$W$16),AA$6,IF(AND($H16<>$W$15,$I16<>$W$16),AA$7)))) - IF(combos!J14=$AC$15,1,0)) -> 0.5 | N16: =IF(combos!K14=$AC$15,-1,1) * (IF(AND($H16=$W$15,$I16=$W$16),AB$4,IF(AND($H16=$W$15,$I16<>$W$16),AB$5,IF(AND($H16<>$W$15,$I16=$W$16),AB$6,IF(AND($H16<>$W$15,$I16<>$W$16),AB$7)))) - IF(combos!K14=$AC$15,1,0)) -> 0.5 | O16: =IF(combos!L14=$AC$15,-1,1) * (IF(AND($H16=$W$15,$I16=$W$16),AC$4,IF(AND($H16=$W$15,$I16<>$W$16),AC$5,IF(AND($H16<>$W$15,$I16=$W$16),AC$6,IF(AND($H16<>$W$15,$I16<>$W$16),AC$7)))) - IF(combos!L14=$AC$15,1,0)) -> 0.5 | P16: =IF(combos!B14=$AB$15,E16,1-E16) -> 0.5 | Q16: =IF(combos!C14=$AB$15,F16,1-F16) -> 0.5 | R16: =IF(combos!D14=$AB$15,G16,1-G16) -> 0.5 | S16: 0.00048828125 | V16: ='4.0.1 Ökol. Vorhersagen'!D13 -> [_keinen_weiteren_externen_Faktor_] | W16: =0.01*'2.1 Ext.Faktor Vorhersag.'!J21 -> 0.5 | X16: =1-W16 -> 0.5 | AA16: Entsch Option | AB16: Entsch Option A | AC16: Entsch Option B
A17: Entsch Option A | B17: Ecol_up | C17: Econ_up | D17: SozKul_up | E17: =IF(AND(combos!G15=$AB$15,combos!H15=$AB$15),AH$4, IF(AND(combos!G15=$AB$15,combos!H15<>$AB$15), AH$5, IF(AND(combos!G15<>$AB$15,combos!H15=$AB$15),AH$6, IF(AND(combos!G15<>$AB$15,combos!H15<>$AB$15),AH$7 )))) -> 0.5 | F17: =IF(AND(combos!I15=$AB$15,combos!J15=$AB$15),AI$4, IF(AND(combos!I15=$AB$15,combos!J15<>$AB$15), AI$5, IF(AND(combos!I15<>$AB$15,combos!J15=$AB$15),AI$6, IF(AND(combos!I15<>$AB$15,combos!J15<>$AB$15),AI$7 )))) -> 0.5 | G17: =IF(AND(combos!K15=$AB$15,combos!L15=$AB$15),AJ$4, IF(AND(combos!K15=$AB$15,combos!L15<>$AB$15), AJ$5, IF(AND(combos!K15<>$AB$15,combos!L15=$AB$15),AJ$6, IF(AND(combos!K15<>$AB$15,combos!L15<>$AB$15),AJ$7 )))) -> 0.5 | H17: =IF(combos!E15=$AB$14,W$15,X$15) -> 0.5 | I17: =IF(combos!F15=$AB$14,$W$16,X$16) -> 0.5 | J17: =IF(combos!G15=$AC$15,-1,1) * (IF(AND($H17=$W$15,$I17=$W$16),X$4,IF(AND($H17=$W$15,$I17<>$W$16),X$5,IF(AND($H17<>$W$15,$I17=$W$16),X$6,IF(AND($H17<>$W$15,$I17<>$W$16),X$7)))) - IF(combos!G15=$AC$15,1,0)) -> 0.5 | K17: =IF(combos!H15=$AC$15,-1,1) * (IF(AND($H17=$W$15,$I17=$W$16),Y$4,IF(AND($H17=$W$15,$I17<>$W$16),Y$5,IF(AND($H17<>$W$15,$I17=$W$16),Y$6,IF(AND($H17<>$W$15,$I17<>$W$16),Y$7)))) - IF(combos!H15=$AC$15,1,0)) -> 0.5 | L17: =IF(combos!I15=$AC$15,-1,1) * (IF(AND($H17=$W$15,$I17=$W$16),Z$4,IF(AND($H17=$W$15,$I17<>$W$16),Z$5,IF(AND($H17<>$W$15,$I17=$W$16),Z$6,IF(AND($H17<>$W$15,$I17<>$W$16),Z$7)))) - IF(combos!I15=$AC$15,1,0)) -> 0.5 | M17: =IF(combos!J15=$AC$15,-1,1) * (IF(AND($H17=$W$15,$I17=$W$16),AA$4,IF(AND($H17=$W$15,$I17<>$W$16),AA$5,IF(AND($H17<>$W$15,$I17=$W$16),AA$6,IF(AND($H17<>$W$15,$I17<>$W$16),AA$7)))) - IF(combos!J15=$AC$15,1,0)) -> 0.5 | N17: =IF(combos!K15=$AC$15,-1,1) * (IF(AND($H17=$W$15,$I17=$W$16),AB$4,IF(AND($H17=$W$15,$I17<>$W$16),AB$5,IF(AND($H17<>$W$15,$I17=$W$16),AB$6,IF(AND($H17<>$W$15,$I17<>$W$16),AB$7)))) - IF(combos!K15=$AC$15,1,0)) -> 0.5 | O17: =IF(combos!L15=$AC$15,-1,1) * (IF(AND($H17=$W$15,$I17=$W$16),AC$4,IF(AND($H17=$W$15,$I17<>$W$16),AC$5,IF(AND($H17<>$W$15,$I17=$W$16),AC$6,IF(AND($H17<>$W$15,$I17<>$W$16),AC$7)))) - IF(combos!L15=$AC$15,1,0)) -> 0.5 | P17: =IF(combos!B15=$AB$15,E17,1-E17) -> 0.5 | Q17: =IF(combos!C15=$AB$15,F17,1-F17) -> 0.5 | R17: =IF(combos!D15=$AB$15,G17,1-G17) -> 0.5 | S17: 0.00048828125
A18: Entsch Option A | B18: Ecol_up | C18: Econ_up | D18: SozKul_up | E18: =IF(AND(combos!G16=$AB$15,combos!H16=$AB$15),AH$4, IF(AND(combos!G16=$AB$15,combos!H16<>$AB$15), AH$5, IF(AND(combos!G16<>$AB$15,combos!H16=$AB$15),AH$6, IF(AND(combos!G16<>$AB$15,combos!H16<>$AB$15),AH$7 )))) -> 0.5 | F18: =IF(AND(combos!I16=$AB$15,combos!J16=$AB$15),AI$4, IF(AND(combos!I16=$AB$15,combos!J16<>$AB$15), AI$5, IF(AND(combos!I16<>$AB$15,combos!J16=$AB$15),AI$6, IF(AND(combos!I16<>$AB$15,combos!J16<>$AB$15),AI$7 )))) -> 0.5 | G18: =IF(AND(combos!K16=$AB$15,combos!L16=$AB$15),AJ$4, IF(AND(combos!K16=$AB$15,combos!L16<>$AB$15), AJ$5, IF(AND(combos!K16<>$AB$15,combos!L16=$AB$15),AJ$6, IF(AND(combos!K16<>$AB$15,combos!L16<>$AB$15),AJ$7 )))) -> 0.5 | H18: =IF(combos!E16=$AB$14,W$15,X$15) -> 0.5 | I18: =IF(combos!F16=$AB$14,$W$16,X$16) -> 0.5 | J18: =IF(combos!G16=$AC$15,-1,1) * (IF(AND($H18=$W$15,$I18=$W$16),X$4,IF(AND($H18=$W$15,$I18<>$W$16),X$5,IF(AND($H18<>$W$15,$I18=$W$16),X$6,IF(AND($H18<>$W$15,$I18<>$W$16),X$7)))) - IF(combos!G16=$AC$15,1,0)) -> 0.5 | K18: =IF(combos!H16=$AC$15,-1,1) * (IF(AND($H18=$W$15,$I18=$W$16),Y$4,IF(AND($H18=$W$15,$I18<>$W$16),Y$5,IF(AND($H18<>$W$15,$I18=$W$16),Y$6,IF(AND($H18<>$W$15,$I18<>$W$16),Y$7)))) - IF(combos!H16=$AC$15,1,0)) -> 0.5 | L18: =IF(combos!I16=$AC$15,-1,1) * (IF(AND($H18=$W$15,$I18=$W$16),Z$4,IF(AND($H18=$W$15,$I18<>$W$16),Z$5,IF(AND($H18<>$W$15,$I18=$W$16),Z$6,IF(AND($H18<>$W$15,$I18<>$W$16),Z$7)))) - IF(combos!I16=$AC$15,1,0)) -> 0.5 | M18: =IF(combos!J16=$AC$15,-1,1) * (IF(AND($H18=$W$15,$I18=$W$16),AA$4,IF(AND($H18=$W$15,$I18<>$W$16),AA$5,IF(AND($H18<>$W$15,$I18=$W$16),AA$6,IF(AND($H18<>$W$15,$I18<>$W$16),AA$7)))) - IF(combos!J16=$AC$15,1,0)) -> 0.5 | N18: =IF(combos!K16=$AC$15,-1,1) * (IF(AND($H18=$W$15,$I18=$W$16),AB$4,IF(AND($H18=$W$15,$I18<>$W$16),AB$5,IF(AND($H18<>$W$15,$I18=$W$16),AB$6,IF(AND($H18<>$W$15,$I18<>$W$16),AB$7)))) - IF(combos!K16=$AC$15,1,0)) -> 0.5 | O18: =IF(combos!L16=$AC$15,-1,1) * (IF(AND($H18=$W$15,$I18=$W$16),AC$4,IF(AND($H18=$W$15,$I18<>$W$16),AC$5,IF(AND($H18<>$W$15,$I18=$W$16),AC$6,IF(AND($H18<>$W$15,$I18<>$W$16),AC$7)))) - IF(combos!L16=$AC$15,1,0)) -> 0.5 | P18: =IF(combos!B16=$AB$15,E18,1-E18) -> 0.5 | Q18: =IF(combos!C16=$AB$15,F18,1-F18) -> 0.5 | R18: =IF(combos!D16=$AB$15,G18,1-G18) -> 0.5 | S18: 0.00048828125 | X18: Entsch Option A | Y18: Entsch Option B | AB18: Entsch Option A | AC18: Entsch Option B
A19: Entsch Option A | B19: Ecol_up | C19: Econ_up | D19: SozKul_up | E19: =IF(AND(combos!G17=$AB$15,combos!H17=$AB$15),AH$4, IF(AND(combos!G17=$AB$15,combos!H17<>$AB$15), AH$5, IF(AND(combos!G17<>$AB$15,combos!H17=$AB$15),AH$6, IF(AND(combos!G17<>$AB$15,combos!H17<>$AB$15),AH$7 )))) -> 0.5 | F19: =IF(AND(combos!I17=$AB$15,combos!J17=$AB$15),AI$4, IF(AND(combos!I17=$AB$15,combos!J17<>$AB$15), AI$5, IF(AND(combos!I17<>$AB$15,combos!J17=$AB$15),AI$6, IF(AND(combos!I17<>$AB$15,combos!J17<>$AB$15),AI$7 )))) -> 0.5 | G19: =IF(AND(combos!K17=$AB$15,combos!L17=$AB$15),AJ$4, IF(AND(combos!K17=$AB$15,combos!L17<>$AB$15), AJ$5, IF(AND(combos!K17<>$AB$15,combos!L17=$AB$15),AJ$6, IF(AND(combos!K17<>$AB$15,combos!L17<>$AB$15),AJ$7 )))) -> 0.5 | H19: =IF(combos!E17=$AB$14,W$15,X$15) -> 0.5 | I19: =IF(combos!F17=$AB$14,$W$16,X$16) -> 0.5 | J19: =IF(combos!G17=$AC$15,-1,1) * (IF(AND($H19=$W$15,$I19=$W$16),X$4,IF(AND($H19=$W$15,$I19<>$W$16),X$5,IF(AND($H19<>$W$15,$I19=$W$16),X$6,IF(AND($H19<>$W$15,$I19<>$W$16),X$7)))) - IF(combos!G17=$AC$15,1,0)) -> 0.5 | K19: =IF(combos!H17=$AC$15,-1,1) * (IF(AND($H19=$W$15,$I19=$W$16),Y$4,IF(AND($H19=$W$15,$I19<>$W$16),Y$5,IF(AND($H19<>$W$15,$I19=$W$16),Y$6,IF(AND($H19<>$W$15,$I19<>$W$16),Y$7)))) - IF(combos!H17=$AC$15,1,0)) -> 0.5 | L19: =IF(combos!I17=$AC$15,-1,1) * (IF(AND($H19=$W$15,$I19=$W$16),Z$4,IF(AND($H19=$W$15,$I19<>$W$16),Z$5,IF(AND($H19<>$W$15,$I19=$W$16),Z$6,IF(AND($H19<>$W$15,$I19<>$W$16),Z$7)))) - IF(combos!I17=$AC$15,1,0)) -> 0.5 | M19: =IF(combos!J17=$AC$15,-1,1) * (IF(AND($H19=$W$15,$I19=$W$16),AA$4,IF(AND($H19=$W$15,$I19<>$W$16),AA$5,IF(AND($H19<>$W$15,$I19=$W$16),AA$6,IF(AND($H19<>$W$15,$I19<>$W$16),AA$7)))) - IF(combos!J17=$AC$15,1,0)) -> 0.5 | N19: =IF(combos!K17=$AC$15,-1,1) * (IF(AND($H19=$W$15,$I19=$W$16),AB$4,IF(AND($H19=$W$15,$I19<>$W$16),AB$5,IF(AND($H19<>$W$15,$I19=$W$16),AB$6,IF(AND($H19<>$W$15,$I19<>$W$16),AB$7)))) - IF(combos!K17=$AC$15,1,0)) -> 0.5 | O19: =IF(combos!L17=$AC$15,-1,1) * (IF(AND($H19=$W$15,$I19=$W$16),AC$4,IF(AND($H19=$W$15,$I19<>$W$16),AC$5,IF(AND($H19<>$W$15,$I19=$W$16),AC$6,IF(AND($H19<>$W$15,$I19<>$W$16),AC$7)))) - IF(combos!L17=$AC$15,1,0)) -> 0.5 | P19: =IF(combos!B17=$AB$15,E19,1-E19) -> 0.5 | Q19: =IF(combos!C17=$AB$15,F19,1-F19) -> 0.5 | R19: =IF(combos!D17=$AB$15,G19,1-G19) -> 0.5 | S19: 0.00048828125 | V19: Zeilenbeschriftungen | W19: Sum of Product | AJ19: =V37 -> Zeilenbeschriftungen
A20: Entsch Option A | B20: Ecol_up | C20: Econ_up | D20: SozKul_up | E20: =IF(AND(combos!G18=$AB$15,combos!H18=$AB$15),AH$4, IF(AND(combos!G18=$AB$15,combos!H18<>$AB$15), AH$5, IF(AND(combos!G18<>$AB$15,combos!H18=$AB$15),AH$6, IF(AND(combos!G18<>$AB$15,combos!H18<>$AB$15),AH$7 )))) -> 0.5 | F20: =IF(AND(combos!I18=$AB$15,combos!J18=$AB$15),AI$4, IF(AND(combos!I18=$AB$15,combos!J18<>$AB$15), AI$5, IF(AND(combos!I18<>$AB$15,combos!J18=$AB$15),AI$6, IF(AND(combos!I18<>$AB$15,combos!J18<>$AB$15),AI$7 )))) -> 0.5 | G20: =IF(AND(combos!K18=$AB$15,combos!L18=$AB$15),AJ$4, IF(AND(combos!K18=$AB$15,combos!L18<>$AB$15), AJ$5, IF(AND(combos!K18<>$AB$15,combos!L18=$AB$15),AJ$6, IF(AND(combos!K18<>$AB$15,combos!L18<>$AB$15),AJ$7 )))) -> 0.5 | H20: =IF(combos!E18=$AB$14,W$15,X$15) -> 0.5 | I20: =IF(combos!F18=$AB$14,$W$16,X$16) -> 0.5 | J20: =IF(combos!G18=$AC$15,-1,1) * (IF(AND($H20=$W$15,$I20=$W$16),X$4,IF(AND($H20=$W$15,$I20<>$W$16),X$5,IF(AND($H20<>$W$15,$I20=$W$16),X$6,IF(AND($H20<>$W$15,$I20<>$W$16),X$7)))) - IF(combos!G18=$AC$15,1,0)) -> 0.5 | K20: =IF(combos!H18=$AC$15,-1,1) * (IF(AND($H20=$W$15,$I20=$W$16),Y$4,IF(AND($H20=$W$15,$I20<>$W$16),Y$5,IF(AND($H20<>$W$15,$I20=$W$16),Y$6,IF(AND($H20<>$W$15,$I20<>$W$16),Y$7)))) - IF(combos!H18=$AC$15,1,0)) -> 0.5 | L20: =IF(combos!I18=$AC$15,-1,1) * (IF(AND($H20=$W$15,$I20=$W$16),Z$4,IF(AND($H20=$W$15,$I20<>$W$16),Z$5,IF(AND($H20<>$W$15,$I20=$W$16),Z$6,IF(AND($H20<>$W$15,$I20<>$W$16),Z$7)))) - IF(combos!I18=$AC$15,1,0)) -> 0.5 | M20: =IF(combos!J18=$AC$15,-1,1) * (IF(AND($H20=$W$15,$I20=$W$16),AA$4,IF(AND($H20=$W$15,$I20<>$W$16),AA$5,IF(AND($H20<>$W$15,$I20=$W$16),AA$6,IF(AND($H20<>$W$15,$I20<>$W$16),AA$7)))) - IF(combos!J18=$AC$15,1,0)) -> 0.5 | N20: =IF(combos!K18=$AC$15,-1,1) * (IF(AND($H20=$W$15,$I20=$W$16),AB$4,IF(AND($H20=$W$15,$I20<>$W$16),AB$5,IF(AND($H20<>$W$15,$I20=$W$16),AB$6,IF(AND($H20<>$W$15,$I20<>$W$16),AB$7)))) - IF(combos!K18=$AC$15,1,0)) -> 0.5 | O20: =IF(combos!L18=$AC$15,-1,1) * (IF(AND($H20=$W$15,$I20=$W$16),AC$4,IF(AND($H20=$W$15,$I20<>$W$16),AC$5,IF(AND($H20<>$W$15,$I20=$W$16),AC$6,IF(AND($H20<>$W$15,$I20<>$W$16),AC$7)))) - IF(combos!L18=$AC$15,1,0)) -> 0.5 | P20: =IF(combos!B18=$AB$15,E20,1-E20) -> 0.5 | Q20: =IF(combos!C18=$AB$15,F20,1-F20) -> 0.5 | R20: =IF(combos!D18=$AB$15,G20,1-G20) -> 0.5 | S20: 0.00048828125 | V20: Ecol_up | AJ20: =V38 -> Ecol_up
A21: Entsch Option A | B21: Ecol_up | C21: Econ_up | D21: SozKul_up | E21: =IF(AND(combos!G19=$AB$15,combos!H19=$AB$15),AH$4, IF(AND(combos!G19=$AB$15,combos!H19<>$AB$15), AH$5, IF(AND(combos!G19<>$AB$15,combos!H19=$AB$15),AH$6, IF(AND(combos!G19<>$AB$15,combos!H19<>$AB$15),AH$7 )))) -> 0.5 | F21: =IF(AND(combos!I19=$AB$15,combos!J19=$AB$15),AI$4, IF(AND(combos!I19=$AB$15,combos!J19<>$AB$15), AI$5, IF(AND(combos!I19<>$AB$15,combos!J19=$AB$15),AI$6, IF(AND(combos!I19<>$AB$15,combos!J19<>$AB$15),AI$7 )))) -> 0.5 | G21: =IF(AND(combos!K19=$AB$15,combos!L19=$AB$15),AJ$4, IF(AND(combos!K19=$AB$15,combos!L19<>$AB$15), AJ$5, IF(AND(combos!K19<>$AB$15,combos!L19=$AB$15),AJ$6, IF(AND(combos!K19<>$AB$15,combos!L19<>$AB$15),AJ$7 )))) -> 0.5 | H21: =IF(combos!E19=$AB$14,W$15,X$15) -> 0.5 | I21: =IF(combos!F19=$AB$14,$W$16,X$16) -> 0.5 | J21: =IF(combos!G19=$AC$15,-1,1) * (IF(AND($H21=$W$15,$I21=$W$16),X$4,IF(AND($H21=$W$15,$I21<>$W$16),X$5,IF(AND($H21<>$W$15,$I21=$W$16),X$6,IF(AND($H21<>$W$15,$I21<>$W$16),X$7)))) - IF(combos!G19=$AC$15,1,0)) -> 0.5 | K21: =IF(combos!H19=$AC$15,-1,1) * (IF(AND($H21=$W$15,$I21=$W$16),Y$4,IF(AND($H21=$W$15,$I21<>$W$16),Y$5,IF(AND($H21<>$W$15,$I21=$W$16),Y$6,IF(AND($H21<>$W$15,$I21<>$W$16),Y$7)))) - IF(combos!H19=$AC$15,1,0)) -> 0.5 | L21: =IF(combos!I19=$AC$15,-1,1) * (IF(AND($H21=$W$15,$I21=$W$16),Z$4,IF(AND($H21=$W$15,$I21<>$W$16),Z$5,IF(AND($H21<>$W$15,$I21=$W$16),Z$6,IF(AND($H21<>$W$15,$I21<>$W$16),Z$7)))) - IF(combos!I19=$AC$15,1,0)) -> 0.5 | M21: =IF(combos!J19=$AC$15,-1,1) * (IF(AND($H21=$W$15,$I21=$W$16),AA$4,IF(AND($H21=$W$15,$I21<>$W$16),AA$5,IF(AND($H21<>$W$15,$I21=$W$16),AA$6,IF(AND($H21<>$W$15,$I21<>$W$16),AA$7)))) - IF(combos!J19=$AC$15,1,0)) -> 0.5 | N21: =IF(combos!K19=$AC$15,-1,1) * (IF(AND($H21=$W$15,$I21=$W$16),AB$4,IF(AND($H21=$W$15,$I21<>$W$16),AB$5,IF(AND($H21<>$W$15,$I21=$W$16),AB$6,IF(AND($H21<>$W$15,$I21<>$W$16),AB$7)))) - IF(combos!K19=$AC$15,1,0)) -> 0.5 | O21: =IF(combos!L19=$AC$15,-1,1) * (IF(AND($H21=$W$15,$I21=$W$16),AC$4,IF(AND($H21=$W$15,$I21<>$W$16),AC$5,IF(AND($H21<>$W$15,$I21=$W$16),AC$6,IF(AND($H21<>$W$15,$I21<>$W$16),AC$7)))) - IF(combos!L19=$AC$15,1,0)) -> 0.5 | P21: =IF(combos!B19=$AB$15,E21,1-E21) -> 0.5 | Q21: =IF(combos!C19=$AB$15,F21,1-F21) -> 0.5 | R21: =IF(combos!D19=$AB$15,G21,1-G21) -> 0.5 | S21: 0.00048828125 | V21: Econ_up | AF21: Ökol. | AG21: Ökon. | AH21: Soz.kult. | AK21: =V39 -> Econ_up
A22: Entsch Option A | B22: Ecol_up | C22: Econ_up | D22: SozKul_up | E22: =IF(AND(combos!G20=$AB$15,combos!H20=$AB$15),AH$4, IF(AND(combos!G20=$AB$15,combos!H20<>$AB$15), AH$5, IF(AND(combos!G20<>$AB$15,combos!H20=$AB$15),AH$6, IF(AND(combos!G20<>$AB$15,combos!H20<>$AB$15),AH$7 )))) -> 0.5 | F22: =IF(AND(combos!I20=$AB$15,combos!J20=$AB$15),AI$4, IF(AND(combos!I20=$AB$15,combos!J20<>$AB$15), AI$5, IF(AND(combos!I20<>$AB$15,combos!J20=$AB$15),AI$6, IF(AND(combos!I20<>$AB$15,combos!J20<>$AB$15),AI$7 )))) -> 0.5 | G22: =IF(AND(combos!K20=$AB$15,combos!L20=$AB$15),AJ$4, IF(AND(combos!K20=$AB$15,combos!L20<>$AB$15), AJ$5, IF(AND(combos!K20<>$AB$15,combos!L20=$AB$15),AJ$6, IF(AND(combos!K20<>$AB$15,combos!L20<>$AB$15),AJ$7 )))) -> 0.5 | H22: =IF(combos!E20=$AB$14,W$15,X$15) -> 0.5 | I22: =IF(combos!F20=$AB$14,$W$16,X$16) -> 0.5 | J22: =IF(combos!G20=$AC$15,-1,1) * (IF(AND($H22=$W$15,$I22=$W$16),X$4,IF(AND($H22=$W$15,$I22<>$W$16),X$5,IF(AND($H22<>$W$15,$I22=$W$16),X$6,IF(AND($H22<>$W$15,$I22<>$W$16),X$7)))) - IF(combos!G20=$AC$15,1,0)) -> 0.5 | K22: =IF(combos!H20=$AC$15,-1,1) * (IF(AND($H22=$W$15,$I22=$W$16),Y$4,IF(AND($H22=$W$15,$I22<>$W$16),Y$5,IF(AND($H22<>$W$15,$I22=$W$16),Y$6,IF(AND($H22<>$W$15,$I22<>$W$16),Y$7)))) - IF(combos!H20=$AC$15,1,0)) -> 0.5 | L22: =IF(combos!I20=$AC$15,-1,1) * (IF(AND($H22=$W$15,$I22=$W$16),Z$4,IF(AND($H22=$W$15,$I22<>$W$16),Z$5,IF(AND($H22<>$W$15,$I22=$W$16),Z$6,IF(AND($H22<>$W$15,$I22<>$W$16),Z$7)))) - IF(combos!I20=$AC$15,1,0)) -> 0.5 | M22: =IF(combos!J20=$AC$15,-1,1) * (IF(AND($H22=$W$15,$I22=$W$16),AA$4,IF(AND($H22=$W$15,$I22<>$W$16),AA$5,IF(AND($H22<>$W$15,$I22=$W$16),AA$6,IF(AND($H22<>$W$15,$I22<>$W$16),AA$7)))) - IF(combos!J20=$AC$15,1,0)) -> 0.5 | N22: =IF(combos!K20=$AC$15,-1,1) * (IF(AND($H22=$W$15,$I22=$W$16),AB$4,IF(AND($H22=$W$15,$I22<>$W$16),AB$5,IF(AND($H22<>$W$15,$I22=$W$16),AB$6,IF(AND($H22<>$W$15,$I22<>$W$16),AB$7)))) - IF(combos!K20=$AC$15,1,0)) -> 0.5 | O22: =IF(combos!L20=$AC$15,-1,1) * (IF(AND($H22=$W$15,$I22=$W$16),AC$4,IF(AND($H22=$W$15,$I22<>$W$16),AC$5,IF(AND($H22<>$W$15,$I22=$W$16),AC$6,IF(AND($H22<>$W$15,$I22<>$W$16),AC$7)))) - IF(combos!L20=$AC$15,1,0)) -> 0.5 | P22: =IF(combos!B20=$AB$15,E22,1-E22) -> 0.5 | Q22: =IF(combos!C20=$AB$15,F22,1-F22) -> 0.5 | R22: =IF(combos!D20=$AB$15,G22,1-G22) -> 0.5 | S22: 0.00048828125 | V22: SozKul_up | W22: 0.125 | X22: =W22 -> 0.125 | Y22: =W40 -> 0.125 | AB22: =X22 -> 0.125 | AC22: =Y22 -> 0.125 | AF22: ↑→ | AG22: ↑→ | AH22: ↑→ | AL22: =V40 -> SozKul_up
A23: Entsch Option A | B23: Ecol_up | C23: Econ_up | D23: SozKul_up | E23: =IF(AND(combos!G21=$AB$15,combos!H21=$AB$15),AH$4, IF(AND(combos!G21=$AB$15,combos!H21<>$AB$15), AH$5, IF(AND(combos!G21<>$AB$15,combos!H21=$AB$15),AH$6, IF(AND(combos!G21<>$AB$15,combos!H21<>$AB$15),AH$7 )))) -> 0.5 | F23: =IF(AND(combos!I21=$AB$15,combos!J21=$AB$15),AI$4, IF(AND(combos!I21=$AB$15,combos!J21<>$AB$15), AI$5, IF(AND(combos!I21<>$AB$15,combos!J21=$AB$15),AI$6, IF(AND(combos!I21<>$AB$15,combos!J21<>$AB$15),AI$7 )))) -> 0.5 | G23: =IF(AND(combos!K21=$AB$15,combos!L21=$AB$15),AJ$4, IF(AND(combos!K21=$AB$15,combos!L21<>$AB$15), AJ$5, IF(AND(combos!K21<>$AB$15,combos!L21=$AB$15),AJ$6, IF(AND(combos!K21<>$AB$15,combos!L21<>$AB$15),AJ$7 )))) -> 0.5 | H23: =IF(combos!E21=$AB$14,W$15,X$15) -> 0.5 | I23: =IF(combos!F21=$AB$14,$W$16,X$16) -> 0.5 | J23: =IF(combos!G21=$AC$15,-1,1) * (IF(AND($H23=$W$15,$I23=$W$16),X$4,IF(AND($H23=$W$15,$I23<>$W$16),X$5,IF(AND($H23<>$W$15,$I23=$W$16),X$6,IF(AND($H23<>$W$15,$I23<>$W$16),X$7)))) - IF(combos!G21=$AC$15,1,0)) -> 0.5 | K23: =IF(combos!H21=$AC$15,-1,1) * (IF(AND($H23=$W$15,$I23=$W$16),Y$4,IF(AND($H23=$W$15,$I23<>$W$16),Y$5,IF(AND($H23<>$W$15,$I23=$W$16),Y$6,IF(AND($H23<>$W$15,$I23<>$W$16),Y$7)))) - IF(combos!H21=$AC$15,1,0)) -> 0.5 | L23: =IF(combos!I21=$AC$15,-1,1) * (IF(AND($H23=$W$15,$I23=$W$16),Z$4,IF(AND($H23=$W$15,$I23<>$W$16),Z$5,IF(AND($H23<>$W$15,$I23=$W$16),Z$6,IF(AND($H23<>$W$15,$I23<>$W$16),Z$7)))) - IF(combos!I21=$AC$15,1,0)) -> 0.5 | M23: =IF(combos!J21=$AC$15,-1,1) * (IF(AND($H23=$W$15,$I23=$W$16),AA$4,IF(AND($H23=$W$15,$I23<>$W$16),AA$5,IF(AND($H23<>$W$15,$I23=$W$16),AA$6,IF(AND($H23<>$W$15,$I23<>$W$16),AA$7)))) - IF(combos!J21=$AC$15,1,0)) -> 0.5 | N23: =IF(combos!K21=$AC$15,-1,1) * (IF(AND($H23=$W$15,$I23=$W$16),AB$4,IF(AND($H23=$W$15,$I23<>$W$16),AB$5,IF(AND($H23<>$W$15,$I23=$W$16),AB$6,IF(AND($H23<>$W$15,$I23<>$W$16),AB$7)))) - IF(combos!K21=$AC$15,1,0)) -> 0.5 | O23: =IF(combos!L21=$AC$15,-1,1) * (IF(AND($H23=$W$15,$I23=$W$16),AC$4,IF(AND($H23=$W$15,$I23<>$W$16),AC$5,IF(AND($H23<>$W$15,$I23=$W$16),AC$6,IF(AND($H23<>$W$15,$I23<>$W$16),AC$7)))) - IF(combos!L21=$AC$15,1,0)) -> 0.5 | P23: =IF(combos!B21=$AB$15,E23,1-E23) -> 0.5 | Q23: =IF(combos!C21=$AB$15,F23,1-F23) -> 0.5 | R23: =IF(combos!D21=$AB$15,G23,1-G23) -> 0.5 | S23: 0.00048828125 | V23: SozKul_dn | W23: 0.125 | X23: =W23 -> 0.125 | Y23: =W41 -> 0.125 | AB23: =X23 -> 0.125 | AC23: =Y23 -> 0.125 | AF23: ↑→ | AG23: ↑→ | AH23: ↓ | AL23: =V41 -> SozKul_dn
A24: Entsch Option A | B24: Ecol_up | C24: Econ_up | D24: SozKul_up | E24: =IF(AND(combos!G22=$AB$15,combos!H22=$AB$15),AH$4, IF(AND(combos!G22=$AB$15,combos!H22<>$AB$15), AH$5, IF(AND(combos!G22<>$AB$15,combos!H22=$AB$15),AH$6, IF(AND(combos!G22<>$AB$15,combos!H22<>$AB$15),AH$7 )))) -> 0.5 | F24: =IF(AND(combos!I22=$AB$15,combos!J22=$AB$15),AI$4, IF(AND(combos!I22=$AB$15,combos!J22<>$AB$15), AI$5, IF(AND(combos!I22<>$AB$15,combos!J22=$AB$15),AI$6, IF(AND(combos!I22<>$AB$15,combos!J22<>$AB$15),AI$7 )))) -> 0.5 | G24: =IF(AND(combos!K22=$AB$15,combos!L22=$AB$15),AJ$4, IF(AND(combos!K22=$AB$15,combos!L22<>$AB$15), AJ$5, IF(AND(combos!K22<>$AB$15,combos!L22=$AB$15),AJ$6, IF(AND(combos!K22<>$AB$15,combos!L22<>$AB$15),AJ$7 )))) -> 0.5 | H24: =IF(combos!E22=$AB$14,W$15,X$15) -> 0.5 | I24: =IF(combos!F22=$AB$14,$W$16,X$16) -> 0.5 | J24: =IF(combos!G22=$AC$15,-1,1) * (IF(AND($H24=$W$15,$I24=$W$16),X$4,IF(AND($H24=$W$15,$I24<>$W$16),X$5,IF(AND($H24<>$W$15,$I24=$W$16),X$6,IF(AND($H24<>$W$15,$I24<>$W$16),X$7)))) - IF(combos!G22=$AC$15,1,0)) -> 0.5 | K24: =IF(combos!H22=$AC$15,-1,1) * (IF(AND($H24=$W$15,$I24=$W$16),Y$4,IF(AND($H24=$W$15,$I24<>$W$16),Y$5,IF(AND($H24<>$W$15,$I24=$W$16),Y$6,IF(AND($H24<>$W$15,$I24<>$W$16),Y$7)))) - IF(combos!H22=$AC$15,1,0)) -> 0.5 | L24: =IF(combos!I22=$AC$15,-1,1) * (IF(AND($H24=$W$15,$I24=$W$16),Z$4,IF(AND($H24=$W$15,$I24<>$W$16),Z$5,IF(AND($H24<>$W$15,$I24=$W$16),Z$6,IF(AND($H24<>$W$15,$I24<>$W$16),Z$7)))) - IF(combos!I22=$AC$15,1,0)) -> 0.5 | M24: =IF(combos!J22=$AC$15,-1,1) * (IF(AND($H24=$W$15,$I24=$W$16),AA$4,IF(AND($H24=$W$15,$I24<>$W$16),AA$5,IF(AND($H24<>$W$15,$I24=$W$16),AA$6,IF(AND($H24<>$W$15,$I24<>$W$16),AA$7)))) - IF(combos!J22=$AC$15,1,0)) -> 0.5 | N24: =IF(combos!K22=$AC$15,-1,1) * (IF(AND($H24=$W$15,$I24=$W$16),AB$4,IF(AND($H24=$W$15,$I24<>$W$16),AB$5,IF(AND($H24<>$W$15,$I24=$W$16),AB$6,IF(AND($H24<>$W$15,$I24<>$W$16),AB$7)))) - IF(combos!K22=$AC$15,1,0)) -> 0.5 | O24: =IF(combos!L22=$AC$15,-1,1) * (IF(AND($H24=$W$15,$I24=$W$16),AC$4,IF(AND($H24=$W$15,$I24<>$W$16),AC$5,IF(AND($H24<>$W$15,$I24=$W$16),AC$6,IF(AND($H24<>$W$15,$I24<>$W$16),AC$7)))) - IF(combos!L22=$AC$15,1,0)) -> 0.5 | P24: =IF(combos!B22=$AB$15,E24,1-E24) -> 0.5 | Q24: =IF(combos!C22=$AB$15,F24,1-F24) -> 0.5 | R24: =IF(combos!D22=$AB$15,G24,1-G24) -> 0.5 | S24: 0.00048828125 | V24: Econ_dn | AK24: =V42 -> Econ_dn
A25: Entsch Option A | B25: Ecol_up | C25: Econ_up | D25: SozKul_up | E25: =IF(AND(combos!G23=$AB$15,combos!H23=$AB$15),AH$4, IF(AND(combos!G23=$AB$15,combos!H23<>$AB$15), AH$5, IF(AND(combos!G23<>$AB$15,combos!H23=$AB$15),AH$6, IF(AND(combos!G23<>$AB$15,combos!H23<>$AB$15),AH$7 )))) -> 0.5 | F25: =IF(AND(combos!I23=$AB$15,combos!J23=$AB$15),AI$4, IF(AND(combos!I23=$AB$15,combos!J23<>$AB$15), AI$5, IF(AND(combos!I23<>$AB$15,combos!J23=$AB$15),AI$6, IF(AND(combos!I23<>$AB$15,combos!J23<>$AB$15),AI$7 )))) -> 0.5 | G25: =IF(AND(combos!K23=$AB$15,combos!L23=$AB$15),AJ$4, IF(AND(combos!K23=$AB$15,combos!L23<>$AB$15), AJ$5, IF(AND(combos!K23<>$AB$15,combos!L23=$AB$15),AJ$6, IF(AND(combos!K23<>$AB$15,combos!L23<>$AB$15),AJ$7 )))) -> 0.5 | H25: =IF(combos!E23=$AB$14,W$15,X$15) -> 0.5 | I25: =IF(combos!F23=$AB$14,$W$16,X$16) -> 0.5 | J25: =IF(combos!G23=$AC$15,-1,1) * (IF(AND($H25=$W$15,$I25=$W$16),X$4,IF(AND($H25=$W$15,$I25<>$W$16),X$5,IF(AND($H25<>$W$15,$I25=$W$16),X$6,IF(AND($H25<>$W$15,$I25<>$W$16),X$7)))) - IF(combos!G23=$AC$15,1,0)) -> 0.5 | K25: =IF(combos!H23=$AC$15,-1,1) * (IF(AND($H25=$W$15,$I25=$W$16),Y$4,IF(AND($H25=$W$15,$I25<>$W$16),Y$5,IF(AND($H25<>$W$15,$I25=$W$16),Y$6,IF(AND($H25<>$W$15,$I25<>$W$16),Y$7)))) - IF(combos!H23=$AC$15,1,0)) -> 0.5 | L25: =IF(combos!I23=$AC$15,-1,1) * (IF(AND($H25=$W$15,$I25=$W$16),Z$4,IF(AND($H25=$W$15,$I25<>$W$16),Z$5,IF(AND($H25<>$W$15,$I25=$W$16),Z$6,IF(AND($H25<>$W$15,$I25<>$W$16),Z$7)))) - IF(combos!I23=$AC$15,1,0)) -> 0.5 | M25: =IF(combos!J23=$AC$15,-1,1) * (IF(AND($H25=$W$15,$I25=$W$16),AA$4,IF(AND($H25=$W$15,$I25<>$W$16),AA$5,IF(AND($H25<>$W$15,$I25=$W$16),AA$6,IF(AND($H25<>$W$15,$I25<>$W$16),AA$7)))) - IF(combos!J23=$AC$15,1,0)) -> 0.5 | N25: =IF(combos!K23=$AC$15,-1,1) * (IF(AND($H25=$W$15,$I25=$W$16),AB$4,IF(AND($H25=$W$15,$I25<>$W$16),AB$5,IF(AND($H25<>$W$15,$I25=$W$16),AB$6,IF(AND($H25<>$W$15,$I25<>$W$16),AB$7)))) - IF(combos!K23=$AC$15,1,0)) -> 0.5 | O25: =IF(combos!L23=$AC$15,-1,1) * (IF(AND($H25=$W$15,$I25=$W$16),AC$4,IF(AND($H25=$W$15,$I25<>$W$16),AC$5,IF(AND($H25<>$W$15,$I25=$W$16),AC$6,IF(AND($H25<>$W$15,$I25<>$W$16),AC$7)))) - IF(combos!L23=$AC$15,1,0)) -> 0.5 | P25: =IF(combos!B23=$AB$15,E25,1-E25) -> 0.5 | Q25: =IF(combos!C23=$AB$15,F25,1-F25) -> 0.5 | R25: =IF(combos!D23=$AB$15,G25,1-G25) -> 0.5 | S25: 0.00048828125 | V25: SozKul_up | W25: 0.125 | X25: =W25 -> 0.125 | Y25: =W43 -> 0.125 | AB25: =X25 -> 0.125 | AC25: =Y25 -> 0.125 | AF25: ↑→ | AG25: ↓ | AH25: ↑→ | AL25: =V43 -> SozKul_up
A26: Entsch Option A | B26: Ecol_up | C26: Econ_up | D26: SozKul_up | E26: =IF(AND(combos!G24=$AB$15,combos!H24=$AB$15),AH$4, IF(AND(combos!G24=$AB$15,combos!H24<>$AB$15), AH$5, IF(AND(combos!G24<>$AB$15,combos!H24=$AB$15),AH$6, IF(AND(combos!G24<>$AB$15,combos!H24<>$AB$15),AH$7 )))) -> 0.5 | F26: =IF(AND(combos!I24=$AB$15,combos!J24=$AB$15),AI$4, IF(AND(combos!I24=$AB$15,combos!J24<>$AB$15), AI$5, IF(AND(combos!I24<>$AB$15,combos!J24=$AB$15),AI$6, IF(AND(combos!I24<>$AB$15,combos!J24<>$AB$15),AI$7 )))) -> 0.5 | G26: =IF(AND(combos!K24=$AB$15,combos!L24=$AB$15),AJ$4, IF(AND(combos!K24=$AB$15,combos!L24<>$AB$15), AJ$5, IF(AND(combos!K24<>$AB$15,combos!L24=$AB$15),AJ$6, IF(AND(combos!K24<>$AB$15,combos!L24<>$AB$15),AJ$7 )))) -> 0.5 | H26: =IF(combos!E24=$AB$14,W$15,X$15) -> 0.5 | I26: =IF(combos!F24=$AB$14,$W$16,X$16) -> 0.5 | J26: =IF(combos!G24=$AC$15,-1,1) * (IF(AND($H26=$W$15,$I26=$W$16),X$4,IF(AND($H26=$W$15,$I26<>$W$16),X$5,IF(AND($H26<>$W$15,$I26=$W$16),X$6,IF(AND($H26<>$W$15,$I26<>$W$16),X$7)))) - IF(combos!G24=$AC$15,1,0)) -> 0.5 | K26: =IF(combos!H24=$AC$15,-1,1) * (IF(AND($H26=$W$15,$I26=$W$16),Y$4,IF(AND($H26=$W$15,$I26<>$W$16),Y$5,IF(AND($H26<>$W$15,$I26=$W$16),Y$6,IF(AND($H26<>$W$15,$I26<>$W$16),Y$7)))) - IF(combos!H24=$AC$15,1,0)) -> 0.5 | L26: =IF(combos!I24=$AC$15,-1,1) * (IF(AND($H26=$W$15,$I26=$W$16),Z$4,IF(AND($H26=$W$15,$I26<>$W$16),Z$5,IF(AND($H26<>$W$15,$I26=$W$16),Z$6,IF(AND($H26<>$W$15,$I26<>$W$16),Z$7)))) - IF(combos!I24=$AC$15,1,0)) -> 0.5 | M26: =IF(combos!J24=$AC$15,-1,1) * (IF(AND($H26=$W$15,$I26=$W$16),AA$4,IF(AND($H26=$W$15,$I26<>$W$16),AA$5,IF(AND($H26<>$W$15,$I26=$W$16),AA$6,IF(AND($H26<>$W$15,$I26<>$W$16),AA$7)))) - IF(combos!J24=$AC$15,1,0)) -> 0.5 | N26: =IF(combos!K24=$AC$15,-1,1) * (IF(AND($H26=$W$15,$I26=$W$16),AB$4,IF(AND($H26=$W$15,$I26<>$W$16),AB$5,IF(AND($H26<>$W$15,$I26=$W$16),AB$6,IF(AND($H26<>$W$15,$I26<>$W$16),AB$7)))) - IF(combos!K24=$AC$15,1,0)) -> 0.5 | O26: =IF(combos!L24=$AC$15,-1,1) * (IF(AND($H26=$W$15,$I26=$W$16),AC$4,IF(AND($H26=$W$15,$I26<>$W$16),AC$5,IF(AND($H26<>$W$15,$I26=$W$16),AC$6,IF(AND($H26<>$W$15,$I26<>$W$16),AC$7)))) - IF(combos!L24=$AC$15,1,0)) -> 0.5 | P26: =IF(combos!B24=$AB$15,E26,1-E26) -> 0.5 | Q26: =IF(combos!C24=$AB$15,F26,1-F26) -> 0.5 | R26: =IF(combos!D24=$AB$15,G26,1-G26) -> 0.5 | S26: 0.00048828125 | V26: SozKul_dn | W26: 0.125 | X26: =W26 -> 0.125 | Y26: =W47 -> 0.125 | AB26: =X29 -> 0.125 | AC26: =Y29 -> 0.125 | AF26: ↓ | AG26: ↑→ | AH26: ↑→ | AL26: =V44 -> SozKul_dn
A27: Entsch Option A | B27: Ecol_up | C27: Econ_up | D27: SozKul_up | E27: =IF(AND(combos!G25=$AB$15,combos!H25=$AB$15),AH$4, IF(AND(combos!G25=$AB$15,combos!H25<>$AB$15), AH$5, IF(AND(combos!G25<>$AB$15,combos!H25=$AB$15),AH$6, IF(AND(combos!G25<>$AB$15,combos!H25<>$AB$15),AH$7 )))) -> 0.5 | F27: =IF(AND(combos!I25=$AB$15,combos!J25=$AB$15),AI$4, IF(AND(combos!I25=$AB$15,combos!J25<>$AB$15), AI$5, IF(AND(combos!I25<>$AB$15,combos!J25=$AB$15),AI$6, IF(AND(combos!I25<>$AB$15,combos!J25<>$AB$15),AI$7 )))) -> 0.5 | G27: =IF(AND(combos!K25=$AB$15,combos!L25=$AB$15),AJ$4, IF(AND(combos!K25=$AB$15,combos!L25<>$AB$15), AJ$5, IF(AND(combos!K25<>$AB$15,combos!L25=$AB$15),AJ$6, IF(AND(combos!K25<>$AB$15,combos!L25<>$AB$15),AJ$7 )))) -> 0.5 | H27: =IF(combos!E25=$AB$14,W$15,X$15) -> 0.5 | I27: =IF(combos!F25=$AB$14,$W$16,X$16) -> 0.5 | J27: =IF(combos!G25=$AC$15,-1,1) * (IF(AND($H27=$W$15,$I27=$W$16),X$4,IF(AND($H27=$W$15,$I27<>$W$16),X$5,IF(AND($H27<>$W$15,$I27=$W$16),X$6,IF(AND($H27<>$W$15,$I27<>$W$16),X$7)))) - IF(combos!G25=$AC$15,1,0)) -> 0.5 | K27: =IF(combos!H25=$AC$15,-1,1) * (IF(AND($H27=$W$15,$I27=$W$16),Y$4,IF(AND($H27=$W$15,$I27<>$W$16),Y$5,IF(AND($H27<>$W$15,$I27=$W$16),Y$6,IF(AND($H27<>$W$15,$I27<>$W$16),Y$7)))) - IF(combos!H25=$AC$15,1,0)) -> 0.5 | L27: =IF(combos!I25=$AC$15,-1,1) * (IF(AND($H27=$W$15,$I27=$W$16),Z$4,IF(AND($H27=$W$15,$I27<>$W$16),Z$5,IF(AND($H27<>$W$15,$I27=$W$16),Z$6,IF(AND($H27<>$W$15,$I27<>$W$16),Z$7)))) - IF(combos!I25=$AC$15,1,0)) -> 0.5 | M27: =IF(combos!J25=$AC$15,-1,1) * (IF(AND($H27=$W$15,$I27=$W$16),AA$4,IF(AND($H27=$W$15,$I27<>$W$16),AA$5,IF(AND($H27<>$W$15,$I27=$W$16),AA$6,IF(AND($H27<>$W$15,$I27<>$W$16),AA$7)))) - IF(combos!J25=$AC$15,1,0)) -> 0.5 | N27: =IF(combos!K25=$AC$15,-1,1) * (IF(AND($H27=$W$15,$I27=$W$16),AB$4,IF(AND($H27=$W$15,$I27<>$W$16),AB$5,IF(AND($H27<>$W$15,$I27=$W$16),AB$6,IF(AND($H27<>$W$15,$I27<>$W$16),AB$7)))) - IF(combos!K25=$AC$15,1,0)) -> 0.5 | O27: =IF(combos!L25=$AC$15,-1,1) * (IF(AND($H27=$W$15,$I27=$W$16),AC$4,IF(AND($H27=$W$15,$I27<>$W$16),AC$5,IF(AND($H27<>$W$15,$I27=$W$16),AC$6,IF(AND($H27<>$W$15,$I27<>$W$16),AC$7)))) - IF(combos!L25=$AC$15,1,0)) -> 0.5 | P27: =IF(combos!B25=$AB$15,E27,1-E27) -> 0.5 | Q27: =IF(combos!C25=$AB$15,F27,1-F27) -> 0.5 | R27: =IF(combos!D25=$AB$15,G27,1-G27) -> 0.5 | S27: 0.00048828125 | V27: Ecol_dn | AJ27: =V45 -> Ecol_dn
A28: Entsch Option A | B28: Ecol_up | C28: Econ_up | D28: SozKul_up | E28: =IF(AND(combos!G26=$AB$15,combos!H26=$AB$15),AH$4, IF(AND(combos!G26=$AB$15,combos!H26<>$AB$15), AH$5, IF(AND(combos!G26<>$AB$15,combos!H26=$AB$15),AH$6, IF(AND(combos!G26<>$AB$15,combos!H26<>$AB$15),AH$7 )))) -> 0.5 | F28: =IF(AND(combos!I26=$AB$15,combos!J26=$AB$15),AI$4, IF(AND(combos!I26=$AB$15,combos!J26<>$AB$15), AI$5, IF(AND(combos!I26<>$AB$15,combos!J26=$AB$15),AI$6, IF(AND(combos!I26<>$AB$15,combos!J26<>$AB$15),AI$7 )))) -> 0.5 | G28: =IF(AND(combos!K26=$AB$15,combos!L26=$AB$15),AJ$4, IF(AND(combos!K26=$AB$15,combos!L26<>$AB$15), AJ$5, IF(AND(combos!K26<>$AB$15,combos!L26=$AB$15),AJ$6, IF(AND(combos!K26<>$AB$15,combos!L26<>$AB$15),AJ$7 )))) -> 0.5 | H28: =IF(combos!E26=$AB$14,W$15,X$15) -> 0.5 | I28: =IF(combos!F26=$AB$14,$W$16,X$16) -> 0.5 | J28: =IF(combos!G26=$AC$15,-1,1) * (IF(AND($H28=$W$15,$I28=$W$16),X$4,IF(AND($H28=$W$15,$I28<>$W$16),X$5,IF(AND($H28<>$W$15,$I28=$W$16),X$6,IF(AND($H28<>$W$15,$I28<>$W$16),X$7)))) - IF(combos!G26=$AC$15,1,0)) -> 0.5 | K28: =IF(combos!H26=$AC$15,-1,1) * (IF(AND($H28=$W$15,$I28=$W$16),Y$4,IF(AND($H28=$W$15,$I28<>$W$16),Y$5,IF(AND($H28<>$W$15,$I28=$W$16),Y$6,IF(AND($H28<>$W$15,$I28<>$W$16),Y$7)))) - IF(combos!H26=$AC$15,1,0)) -> 0.5 | L28: =IF(combos!I26=$AC$15,-1,1) * (IF(AND($H28=$W$15,$I28=$W$16),Z$4,IF(AND($H28=$W$15,$I28<>$W$16),Z$5,IF(AND($H28<>$W$15,$I28=$W$16),Z$6,IF(AND($H28<>$W$15,$I28<>$W$16),Z$7)))) - IF(combos!I26=$AC$15,1,0)) -> 0.5 | M28: =IF(combos!J26=$AC$15,-1,1) * (IF(AND($H28=$W$15,$I28=$W$16),AA$4,IF(AND($H28=$W$15,$I28<>$W$16),AA$5,IF(AND($H28<>$W$15,$I28=$W$16),AA$6,IF(AND($H28<>$W$15,$I28<>$W$16),AA$7)))) - IF(combos!J26=$AC$15,1,0)) -> 0.5 | N28: =IF(combos!K26=$AC$15,-1,1) * (IF(AND($H28=$W$15,$I28=$W$16),AB$4,IF(AND($H28=$W$15,$I28<>$W$16),AB$5,IF(AND($H28<>$W$15,$I28=$W$16),AB$6,IF(AND($H28<>$W$15,$I28<>$W$16),AB$7)))) - IF(combos!K26=$AC$15,1,0)) -> 0.5 | O28: =IF(combos!L26=$AC$15,-1,1) * (IF(AND($H28=$W$15,$I28=$W$16),AC$4,IF(AND($H28=$W$15,$I28<>$W$16),AC$5,IF(AND($H28<>$W$15,$I28=$W$16),AC$6,IF(AND($H28<>$W$15,$I28<>$W$16),AC$7)))) - IF(combos!L26=$AC$15,1,0)) -> 0.5 | P28: =IF(combos!B26=$AB$15,E28,1-E28) -> 0.5 | Q28: =IF(combos!C26=$AB$15,F28,1-F28) -> 0.5 | R28: =IF(combos!D26=$AB$15,G28,1-G28) -> 0.5 | S28: 0.00048828125 | V28: Econ_up | AK28: =V46 -> Econ_up
A29: Entsch Option A | B29: Ecol_up | C29: Econ_up | D29: SozKul_up | E29: =IF(AND(combos!G27=$AB$15,combos!H27=$AB$15),AH$4, IF(AND(combos!G27=$AB$15,combos!H27<>$AB$15), AH$5, IF(AND(combos!G27<>$AB$15,combos!H27=$AB$15),AH$6, IF(AND(combos!G27<>$AB$15,combos!H27<>$AB$15),AH$7 )))) -> 0.5 | F29: =IF(AND(combos!I27=$AB$15,combos!J27=$AB$15),AI$4, IF(AND(combos!I27=$AB$15,combos!J27<>$AB$15), AI$5, IF(AND(combos!I27<>$AB$15,combos!J27=$AB$15),AI$6, IF(AND(combos!I27<>$AB$15,combos!J27<>$AB$15),AI$7 )))) -> 0.5 | G29: =IF(AND(combos!K27=$AB$15,combos!L27=$AB$15),AJ$4, IF(AND(combos!K27=$AB$15,combos!L27<>$AB$15), AJ$5, IF(AND(combos!K27<>$AB$15,combos!L27=$AB$15),AJ$6, IF(AND(combos!K27<>$AB$15,combos!L27<>$AB$15),AJ$7 )))) -> 0.5 | H29: =IF(combos!E27=$AB$14,W$15,X$15) -> 0.5 | I29: =IF(combos!F27=$AB$14,$W$16,X$16) -> 0.5 | J29: =IF(combos!G27=$AC$15,-1,1) * (IF(AND($H29=$W$15,$I29=$W$16),X$4,IF(AND($H29=$W$15,$I29<>$W$16),X$5,IF(AND($H29<>$W$15,$I29=$W$16),X$6,IF(AND($H29<>$W$15,$I29<>$W$16),X$7)))) - IF(combos!G27=$AC$15,1,0)) -> 0.5 | K29: =IF(combos!H27=$AC$15,-1,1) * (IF(AND($H29=$W$15,$I29=$W$16),Y$4,IF(AND($H29=$W$15,$I29<>$W$16),Y$5,IF(AND($H29<>$W$15,$I29=$W$16),Y$6,IF(AND($H29<>$W$15,$I29<>$W$16),Y$7)))) - IF(combos!H27=$AC$15,1,0)) -> 0.5 | L29: =IF(combos!I27=$AC$15,-1,1) * (IF(AND($H29=$W$15,$I29=$W$16),Z$4,IF(AND($H29=$W$15,$I29<>$W$16),Z$5,IF(AND($H29<>$W$15,$I29=$W$16),Z$6,IF(AND($H29<>$W$15,$I29<>$W$16),Z$7)))) - IF(combos!I27=$AC$15,1,0)) -> 0.5 | M29: =IF(combos!J27=$AC$15,-1,1) * (IF(AND($H29=$W$15,$I29=$W$16),AA$4,IF(AND($H29=$W$15,$I29<>$W$16),AA$5,IF(AND($H29<>$W$15,$I29=$W$16),AA$6,IF(AND($H29<>$W$15,$I29<>$W$16),AA$7)))) - IF(combos!J27=$AC$15,1,0)) -> 0.5 | N29: =IF(combos!K27=$AC$15,-1,1) * (IF(AND($H29=$W$15,$I29=$W$16),AB$4,IF(AND($H29=$W$15,$I29<>$W$16),AB$5,IF(AND($H29<>$W$15,$I29=$W$16),AB$6,IF(AND($H29<>$W$15,$I29<>$W$16),AB$7)))) - IF(combos!K27=$AC$15,1,0)) -> 0.5 | O29: =IF(combos!L27=$AC$15,-1,1) * (IF(AND($H29=$W$15,$I29=$W$16),AC$4,IF(AND($H29=$W$15,$I29<>$W$16),AC$5,IF(AND($H29<>$W$15,$I29=$W$16),AC$6,IF(AND($H29<>$W$15,$I29<>$W$16),AC$7)))) - IF(combos!L27=$AC$15,1,0)) -> 0.5 | P29: =IF(combos!B27=$AB$15,E29,1-E29) -> 0.5 | Q29: =IF(combos!C27=$AB$15,F29,1-F29) -> 0.5 | R29: =IF(combos!D27=$AB$15,G29,1-G29) -> 0.5 | S29: 0.00048828125 | V29: SozKul_up | W29: 0.125 | X29: =W29 -> 0.125 | Y29: =W44 -> 0.125 | AB29: =X26 -> 0.125 | AC29: =Y26 -> 0.125 | AF29: ↑→ | AG29: ↓ | AH29: ↓ | AL29: =V47 -> SozKul_up
A30: Entsch Option A | B30: Ecol_up | C30: Econ_up | D30: SozKul_up | E30: =IF(AND(combos!G28=$AB$15,combos!H28=$AB$15),AH$4, IF(AND(combos!G28=$AB$15,combos!H28<>$AB$15), AH$5, IF(AND(combos!G28<>$AB$15,combos!H28=$AB$15),AH$6, IF(AND(combos!G28<>$AB$15,combos!H28<>$AB$15),AH$7 )))) -> 0.5 | F30: =IF(AND(combos!I28=$AB$15,combos!J28=$AB$15),AI$4, IF(AND(combos!I28=$AB$15,combos!J28<>$AB$15), AI$5, IF(AND(combos!I28<>$AB$15,combos!J28=$AB$15),AI$6, IF(AND(combos!I28<>$AB$15,combos!J28<>$AB$15),AI$7 )))) -> 0.5 | G30: =IF(AND(combos!K28=$AB$15,combos!L28=$AB$15),AJ$4, IF(AND(combos!K28=$AB$15,combos!L28<>$AB$15), AJ$5, IF(AND(combos!K28<>$AB$15,combos!L28=$AB$15),AJ$6, IF(AND(combos!K28<>$AB$15,combos!L28<>$AB$15),AJ$7 )))) -> 0.5 | H30: =IF(combos!E28=$AB$14,W$15,X$15) -> 0.5 | I30: =IF(combos!F28=$AB$14,$W$16,X$16) -> 0.5 | J30: =IF(combos!G28=$AC$15,-1,1) * (IF(AND($H30=$W$15,$I30=$W$16),X$4,IF(AND($H30=$W$15,$I30<>$W$16),X$5,IF(AND($H30<>$W$15,$I30=$W$16),X$6,IF(AND($H30<>$W$15,$I30<>$W$16),X$7)))) - IF(combos!G28=$AC$15,1,0)) -> 0.5 | K30: =IF(combos!H28=$AC$15,-1,1) * (IF(AND($H30=$W$15,$I30=$W$16),Y$4,IF(AND($H30=$W$15,$I30<>$W$16),Y$5,IF(AND($H30<>$W$15,$I30=$W$16),Y$6,IF(AND($H30<>$W$15,$I30<>$W$16),Y$7)))) - IF(combos!H28=$AC$15,1,0)) -> 0.5 | L30: =IF(combos!I28=$AC$15,-1,1) * (IF(AND($H30=$W$15,$I30=$W$16),Z$4,IF(AND($H30=$W$15,$I30<>$W$16),Z$5,IF(AND($H30<>$W$15,$I30=$W$16),Z$6,IF(AND($H30<>$W$15,$I30<>$W$16),Z$7)))) - IF(combos!I28=$AC$15,1,0)) -> 0.5 | M30: =IF(combos!J28=$AC$15,-1,1) * (IF(AND($H30=$W$15,$I30=$W$16),AA$4,IF(AND($H30=$W$15,$I30<>$W$16),AA$5,IF(AND($H30<>$W$15,$I30=$W$16),AA$6,IF(AND($H30<>$W$15,$I30<>$W$16),AA$7)))) - IF(combos!J28=$AC$15,1,0)) -> 0.5 | N30: =IF(combos!K28=$AC$15,-1,1) * (IF(AND($H30=$W$15,$I30=$W$16),AB$4,IF(AND($H30=$W$15,$I30<>$W$16),AB$5,IF(AND($H30<>$W$15,$I30=$W$16),AB$6,IF(AND($H30<>$W$15,$I30<>$W$16),AB$7)))) - IF(combos!K28=$AC$15,1,0)) -> 0.5 | O30: =IF(combos!L28=$AC$15,-1,1) * (IF(AND($H30=$W$15,$I30=$W$16),AC$4,IF(AND($H30=$W$15,$I30<>$W$16),AC$5,IF(AND($H30<>$W$15,$I30=$W$16),AC$6,IF(AND($H30<>$W$15,$I30<>$W$16),AC$7)))) - IF(combos!L28=$AC$15,1,0)) -> 0.5 | P30: =IF(combos!B28=$AB$15,E30,1-E30) -> 0.5 | Q30: =IF(combos!C28=$AB$15,F30,1-F30) -> 0.5 | R30: =IF(combos!D28=$AB$15,G30,1-G30) -> 0.5 | S30: 0.00048828125 | V30: SozKul_dn | W30: 0.125 | X30: =W30 -> 0.125 | Y30: =W48 -> 0.125 | AB30: =X30 -> 0.125 | AC30: =Y30 -> 0.125 | AF30: ↓ | AG30: ↑→ | AH30: ↓ | AL30: =V48 -> SozKul_dn
A31: Entsch Option A | B31: Ecol_up | C31: Econ_up | D31: SozKul_up | E31: =IF(AND(combos!G29=$AB$15,combos!H29=$AB$15),AH$4, IF(AND(combos!G29=$AB$15,combos!H29<>$AB$15), AH$5, IF(AND(combos!G29<>$AB$15,combos!H29=$AB$15),AH$6, IF(AND(combos!G29<>$AB$15,combos!H29<>$AB$15),AH$7 )))) -> 0.5 | F31: =IF(AND(combos!I29=$AB$15,combos!J29=$AB$15),AI$4, IF(AND(combos!I29=$AB$15,combos!J29<>$AB$15), AI$5, IF(AND(combos!I29<>$AB$15,combos!J29=$AB$15),AI$6, IF(AND(combos!I29<>$AB$15,combos!J29<>$AB$15),AI$7 )))) -> 0.5 | G31: =IF(AND(combos!K29=$AB$15,combos!L29=$AB$15),AJ$4, IF(AND(combos!K29=$AB$15,combos!L29<>$AB$15), AJ$5, IF(AND(combos!K29<>$AB$15,combos!L29=$AB$15),AJ$6, IF(AND(combos!K29<>$AB$15,combos!L29<>$AB$15),AJ$7 )))) -> 0.5 | H31: =IF(combos!E29=$AB$14,W$15,X$15) -> 0.5 | I31: =IF(combos!F29=$AB$14,$W$16,X$16) -> 0.5 | J31: =IF(combos!G29=$AC$15,-1,1) * (IF(AND($H31=$W$15,$I31=$W$16),X$4,IF(AND($H31=$W$15,$I31<>$W$16),X$5,IF(AND($H31<>$W$15,$I31=$W$16),X$6,IF(AND($H31<>$W$15,$I31<>$W$16),X$7)))) - IF(combos!G29=$AC$15,1,0)) -> 0.5 | K31: =IF(combos!H29=$AC$15,-1,1) * (IF(AND($H31=$W$15,$I31=$W$16),Y$4,IF(AND($H31=$W$15,$I31<>$W$16),Y$5,IF(AND($H31<>$W$15,$I31=$W$16),Y$6,IF(AND($H31<>$W$15,$I31<>$W$16),Y$7)))) - IF(combos!H29=$AC$15,1,0)) -> 0.5 | L31: =IF(combos!I29=$AC$15,-1,1) * (IF(AND($H31=$W$15,$I31=$W$16),Z$4,IF(AND($H31=$W$15,$I31<>$W$16),Z$5,IF(AND($H31<>$W$15,$I31=$W$16),Z$6,IF(AND($H31<>$W$15,$I31<>$W$16),Z$7)))) - IF(combos!I29=$AC$15,1,0)) -> 0.5 | M31: =IF(combos!J29=$AC$15,-1,1) * (IF(AND($H31=$W$15,$I31=$W$16),AA$4,IF(AND($H31=$W$15,$I31<>$W$16),AA$5,IF(AND($H31<>$W$15,$I31=$W$16),AA$6,IF(AND($H31<>$W$15,$I31<>$W$16),AA$7)))) - IF(combos!J29=$AC$15,1,0)) -> 0.5 | N31: =IF(combos!K29=$AC$15,-1,1) * (IF(AND($H31=$W$15,$I31=$W$16),AB$4,IF(AND($H31=$W$15,$I31<>$W$16),AB$5,IF(AND($H31<>$W$15,$I31=$W$16),AB$6,IF(AND($H31<>$W$15,$I31<>$W$16),AB$7)))) - IF(combos!K29=$AC$15,1,0)) -> 0.5 | O31: =IF(combos!L29=$AC$15,-1,1) * (IF(AND($H31=$W$15,$I31=$W$16),AC$4,IF(AND($H31=$W$15,$I31<>$W$16),AC$5,IF(AND($H31<>$W$15,$I31=$W$16),AC$6,IF(AND($H31<>$W$15,$I31<>$W$16),AC$7)))) - IF(combos!L29=$AC$15,1,0)) -> 0.5 | P31: =IF(combos!B29=$AB$15,E31,1-E31) -> 0.5 | Q31: =IF(combos!C29=$AB$15,F31,1-F31) -> 0.5 | R31: =IF(combos!D29=$AB$15,G31,1-G31) -> 0.5 | S31: 0.00048828125 | V31: Econ_dn | AK31: =V49 -> Econ_dn
A32: Entsch Option A | B32: Ecol_up | C32: Econ_up | D32: SozKul_up | E32: =IF(AND(combos!G30=$AB$15,combos!H30=$AB$15),AH$4, IF(AND(combos!G30=$AB$15,combos!H30<>$AB$15), AH$5, IF(AND(combos!G30<>$AB$15,combos!H30=$AB$15),AH$6, IF(AND(combos!G30<>$AB$15,combos!H30<>$AB$15),AH$7 )))) -> 0.5 | F32: =IF(AND(combos!I30=$AB$15,combos!J30=$AB$15),AI$4, IF(AND(combos!I30=$AB$15,combos!J30<>$AB$15), AI$5, IF(AND(combos!I30<>$AB$15,combos!J30=$AB$15),AI$6, IF(AND(combos!I30<>$AB$15,combos!J30<>$AB$15),AI$7 )))) -> 0.5 | G32: =IF(AND(combos!K30=$AB$15,combos!L30=$AB$15),AJ$4, IF(AND(combos!K30=$AB$15,combos!L30<>$AB$15), AJ$5, IF(AND(combos!K30<>$AB$15,combos!L30=$AB$15),AJ$6, IF(AND(combos!K30<>$AB$15,combos!L30<>$AB$15),AJ$7 )))) -> 0.5 | H32: =IF(combos!E30=$AB$14,W$15,X$15) -> 0.5 | I32: =IF(combos!F30=$AB$14,$W$16,X$16) -> 0.5 | J32: =IF(combos!G30=$AC$15,-1,1) * (IF(AND($H32=$W$15,$I32=$W$16),X$4,IF(AND($H32=$W$15,$I32<>$W$16),X$5,IF(AND($H32<>$W$15,$I32=$W$16),X$6,IF(AND($H32<>$W$15,$I32<>$W$16),X$7)))) - IF(combos!G30=$AC$15,1,0)) -> 0.5 | K32: =IF(combos!H30=$AC$15,-1,1) * (IF(AND($H32=$W$15,$I32=$W$16),Y$4,IF(AND($H32=$W$15,$I32<>$W$16),Y$5,IF(AND($H32<>$W$15,$I32=$W$16),Y$6,IF(AND($H32<>$W$15,$I32<>$W$16),Y$7)))) - IF(combos!H30=$AC$15,1,0)) -> 0.5 | L32: =IF(combos!I30=$AC$15,-1,1) * (IF(AND($H32=$W$15,$I32=$W$16),Z$4,IF(AND($H32=$W$15,$I32<>$W$16),Z$5,IF(AND($H32<>$W$15,$I32=$W$16),Z$6,IF(AND($H32<>$W$15,$I32<>$W$16),Z$7)))) - IF(combos!I30=$AC$15,1,0)) -> 0.5 | M32: =IF(combos!J30=$AC$15,-1,1) * (IF(AND($H32=$W$15,$I32=$W$16),AA$4,IF(AND($H32=$W$15,$I32<>$W$16),AA$5,IF(AND($H32<>$W$15,$I32=$W$16),AA$6,IF(AND($H32<>$W$15,$I32<>$W$16),AA$7)))) - IF(combos!J30=$AC$15,1,0)) -> 0.5 | N32: =IF(combos!K30=$AC$15,-1,1) * (IF(AND($H32=$W$15,$I32=$W$16),AB$4,IF(AND($H32=$W$15,$I32<>$W$16),AB$5,IF(AND($H32<>$W$15,$I32=$W$16),AB$6,IF(AND($H32<>$W$15,$I32<>$W$16),AB$7)))) - IF(combos!K30=$AC$15,1,0)) -> 0.5 | O32: =IF(combos!L30=$AC$15,-1,1) * (IF(AND($H32=$W$15,$I32=$W$16),AC$4,IF(AND($H32=$W$15,$I32<>$W$16),AC$5,IF(AND($H32<>$W$15,$I32=$W$16),AC$6,IF(AND($H32<>$W$15,$I32<>$W$16),AC$7)))) - IF(combos!L30=$AC$15,1,0)) -> 0.5 | P32: =IF(combos!B30=$AB$15,E32,1-E32) -> 0.5 | Q32: =IF(combos!C30=$AB$15,F32,1-F32) -> 0.5 | R32: =IF(combos!D30=$AB$15,G32,1-G32) -> 0.5 | S32: 0.00048828125 | V32: SozKul_up | W32: 0.125 | X32: =W32 -> 0.125 | Y32: =W50 -> 0.125 | AB32: =X32 -> 0.125 | AC32: =Y32 -> 0.125 | AF32: ↓ | AG32: ↓ | AH32: ↑→ | AL32: =V50 -> SozKul_up
A33: Entsch Option A | B33: Ecol_up | C33: Econ_up | D33: SozKul_up | E33: =IF(AND(combos!G31=$AB$15,combos!H31=$AB$15),AH$4, IF(AND(combos!G31=$AB$15,combos!H31<>$AB$15), AH$5, IF(AND(combos!G31<>$AB$15,combos!H31=$AB$15),AH$6, IF(AND(combos!G31<>$AB$15,combos!H31<>$AB$15),AH$7 )))) -> 0.5 | F33: =IF(AND(combos!I31=$AB$15,combos!J31=$AB$15),AI$4, IF(AND(combos!I31=$AB$15,combos!J31<>$AB$15), AI$5, IF(AND(combos!I31<>$AB$15,combos!J31=$AB$15),AI$6, IF(AND(combos!I31<>$AB$15,combos!J31<>$AB$15),AI$7 )))) -> 0.5 | G33: =IF(AND(combos!K31=$AB$15,combos!L31=$AB$15),AJ$4, IF(AND(combos!K31=$AB$15,combos!L31<>$AB$15), AJ$5, IF(AND(combos!K31<>$AB$15,combos!L31=$AB$15),AJ$6, IF(AND(combos!K31<>$AB$15,combos!L31<>$AB$15),AJ$7 )))) -> 0.5 | H33: =IF(combos!E31=$AB$14,W$15,X$15) -> 0.5 | I33: =IF(combos!F31=$AB$14,$W$16,X$16) -> 0.5 | J33: =IF(combos!G31=$AC$15,-1,1) * (IF(AND($H33=$W$15,$I33=$W$16),X$4,IF(AND($H33=$W$15,$I33<>$W$16),X$5,IF(AND($H33<>$W$15,$I33=$W$16),X$6,IF(AND($H33<>$W$15,$I33<>$W$16),X$7)))) - IF(combos!G31=$AC$15,1,0)) -> 0.5 | K33: =IF(combos!H31=$AC$15,-1,1) * (IF(AND($H33=$W$15,$I33=$W$16),Y$4,IF(AND($H33=$W$15,$I33<>$W$16),Y$5,IF(AND($H33<>$W$15,$I33=$W$16),Y$6,IF(AND($H33<>$W$15,$I33<>$W$16),Y$7)))) - IF(combos!H31=$AC$15,1,0)) -> 0.5 | L33: =IF(combos!I31=$AC$15,-1,1) * (IF(AND($H33=$W$15,$I33=$W$16),Z$4,IF(AND($H33=$W$15,$I33<>$W$16),Z$5,IF(AND($H33<>$W$15,$I33=$W$16),Z$6,IF(AND($H33<>$W$15,$I33<>$W$16),Z$7)))) - IF(combos!I31=$AC$15,1,0)) -> 0.5 | M33: =IF(combos!J31=$AC$15,-1,1) * (IF(AND($H33=$W$15,$I33=$W$16),AA$4,IF(AND($H33=$W$15,$I33<>$W$16),AA$5,IF(AND($H33<>$W$15,$I33=$W$16),AA$6,IF(AND($H33<>$W$15,$I33<>$W$16),AA$7)))) - IF(combos!J31=$AC$15,1,0)) -> 0.5 | N33: =IF(combos!K31=$AC$15,-1,1) * (IF(AND($H33=$W$15,$I33=$W$16),AB$4,IF(AND($H33=$W$15,$I33<>$W$16),AB$5,IF(AND($H33<>$W$15,$I33=$W$16),AB$6,IF(AND($H33<>$W$15,$I33<>$W$16),AB$7)))) - IF(combos!K31=$AC$15,1,0)) -> 0.5 | O33: =IF(combos!L31=$AC$15,-1,1) * (IF(AND($H33=$W$15,$I33=$W$16),AC$4,IF(AND($H33=$W$15,$I33<>$W$16),AC$5,IF(AND($H33<>$W$15,$I33=$W$16),AC$6,IF(AND($H33<>$W$15,$I33<>$W$16),AC$7)))) - IF(combos!L31=$AC$15,1,0)) -> 0.5 | P33: =IF(combos!B31=$AB$15,E33,1-E33) -> 0.5 | Q33: =IF(combos!C31=$AB$15,F33,1-F33) -> 0.5 | R33: =IF(combos!D31=$AB$15,G33,1-G33) -> 0.5 | S33: 0.00048828125 | V33: SozKul_dn | W33: 0.1245117188 | X33: =W33 -> 0.1245117188 | Y33: =W51 -> 0.125 | AB33: =X33 -> 0.1245117188 | AC33: =Y33 -> 0.125 | AF33: ↓ | AG33: ↓ | AH33: ↓ | AL33: =V51 -> SozKul_dn
A34: Entsch Option A | B34: Ecol_up | C34: Econ_up | D34: SozKul_up | E34: =IF(AND(combos!G32=$AB$15,combos!H32=$AB$15),AH$4, IF(AND(combos!G32=$AB$15,combos!H32<>$AB$15), AH$5, IF(AND(combos!G32<>$AB$15,combos!H32=$AB$15),AH$6, IF(AND(combos!G32<>$AB$15,combos!H32<>$AB$15),AH$7 )))) -> 0.5 | F34: =IF(AND(combos!I32=$AB$15,combos!J32=$AB$15),AI$4, IF(AND(combos!I32=$AB$15,combos!J32<>$AB$15), AI$5, IF(AND(combos!I32<>$AB$15,combos!J32=$AB$15),AI$6, IF(AND(combos!I32<>$AB$15,combos!J32<>$AB$15),AI$7 )))) -> 0.5 | G34: =IF(AND(combos!K32=$AB$15,combos!L32=$AB$15),AJ$4, IF(AND(combos!K32=$AB$15,combos!L32<>$AB$15), AJ$5, IF(AND(combos!K32<>$AB$15,combos!L32=$AB$15),AJ$6, IF(AND(combos!K32<>$AB$15,combos!L32<>$AB$15),AJ$7 )))) -> 0.5 | H34: =IF(combos!E32=$AB$14,W$15,X$15) -> 0.5 | I34: =IF(combos!F32=$AB$14,$W$16,X$16) -> 0.5 | J34: =IF(combos!G32=$AC$15,-1,1) * (IF(AND($H34=$W$15,$I34=$W$16),X$4,IF(AND($H34=$W$15,$I34<>$W$16),X$5,IF(AND($H34<>$W$15,$I34=$W$16),X$6,IF(AND($H34<>$W$15,$I34<>$W$16),X$7)))) - IF(combos!G32=$AC$15,1,0)) -> 0.5 | K34: =IF(combos!H32=$AC$15,-1,1) * (IF(AND($H34=$W$15,$I34=$W$16),Y$4,IF(AND($H34=$W$15,$I34<>$W$16),Y$5,IF(AND($H34<>$W$15,$I34=$W$16),Y$6,IF(AND($H34<>$W$15,$I34<>$W$16),Y$7)))) - IF(combos!H32=$AC$15,1,0)) -> 0.5 | L34: =IF(combos!I32=$AC$15,-1,1) * (IF(AND($H34=$W$15,$I34=$W$16),Z$4,IF(AND($H34=$W$15,$I34<>$W$16),Z$5,IF(AND($H34<>$W$15,$I34=$W$16),Z$6,IF(AND($H34<>$W$15,$I34<>$W$16),Z$7)))) - IF(combos!I32=$AC$15,1,0)) -> 0.5 | M34: =IF(combos!J32=$AC$15,-1,1) * (IF(AND($H34=$W$15,$I34=$W$16),AA$4,IF(AND($H34=$W$15,$I34<>$W$16),AA$5,IF(AND($H34<>$W$15,$I34=$W$16),AA$6,IF(AND($H34<>$W$15,$I34<>$W$16),AA$7)))) - IF(combos!J32=$AC$15,1,0)) -> 0.5 | N34: =IF(combos!K32=$AC$15,-1,1) * (IF(AND($H34=$W$15,$I34=$W$16),AB$4,IF(AND($H34=$W$15,$I34<>$W$16),AB$5,IF(AND($H34<>$W$15,$I34=$W$16),AB$6,IF(AND($H34<>$W$15,$I34<>$W$16),AB$7)))) - IF(combos!K32=$AC$15,1,0)) -> 0.5 | O34: =IF(combos!L32=$AC$15,-1,1) * (IF(AND($H34=$W$15,$I34=$W$16),AC$4,IF(AND($H34=$W$15,$I34<>$W$16),AC$5,IF(AND($H34<>$W$15,$I34=$W$16),AC$6,IF(AND($H34<>$W$15,$I34<>$W$16),AC$7)))) - IF(combos!L32=$AC$15,1,0)) -> 0.5 | P34: =IF(combos!B32=$AB$15,E34,1-E34) -> 0.5 | Q34: =IF(combos!C32=$AB$15,F34,1-F34) -> 0.5 | R34: =IF(combos!D32=$AB$15,G34,1-G34) -> 0.5 | S34: 0.00048828125 | V34: Gesamtergebnis | W34: 0.9995117188
A35: Entsch Option A | B35: Ecol_up | C35: Econ_up | D35: SozKul_up | E35: =IF(AND(combos!G33=$AB$15,combos!H33=$AB$15),AH$4, IF(AND(combos!G33=$AB$15,combos!H33<>$AB$15), AH$5, IF(AND(combos!G33<>$AB$15,combos!H33=$AB$15),AH$6, IF(AND(combos!G33<>$AB$15,combos!H33<>$AB$15),AH$7 )))) -> 0.5 | F35: =IF(AND(combos!I33=$AB$15,combos!J33=$AB$15),AI$4, IF(AND(combos!I33=$AB$15,combos!J33<>$AB$15), AI$5, IF(AND(combos!I33<>$AB$15,combos!J33=$AB$15),AI$6, IF(AND(combos!I33<>$AB$15,combos!J33<>$AB$15),AI$7 )))) -> 0.5 | G35: =IF(AND(combos!K33=$AB$15,combos!L33=$AB$15),AJ$4, IF(AND(combos!K33=$AB$15,combos!L33<>$AB$15), AJ$5, IF(AND(combos!K33<>$AB$15,combos!L33=$AB$15),AJ$6, IF(AND(combos!K33<>$AB$15,combos!L33<>$AB$15),AJ$7 )))) -> 0.5 | H35: =IF(combos!E33=$AB$14,W$15,X$15) -> 0.5 | I35: =IF(combos!F33=$AB$14,$W$16,X$16) -> 0.5 | J35: =IF(combos!G33=$AC$15,-1,1) * (IF(AND($H35=$W$15,$I35=$W$16),X$4,IF(AND($H35=$W$15,$I35<>$W$16),X$5,IF(AND($H35<>$W$15,$I35=$W$16),X$6,IF(AND($H35<>$W$15,$I35<>$W$16),X$7)))) - IF(combos!G33=$AC$15,1,0)) -> 0.5 | K35: =IF(combos!H33=$AC$15,-1,1) * (IF(AND($H35=$W$15,$I35=$W$16),Y$4,IF(AND($H35=$W$15,$I35<>$W$16),Y$5,IF(AND($H35<>$W$15,$I35=$W$16),Y$6,IF(AND($H35<>$W$15,$I35<>$W$16),Y$7)))) - IF(combos!H33=$AC$15,1,0)) -> 0.5 | L35: =IF(combos!I33=$AC$15,-1,1) * (IF(AND($H35=$W$15,$I35=$W$16),Z$4,IF(AND($H35=$W$15,$I35<>$W$16),Z$5,IF(AND($H35<>$W$15,$I35=$W$16),Z$6,IF(AND($H35<>$W$15,$I35<>$W$16),Z$7)))) - IF(combos!I33=$AC$15,1,0)) -> 0.5 | M35: =IF(combos!J33=$AC$15,-1,1) * (IF(AND($H35=$W$15,$I35=$W$16),AA$4,IF(AND($H35=$W$15,$I35<>$W$16),AA$5,IF(AND($H35<>$W$15,$I35=$W$16),AA$6,IF(AND($H35<>$W$15,$I35<>$W$16),AA$7)))) - IF(combos!J33=$AC$15,1,0)) -> 0.5 | N35: =IF(combos!K33=$AC$15,-1,1) * (IF(AND($H35=$W$15,$I35=$W$16),AB$4,IF(AND($H35=$W$15,$I35<>$W$16),AB$5,IF(AND($H35<>$W$15,$I35=$W$16),AB$6,IF(AND($H35<>$W$15,$I35<>$W$16),AB$7)))) - IF(combos!K33=$AC$15,1,0)) -> 0.5 | O35: =IF(combos!L33=$AC$15,-1,1) * (IF(AND($H35=$W$15,$I35=$W$16),AC$4,IF(AND($H35=$W$15,$I35<>$W$16),AC$5,IF(AND($H35<>$W$15,$I35=$W$16),AC$6,IF(AND($H35<>$W$15,$I35<>$W$16),AC$7)))) - IF(combos!L33=$AC$15,1,0)) -> 0.5 | P35: =IF(combos!B33=$AB$15,E35,1-E35) -> 0.5 | Q35: =IF(combos!C33=$AB$15,F35,1-F35) -> 0.5 | R35: =IF(combos!D33=$AB$15,G35,1-G35) -> 0.5 | S35: 0.00048828125
A36: Entsch Option A | B36: Ecol_up | C36: Econ_up | D36: SozKul_up | E36: =IF(AND(combos!G34=$AB$15,combos!H34=$AB$15),AH$4, IF(AND(combos!G34=$AB$15,combos!H34<>$AB$15), AH$5, IF(AND(combos!G34<>$AB$15,combos!H34=$AB$15),AH$6, IF(AND(combos!G34<>$AB$15,combos!H34<>$AB$15),AH$7 )))) -> 0.5 | F36: =IF(AND(combos!I34=$AB$15,combos!J34=$AB$15),AI$4, IF(AND(combos!I34=$AB$15,combos!J34<>$AB$15), AI$5, IF(AND(combos!I34<>$AB$15,combos!J34=$AB$15),AI$6, IF(AND(combos!I34<>$AB$15,combos!J34<>$AB$15),AI$7 )))) -> 0.5 | G36: =IF(AND(combos!K34=$AB$15,combos!L34=$AB$15),AJ$4, IF(AND(combos!K34=$AB$15,combos!L34<>$AB$15), AJ$5, IF(AND(combos!K34<>$AB$15,combos!L34=$AB$15),AJ$6, IF(AND(combos!K34<>$AB$15,combos!L34<>$AB$15),AJ$7 )))) -> 0.5 | H36: =IF(combos!E34=$AB$14,W$15,X$15) -> 0.5 | I36: =IF(combos!F34=$AB$14,$W$16,X$16) -> 0.5 | J36: =IF(combos!G34=$AC$15,-1,1) * (IF(AND($H36=$W$15,$I36=$W$16),X$4,IF(AND($H36=$W$15,$I36<>$W$16),X$5,IF(AND($H36<>$W$15,$I36=$W$16),X$6,IF(AND($H36<>$W$15,$I36<>$W$16),X$7)))) - IF(combos!G34=$AC$15,1,0)) -> 0.5 | K36: =IF(combos!H34=$AC$15,-1,1) * (IF(AND($H36=$W$15,$I36=$W$16),Y$4,IF(AND($H36=$W$15,$I36<>$W$16),Y$5,IF(AND($H36<>$W$15,$I36=$W$16),Y$6,IF(AND($H36<>$W$15,$I36<>$W$16),Y$7)))) - IF(combos!H34=$AC$15,1,0)) -> 0.5 | L36: =IF(combos!I34=$AC$15,-1,1) * (IF(AND($H36=$W$15,$I36=$W$16),Z$4,IF(AND($H36=$W$15,$I36<>$W$16),Z$5,IF(AND($H36<>$W$15,$I36=$W$16),Z$6,IF(AND($H36<>$W$15,$I36<>$W$16),Z$7)))) - IF(combos!I34=$AC$15,1,0)) -> 0.5 | M36: =IF(combos!J34=$AC$15,-1,1) * (IF(AND($H36=$W$15,$I36=$W$16),AA$4,IF(AND($H36=$W$15,$I36<>$W$16),AA$5,IF(AND($H36<>$W$15,$I36=$W$16),AA$6,IF(AND($H36<>$W$15,$I36<>$W$16),AA$7)))) - IF(combos!J34=$AC$15,1,0)) -> 0.5 | N36: =IF(combos!K34=$AC$15,-1,1) * (IF(AND($H36=$W$15,$I36=$W$16),AB$4,IF(AND($H36=$W$15,$I36<>$W$16),AB$5,IF(AND($H36<>$W$15,$I36=$W$16),AB$6,IF(AND($H36<>$W$15,$I36<>$W$16),AB$7)))) - IF(combos!K34=$AC$15,1,0)) -> 0.5 | O36: =IF(combos!L34=$AC$15,-1,1) * (IF(AND($H36=$W$15,$I36=$W$16),AC$4,IF(AND($H36=$W$15,$I36<>$W$16),AC$5,IF(AND($H36<>$W$15,$I36=$W$16),AC$6,IF(AND($H36<>$W$15,$I36<>$W$16),AC$7)))) - IF(combos!L34=$AC$15,1,0)) -> 0.5 | P36: =IF(combos!B34=$AB$15,E36,1-E36) -> 0.5 | Q36: =IF(combos!C34=$AB$15,F36,1-F36) -> 0.5 | R36: =IF(combos!D34=$AB$15,G36,1-G36) -> 0.5 | S36: 0.00048828125
A37: Entsch Option A | B37: Ecol_up | C37: Econ_up | D37: SozKul_up | E37: =IF(AND(combos!G35=$AB$15,combos!H35=$AB$15),AH$4, IF(AND(combos!G35=$AB$15,combos!H35<>$AB$15), AH$5, IF(AND(combos!G35<>$AB$15,combos!H35=$AB$15),AH$6, IF(AND(combos!G35<>$AB$15,combos!H35<>$AB$15),AH$7 )))) -> 0.5 | F37: =IF(AND(combos!I35=$AB$15,combos!J35=$AB$15),AI$4, IF(AND(combos!I35=$AB$15,combos!J35<>$AB$15), AI$5, IF(AND(combos!I35<>$AB$15,combos!J35=$AB$15),AI$6, IF(AND(combos!I35<>$AB$15,combos!J35<>$AB$15),AI$7 )))) -> 0.5 | G37: =IF(AND(combos!K35=$AB$15,combos!L35=$AB$15),AJ$4, IF(AND(combos!K35=$AB$15,combos!L35<>$AB$15), AJ$5, IF(AND(combos!K35<>$AB$15,combos!L35=$AB$15),AJ$6, IF(AND(combos!K35<>$AB$15,combos!L35<>$AB$15),AJ$7 )))) -> 0.5 | H37: =IF(combos!E35=$AB$14,W$15,X$15) -> 0.5 | I37: =IF(combos!F35=$AB$14,$W$16,X$16) -> 0.5 | J37: =IF(combos!G35=$AC$15,-1,1) * (IF(AND($H37=$W$15,$I37=$W$16),X$4,IF(AND($H37=$W$15,$I37<>$W$16),X$5,IF(AND($H37<>$W$15,$I37=$W$16),X$6,IF(AND($H37<>$W$15,$I37<>$W$16),X$7)))) - IF(combos!G35=$AC$15,1,0)) -> 0.5 | K37: =IF(combos!H35=$AC$15,-1,1) * (IF(AND($H37=$W$15,$I37=$W$16),Y$4,IF(AND($H37=$W$15,$I37<>$W$16),Y$5,IF(AND($H37<>$W$15,$I37=$W$16),Y$6,IF(AND($H37<>$W$15,$I37<>$W$16),Y$7)))) - IF(combos!H35=$AC$15,1,0)) -> 0.5 | L37: =IF(combos!I35=$AC$15,-1,1) * (IF(AND($H37=$W$15,$I37=$W$16),Z$4,IF(AND($H37=$W$15,$I37<>$W$16),Z$5,IF(AND($H37<>$W$15,$I37=$W$16),Z$6,IF(AND($H37<>$W$15,$I37<>$W$16),Z$7)))) - IF(combos!I35=$AC$15,1,0)) -> 0.5 | M37: =IF(combos!J35=$AC$15,-1,1) * (IF(AND($H37=$W$15,$I37=$W$16),AA$4,IF(AND($H37=$W$15,$I37<>$W$16),AA$5,IF(AND($H37<>$W$15,$I37=$W$16),AA$6,IF(AND($H37<>$W$15,$I37<>$W$16),AA$7)))) - IF(combos!J35=$AC$15,1,0)) -> 0.5 | N37: =IF(combos!K35=$AC$15,-1,1) * (IF(AND($H37=$W$15,$I37=$W$16),AB$4,IF(AND($H37=$W$15,$I37<>$W$16),AB$5,IF(AND($H37<>$W$15,$I37=$W$16),AB$6,IF(AND($H37<>$W$15,$I37<>$W$16),AB$7)))) - IF(combos!K35=$AC$15,1,0)) -> 0.5 | O37: =IF(combos!L35=$AC$15,-1,1) * (IF(AND($H37=$W$15,$I37=$W$16),AC$4,IF(AND($H37=$W$15,$I37<>$W$16),AC$5,IF(AND($H37<>$W$15,$I37=$W$16),AC$6,IF(AND($H37<>$W$15,$I37<>$W$16),AC$7)))) - IF(combos!L35=$AC$15,1,0)) -> 0.5 | P37: =IF(combos!B35=$AB$15,E37,1-E37) -> 0.5 | Q37: =IF(combos!C35=$AB$15,F37,1-F37) -> 0.5 | R37: =IF(combos!D35=$AB$15,G37,1-G37) -> 0.5 | S37: 0.00048828125 | V37: Zeilenbeschriftungen | W37: Sum of Product
A38: Entsch Option A | B38: Ecol_up | C38: Econ_up | D38: SozKul_up | E38: =IF(AND(combos!G36=$AB$15,combos!H36=$AB$15),AH$4, IF(AND(combos!G36=$AB$15,combos!H36<>$AB$15), AH$5, IF(AND(combos!G36<>$AB$15,combos!H36=$AB$15),AH$6, IF(AND(combos!G36<>$AB$15,combos!H36<>$AB$15),AH$7 )))) -> 0.5 | F38: =IF(AND(combos!I36=$AB$15,combos!J36=$AB$15),AI$4, IF(AND(combos!I36=$AB$15,combos!J36<>$AB$15), AI$5, IF(AND(combos!I36<>$AB$15,combos!J36=$AB$15),AI$6, IF(AND(combos!I36<>$AB$15,combos!J36<>$AB$15),AI$7 )))) -> 0.5 | G38: =IF(AND(combos!K36=$AB$15,combos!L36=$AB$15),AJ$4, IF(AND(combos!K36=$AB$15,combos!L36<>$AB$15), AJ$5, IF(AND(combos!K36<>$AB$15,combos!L36=$AB$15),AJ$6, IF(AND(combos!K36<>$AB$15,combos!L36<>$AB$15),AJ$7 )))) -> 0.5 | H38: =IF(combos!E36=$AB$14,W$15,X$15) -> 0.5 | I38: =IF(combos!F36=$AB$14,$W$16,X$16) -> 0.5 | J38: =IF(combos!G36=$AC$15,-1,1) * (IF(AND($H38=$W$15,$I38=$W$16),X$4,IF(AND($H38=$W$15,$I38<>$W$16),X$5,IF(AND($H38<>$W$15,$I38=$W$16),X$6,IF(AND($H38<>$W$15,$I38<>$W$16),X$7)))) - IF(combos!G36=$AC$15,1,0)) -> 0.5 | K38: =IF(combos!H36=$AC$15,-1,1) * (IF(AND($H38=$W$15,$I38=$W$16),Y$4,IF(AND($H38=$W$15,$I38<>$W$16),Y$5,IF(AND($H38<>$W$15,$I38=$W$16),Y$6,IF(AND($H38<>$W$15,$I38<>$W$16),Y$7)))) - IF(combos!H36=$AC$15,1,0)) -> 0.5 | L38: =IF(combos!I36=$AC$15,-1,1) * (IF(AND($H38=$W$15,$I38=$W$16),Z$4,IF(AND($H38=$W$15,$I38<>$W$16),Z$5,IF(AND($H38<>$W$15,$I38=$W$16),Z$6,IF(AND($H38<>$W$15,$I38<>$W$16),Z$7)))) - IF(combos!I36=$AC$15,1,0)) -> 0.5 | M38: =IF(combos!J36=$AC$15,-1,1) * (IF(AND($H38=$W$15,$I38=$W$16),AA$4,IF(AND($H38=$W$15,$I38<>$W$16),AA$5,IF(AND($H38<>$W$15,$I38=$W$16),AA$6,IF(AND($H38<>$W$15,$I38<>$W$16),AA$7)))) - IF(combos!J36=$AC$15,1,0)) -> 0.5 | N38: =IF(combos!K36=$AC$15,-1,1) * (IF(AND($H38=$W$15,$I38=$W$16),AB$4,IF(AND($H38=$W$15,$I38<>$W$16),AB$5,IF(AND($H38<>$W$15,$I38=$W$16),AB$6,IF(AND($H38<>$W$15,$I38<>$W$16),AB$7)))) - IF(combos!K36=$AC$15,1,0)) -> 0.5 | O38: =IF(combos!L36=$AC$15,-1,1) * (IF(AND($H38=$W$15,$I38=$W$16),AC$4,IF(AND($H38=$W$15,$I38<>$W$16),AC$5,IF(AND($H38<>$W$15,$I38=$W$16),AC$6,IF(AND($H38<>$W$15,$I38<>$W$16),AC$7)))) - IF(combos!L36=$AC$15,1,0)) -> 0.5 | P38: =IF(combos!B36=$AB$15,E38,1-E38) -> 0.5 | Q38: =IF(combos!C36=$AB$15,F38,1-F38) -> 0.5 | R38: =IF(combos!D36=$AB$15,G38,1-G38) -> 0.5 | S38: 0.00048828125 | V38: Ecol_up
A39: Entsch Option A | B39: Ecol_up | C39: Econ_up | D39: SozKul_up | E39: =IF(AND(combos!G37=$AB$15,combos!H37=$AB$15),AH$4, IF(AND(combos!G37=$AB$15,combos!H37<>$AB$15), AH$5, IF(AND(combos!G37<>$AB$15,combos!H37=$AB$15),AH$6, IF(AND(combos!G37<>$AB$15,combos!H37<>$AB$15),AH$7 )))) -> 0.5 | F39: =IF(AND(combos!I37=$AB$15,combos!J37=$AB$15),AI$4, IF(AND(combos!I37=$AB$15,combos!J37<>$AB$15), AI$5, IF(AND(combos!I37<>$AB$15,combos!J37=$AB$15),AI$6, IF(AND(combos!I37<>$AB$15,combos!J37<>$AB$15),AI$7 )))) -> 0.5 | G39: =IF(AND(combos!K37=$AB$15,combos!L37=$AB$15),AJ$4, IF(AND(combos!K37=$AB$15,combos!L37<>$AB$15), AJ$5, IF(AND(combos!K37<>$AB$15,combos!L37=$AB$15),AJ$6, IF(AND(combos!K37<>$AB$15,combos!L37<>$AB$15),AJ$7 )))) -> 0.5 | H39: =IF(combos!E37=$AB$14,W$15,X$15) -> 0.5 | I39: =IF(combos!F37=$AB$14,$W$16,X$16) -> 0.5 | J39: =IF(combos!G37=$AC$15,-1,1) * (IF(AND($H39=$W$15,$I39=$W$16),X$4,IF(AND($H39=$W$15,$I39<>$W$16),X$5,IF(AND($H39<>$W$15,$I39=$W$16),X$6,IF(AND($H39<>$W$15,$I39<>$W$16),X$7)))) - IF(combos!G37=$AC$15,1,0)) -> 0.5 | K39: =IF(combos!H37=$AC$15,-1,1) * (IF(AND($H39=$W$15,$I39=$W$16),Y$4,IF(AND($H39=$W$15,$I39<>$W$16),Y$5,IF(AND($H39<>$W$15,$I39=$W$16),Y$6,IF(AND($H39<>$W$15,$I39<>$W$16),Y$7)))) - IF(combos!H37=$AC$15,1,0)) -> 0.5 | L39: =IF(combos!I37=$AC$15,-1,1) * (IF(AND($H39=$W$15,$I39=$W$16),Z$4,IF(AND($H39=$W$15,$I39<>$W$16),Z$5,IF(AND($H39<>$W$15,$I39=$W$16),Z$6,IF(AND($H39<>$W$15,$I39<>$W$16),Z$7)))) - IF(combos!I37=$AC$15,1,0)) -> 0.5 | M39: =IF(combos!J37=$AC$15,-1,1) * (IF(AND($H39=$W$15,$I39=$W$16),AA$4,IF(AND($H39=$W$15,$I39<>$W$16),AA$5,IF(AND($H39<>$W$15,$I39=$W$16),AA$6,IF(AND($H39<>$W$15,$I39<>$W$16),AA$7)))) - IF(combos!J37=$AC$15,1,0)) -> 0.5 | N39: =IF(combos!K37=$AC$15,-1,1) * (IF(AND($H39=$W$15,$I39=$W$16),AB$4,IF(AND($H39=$W$15,$I39<>$W$16),AB$5,IF(AND($H39<>$W$15,$I39=$W$16),AB$6,IF(AND($H39<>$W$15,$I39<>$W$16),AB$7)))) - IF(combos!K37=$AC$15,1,0)) -> 0.5 | O39: =IF(combos!L37=$AC$15,-1,1) * (IF(AND($H39=$W$15,$I39=$W$16),AC$4,IF(AND($H39=$W$15,$I39<>$W$16),AC$5,IF(AND($H39<>$W$15,$I39=$W$16),AC$6,IF(AND($H39<>$W$15,$I39<>$W$16),AC$7)))) - IF(combos!L37=$AC$15,1,0)) -> 0.5 | P39: =IF(combos!B37=$AB$15,E39,1-E39) -> 0.5 | Q39: =IF(combos!C37=$AB$15,F39,1-F39) -> 0.5 | R39: =IF(combos!D37=$AB$15,G39,1-G39) -> 0.5 | S39: 0.00048828125 | V39: Econ_up
A40: Entsch Option A | B40: Ecol_up | C40: Econ_up | D40: SozKul_up | E40: =IF(AND(combos!G38=$AB$15,combos!H38=$AB$15),AH$4, IF(AND(combos!G38=$AB$15,combos!H38<>$AB$15), AH$5, IF(AND(combos!G38<>$AB$15,combos!H38=$AB$15),AH$6, IF(AND(combos!G38<>$AB$15,combos!H38<>$AB$15),AH$7 )))) -> 0.5 | F40: =IF(AND(combos!I38=$AB$15,combos!J38=$AB$15),AI$4, IF(AND(combos!I38=$AB$15,combos!J38<>$AB$15), AI$5, IF(AND(combos!I38<>$AB$15,combos!J38=$AB$15),AI$6, IF(AND(combos!I38<>$AB$15,combos!J38<>$AB$15),AI$7 )))) -> 0.5 | G40: =IF(AND(combos!K38=$AB$15,combos!L38=$AB$15),AJ$4, IF(AND(combos!K38=$AB$15,combos!L38<>$AB$15), AJ$5, IF(AND(combos!K38<>$AB$15,combos!L38=$AB$15),AJ$6, IF(AND(combos!K38<>$AB$15,combos!L38<>$AB$15),AJ$7 )))) -> 0.5 | H40: =IF(combos!E38=$AB$14,W$15,X$15) -> 0.5 | I40: =IF(combos!F38=$AB$14,$W$16,X$16) -> 0.5 | J40: =IF(combos!G38=$AC$15,-1,1) * (IF(AND($H40=$W$15,$I40=$W$16),X$4,IF(AND($H40=$W$15,$I40<>$W$16),X$5,IF(AND($H40<>$W$15,$I40=$W$16),X$6,IF(AND($H40<>$W$15,$I40<>$W$16),X$7)))) - IF(combos!G38=$AC$15,1,0)) -> 0.5 | K40: =IF(combos!H38=$AC$15,-1,1) * (IF(AND($H40=$W$15,$I40=$W$16),Y$4,IF(AND($H40=$W$15,$I40<>$W$16),Y$5,IF(AND($H40<>$W$15,$I40=$W$16),Y$6,IF(AND($H40<>$W$15,$I40<>$W$16),Y$7)))) - IF(combos!H38=$AC$15,1,0)) -> 0.5 | L40: =IF(combos!I38=$AC$15,-1,1) * (IF(AND($H40=$W$15,$I40=$W$16),Z$4,IF(AND($H40=$W$15,$I40<>$W$16),Z$5,IF(AND($H40<>$W$15,$I40=$W$16),Z$6,IF(AND($H40<>$W$15,$I40<>$W$16),Z$7)))) - IF(combos!I38=$AC$15,1,0)) -> 0.5 | M40: =IF(combos!J38=$AC$15,-1,1) * (IF(AND($H40=$W$15,$I40=$W$16),AA$4,IF(AND($H40=$W$15,$I40<>$W$16),AA$5,IF(AND($H40<>$W$15,$I40=$W$16),AA$6,IF(AND($H40<>$W$15,$I40<>$W$16),AA$7)))) - IF(combos!J38=$AC$15,1,0)) -> 0.5 | N40: =IF(combos!K38=$AC$15,-1,1) * (IF(AND($H40=$W$15,$I40=$W$16),AB$4,IF(AND($H40=$W$15,$I40<>$W$16),AB$5,IF(AND($H40<>$W$15,$I40=$W$16),AB$6,IF(AND($H40<>$W$15,$I40<>$W$16),AB$7)))) - IF(combos!K38=$AC$15,1,0)) -> 0.5 | O40: =IF(combos!L38=$AC$15,-1,1) * (IF(AND($H40=$W$15,$I40=$W$16),AC$4,IF(AND($H40=$W$15,$I40<>$W$16),AC$5,IF(AND($H40<>$W$15,$I40=$W$16),AC$6,IF(AND($H40<>$W$15,$I40<>$W$16),AC$7)))) - IF(combos!L38=$AC$15,1,0)) -> 0.5 | P40: =IF(combos!B38=$AB$15,E40,1-E40) -> 0.5 | Q40: =IF(combos!C38=$AB$15,F40,1-F40) -> 0.5 | R40: =IF(combos!D38=$AB$15,G40,1-G40) -> 0.5 | S40: 0.00048828125 | V40: SozKul_up | W40: 0.125
A41: Entsch Option A | B41: Ecol_up | C41: Econ_up | D41: SozKul_up | E41: =IF(AND(combos!G39=$AB$15,combos!H39=$AB$15),AH$4, IF(AND(combos!G39=$AB$15,combos!H39<>$AB$15), AH$5, IF(AND(combos!G39<>$AB$15,combos!H39=$AB$15),AH$6, IF(AND(combos!G39<>$AB$15,combos!H39<>$AB$15),AH$7 )))) -> 0.5 | F41: =IF(AND(combos!I39=$AB$15,combos!J39=$AB$15),AI$4, IF(AND(combos!I39=$AB$15,combos!J39<>$AB$15), AI$5, IF(AND(combos!I39<>$AB$15,combos!J39=$AB$15),AI$6, IF(AND(combos!I39<>$AB$15,combos!J39<>$AB$15),AI$7 )))) -> 0.5 | G41: =IF(AND(combos!K39=$AB$15,combos!L39=$AB$15),AJ$4, IF(AND(combos!K39=$AB$15,combos!L39<>$AB$15), AJ$5, IF(AND(combos!K39<>$AB$15,combos!L39=$AB$15),AJ$6, IF(AND(combos!K39<>$AB$15,combos!L39<>$AB$15),AJ$7 )))) -> 0.5 | H41: =IF(combos!E39=$AB$14,W$15,X$15) -> 0.5 | I41: =IF(combos!F39=$AB$14,$W$16,X$16) -> 0.5 | J41: =IF(combos!G39=$AC$15,-1,1) * (IF(AND($H41=$W$15,$I41=$W$16),X$4,IF(AND($H41=$W$15,$I41<>$W$16),X$5,IF(AND($H41<>$W$15,$I41=$W$16),X$6,IF(AND($H41<>$W$15,$I41<>$W$16),X$7)))) - IF(combos!G39=$AC$15,1,0)) -> 0.5 | K41: =IF(combos!H39=$AC$15,-1,1) * (IF(AND($H41=$W$15,$I41=$W$16),Y$4,IF(AND($H41=$W$15,$I41<>$W$16),Y$5,IF(AND($H41<>$W$15,$I41=$W$16),Y$6,IF(AND($H41<>$W$15,$I41<>$W$16),Y$7)))) - IF(combos!H39=$AC$15,1,0)) -> 0.5 | L41: =IF(combos!I39=$AC$15,-1,1) * (IF(AND($H41=$W$15,$I41=$W$16),Z$4,IF(AND($H41=$W$15,$I41<>$W$16),Z$5,IF(AND($H41<>$W$15,$I41=$W$16),Z$6,IF(AND($H41<>$W$15,$I41<>$W$16),Z$7)))) - IF(combos!I39=$AC$15,1,0)) -> 0.5 | M41: =IF(combos!J39=$AC$15,-1,1) * (IF(AND($H41=$W$15,$I41=$W$16),AA$4,IF(AND($H41=$W$15,$I41<>$W$16),AA$5,IF(AND($H41<>$W$15,$I41=$W$16),AA$6,IF(AND($H41<>$W$15,$I41<>$W$16),AA$7)))) - IF(combos!J39=$AC$15,1,0)) -> 0.5 | N41: =IF(combos!K39=$AC$15,-1,1) * (IF(AND($H41=$W$15,$I41=$W$16),AB$4,IF(AND($H41=$W$15,$I41<>$W$16),AB$5,IF(AND($H41<>$W$15,$I41=$W$16),AB$6,IF(AND($H41<>$W$15,$I41<>$W$16),AB$7)))) - IF(combos!K39=$AC$15,1,0)) -> 0.5 | O41: =IF(combos!L39=$AC$15,-1,1) * (IF(AND($H41=$W$15,$I41=$W$16),AC$4,IF(AND($H41=$W$15,$I41<>$W$16),AC$5,IF(AND($H41<>$W$15,$I41=$W$16),AC$6,IF(AND($H41<>$W$15,$I41<>$W$16),AC$7)))) - IF(combos!L39=$AC$15,1,0)) -> 0.5 | P41: =IF(combos!B39=$AB$15,E41,1-E41) -> 0.5 | Q41: =IF(combos!C39=$AB$15,F41,1-F41) -> 0.5 | R41: =IF(combos!D39=$AB$15,G41,1-G41) -> 0.5 | S41: 0.00048828125 | V41: SozKul_dn | W41: 0.125
A42: Entsch Option A | B42: Ecol_up | C42: Econ_up | D42: SozKul_up | E42: =IF(AND(combos!G40=$AB$15,combos!H40=$AB$15),AH$4, IF(AND(combos!G40=$AB$15,combos!H40<>$AB$15), AH$5, IF(AND(combos!G40<>$AB$15,combos!H40=$AB$15),AH$6, IF(AND(combos!G40<>$AB$15,combos!H40<>$AB$15),AH$7 )))) -> 0.5 | F42: =IF(AND(combos!I40=$AB$15,combos!J40=$AB$15),AI$4, IF(AND(combos!I40=$AB$15,combos!J40<>$AB$15), AI$5, IF(AND(combos!I40<>$AB$15,combos!J40=$AB$15),AI$6, IF(AND(combos!I40<>$AB$15,combos!J40<>$AB$15),AI$7 )))) -> 0.5 | G42: =IF(AND(combos!K40=$AB$15,combos!L40=$AB$15),AJ$4, IF(AND(combos!K40=$AB$15,combos!L40<>$AB$15), AJ$5, IF(AND(combos!K40<>$AB$15,combos!L40=$AB$15),AJ$6, IF(AND(combos!K40<>$AB$15,combos!L40<>$AB$15),AJ$7 )))) -> 0.5 | H42: =IF(combos!E40=$AB$14,W$15,X$15) -> 0.5 | I42: =IF(combos!F40=$AB$14,$W$16,X$16) -> 0.5 | J42: =IF(combos!G40=$AC$15,-1,1) * (IF(AND($H42=$W$15,$I42=$W$16),X$4,IF(AND($H42=$W$15,$I42<>$W$16),X$5,IF(AND($H42<>$W$15,$I42=$W$16),X$6,IF(AND($H42<>$W$15,$I42<>$W$16),X$7)))) - IF(combos!G40=$AC$15,1,0)) -> 0.5 | K42: =IF(combos!H40=$AC$15,-1,1) * (IF(AND($H42=$W$15,$I42=$W$16),Y$4,IF(AND($H42=$W$15,$I42<>$W$16),Y$5,IF(AND($H42<>$W$15,$I42=$W$16),Y$6,IF(AND($H42<>$W$15,$I42<>$W$16),Y$7)))) - IF(combos!H40=$AC$15,1,0)) -> 0.5 | L42: =IF(combos!I40=$AC$15,-1,1) * (IF(AND($H42=$W$15,$I42=$W$16),Z$4,IF(AND($H42=$W$15,$I42<>$W$16),Z$5,IF(AND($H42<>$W$15,$I42=$W$16),Z$6,IF(AND($H42<>$W$15,$I42<>$W$16),Z$7)))) - IF(combos!I40=$AC$15,1,0)) -> 0.5 | M42: =IF(combos!J40=$AC$15,-1,1) * (IF(AND($H42=$W$15,$I42=$W$16),AA$4,IF(AND($H42=$W$15,$I42<>$W$16),AA$5,IF(AND($H42<>$W$15,$I42=$W$16),AA$6,IF(AND($H42<>$W$15,$I42<>$W$16),AA$7)))) - IF(combos!J40=$AC$15,1,0)) -> 0.5 | N42: =IF(combos!K40=$AC$15,-1,1) * (IF(AND($H42=$W$15,$I42=$W$16),AB$4,IF(AND($H42=$W$15,$I42<>$W$16),AB$5,IF(AND($H42<>$W$15,$I42=$W$16),AB$6,IF(AND($H42<>$W$15,$I42<>$W$16),AB$7)))) - IF(combos!K40=$AC$15,1,0)) -> 0.5 | O42: =IF(combos!L40=$AC$15,-1,1) * (IF(AND($H42=$W$15,$I42=$W$16),AC$4,IF(AND($H42=$W$15,$I42<>$W$16),AC$5,IF(AND($H42<>$W$15,$I42=$W$16),AC$6,IF(AND($H42<>$W$15,$I42<>$W$16),AC$7)))) - IF(combos!L40=$AC$15,1,0)) -> 0.5 | P42: =IF(combos!B40=$AB$15,E42,1-E42) -> 0.5 | Q42: =IF(combos!C40=$AB$15,F42,1-F42) -> 0.5 | R42: =IF(combos!D40=$AB$15,G42,1-G42) -> 0.5 | S42: 0.00048828125 | V42: Econ_dn
A43: Entsch Option A | B43: Ecol_up | C43: Econ_up | D43: SozKul_up | E43: =IF(AND(combos!G41=$AB$15,combos!H41=$AB$15),AH$4, IF(AND(combos!G41=$AB$15,combos!H41<>$AB$15), AH$5, IF(AND(combos!G41<>$AB$15,combos!H41=$AB$15),AH$6, IF(AND(combos!G41<>$AB$15,combos!H41<>$AB$15),AH$7 )))) -> 0.5 | F43: =IF(AND(combos!I41=$AB$15,combos!J41=$AB$15),AI$4, IF(AND(combos!I41=$AB$15,combos!J41<>$AB$15), AI$5, IF(AND(combos!I41<>$AB$15,combos!J41=$AB$15),AI$6, IF(AND(combos!I41<>$AB$15,combos!J41<>$AB$15),AI$7 )))) -> 0.5 | G43: =IF(AND(combos!K41=$AB$15,combos!L41=$AB$15),AJ$4, IF(AND(combos!K41=$AB$15,combos!L41<>$AB$15), AJ$5, IF(AND(combos!K41<>$AB$15,combos!L41=$AB$15),AJ$6, IF(AND(combos!K41<>$AB$15,combos!L41<>$AB$15),AJ$7 )))) -> 0.5 | H43: =IF(combos!E41=$AB$14,W$15,X$15) -> 0.5 | I43: =IF(combos!F41=$AB$14,$W$16,X$16) -> 0.5 | J43: =IF(combos!G41=$AC$15,-1,1) * (IF(AND($H43=$W$15,$I43=$W$16),X$4,IF(AND($H43=$W$15,$I43<>$W$16),X$5,IF(AND($H43<>$W$15,$I43=$W$16),X$6,IF(AND($H43<>$W$15,$I43<>$W$16),X$7)))) - IF(combos!G41=$AC$15,1,0)) -> 0.5 | K43: =IF(combos!H41=$AC$15,-1,1) * (IF(AND($H43=$W$15,$I43=$W$16),Y$4,IF(AND($H43=$W$15,$I43<>$W$16),Y$5,IF(AND($H43<>$W$15,$I43=$W$16),Y$6,IF(AND($H43<>$W$15,$I43<>$W$16),Y$7)))) - IF(combos!H41=$AC$15,1,0)) -> 0.5 | L43: =IF(combos!I41=$AC$15,-1,1) * (IF(AND($H43=$W$15,$I43=$W$16),Z$4,IF(AND($H43=$W$15,$I43<>$W$16),Z$5,IF(AND($H43<>$W$15,$I43=$W$16),Z$6,IF(AND($H43<>$W$15,$I43<>$W$16),Z$7)))) - IF(combos!I41=$AC$15,1,0)) -> 0.5 | M43: =IF(combos!J41=$AC$15,-1,1) * (IF(AND($H43=$W$15,$I43=$W$16),AA$4,IF(AND($H43=$W$15,$I43<>$W$16),AA$5,IF(AND($H43<>$W$15,$I43=$W$16),AA$6,IF(AND($H43<>$W$15,$I43<>$W$16),AA$7)))) - IF(combos!J41=$AC$15,1,0)) -> 0.5 | N43: =IF(combos!K41=$AC$15,-1,1) * (IF(AND($H43=$W$15,$I43=$W$16),AB$4,IF(AND($H43=$W$15,$I43<>$W$16),AB$5,IF(AND($H43<>$W$15,$I43=$W$16),AB$6,IF(AND($H43<>$W$15,$I43<>$W$16),AB$7)))) - IF(combos!K41=$AC$15,1,0)) -> 0.5 | O43: =IF(combos!L41=$AC$15,-1,1) * (IF(AND($H43=$W$15,$I43=$W$16),AC$4,IF(AND($H43=$W$15,$I43<>$W$16),AC$5,IF(AND($H43<>$W$15,$I43=$W$16),AC$6,IF(AND($H43<>$W$15,$I43<>$W$16),AC$7)))) - IF(combos!L41=$AC$15,1,0)) -> 0.5 | P43: =IF(combos!B41=$AB$15,E43,1-E43) -> 0.5 | Q43: =IF(combos!C41=$AB$15,F43,1-F43) -> 0.5 | R43: =IF(combos!D41=$AB$15,G43,1-G43) -> 0.5 | S43: 0.00048828125 | V43: SozKul_up | W43: 0.125
A44: Entsch Option A | B44: Ecol_up | C44: Econ_up | D44: SozKul_up | E44: =IF(AND(combos!G42=$AB$15,combos!H42=$AB$15),AH$4, IF(AND(combos!G42=$AB$15,combos!H42<>$AB$15), AH$5, IF(AND(combos!G42<>$AB$15,combos!H42=$AB$15),AH$6, IF(AND(combos!G42<>$AB$15,combos!H42<>$AB$15),AH$7 )))) -> 0.5 | F44: =IF(AND(combos!I42=$AB$15,combos!J42=$AB$15),AI$4, IF(AND(combos!I42=$AB$15,combos!J42<>$AB$15), AI$5, IF(AND(combos!I42<>$AB$15,combos!J42=$AB$15),AI$6, IF(AND(combos!I42<>$AB$15,combos!J42<>$AB$15),AI$7 )))) -> 0.5 | G44: =IF(AND(combos!K42=$AB$15,combos!L42=$AB$15),AJ$4, IF(AND(combos!K42=$AB$15,combos!L42<>$AB$15), AJ$5, IF(AND(combos!K42<>$AB$15,combos!L42=$AB$15),AJ$6, IF(AND(combos!K42<>$AB$15,combos!L42<>$AB$15),AJ$7 )))) -> 0.5 | H44: =IF(combos!E42=$AB$14,W$15,X$15) -> 0.5 | I44: =IF(combos!F42=$AB$14,$W$16,X$16) -> 0.5 | J44: =IF(combos!G42=$AC$15,-1,1) * (IF(AND($H44=$W$15,$I44=$W$16),X$4,IF(AND($H44=$W$15,$I44<>$W$16),X$5,IF(AND($H44<>$W$15,$I44=$W$16),X$6,IF(AND($H44<>$W$15,$I44<>$W$16),X$7)))) - IF(combos!G42=$AC$15,1,0)) -> 0.5 | K44: =IF(combos!H42=$AC$15,-1,1) * (IF(AND($H44=$W$15,$I44=$W$16),Y$4,IF(AND($H44=$W$15,$I44<>$W$16),Y$5,IF(AND($H44<>$W$15,$I44=$W$16),Y$6,IF(AND($H44<>$W$15,$I44<>$W$16),Y$7)))) - IF(combos!H42=$AC$15,1,0)) -> 0.5 | L44: =IF(combos!I42=$AC$15,-1,1) * (IF(AND($H44=$W$15,$I44=$W$16),Z$4,IF(AND($H44=$W$15,$I44<>$W$16),Z$5,IF(AND($H44<>$W$15,$I44=$W$16),Z$6,IF(AND($H44<>$W$15,$I44<>$W$16),Z$7)))) - IF(combos!I42=$AC$15,1,0)) -> 0.5 | M44: =IF(combos!J42=$AC$15,-1,1) * (IF(AND($H44=$W$15,$I44=$W$16),AA$4,IF(AND($H44=$W$15,$I44<>$W$16),AA$5,IF(AND($H44<>$W$15,$I44=$W$16),AA$6,IF(AND($H44<>$W$15,$I44<>$W$16),AA$7)))) - IF(combos!J42=$AC$15,1,0)) -> 0.5 | N44: =IF(combos!K42=$AC$15,-1,1) * (IF(AND($H44=$W$15,$I44=$W$16),AB$4,IF(AND($H44=$W$15,$I44<>$W$16),AB$5,IF(AND($H44<>$W$15,$I44=$W$16),AB$6,IF(AND($H44<>$W$15,$I44<>$W$16),AB$7)))) - IF(combos!K42=$AC$15,1,0)) -> 0.5 | O44: =IF(combos!L42=$AC$15,-1,1) * (IF(AND($H44=$W$15,$I44=$W$16),AC$4,IF(AND($H44=$W$15,$I44<>$W$16),AC$5,IF(AND($H44<>$W$15,$I44=$W$16),AC$6,IF(AND($H44<>$W$15,$I44<>$W$16),AC$7)))) - IF(combos!L42=$AC$15,1,0)) -> 0.5 | P44: =IF(combos!B42=$AB$15,E44,1-E44) -> 0.5 | Q44: =IF(combos!C42=$AB$15,F44,1-F44) -> 0.5 | R44: =IF(combos!D42=$AB$15,G44,1-G44) -> 0.5 | S44: 0.00048828125 | V44: SozKul_dn | W44: 0.125
A45: Entsch Option A | B45: Ecol_up | C45: Econ_up | D45: SozKul_up | E45: =IF(AND(combos!G43=$AB$15,combos!H43=$AB$15),AH$4, IF(AND(combos!G43=$AB$15,combos!H43<>$AB$15), AH$5, IF(AND(combos!G43<>$AB$15,combos!H43=$AB$15),AH$6, IF(AND(combos!G43<>$AB$15,combos!H43<>$AB$15),AH$7 )))) -> 0.5 | F45: =IF(AND(combos!I43=$AB$15,combos!J43=$AB$15),AI$4, IF(AND(combos!I43=$AB$15,combos!J43<>$AB$15), AI$5, IF(AND(combos!I43<>$AB$15,combos!J43=$AB$15),AI$6, IF(AND(combos!I43<>$AB$15,combos!J43<>$AB$15),AI$7 )))) -> 0.5 | G45: =IF(AND(combos!K43=$AB$15,combos!L43=$AB$15),AJ$4, IF(AND(combos!K43=$AB$15,combos!L43<>$AB$15), AJ$5, IF(AND(combos!K43<>$AB$15,combos!L43=$AB$15),AJ$6, IF(AND(combos!K43<>$AB$15,combos!L43<>$AB$15),AJ$7 )))) -> 0.5 | H45: =IF(combos!E43=$AB$14,W$15,X$15) -> 0.5 | I45: =IF(combos!F43=$AB$14,$W$16,X$16) -> 0.5 | J45: =IF(combos!G43=$AC$15,-1,1) * (IF(AND($H45=$W$15,$I45=$W$16),X$4,IF(AND($H45=$W$15,$I45<>$W$16),X$5,IF(AND($H45<>$W$15,$I45=$W$16),X$6,IF(AND($H45<>$W$15,$I45<>$W$16),X$7)))) - IF(combos!G43=$AC$15,1,0)) -> 0.5 | K45: =IF(combos!H43=$AC$15,-1,1) * (IF(AND($H45=$W$15,$I45=$W$16),Y$4,IF(AND($H45=$W$15,$I45<>$W$16),Y$5,IF(AND($H45<>$W$15,$I45=$W$16),Y$6,IF(AND($H45<>$W$15,$I45<>$W$16),Y$7)))) - IF(combos!H43=$AC$15,1,0)) -> 0.5 | L45: =IF(combos!I43=$AC$15,-1,1) * (IF(AND($H45=$W$15,$I45=$W$16),Z$4,IF(AND($H45=$W$15,$I45<>$W$16),Z$5,IF(AND($H45<>$W$15,$I45=$W$16),Z$6,IF(AND($H45<>$W$15,$I45<>$W$16),Z$7)))) - IF(combos!I43=$AC$15,1,0)) -> 0.5 | M45: =IF(combos!J43=$AC$15,-1,1) * (IF(AND($H45=$W$15,$I45=$W$16),AA$4,IF(AND($H45=$W$15,$I45<>$W$16),AA$5,IF(AND($H45<>$W$15,$I45=$W$16),AA$6,IF(AND($H45<>$W$15,$I45<>$W$16),AA$7)))) - IF(combos!J43=$AC$15,1,0)) -> 0.5 | N45: =IF(combos!K43=$AC$15,-1,1) * (IF(AND($H45=$W$15,$I45=$W$16),AB$4,IF(AND($H45=$W$15,$I45<>$W$16),AB$5,IF(AND($H45<>$W$15,$I45=$W$16),AB$6,IF(AND($H45<>$W$15,$I45<>$W$16),AB$7)))) - IF(combos!K43=$AC$15,1,0)) -> 0.5 | O45: =IF(combos!L43=$AC$15,-1,1) * (IF(AND($H45=$W$15,$I45=$W$16),AC$4,IF(AND($H45=$W$15,$I45<>$W$16),AC$5,IF(AND($H45<>$W$15,$I45=$W$16),AC$6,IF(AND($H45<>$W$15,$I45<>$W$16),AC$7)))) - IF(combos!L43=$AC$15,1,0)) -> 0.5 | P45: =IF(combos!B43=$AB$15,E45,1-E45) -> 0.5 | Q45: =IF(combos!C43=$AB$15,F45,1-F45) -> 0.5 | R45: =IF(combos!D43=$AB$15,G45,1-G45) -> 0.5 | S45: 0.00048828125 | V45: Ecol_dn
A46: Entsch Option A | B46: Ecol_up | C46: Econ_up | D46: SozKul_up | E46: =IF(AND(combos!G44=$AB$15,combos!H44=$AB$15),AH$4, IF(AND(combos!G44=$AB$15,combos!H44<>$AB$15), AH$5, IF(AND(combos!G44<>$AB$15,combos!H44=$AB$15),AH$6, IF(AND(combos!G44<>$AB$15,combos!H44<>$AB$15),AH$7 )))) -> 0.5 | F46: =IF(AND(combos!I44=$AB$15,combos!J44=$AB$15),AI$4, IF(AND(combos!I44=$AB$15,combos!J44<>$AB$15), AI$5, IF(AND(combos!I44<>$AB$15,combos!J44=$AB$15),AI$6, IF(AND(combos!I44<>$AB$15,combos!J44<>$AB$15),AI$7 )))) -> 0.5 | G46: =IF(AND(combos!K44=$AB$15,combos!L44=$AB$15),AJ$4, IF(AND(combos!K44=$AB$15,combos!L44<>$AB$15), AJ$5, IF(AND(combos!K44<>$AB$15,combos!L44=$AB$15),AJ$6, IF(AND(combos!K44<>$AB$15,combos!L44<>$AB$15),AJ$7 )))) -> 0.5 | H46: =IF(combos!E44=$AB$14,W$15,X$15) -> 0.5 | I46: =IF(combos!F44=$AB$14,$W$16,X$16) -> 0.5 | J46: =IF(combos!G44=$AC$15,-1,1) * (IF(AND($H46=$W$15,$I46=$W$16),X$4,IF(AND($H46=$W$15,$I46<>$W$16),X$5,IF(AND($H46<>$W$15,$I46=$W$16),X$6,IF(AND($H46<>$W$15,$I46<>$W$16),X$7)))) - IF(combos!G44=$AC$15,1,0)) -> 0.5 | K46: =IF(combos!H44=$AC$15,-1,1) * (IF(AND($H46=$W$15,$I46=$W$16),Y$4,IF(AND($H46=$W$15,$I46<>$W$16),Y$5,IF(AND($H46<>$W$15,$I46=$W$16),Y$6,IF(AND($H46<>$W$15,$I46<>$W$16),Y$7)))) - IF(combos!H44=$AC$15,1,0)) -> 0.5 | L46: =IF(combos!I44=$AC$15,-1,1) * (IF(AND($H46=$W$15,$I46=$W$16),Z$4,IF(AND($H46=$W$15,$I46<>$W$16),Z$5,IF(AND($H46<>$W$15,$I46=$W$16),Z$6,IF(AND($H46<>$W$15,$I46<>$W$16),Z$7)))) - IF(combos!I44=$AC$15,1,0)) -> 0.5 | M46: =IF(combos!J44=$AC$15,-1,1) * (IF(AND($H46=$W$15,$I46=$W$16),AA$4,IF(AND($H46=$W$15,$I46<>$W$16),AA$5,IF(AND($H46<>$W$15,$I46=$W$16),AA$6,IF(AND($H46<>$W$15,$I46<>$W$16),AA$7)))) - IF(combos!J44=$AC$15,1,0)) -> 0.5 | N46: =IF(combos!K44=$AC$15,-1,1) * (IF(AND($H46=$W$15,$I46=$W$16),AB$4,IF(AND($H46=$W$15,$I46<>$W$16),AB$5,IF(AND($H46<>$W$15,$I46=$W$16),AB$6,IF(AND($H46<>$W$15,$I46<>$W$16),AB$7)))) - IF(combos!K44=$AC$15,1,0)) -> 0.5 | O46: =IF(combos!L44=$AC$15,-1,1) * (IF(AND($H46=$W$15,$I46=$W$16),AC$4,IF(AND($H46=$W$15,$I46<>$W$16),AC$5,IF(AND($H46<>$W$15,$I46=$W$16),AC$6,IF(AND($H46<>$W$15,$I46<>$W$16),AC$7)))) - IF(combos!L44=$AC$15,1,0)) -> 0.5 | P46: =IF(combos!B44=$AB$15,E46,1-E46) -> 0.5 | Q46: =IF(combos!C44=$AB$15,F46,1-F46) -> 0.5 | R46: =IF(combos!D44=$AB$15,G46,1-G46) -> 0.5 | S46: 0.00048828125 | V46: Econ_up
A47: Entsch Option A | B47: Ecol_up | C47: Econ_up | D47: SozKul_up | E47: =IF(AND(combos!G45=$AB$15,combos!H45=$AB$15),AH$4, IF(AND(combos!G45=$AB$15,combos!H45<>$AB$15), AH$5, IF(AND(combos!G45<>$AB$15,combos!H45=$AB$15),AH$6, IF(AND(combos!G45<>$AB$15,combos!H45<>$AB$15),AH$7 )))) -> 0.5 | F47: =IF(AND(combos!I45=$AB$15,combos!J45=$AB$15),AI$4, IF(AND(combos!I45=$AB$15,combos!J45<>$AB$15), AI$5, IF(AND(combos!I45<>$AB$15,combos!J45=$AB$15),AI$6, IF(AND(combos!I45<>$AB$15,combos!J45<>$AB$15),AI$7 )))) -> 0.5 | G47: =IF(AND(combos!K45=$AB$15,combos!L45=$AB$15),AJ$4, IF(AND(combos!K45=$AB$15,combos!L45<>$AB$15), AJ$5, IF(AND(combos!K45<>$AB$15,combos!L45=$AB$15),AJ$6, IF(AND(combos!K45<>$AB$15,combos!L45<>$AB$15),AJ$7 )))) -> 0.5 | H47: =IF(combos!E45=$AB$14,W$15,X$15) -> 0.5 | I47: =IF(combos!F45=$AB$14,$W$16,X$16) -> 0.5 | J47: =IF(combos!G45=$AC$15,-1,1) * (IF(AND($H47=$W$15,$I47=$W$16),X$4,IF(AND($H47=$W$15,$I47<>$W$16),X$5,IF(AND($H47<>$W$15,$I47=$W$16),X$6,IF(AND($H47<>$W$15,$I47<>$W$16),X$7)))) - IF(combos!G45=$AC$15,1,0)) -> 0.5 | K47: =IF(combos!H45=$AC$15,-1,1) * (IF(AND($H47=$W$15,$I47=$W$16),Y$4,IF(AND($H47=$W$15,$I47<>$W$16),Y$5,IF(AND($H47<>$W$15,$I47=$W$16),Y$6,IF(AND($H47<>$W$15,$I47<>$W$16),Y$7)))) - IF(combos!H45=$AC$15,1,0)) -> 0.5 | L47: =IF(combos!I45=$AC$15,-1,1) * (IF(AND($H47=$W$15,$I47=$W$16),Z$4,IF(AND($H47=$W$15,$I47<>$W$16),Z$5,IF(AND($H47<>$W$15,$I47=$W$16),Z$6,IF(AND($H47<>$W$15,$I47<>$W$16),Z$7)))) - IF(combos!I45=$AC$15,1,0)) -> 0.5 | M47: =IF(combos!J45=$AC$15,-1,1) * (IF(AND($H47=$W$15,$I47=$W$16),AA$4,IF(AND($H47=$W$15,$I47<>$W$16),AA$5,IF(AND($H47<>$W$15,$I47=$W$16),AA$6,IF(AND($H47<>$W$15,$I47<>$W$16),AA$7)))) - IF(combos!J45=$AC$15,1,0)) -> 0.5 | N47: =IF(combos!K45=$AC$15,-1,1) * (IF(AND($H47=$W$15,$I47=$W$16),AB$4,IF(AND($H47=$W$15,$I47<>$W$16),AB$5,IF(AND($H47<>$W$15,$I47=$W$16),AB$6,IF(AND($H47<>$W$15,$I47<>$W$16),AB$7)))) - IF(combos!K45=$AC$15,1,0)) -> 0.5 | O47: =IF(combos!L45=$AC$15,-1,1) * (IF(AND($H47=$W$15,$I47=$W$16),AC$4,IF(AND($H47=$W$15,$I47<>$W$16),AC$5,IF(AND($H47<>$W$15,$I47=$W$16),AC$6,IF(AND($H47<>$W$15,$I47<>$W$16),AC$7)))) - IF(combos!L45=$AC$15,1,0)) -> 0.5 | P47: =IF(combos!B45=$AB$15,E47,1-E47) -> 0.5 | Q47: =IF(combos!C45=$AB$15,F47,1-F47) -> 0.5 | R47: =IF(combos!D45=$AB$15,G47,1-G47) -> 0.5 | S47: 0.00048828125 | V47: SozKul_up | W47: 0.125
A48: Entsch Option A | B48: Ecol_up | C48: Econ_up | D48: SozKul_up | E48: =IF(AND(combos!G46=$AB$15,combos!H46=$AB$15),AH$4, IF(AND(combos!G46=$AB$15,combos!H46<>$AB$15), AH$5, IF(AND(combos!G46<>$AB$15,combos!H46=$AB$15),AH$6, IF(AND(combos!G46<>$AB$15,combos!H46<>$AB$15),AH$7 )))) -> 0.5 | F48: =IF(AND(combos!I46=$AB$15,combos!J46=$AB$15),AI$4, IF(AND(combos!I46=$AB$15,combos!J46<>$AB$15), AI$5, IF(AND(combos!I46<>$AB$15,combos!J46=$AB$15),AI$6, IF(AND(combos!I46<>$AB$15,combos!J46<>$AB$15),AI$7 )))) -> 0.5 | G48: =IF(AND(combos!K46=$AB$15,combos!L46=$AB$15),AJ$4, IF(AND(combos!K46=$AB$15,combos!L46<>$AB$15), AJ$5, IF(AND(combos!K46<>$AB$15,combos!L46=$AB$15),AJ$6, IF(AND(combos!K46<>$AB$15,combos!L46<>$AB$15),AJ$7 )))) -> 0.5 | H48: =IF(combos!E46=$AB$14,W$15,X$15) -> 0.5 | I48: =IF(combos!F46=$AB$14,$W$16,X$16) -> 0.5 | J48: =IF(combos!G46=$AC$15,-1,1) * (IF(AND($H48=$W$15,$I48=$W$16),X$4,IF(AND($H48=$W$15,$I48<>$W$16),X$5,IF(AND($H48<>$W$15,$I48=$W$16),X$6,IF(AND($H48<>$W$15,$I48<>$W$16),X$7)))) - IF(combos!G46=$AC$15,1,0)) -> 0.5 | K48: =IF(combos!H46=$AC$15,-1,1) * (IF(AND($H48=$W$15,$I48=$W$16),Y$4,IF(AND($H48=$W$15,$I48<>$W$16),Y$5,IF(AND($H48<>$W$15,$I48=$W$16),Y$6,IF(AND($H48<>$W$15,$I48<>$W$16),Y$7)))) - IF(combos!H46=$AC$15,1,0)) -> 0.5 | L48: =IF(combos!I46=$AC$15,-1,1) * (IF(AND($H48=$W$15,$I48=$W$16),Z$4,IF(AND($H48=$W$15,$I48<>$W$16),Z$5,IF(AND($H48<>$W$15,$I48=$W$16),Z$6,IF(AND($H48<>$W$15,$I48<>$W$16),Z$7)))) - IF(combos!I46=$AC$15,1,0)) -> 0.5 | M48: =IF(combos!J46=$AC$15,-1,1) * (IF(AND($H48=$W$15,$I48=$W$16),AA$4,IF(AND($H48=$W$15,$I48<>$W$16),AA$5,IF(AND($H48<>$W$15,$I48=$W$16),AA$6,IF(AND($H48<>$W$15,$I48<>$W$16),AA$7)))) - IF(combos!J46=$AC$15,1,0)) -> 0.5 | N48: =IF(combos!K46=$AC$15,-1,1) * (IF(AND($H48=$W$15,$I48=$W$16),AB$4,IF(AND($H48=$W$15,$I48<>$W$16),AB$5,IF(AND($H48<>$W$15,$I48=$W$16),AB$6,IF(AND($H48<>$W$15,$I48<>$W$16),AB$7)))) - IF(combos!K46=$AC$15,1,0)) -> 0.5 | O48: =IF(combos!L46=$AC$15,-1,1) * (IF(AND($H48=$W$15,$I48=$W$16),AC$4,IF(AND($H48=$W$15,$I48<>$W$16),AC$5,IF(AND($H48<>$W$15,$I48=$W$16),AC$6,IF(AND($H48<>$W$15,$I48<>$W$16),AC$7)))) - IF(combos!L46=$AC$15,1,0)) -> 0.5 | P48: =IF(combos!B46=$AB$15,E48,1-E48) -> 0.5 | Q48: =IF(combos!C46=$AB$15,F48,1-F48) -> 0.5 | R48: =IF(combos!D46=$AB$15,G48,1-G48) -> 0.5 | S48: 0.00048828125 | V48: SozKul_dn | W48: 0.125
A49: Entsch Option A | B49: Ecol_up | C49: Econ_up | D49: SozKul_up | E49: =IF(AND(combos!G47=$AB$15,combos!H47=$AB$15),AH$4, IF(AND(combos!G47=$AB$15,combos!H47<>$AB$15), AH$5, IF(AND(combos!G47<>$AB$15,combos!H47=$AB$15),AH$6, IF(AND(combos!G47<>$AB$15,combos!H47<>$AB$15),AH$7 )))) -> 0.5 | F49: =IF(AND(combos!I47=$AB$15,combos!J47=$AB$15),AI$4, IF(AND(combos!I47=$AB$15,combos!J47<>$AB$15), AI$5, IF(AND(combos!I47<>$AB$15,combos!J47=$AB$15),AI$6, IF(AND(combos!I47<>$AB$15,combos!J47<>$AB$15),AI$7 )))) -> 0.5 | G49: =IF(AND(combos!K47=$AB$15,combos!L47=$AB$15),AJ$4, IF(AND(combos!K47=$AB$15,combos!L47<>$AB$15), AJ$5, IF(AND(combos!K47<>$AB$15,combos!L47=$AB$15),AJ$6, IF(AND(combos!K47<>$AB$15,combos!L47<>$AB$15),AJ$7 )))) -> 0.5 | H49: =IF(combos!E47=$AB$14,W$15,X$15) -> 0.5 | I49: =IF(combos!F47=$AB$14,$W$16,X$16) -> 0.5 | J49: =IF(combos!G47=$AC$15,-1,1) * (IF(AND($H49=$W$15,$I49=$W$16),X$4,IF(AND($H49=$W$15,$I49<>$W$16),X$5,IF(AND($H49<>$W$15,$I49=$W$16),X$6,IF(AND($H49<>$W$15,$I49<>$W$16),X$7)))) - IF(combos!G47=$AC$15,1,0)) -> 0.5 | K49: =IF(combos!H47=$AC$15,-1,1) * (IF(AND($H49=$W$15,$I49=$W$16),Y$4,IF(AND($H49=$W$15,$I49<>$W$16),Y$5,IF(AND($H49<>$W$15,$I49=$W$16),Y$6,IF(AND($H49<>$W$15,$I49<>$W$16),Y$7)))) - IF(combos!H47=$AC$15,1,0)) -> 0.5 | L49: =IF(combos!I47=$AC$15,-1,1) * (IF(AND($H49=$W$15,$I49=$W$16),Z$4,IF(AND($H49=$W$15,$I49<>$W$16),Z$5,IF(AND($H49<>$W$15,$I49=$W$16),Z$6,IF(AND($H49<>$W$15,$I49<>$W$16),Z$7)))) - IF(combos!I47=$AC$15,1,0)) -> 0.5 | M49: =IF(combos!J47=$AC$15,-1,1) * (IF(AND($H49=$W$15,$I49=$W$16),AA$4,IF(AND($H49=$W$15,$I49<>$W$16),AA$5,IF(AND($H49<>$W$15,$I49=$W$16),AA$6,IF(AND($H49<>$W$15,$I49<>$W$16),AA$7)))) - IF(combos!J47=$AC$15,1,0)) -> 0.5 | N49: =IF(combos!K47=$AC$15,-1,1) * (IF(AND($H49=$W$15,$I49=$W$16),AB$4,IF(AND($H49=$W$15,$I49<>$W$16),AB$5,IF(AND($H49<>$W$15,$I49=$W$16),AB$6,IF(AND($H49<>$W$15,$I49<>$W$16),AB$7)))) - IF(combos!K47=$AC$15,1,0)) -> 0.5 | O49: =IF(combos!L47=$AC$15,-1,1) * (IF(AND($H49=$W$15,$I49=$W$16),AC$4,IF(AND($H49=$W$15,$I49<>$W$16),AC$5,IF(AND($H49<>$W$15,$I49=$W$16),AC$6,IF(AND($H49<>$W$15,$I49<>$W$16),AC$7)))) - IF(combos!L47=$AC$15,1,0)) -> 0.5 | P49: =IF(combos!B47=$AB$15,E49,1-E49) -> 0.5 | Q49: =IF(combos!C47=$AB$15,F49,1-F49) -> 0.5 | R49: =IF(combos!D47=$AB$15,G49,1-G49) -> 0.5 | S49: 0.00048828125 | V49: Econ_dn
A50: Entsch Option A | B50: Ecol_up | C50: Econ_up | D50: SozKul_up | E50: =IF(AND(combos!G48=$AB$15,combos!H48=$AB$15),AH$4, IF(AND(combos!G48=$AB$15,combos!H48<>$AB$15), AH$5, IF(AND(combos!G48<>$AB$15,combos!H48=$AB$15),AH$6, IF(AND(combos!G48<>$AB$15,combos!H48<>$AB$15),AH$7 )))) -> 0.5 | F50: =IF(AND(combos!I48=$AB$15,combos!J48=$AB$15),AI$4, IF(AND(combos!I48=$AB$15,combos!J48<>$AB$15), AI$5, IF(AND(combos!I48<>$AB$15,combos!J48=$AB$15),AI$6, IF(AND(combos!I48<>$AB$15,combos!J48<>$AB$15),AI$7 )))) -> 0.5 | G50: =IF(AND(combos!K48=$AB$15,combos!L48=$AB$15),AJ$4, IF(AND(combos!K48=$AB$15,combos!L48<>$AB$15), AJ$5, IF(AND(combos!K48<>$AB$15,combos!L48=$AB$15),AJ$6, IF(AND(combos!K48<>$AB$15,combos!L48<>$AB$15),AJ$7 )))) -> 0.5 | H50: =IF(combos!E48=$AB$14,W$15,X$15) -> 0.5 | I50: =IF(combos!F48=$AB$14,$W$16,X$16) -> 0.5 | J50: =IF(combos!G48=$AC$15,-1,1) * (IF(AND($H50=$W$15,$I50=$W$16),X$4,IF(AND($H50=$W$15,$I50<>$W$16),X$5,IF(AND($H50<>$W$15,$I50=$W$16),X$6,IF(AND($H50<>$W$15,$I50<>$W$16),X$7)))) - IF(combos!G48=$AC$15,1,0)) -> 0.5 | K50: =IF(combos!H48=$AC$15,-1,1) * (IF(AND($H50=$W$15,$I50=$W$16),Y$4,IF(AND($H50=$W$15,$I50<>$W$16),Y$5,IF(AND($H50<>$W$15,$I50=$W$16),Y$6,IF(AND($H50<>$W$15,$I50<>$W$16),Y$7)))) - IF(combos!H48=$AC$15,1,0)) -> 0.5 | L50: =IF(combos!I48=$AC$15,-1,1) * (IF(AND($H50=$W$15,$I50=$W$16),Z$4,IF(AND($H50=$W$15,$I50<>$W$16),Z$5,IF(AND($H50<>$W$15,$I50=$W$16),Z$6,IF(AND($H50<>$W$15,$I50<>$W$16),Z$7)))) - IF(combos!I48=$AC$15,1,0)) -> 0.5 | M50: =IF(combos!J48=$AC$15,-1,1) * (IF(AND($H50=$W$15,$I50=$W$16),AA$4,IF(AND($H50=$W$15,$I50<>$W$16),AA$5,IF(AND($H50<>$W$15,$I50=$W$16),AA$6,IF(AND($H50<>$W$15,$I50<>$W$16),AA$7)))) - IF(combos!J48=$AC$15,1,0)) -> 0.5 | N50: =IF(combos!K48=$AC$15,-1,1) * (IF(AND($H50=$W$15,$I50=$W$16),AB$4,IF(AND($H50=$W$15,$I50<>$W$16),AB$5,IF(AND($H50<>$W$15,$I50=$W$16),AB$6,IF(AND($H50<>$W$15,$I50<>$W$16),AB$7)))) - IF(combos!K48=$AC$15,1,0)) -> 0.5 | O50: =IF(combos!L48=$AC$15,-1,1) * (IF(AND($H50=$W$15,$I50=$W$16),AC$4,IF(AND($H50=$W$15,$I50<>$W$16),AC$5,IF(AND($H50<>$W$15,$I50=$W$16),AC$6,IF(AND($H50<>$W$15,$I50<>$W$16),AC$7)))) - IF(combos!L48=$AC$15,1,0)) -> 0.5 | P50: =IF(combos!B48=$AB$15,E50,1-E50) -> 0.5 | Q50: =IF(combos!C48=$AB$15,F50,1-F50) -> 0.5 | R50: =IF(combos!D48=$AB$15,G50,1-G50) -> 0.5 | S50: 0.00048828125 | V50: SozKul_up | W50: 0.125
A51: Entsch Option A | B51: Ecol_up | C51: Econ_up | D51: SozKul_up | E51: =IF(AND(combos!G49=$AB$15,combos!H49=$AB$15),AH$4, IF(AND(combos!G49=$AB$15,combos!H49<>$AB$15), AH$5, IF(AND(combos!G49<>$AB$15,combos!H49=$AB$15),AH$6, IF(AND(combos!G49<>$AB$15,combos!H49<>$AB$15),AH$7 )))) -> 0.5 | F51: =IF(AND(combos!I49=$AB$15,combos!J49=$AB$15),AI$4, IF(AND(combos!I49=$AB$15,combos!J49<>$AB$15), AI$5, IF(AND(combos!I49<>$AB$15,combos!J49=$AB$15),AI$6, IF(AND(combos!I49<>$AB$15,combos!J49<>$AB$15),AI$7 )))) -> 0.5 | G51: =IF(AND(combos!K49=$AB$15,combos!L49=$AB$15),AJ$4, IF(AND(combos!K49=$AB$15,combos!L49<>$AB$15), AJ$5, IF(AND(combos!K49<>$AB$15,combos!L49=$AB$15),AJ$6, IF(AND(combos!K49<>$AB$15,combos!L49<>$AB$15),AJ$7 )))) -> 0.5 | H51: =IF(combos!E49=$AB$14,W$15,X$15) -> 0.5 | I51: =IF(combos!F49=$AB$14,$W$16,X$16) -> 0.5 | J51: =IF(combos!G49=$AC$15,-1,1) * (IF(AND($H51=$W$15,$I51=$W$16),X$4,IF(AND($H51=$W$15,$I51<>$W$16),X$5,IF(AND($H51<>$W$15,$I51=$W$16),X$6,IF(AND($H51<>$W$15,$I51<>$W$16),X$7)))) - IF(combos!G49=$AC$15,1,0)) -> 0.5 | K51: =IF(combos!H49=$AC$15,-1,1) * (IF(AND($H51=$W$15,$I51=$W$16),Y$4,IF(AND($H51=$W$15,$I51<>$W$16),Y$5,IF(AND($H51<>$W$15,$I51=$W$16),Y$6,IF(AND($H51<>$W$15,$I51<>$W$16),Y$7)))) - IF(combos!H49=$AC$15,1,0)) -> 0.5 | L51: =IF(combos!I49=$AC$15,-1,1) * (IF(AND($H51=$W$15,$I51=$W$16),Z$4,IF(AND($H51=$W$15,$I51<>$W$16),Z$5,IF(AND($H51<>$W$15,$I51=$W$16),Z$6,IF(AND($H51<>$W$15,$I51<>$W$16),Z$7)))) - IF(combos!I49=$AC$15,1,0)) -> 0.5 | M51: =IF(combos!J49=$AC$15,-1,1) * (IF(AND($H51=$W$15,$I51=$W$16),AA$4,IF(AND($H51=$W$15,$I51<>$W$16),AA$5,IF(AND($H51<>$W$15,$I51=$W$16),AA$6,IF(AND($H51<>$W$15,$I51<>$W$16),AA$7)))) - IF(combos!J49=$AC$15,1,0)) -> 0.5 | N51: =IF(combos!K49=$AC$15,-1,1) * (IF(AND($H51=$W$15,$I51=$W$16),AB$4,IF(AND($H51=$W$15,$I51<>$W$16),AB$5,IF(AND($H51<>$W$15,$I51=$W$16),AB$6,IF(AND($H51<>$W$15,$I51<>$W$16),AB$7)))) - IF(combos!K49=$AC$15,1,0)) -> 0.5 | O51: =IF(combos!L49=$AC$15,-1,1) * (IF(AND($H51=$W$15,$I51=$W$16),AC$4,IF(AND($H51=$W$15,$I51<>$W$16),AC$5,IF(AND($H51<>$W$15,$I51=$W$16),AC$6,IF(AND($H51<>$W$15,$I51<>$W$16),AC$7)))) - IF(combos!L49=$AC$15,1,0)) -> 0.5 | P51: =IF(combos!B49=$AB$15,E51,1-E51) -> 0.5 | Q51: =IF(combos!C49=$AB$15,F51,1-F51) -> 0.5 | R51: =IF(combos!D49=$AB$15,G51,1-G51) -> 0.5 | S51: 0.00048828125 | V51: SozKul_dn | W51: 0.125
A52: Entsch Option A | B52: Ecol_up | C52: Econ_up | D52: SozKul_up | E52: =IF(AND(combos!G50=$AB$15,combos!H50=$AB$15),AH$4, IF(AND(combos!G50=$AB$15,combos!H50<>$AB$15), AH$5, IF(AND(combos!G50<>$AB$15,combos!H50=$AB$15),AH$6, IF(AND(combos!G50<>$AB$15,combos!H50<>$AB$15),AH$7 )))) -> 0.5 | F52: =IF(AND(combos!I50=$AB$15,combos!J50=$AB$15),AI$4, IF(AND(combos!I50=$AB$15,combos!J50<>$AB$15), AI$5, IF(AND(combos!I50<>$AB$15,combos!J50=$AB$15),AI$6, IF(AND(combos!I50<>$AB$15,combos!J50<>$AB$15),AI$7 )))) -> 0.5 | G52: =IF(AND(combos!K50=$AB$15,combos!L50=$AB$15),AJ$4, IF(AND(combos!K50=$AB$15,combos!L50<>$AB$15), AJ$5, IF(AND(combos!K50<>$AB$15,combos!L50=$AB$15),AJ$6, IF(AND(combos!K50<>$AB$15,combos!L50<>$AB$15),AJ$7 )))) -> 0.5 | H52: =IF(combos!E50=$AB$14,W$15,X$15) -> 0.5 | I52: =IF(combos!F50=$AB$14,$W$16,X$16) -> 0.5 | J52: =IF(combos!G50=$AC$15,-1,1) * (IF(AND($H52=$W$15,$I52=$W$16),X$4,IF(AND($H52=$W$15,$I52<>$W$16),X$5,IF(AND($H52<>$W$15,$I52=$W$16),X$6,IF(AND($H52<>$W$15,$I52<>$W$16),X$7)))) - IF(combos!G50=$AC$15,1,0)) -> 0.5 | K52: =IF(combos!H50=$AC$15,-1,1) * (IF(AND($H52=$W$15,$I52=$W$16),Y$4,IF(AND($H52=$W$15,$I52<>$W$16),Y$5,IF(AND($H52<>$W$15,$I52=$W$16),Y$6,IF(AND($H52<>$W$15,$I52<>$W$16),Y$7)))) - IF(combos!H50=$AC$15,1,0)) -> 0.5 | L52: =IF(combos!I50=$AC$15,-1,1) * (IF(AND($H52=$W$15,$I52=$W$16),Z$4,IF(AND($H52=$W$15,$I52<>$W$16),Z$5,IF(AND($H52<>$W$15,$I52=$W$16),Z$6,IF(AND($H52<>$W$15,$I52<>$W$16),Z$7)))) - IF(combos!I50=$AC$15,1,0)) -> 0.5 | M52: =IF(combos!J50=$AC$15,-1,1) * (IF(AND($H52=$W$15,$I52=$W$16),AA$4,IF(AND($H52=$W$15,$I52<>$W$16),AA$5,IF(AND($H52<>$W$15,$I52=$W$16),AA$6,IF(AND($H52<>$W$15,$I52<>$W$16),AA$7)))) - IF(combos!J50=$AC$15,1,0)) -> 0.5 | N52: =IF(combos!K50=$AC$15,-1,1) * (IF(AND($H52=$W$15,$I52=$W$16),AB$4,IF(AND($H52=$W$15,$I52<>$W$16),AB$5,IF(AND($H52<>$W$15,$I52=$W$16),AB$6,IF(AND($H52<>$W$15,$I52<>$W$16),AB$7)))) - IF(combos!K50=$AC$15,1,0)) -> 0.5 | O52: =IF(combos!L50=$AC$15,-1,1) * (IF(AND($H52=$W$15,$I52=$W$16),AC$4,IF(AND($H52=$W$15,$I52<>$W$16),AC$5,IF(AND($H52<>$W$15,$I52=$W$16),AC$6,IF(AND($H52<>$W$15,$I52<>$W$16),AC$7)))) - IF(combos!L50=$AC$15,1,0)) -> 0.5 | P52: =IF(combos!B50=$AB$15,E52,1-E52) -> 0.5 | Q52: =IF(combos!C50=$AB$15,F52,1-F52) -> 0.5 | R52: =IF(combos!D50=$AB$15,G52,1-G52) -> 0.5 | S52: 0.00048828125 | V52: Gesamtergebnis | W52: 1
A53: Entsch Option A | B53: Ecol_up | C53: Econ_up | D53: SozKul_up | E53: =IF(AND(combos!G51=$AB$15,combos!H51=$AB$15),AH$4, IF(AND(combos!G51=$AB$15,combos!H51<>$AB$15), AH$5, IF(AND(combos!G51<>$AB$15,combos!H51=$AB$15),AH$6, IF(AND(combos!G51<>$AB$15,combos!H51<>$AB$15),AH$7 )))) -> 0.5 | F53: =IF(AND(combos!I51=$AB$15,combos!J51=$AB$15),AI$4, IF(AND(combos!I51=$AB$15,combos!J51<>$AB$15), AI$5, IF(AND(combos!I51<>$AB$15,combos!J51=$AB$15),AI$6, IF(AND(combos!I51<>$AB$15,combos!J51<>$AB$15),AI$7 )))) -> 0.5 | G53: =IF(AND(combos!K51=$AB$15,combos!L51=$AB$15),AJ$4, IF(AND(combos!K51=$AB$15,combos!L51<>$AB$15), AJ$5, IF(AND(combos!K51<>$AB$15,combos!L51=$AB$15),AJ$6, IF(AND(combos!K51<>$AB$15,combos!L51<>$AB$15),AJ$7 )))) -> 0.5 | H53: =IF(combos!E51=$AB$14,W$15,X$15) -> 0.5 | I53: =IF(combos!F51=$AB$14,$W$16,X$16) -> 0.5 | J53: =IF(combos!G51=$AC$15,-1,1) * (IF(AND($H53=$W$15,$I53=$W$16),X$4,IF(AND($H53=$W$15,$I53<>$W$16),X$5,IF(AND($H53<>$W$15,$I53=$W$16),X$6,IF(AND($H53<>$W$15,$I53<>$W$16),X$7)))) - IF(combos!G51=$AC$15,1,0)) -> 0.5 | K53: =IF(combos!H51=$AC$15,-1,1) * (IF(AND($H53=$W$15,$I53=$W$16),Y$4,IF(AND($H53=$W$15,$I53<>$W$16),Y$5,IF(AND($H53<>$W$15,$I53=$W$16),Y$6,IF(AND($H53<>$W$15,$I53<>$W$16),Y$7)))) - IF(combos!H51=$AC$15,1,0)) -> 0.5 | L53: =IF(combos!I51=$AC$15,-1,1) * (IF(AND($H53=$W$15,$I53=$W$16),Z$4,IF(AND($H53=$W$15,$I53<>$W$16),Z$5,IF(AND($H53<>$W$15,$I53=$W$16),Z$6,IF(AND($H53<>$W$15,$I53<>$W$16),Z$7)))) - IF(combos!I51=$AC$15,1,0)) -> 0.5 | M53: =IF(combos!J51=$AC$15,-1,1) * (IF(AND($H53=$W$15,$I53=$W$16),AA$4,IF(AND($H53=$W$15,$I53<>$W$16),AA$5,IF(AND($H53<>$W$15,$I53=$W$16),AA$6,IF(AND($H53<>$W$15,$I53<>$W$16),AA$7)))) - IF(combos!J51=$AC$15,1,0)) -> 0.5 | N53: =IF(combos!K51=$AC$15,-1,1) * (IF(AND($H53=$W$15,$I53=$W$16),AB$4,IF(AND($H53=$W$15,$I53<>$W$16),AB$5,IF(AND($H53<>$W$15,$I53=$W$16),AB$6,IF(AND($H53<>$W$15,$I53<>$W$16),AB$7)))) - IF(combos!K51=$AC$15,1,0)) -> 0.5 | O53: =IF(combos!L51=$AC$15,-1,1) * (IF(AND($H53=$W$15,$I53=$W$16),AC$4,IF(AND($H53=$W$15,$I53<>$W$16),AC$5,IF(AND($H53<>$W$15,$I53=$W$16),AC$6,IF(AND($H53<>$W$15,$I53<>$W$16),AC$7)))) - IF(combos!L51=$AC$15,1,0)) -> 0.5 | P53: =IF(combos!B51=$AB$15,E53,1-E53) -> 0.5 | Q53: =IF(combos!C51=$AB$15,F53,1-F53) -> 0.5 | R53: =IF(combos!D51=$AB$15,G53,1-G53) -> 0.5 | S53: 0.00048828125
A54: Entsch Option A | B54: Ecol_up | C54: Econ_up | D54: SozKul_up | E54: =IF(AND(combos!G52=$AB$15,combos!H52=$AB$15),AH$4, IF(AND(combos!G52=$AB$15,combos!H52<>$AB$15), AH$5, IF(AND(combos!G52<>$AB$15,combos!H52=$AB$15),AH$6, IF(AND(combos!G52<>$AB$15,combos!H52<>$AB$15),AH$7 )))) -> 0.5 | F54: =IF(AND(combos!I52=$AB$15,combos!J52=$AB$15),AI$4, IF(AND(combos!I52=$AB$15,combos!J52<>$AB$15), AI$5, IF(AND(combos!I52<>$AB$15,combos!J52=$AB$15),AI$6, IF(AND(combos!I52<>$AB$15,combos!J52<>$AB$15),AI$7 )))) -> 0.5 | G54: =IF(AND(combos!K52=$AB$15,combos!L52=$AB$15),AJ$4, IF(AND(combos!K52=$AB$15,combos!L52<>$AB$15), AJ$5, IF(AND(combos!K52<>$AB$15,combos!L52=$AB$15),AJ$6, IF(AND(combos!K52<>$AB$15,combos!L52<>$AB$15),AJ$7 )))) -> 0.5 | H54: =IF(combos!E52=$AB$14,W$15,X$15) -> 0.5 | I54: =IF(combos!F52=$AB$14,$W$16,X$16) -> 0.5 | J54: =IF(combos!G52=$AC$15,-1,1) * (IF(AND($H54=$W$15,$I54=$W$16),X$4,IF(AND($H54=$W$15,$I54<>$W$16),X$5,IF(AND($H54<>$W$15,$I54=$W$16),X$6,IF(AND($H54<>$W$15,$I54<>$W$16),X$7)))) - IF(combos!G52=$AC$15,1,0)) -> 0.5 | K54: =IF(combos!H52=$AC$15,-1,1) * (IF(AND($H54=$W$15,$I54=$W$16),Y$4,IF(AND($H54=$W$15,$I54<>$W$16),Y$5,IF(AND($H54<>$W$15,$I54=$W$16),Y$6,IF(AND($H54<>$W$15,$I54<>$W$16),Y$7)))) - IF(combos!H52=$AC$15,1,0)) -> 0.5 | L54: =IF(combos!I52=$AC$15,-1,1) * (IF(AND($H54=$W$15,$I54=$W$16),Z$4,IF(AND($H54=$W$15,$I54<>$W$16),Z$5,IF(AND($H54<>$W$15,$I54=$W$16),Z$6,IF(AND($H54<>$W$15,$I54<>$W$16),Z$7)))) - IF(combos!I52=$AC$15,1,0)) -> 0.5 | M54: =IF(combos!J52=$AC$15,-1,1) * (IF(AND($H54=$W$15,$I54=$W$16),AA$4,IF(AND($H54=$W$15,$I54<>$W$16),AA$5,IF(AND($H54<>$W$15,$I54=$W$16),AA$6,IF(AND($H54<>$W$15,$I54<>$W$16),AA$7)))) - IF(combos!J52=$AC$15,1,0)) -> 0.5 | N54: =IF(combos!K52=$AC$15,-1,1) * (IF(AND($H54=$W$15,$I54=$W$16),AB$4,IF(AND($H54=$W$15,$I54<>$W$16),AB$5,IF(AND($H54<>$W$15,$I54=$W$16),AB$6,IF(AND($H54<>$W$15,$I54<>$W$16),AB$7)))) - IF(combos!K52=$AC$15,1,0)) -> 0.5 | O54: =IF(combos!L52=$AC$15,-1,1) * (IF(AND($H54=$W$15,$I54=$W$16),AC$4,IF(AND($H54=$W$15,$I54<>$W$16),AC$5,IF(AND($H54<>$W$15,$I54=$W$16),AC$6,IF(AND($H54<>$W$15,$I54<>$W$16),AC$7)))) - IF(combos!L52=$AC$15,1,0)) -> 0.5 | P54: =IF(combos!B52=$AB$15,E54,1-E54) -> 0.5 | Q54: =IF(combos!C52=$AB$15,F54,1-F54) -> 0.5 | R54: =IF(combos!D52=$AB$15,G54,1-G54) -> 0.5 | S54: 0.00048828125
A55: Entsch Option A | B55: Ecol_up | C55: Econ_up | D55: SozKul_up | E55: =IF(AND(combos!G53=$AB$15,combos!H53=$AB$15),AH$4, IF(AND(combos!G53=$AB$15,combos!H53<>$AB$15), AH$5, IF(AND(combos!G53<>$AB$15,combos!H53=$AB$15),AH$6, IF(AND(combos!G53<>$AB$15,combos!H53<>$AB$15),AH$7 )))) -> 0.5 | F55: =IF(AND(combos!I53=$AB$15,combos!J53=$AB$15),AI$4, IF(AND(combos!I53=$AB$15,combos!J53<>$AB$15), AI$5, IF(AND(combos!I53<>$AB$15,combos!J53=$AB$15),AI$6, IF(AND(combos!I53<>$AB$15,combos!J53<>$AB$15),AI$7 )))) -> 0.5 | G55: =IF(AND(combos!K53=$AB$15,combos!L53=$AB$15),AJ$4, IF(AND(combos!K53=$AB$15,combos!L53<>$AB$15), AJ$5, IF(AND(combos!K53<>$AB$15,combos!L53=$AB$15),AJ$6, IF(AND(combos!K53<>$AB$15,combos!L53<>$AB$15),AJ$7 )))) -> 0.5 | H55: =IF(combos!E53=$AB$14,W$15,X$15) -> 0.5 | I55: =IF(combos!F53=$AB$14,$W$16,X$16) -> 0.5 | J55: =IF(combos!G53=$AC$15,-1,1) * (IF(AND($H55=$W$15,$I55=$W$16),X$4,IF(AND($H55=$W$15,$I55<>$W$16),X$5,IF(AND($H55<>$W$15,$I55=$W$16),X$6,IF(AND($H55<>$W$15,$I55<>$W$16),X$7)))) - IF(combos!G53=$AC$15,1,0)) -> 0.5 | K55: =IF(combos!H53=$AC$15,-1,1) * (IF(AND($H55=$W$15,$I55=$W$16),Y$4,IF(AND($H55=$W$15,$I55<>$W$16),Y$5,IF(AND($H55<>$W$15,$I55=$W$16),Y$6,IF(AND($H55<>$W$15,$I55<>$W$16),Y$7)))) - IF(combos!H53=$AC$15,1,0)) -> 0.5 | L55: =IF(combos!I53=$AC$15,-1,1) * (IF(AND($H55=$W$15,$I55=$W$16),Z$4,IF(AND($H55=$W$15,$I55<>$W$16),Z$5,IF(AND($H55<>$W$15,$I55=$W$16),Z$6,IF(AND($H55<>$W$15,$I55<>$W$16),Z$7)))) - IF(combos!I53=$AC$15,1,0)) -> 0.5 | M55: =IF(combos!J53=$AC$15,-1,1) * (IF(AND($H55=$W$15,$I55=$W$16),AA$4,IF(AND($H55=$W$15,$I55<>$W$16),AA$5,IF(AND($H55<>$W$15,$I55=$W$16),AA$6,IF(AND($H55<>$W$15,$I55<>$W$16),AA$7)))) - IF(combos!J53=$AC$15,1,0)) -> 0.5 | N55: =IF(combos!K53=$AC$15,-1,1) * (IF(AND($H55=$W$15,$I55=$W$16),AB$4,IF(AND($H55=$W$15,$I55<>$W$16),AB$5,IF(AND($H55<>$W$15,$I55=$W$16),AB$6,IF(AND($H55<>$W$15,$I55<>$W$16),AB$7)))) - IF(combos!K53=$AC$15,1,0)) -> 0.5 | O55: =IF(combos!L53=$AC$15,-1,1) * (IF(AND($H55=$W$15,$I55=$W$16),AC$4,IF(AND($H55=$W$15,$I55<>$W$16),AC$5,IF(AND($H55<>$W$15,$I55=$W$16),AC$6,IF(AND($H55<>$W$15,$I55<>$W$16),AC$7)))) - IF(combos!L53=$AC$15,1,0)) -> 0.5 | P55: =IF(combos!B53=$AB$15,E55,1-E55) -> 0.5 | Q55: =IF(combos!C53=$AB$15,F55,1-F55) -> 0.5 | R55: =IF(combos!D53=$AB$15,G55,1-G55) -> 0.5 | S55: 0.00048828125
A56: Entsch Option A | B56: Ecol_up | C56: Econ_up | D56: SozKul_up | E56: =IF(AND(combos!G54=$AB$15,combos!H54=$AB$15),AH$4, IF(AND(combos!G54=$AB$15,combos!H54<>$AB$15), AH$5, IF(AND(combos!G54<>$AB$15,combos!H54=$AB$15),AH$6, IF(AND(combos!G54<>$AB$15,combos!H54<>$AB$15),AH$7 )))) -> 0.5 | F56: =IF(AND(combos!I54=$AB$15,combos!J54=$AB$15),AI$4, IF(AND(combos!I54=$AB$15,combos!J54<>$AB$15), AI$5, IF(AND(combos!I54<>$AB$15,combos!J54=$AB$15),AI$6, IF(AND(combos!I54<>$AB$15,combos!J54<>$AB$15),AI$7 )))) -> 0.5 | G56: =IF(AND(combos!K54=$AB$15,combos!L54=$AB$15),AJ$4, IF(AND(combos!K54=$AB$15,combos!L54<>$AB$15), AJ$5, IF(AND(combos!K54<>$AB$15,combos!L54=$AB$15),AJ$6, IF(AND(combos!K54<>$AB$15,combos!L54<>$AB$15),AJ$7 )))) -> 0.5 | H56: =IF(combos!E54=$AB$14,W$15,X$15) -> 0.5 | I56: =IF(combos!F54=$AB$14,$W$16,X$16) -> 0.5 | J56: =IF(combos!G54=$AC$15,-1,1) * (IF(AND($H56=$W$15,$I56=$W$16),X$4,IF(AND($H56=$W$15,$I56<>$W$16),X$5,IF(AND($H56<>$W$15,$I56=$W$16),X$6,IF(AND($H56<>$W$15,$I56<>$W$16),X$7)))) - IF(combos!G54=$AC$15,1,0)) -> 0.5 | K56: =IF(combos!H54=$AC$15,-1,1) * (IF(AND($H56=$W$15,$I56=$W$16),Y$4,IF(AND($H56=$W$15,$I56<>$W$16),Y$5,IF(AND($H56<>$W$15,$I56=$W$16),Y$6,IF(AND($H56<>$W$15,$I56<>$W$16),Y$7)))) - IF(combos!H54=$AC$15,1,0)) -> 0.5 | L56: =IF(combos!I54=$AC$15,-1,1) * (IF(AND($H56=$W$15,$I56=$W$16),Z$4,IF(AND($H56=$W$15,$I56<>$W$16),Z$5,IF(AND($H56<>$W$15,$I56=$W$16),Z$6,IF(AND($H56<>$W$15,$I56<>$W$16),Z$7)))) - IF(combos!I54=$AC$15,1,0)) -> 0.5 | M56: =IF(combos!J54=$AC$15,-1,1) * (IF(AND($H56=$W$15,$I56=$W$16),AA$4,IF(AND($H56=$W$15,$I56<>$W$16),AA$5,IF(AND($H56<>$W$15,$I56=$W$16),AA$6,IF(AND($H56<>$W$15,$I56<>$W$16),AA$7)))) - IF(combos!J54=$AC$15,1,0)) -> 0.5 | N56: =IF(combos!K54=$AC$15,-1,1) * (IF(AND($H56=$W$15,$I56=$W$16),AB$4,IF(AND($H56=$W$15,$I56<>$W$16),AB$5,IF(AND($H56<>$W$15,$I56=$W$16),AB$6,IF(AND($H56<>$W$15,$I56<>$W$16),AB$7)))) - IF(combos!K54=$AC$15,1,0)) -> 0.5 | O56: =IF(combos!L54=$AC$15,-1,1) * (IF(AND($H56=$W$15,$I56=$W$16),AC$4,IF(AND($H56=$W$15,$I56<>$W$16),AC$5,IF(AND($H56<>$W$15,$I56=$W$16),AC$6,IF(AND($H56<>$W$15,$I56<>$W$16),AC$7)))) - IF(combos!L54=$AC$15,1,0)) -> 0.5 | P56: =IF(combos!B54=$AB$15,E56,1-E56) -> 0.5 | Q56: =IF(combos!C54=$AB$15,F56,1-F56) -> 0.5 | R56: =IF(combos!D54=$AB$15,G56,1-G56) -> 0.5 | S56: 0.00048828125
A57: Entsch Option A | B57: Ecol_up | C57: Econ_up | D57: SozKul_up | E57: =IF(AND(combos!G55=$AB$15,combos!H55=$AB$15),AH$4, IF(AND(combos!G55=$AB$15,combos!H55<>$AB$15), AH$5, IF(AND(combos!G55<>$AB$15,combos!H55=$AB$15),AH$6, IF(AND(combos!G55<>$AB$15,combos!H55<>$AB$15),AH$7 )))) -> 0.5 | F57: =IF(AND(combos!I55=$AB$15,combos!J55=$AB$15),AI$4, IF(AND(combos!I55=$AB$15,combos!J55<>$AB$15), AI$5, IF(AND(combos!I55<>$AB$15,combos!J55=$AB$15),AI$6, IF(AND(combos!I55<>$AB$15,combos!J55<>$AB$15),AI$7 )))) -> 0.5 | G57: =IF(AND(combos!K55=$AB$15,combos!L55=$AB$15),AJ$4, IF(AND(combos!K55=$AB$15,combos!L55<>$AB$15), AJ$5, IF(AND(combos!K55<>$AB$15,combos!L55=$AB$15),AJ$6, IF(AND(combos!K55<>$AB$15,combos!L55<>$AB$15),AJ$7 )))) -> 0.5 | H57: =IF(combos!E55=$AB$14,W$15,X$15) -> 0.5 | I57: =IF(combos!F55=$AB$14,$W$16,X$16) -> 0.5 | J57: =IF(combos!G55=$AC$15,-1,1) * (IF(AND($H57=$W$15,$I57=$W$16),X$4,IF(AND($H57=$W$15,$I57<>$W$16),X$5,IF(AND($H57<>$W$15,$I57=$W$16),X$6,IF(AND($H57<>$W$15,$I57<>$W$16),X$7)))) - IF(combos!G55=$AC$15,1,0)) -> 0.5 | K57: =IF(combos!H55=$AC$15,-1,1) * (IF(AND($H57=$W$15,$I57=$W$16),Y$4,IF(AND($H57=$W$15,$I57<>$W$16),Y$5,IF(AND($H57<>$W$15,$I57=$W$16),Y$6,IF(AND($H57<>$W$15,$I57<>$W$16),Y$7)))) - IF(combos!H55=$AC$15,1,0)) -> 0.5 | L57: =IF(combos!I55=$AC$15,-1,1) * (IF(AND($H57=$W$15,$I57=$W$16),Z$4,IF(AND($H57=$W$15,$I57<>$W$16),Z$5,IF(AND($H57<>$W$15,$I57=$W$16),Z$6,IF(AND($H57<>$W$15,$I57<>$W$16),Z$7)))) - IF(combos!I55=$AC$15,1,0)) -> 0.5 | M57: =IF(combos!J55=$AC$15,-1,1) * (IF(AND($H57=$W$15,$I57=$W$16),AA$4,IF(AND($H57=$W$15,$I57<>$W$16),AA$5,IF(AND($H57<>$W$15,$I57=$W$16),AA$6,IF(AND($H57<>$W$15,$I57<>$W$16),AA$7)))) - IF(combos!J55=$AC$15,1,0)) -> 0.5 | N57: =IF(combos!K55=$AC$15,-1,1) * (IF(AND($H57=$W$15,$I57=$W$16),AB$4,IF(AND($H57=$W$15,$I57<>$W$16),AB$5,IF(AND($H57<>$W$15,$I57=$W$16),AB$6,IF(AND($H57<>$W$15,$I57<>$W$16),AB$7)))) - IF(combos!K55=$AC$15,1,0)) -> 0.5 | O57: =IF(combos!L55=$AC$15,-1,1) * (IF(AND($H57=$W$15,$I57=$W$16),AC$4,IF(AND($H57=$W$15,$I57<>$W$16),AC$5,IF(AND($H57<>$W$15,$I57=$W$16),AC$6,IF(AND($H57<>$W$15,$I57<>$W$16),AC$7)))) - IF(combos!L55=$AC$15,1,0)) -> 0.5 | P57: =IF(combos!B55=$AB$15,E57,1-E57) -> 0.5 | Q57: =IF(combos!C55=$AB$15,F57,1-F57) -> 0.5 | R57: =IF(combos!D55=$AB$15,G57,1-G57) -> 0.5 | S57: 0.00048828125
A58: Entsch Option A | B58: Ecol_up | C58: Econ_up | D58: SozKul_up | E58: =IF(AND(combos!G56=$AB$15,combos!H56=$AB$15),AH$4, IF(AND(combos!G56=$AB$15,combos!H56<>$AB$15), AH$5, IF(AND(combos!G56<>$AB$15,combos!H56=$AB$15),AH$6, IF(AND(combos!G56<>$AB$15,combos!H56<>$AB$15),AH$7 )))) -> 0.5 | F58: =IF(AND(combos!I56=$AB$15,combos!J56=$AB$15),AI$4, IF(AND(combos!I56=$AB$15,combos!J56<>$AB$15), AI$5, IF(AND(combos!I56<>$AB$15,combos!J56=$AB$15),AI$6, IF(AND(combos!I56<>$AB$15,combos!J56<>$AB$15),AI$7 )))) -> 0.5 | G58: =IF(AND(combos!K56=$AB$15,combos!L56=$AB$15),AJ$4, IF(AND(combos!K56=$AB$15,combos!L56<>$AB$15), AJ$5, IF(AND(combos!K56<>$AB$15,combos!L56=$AB$15),AJ$6, IF(AND(combos!K56<>$AB$15,combos!L56<>$AB$15),AJ$7 )))) -> 0.5 | H58: =IF(combos!E56=$AB$14,W$15,X$15) -> 0.5 | I58: =IF(combos!F56=$AB$14,$W$16,X$16) -> 0.5 | J58: =IF(combos!G56=$AC$15,-1,1) * (IF(AND($H58=$W$15,$I58=$W$16),X$4,IF(AND($H58=$W$15,$I58<>$W$16),X$5,IF(AND($H58<>$W$15,$I58=$W$16),X$6,IF(AND($H58<>$W$15,$I58<>$W$16),X$7)))) - IF(combos!G56=$AC$15,1,0)) -> 0.5 | K58: =IF(combos!H56=$AC$15,-1,1) * (IF(AND($H58=$W$15,$I58=$W$16),Y$4,IF(AND($H58=$W$15,$I58<>$W$16),Y$5,IF(AND($H58<>$W$15,$I58=$W$16),Y$6,IF(AND($H58<>$W$15,$I58<>$W$16),Y$7)))) - IF(combos!H56=$AC$15,1,0)) -> 0.5 | L58: =IF(combos!I56=$AC$15,-1,1) * (IF(AND($H58=$W$15,$I58=$W$16),Z$4,IF(AND($H58=$W$15,$I58<>$W$16),Z$5,IF(AND($H58<>$W$15,$I58=$W$16),Z$6,IF(AND($H58<>$W$15,$I58<>$W$16),Z$7)))) - IF(combos!I56=$AC$15,1,0)) -> 0.5 | M58: =IF(combos!J56=$AC$15,-1,1) * (IF(AND($H58=$W$15,$I58=$W$16),AA$4,IF(AND($H58=$W$15,$I58<>$W$16),AA$5,IF(AND($H58<>$W$15,$I58=$W$16),AA$6,IF(AND($H58<>$W$15,$I58<>$W$16),AA$7)))) - IF(combos!J56=$AC$15,1,0)) -> 0.5 | N58: =IF(combos!K56=$AC$15,-1,1) * (IF(AND($H58=$W$15,$I58=$W$16),AB$4,IF(AND($H58=$W$15,$I58<>$W$16),AB$5,IF(AND($H58<>$W$15,$I58=$W$16),AB$6,IF(AND($H58<>$W$15,$I58<>$W$16),AB$7)))) - IF(combos!K56=$AC$15,1,0)) -> 0.5 | O58: =IF(combos!L56=$AC$15,-1,1) * (IF(AND($H58=$W$15,$I58=$W$16),AC$4,IF(AND($H58=$W$15,$I58<>$W$16),AC$5,IF(AND($H58<>$W$15,$I58=$W$16),AC$6,IF(AND($H58<>$W$15,$I58<>$W$16),AC$7)))) - IF(combos!L56=$AC$15,1,0)) -> 0.5 | P58: =IF(combos!B56=$AB$15,E58,1-E58) -> 0.5 | Q58: =IF(combos!C56=$AB$15,F58,1-F58) -> 0.5 | R58: =IF(combos!D56=$AB$15,G58,1-G58) -> 0.5 | S58: 0.00048828125
A59: Entsch Option A | B59: Ecol_up | C59: Econ_up | D59: SozKul_up | E59: =IF(AND(combos!G57=$AB$15,combos!H57=$AB$15),AH$4, IF(AND(combos!G57=$AB$15,combos!H57<>$AB$15), AH$5, IF(AND(combos!G57<>$AB$15,combos!H57=$AB$15),AH$6, IF(AND(combos!G57<>$AB$15,combos!H57<>$AB$15),AH$7 )))) -> 0.5 | F59: =IF(AND(combos!I57=$AB$15,combos!J57=$AB$15),AI$4, IF(AND(combos!I57=$AB$15,combos!J57<>$AB$15), AI$5, IF(AND(combos!I57<>$AB$15,combos!J57=$AB$15),AI$6, IF(AND(combos!I57<>$AB$15,combos!J57<>$AB$15),AI$7 )))) -> 0.5 | G59: =IF(AND(combos!K57=$AB$15,combos!L57=$AB$15),AJ$4, IF(AND(combos!K57=$AB$15,combos!L57<>$AB$15), AJ$5, IF(AND(combos!K57<>$AB$15,combos!L57=$AB$15),AJ$6, IF(AND(combos!K57<>$AB$15,combos!L57<>$AB$15),AJ$7 )))) -> 0.5 | H59: =IF(combos!E57=$AB$14,W$15,X$15) -> 0.5 | I59: =IF(combos!F57=$AB$14,$W$16,X$16) -> 0.5 | J59: =IF(combos!G57=$AC$15,-1,1) * (IF(AND($H59=$W$15,$I59=$W$16),X$4,IF(AND($H59=$W$15,$I59<>$W$16),X$5,IF(AND($H59<>$W$15,$I59=$W$16),X$6,IF(AND($H59<>$W$15,$I59<>$W$16),X$7)))) - IF(combos!G57=$AC$15,1,0)) -> 0.5 | K59: =IF(combos!H57=$AC$15,-1,1) * (IF(AND($H59=$W$15,$I59=$W$16),Y$4,IF(AND($H59=$W$15,$I59<>$W$16),Y$5,IF(AND($H59<>$W$15,$I59=$W$16),Y$6,IF(AND($H59<>$W$15,$I59<>$W$16),Y$7)))) - IF(combos!H57=$AC$15,1,0)) -> 0.5 | L59: =IF(combos!I57=$AC$15,-1,1) * (IF(AND($H59=$W$15,$I59=$W$16),Z$4,IF(AND($H59=$W$15,$I59<>$W$16),Z$5,IF(AND($H59<>$W$15,$I59=$W$16),Z$6,IF(AND($H59<>$W$15,$I59<>$W$16),Z$7)))) - IF(combos!I57=$AC$15,1,0)) -> 0.5 | M59: =IF(combos!J57=$AC$15,-1,1) * (IF(AND($H59=$W$15,$I59=$W$16),AA$4,IF(AND($H59=$W$15,$I59<>$W$16),AA$5,IF(AND($H59<>$W$15,$I59=$W$16),AA$6,IF(AND($H59<>$W$15,$I59<>$W$16),AA$7)))) - IF(combos!J57=$AC$15,1,0)) -> 0.5 | N59: =IF(combos!K57=$AC$15,-1,1) * (IF(AND($H59=$W$15,$I59=$W$16),AB$4,IF(AND($H59=$W$15,$I59<>$W$16),AB$5,IF(AND($H59<>$W$15,$I59=$W$16),AB$6,IF(AND($H59<>$W$15,$I59<>$W$16),AB$7)))) - IF(combos!K57=$AC$15,1,0)) -> 0.5 | O59: =IF(combos!L57=$AC$15,-1,1) * (IF(AND($H59=$W$15,$I59=$W$16),AC$4,IF(AND($H59=$W$15,$I59<>$W$16),AC$5,IF(AND($H59<>$W$15,$I59=$W$16),AC$6,IF(AND($H59<>$W$15,$I59<>$W$16),AC$7)))) - IF(combos!L57=$AC$15,1,0)) -> 0.5 | P59: =IF(combos!B57=$AB$15,E59,1-E59) -> 0.5 | Q59: =IF(combos!C57=$AB$15,F59,1-F59) -> 0.5 | R59: =IF(combos!D57=$AB$15,G59,1-G59) -> 0.5 | S59: 0.00048828125
A60: Entsch Option A | B60: Ecol_up | C60: Econ_up | D60: SozKul_up | E60: =IF(AND(combos!G58=$AB$15,combos!H58=$AB$15),AH$4, IF(AND(combos!G58=$AB$15,combos!H58<>$AB$15), AH$5, IF(AND(combos!G58<>$AB$15,combos!H58=$AB$15),AH$6, IF(AND(combos!G58<>$AB$15,combos!H58<>$AB$15),AH$7 )))) -> 0.5 | F60: =IF(AND(combos!I58=$AB$15,combos!J58=$AB$15),AI$4, IF(AND(combos!I58=$AB$15,combos!J58<>$AB$15), AI$5, IF(AND(combos!I58<>$AB$15,combos!J58=$AB$15),AI$6, IF(AND(combos!I58<>$AB$15,combos!J58<>$AB$15),AI$7 )))) -> 0.5 | G60: =IF(AND(combos!K58=$AB$15,combos!L58=$AB$15),AJ$4, IF(AND(combos!K58=$AB$15,combos!L58<>$AB$15), AJ$5, IF(AND(combos!K58<>$AB$15,combos!L58=$AB$15),AJ$6, IF(AND(combos!K58<>$AB$15,combos!L58<>$AB$15),AJ$7 )))) -> 0.5 | H60: =IF(combos!E58=$AB$14,W$15,X$15) -> 0.5 | I60: =IF(combos!F58=$AB$14,$W$16,X$16) -> 0.5 | J60: =IF(combos!G58=$AC$15,-1,1) * (IF(AND($H60=$W$15,$I60=$W$16),X$4,IF(AND($H60=$W$15,$I60<>$W$16),X$5,IF(AND($H60<>$W$15,$I60=$W$16),X$6,IF(AND($H60<>$W$15,$I60<>$W$16),X$7)))) - IF(combos!G58=$AC$15,1,0)) -> 0.5 | K60: =IF(combos!H58=$AC$15,-1,1) * (IF(AND($H60=$W$15,$I60=$W$16),Y$4,IF(AND($H60=$W$15,$I60<>$W$16),Y$5,IF(AND($H60<>$W$15,$I60=$W$16),Y$6,IF(AND($H60<>$W$15,$I60<>$W$16),Y$7)))) - IF(combos!H58=$AC$15,1,0)) -> 0.5 | L60: =IF(combos!I58=$AC$15,-1,1) * (IF(AND($H60=$W$15,$I60=$W$16),Z$4,IF(AND($H60=$W$15,$I60<>$W$16),Z$5,IF(AND($H60<>$W$15,$I60=$W$16),Z$6,IF(AND($H60<>$W$15,$I60<>$W$16),Z$7)))) - IF(combos!I58=$AC$15,1,0)) -> 0.5 | M60: =IF(combos!J58=$AC$15,-1,1) * (IF(AND($H60=$W$15,$I60=$W$16),AA$4,IF(AND($H60=$W$15,$I60<>$W$16),AA$5,IF(AND($H60<>$W$15,$I60=$W$16),AA$6,IF(AND($H60<>$W$15,$I60<>$W$16),AA$7)))) - IF(combos!J58=$AC$15,1,0)) -> 0.5 | N60: =IF(combos!K58=$AC$15,-1,1) * (IF(AND($H60=$W$15,$I60=$W$16),AB$4,IF(AND($H60=$W$15,$I60<>$W$16),AB$5,IF(AND($H60<>$W$15,$I60=$W$16),AB$6,IF(AND($H60<>$W$15,$I60<>$W$16),AB$7)))) - IF(combos!K58=$AC$15,1,0)) -> 0.5 | O60: =IF(combos!L58=$AC$15,-1,1) * (IF(AND($H60=$W$15,$I60=$W$16),AC$4,IF(AND($H60=$W$15,$I60<>$W$16),AC$5,IF(AND($H60<>$W$15,$I60=$W$16),AC$6,IF(AND($H60<>$W$15,$I60<>$W$16),AC$7)))) - IF(combos!L58=$AC$15,1,0)) -> 0.5 | P60: =IF(combos!B58=$AB$15,E60,1-E60) -> 0.5 | Q60: =IF(combos!C58=$AB$15,F60,1-F60) -> 0.5 | R60: =IF(combos!D58=$AB$15,G60,1-G60) -> 0.5 | S60: 0.00048828125
A61: Entsch Option A | B61: Ecol_up | C61: Econ_up | D61: SozKul_up | E61: =IF(AND(combos!G59=$AB$15,combos!H59=$AB$15),AH$4, IF(AND(combos!G59=$AB$15,combos!H59<>$AB$15), AH$5, IF(AND(combos!G59<>$AB$15,combos!H59=$AB$15),AH$6, IF(AND(combos!G59<>$AB$15,combos!H59<>$AB$15),AH$7 )))) -> 0.5 | F61: =IF(AND(combos!I59=$AB$15,combos!J59=$AB$15),AI$4, IF(AND(combos!I59=$AB$15,combos!J59<>$AB$15), AI$5, IF(AND(combos!I59<>$AB$15,combos!J59=$AB$15),AI$6, IF(AND(combos!I59<>$AB$15,combos!J59<>$AB$15),AI$7 )))) -> 0.5 | G61: =IF(AND(combos!K59=$AB$15,combos!L59=$AB$15),AJ$4, IF(AND(combos!K59=$AB$15,combos!L59<>$AB$15), AJ$5, IF(AND(combos!K59<>$AB$15,combos!L59=$AB$15),AJ$6, IF(AND(combos!K59<>$AB$15,combos!L59<>$AB$15),AJ$7 )))) -> 0.5 | H61: =IF(combos!E59=$AB$14,W$15,X$15) -> 0.5 | I61: =IF(combos!F59=$AB$14,$W$16,X$16) -> 0.5 | J61: =IF(combos!G59=$AC$15,-1,1) * (IF(AND($H61=$W$15,$I61=$W$16),X$4,IF(AND($H61=$W$15,$I61<>$W$16),X$5,IF(AND($H61<>$W$15,$I61=$W$16),X$6,IF(AND($H61<>$W$15,$I61<>$W$16),X$7)))) - IF(combos!G59=$AC$15,1,0)) -> 0.5 | K61: =IF(combos!H59=$AC$15,-1,1) * (IF(AND($H61=$W$15,$I61=$W$16),Y$4,IF(AND($H61=$W$15,$I61<>$W$16),Y$5,IF(AND($H61<>$W$15,$I61=$W$16),Y$6,IF(AND($H61<>$W$15,$I61<>$W$16),Y$7)))) - IF(combos!H59=$AC$15,1,0)) -> 0.5 | L61: =IF(combos!I59=$AC$15,-1,1) * (IF(AND($H61=$W$15,$I61=$W$16),Z$4,IF(AND($H61=$W$15,$I61<>$W$16),Z$5,IF(AND($H61<>$W$15,$I61=$W$16),Z$6,IF(AND($H61<>$W$15,$I61<>$W$16),Z$7)))) - IF(combos!I59=$AC$15,1,0)) -> 0.5 | M61: =IF(combos!J59=$AC$15,-1,1) * (IF(AND($H61=$W$15,$I61=$W$16),AA$4,IF(AND($H61=$W$15,$I61<>$W$16),AA$5,IF(AND($H61<>$W$15,$I61=$W$16),AA$6,IF(AND($H61<>$W$15,$I61<>$W$16),AA$7)))) - IF(combos!J59=$AC$15,1,0)) -> 0.5 | N61: =IF(combos!K59=$AC$15,-1,1) * (IF(AND($H61=$W$15,$I61=$W$16),AB$4,IF(AND($H61=$W$15,$I61<>$W$16),AB$5,IF(AND($H61<>$W$15,$I61=$W$16),AB$6,IF(AND($H61<>$W$15,$I61<>$W$16),AB$7)))) - IF(combos!K59=$AC$15,1,0)) -> 0.5 | O61: =IF(combos!L59=$AC$15,-1,1) * (IF(AND($H61=$W$15,$I61=$W$16),AC$4,IF(AND($H61=$W$15,$I61<>$W$16),AC$5,IF(AND($H61<>$W$15,$I61=$W$16),AC$6,IF(AND($H61<>$W$15,$I61<>$W$16),AC$7)))) - IF(combos!L59=$AC$15,1,0)) -> 0.5 | P61: =IF(combos!B59=$AB$15,E61,1-E61) -> 0.5 | Q61: =IF(combos!C59=$AB$15,F61,1-F61) -> 0.5 | R61: =IF(combos!D59=$AB$15,G61,1-G61) -> 0.5 | S61: 0.00048828125
A62: Entsch Option A | B62: Ecol_up | C62: Econ_up | D62: SozKul_up | E62: =IF(AND(combos!G60=$AB$15,combos!H60=$AB$15),AH$4, IF(AND(combos!G60=$AB$15,combos!H60<>$AB$15), AH$5, IF(AND(combos!G60<>$AB$15,combos!H60=$AB$15),AH$6, IF(AND(combos!G60<>$AB$15,combos!H60<>$AB$15),AH$7 )))) -> 0.5 | F62: =IF(AND(combos!I60=$AB$15,combos!J60=$AB$15),AI$4, IF(AND(combos!I60=$AB$15,combos!J60<>$AB$15), AI$5, IF(AND(combos!I60<>$AB$15,combos!J60=$AB$15),AI$6, IF(AND(combos!I60<>$AB$15,combos!J60<>$AB$15),AI$7 )))) -> 0.5 | G62: =IF(AND(combos!K60=$AB$15,combos!L60=$AB$15),AJ$4, IF(AND(combos!K60=$AB$15,combos!L60<>$AB$15), AJ$5, IF(AND(combos!K60<>$AB$15,combos!L60=$AB$15),AJ$6, IF(AND(combos!K60<>$AB$15,combos!L60<>$AB$15),AJ$7 )))) -> 0.5 | H62: =IF(combos!E60=$AB$14,W$15,X$15) -> 0.5 | I62: =IF(combos!F60=$AB$14,$W$16,X$16) -> 0.5 | J62: =IF(combos!G60=$AC$15,-1,1) * (IF(AND($H62=$W$15,$I62=$W$16),X$4,IF(AND($H62=$W$15,$I62<>$W$16),X$5,IF(AND($H62<>$W$15,$I62=$W$16),X$6,IF(AND($H62<>$W$15,$I62<>$W$16),X$7)))) - IF(combos!G60=$AC$15,1,0)) -> 0.5 | K62: =IF(combos!H60=$AC$15,-1,1) * (IF(AND($H62=$W$15,$I62=$W$16),Y$4,IF(AND($H62=$W$15,$I62<>$W$16),Y$5,IF(AND($H62<>$W$15,$I62=$W$16),Y$6,IF(AND($H62<>$W$15,$I62<>$W$16),Y$7)))) - IF(combos!H60=$AC$15,1,0)) -> 0.5 | L62: =IF(combos!I60=$AC$15,-1,1) * (IF(AND($H62=$W$15,$I62=$W$16),Z$4,IF(AND($H62=$W$15,$I62<>$W$16),Z$5,IF(AND($H62<>$W$15,$I62=$W$16),Z$6,IF(AND($H62<>$W$15,$I62<>$W$16),Z$7)))) - IF(combos!I60=$AC$15,1,0)) -> 0.5 | M62: =IF(combos!J60=$AC$15,-1,1) * (IF(AND($H62=$W$15,$I62=$W$16),AA$4,IF(AND($H62=$W$15,$I62<>$W$16),AA$5,IF(AND($H62<>$W$15,$I62=$W$16),AA$6,IF(AND($H62<>$W$15,$I62<>$W$16),AA$7)))) - IF(combos!J60=$AC$15,1,0)) -> 0.5 | N62: =IF(combos!K60=$AC$15,-1,1) * (IF(AND($H62=$W$15,$I62=$W$16),AB$4,IF(AND($H62=$W$15,$I62<>$W$16),AB$5,IF(AND($H62<>$W$15,$I62=$W$16),AB$6,IF(AND($H62<>$W$15,$I62<>$W$16),AB$7)))) - IF(combos!K60=$AC$15,1,0)) -> 0.5 | O62: =IF(combos!L60=$AC$15,-1,1) * (IF(AND($H62=$W$15,$I62=$W$16),AC$4,IF(AND($H62=$W$15,$I62<>$W$16),AC$5,IF(AND($H62<>$W$15,$I62=$W$16),AC$6,IF(AND($H62<>$W$15,$I62<>$W$16),AC$7)))) - IF(combos!L60=$AC$15,1,0)) -> 0.5 | P62: =IF(combos!B60=$AB$15,E62,1-E62) -> 0.5 | Q62: =IF(combos!C60=$AB$15,F62,1-F62) -> 0.5 | R62: =IF(combos!D60=$AB$15,G62,1-G62) -> 0.5 | S62: 0.00048828125
A63: Entsch Option A | B63: Ecol_up | C63: Econ_up | D63: SozKul_up | E63: =IF(AND(combos!G61=$AB$15,combos!H61=$AB$15),AH$4, IF(AND(combos!G61=$AB$15,combos!H61<>$AB$15), AH$5, IF(AND(combos!G61<>$AB$15,combos!H61=$AB$15),AH$6, IF(AND(combos!G61<>$AB$15,combos!H61<>$AB$15),AH$7 )))) -> 0.5 | F63: =IF(AND(combos!I61=$AB$15,combos!J61=$AB$15),AI$4, IF(AND(combos!I61=$AB$15,combos!J61<>$AB$15), AI$5, IF(AND(combos!I61<>$AB$15,combos!J61=$AB$15),AI$6, IF(AND(combos!I61<>$AB$15,combos!J61<>$AB$15),AI$7 )))) -> 0.5 | G63: =IF(AND(combos!K61=$AB$15,combos!L61=$AB$15),AJ$4, IF(AND(combos!K61=$AB$15,combos!L61<>$AB$15), AJ$5, IF(AND(combos!K61<>$AB$15,combos!L61=$AB$15),AJ$6, IF(AND(combos!K61<>$AB$15,combos!L61<>$AB$15),AJ$7 )))) -> 0.5 | H63: =IF(combos!E61=$AB$14,W$15,X$15) -> 0.5 | I63: =IF(combos!F61=$AB$14,$W$16,X$16) -> 0.5 | J63: =IF(combos!G61=$AC$15,-1,1) * (IF(AND($H63=$W$15,$I63=$W$16),X$4,IF(AND($H63=$W$15,$I63<>$W$16),X$5,IF(AND($H63<>$W$15,$I63=$W$16),X$6,IF(AND($H63<>$W$15,$I63<>$W$16),X$7)))) - IF(combos!G61=$AC$15,1,0)) -> 0.5 | K63: =IF(combos!H61=$AC$15,-1,1) * (IF(AND($H63=$W$15,$I63=$W$16),Y$4,IF(AND($H63=$W$15,$I63<>$W$16),Y$5,IF(AND($H63<>$W$15,$I63=$W$16),Y$6,IF(AND($H63<>$W$15,$I63<>$W$16),Y$7)))) - IF(combos!H61=$AC$15,1,0)) -> 0.5 | L63: =IF(combos!I61=$AC$15,-1,1) * (IF(AND($H63=$W$15,$I63=$W$16),Z$4,IF(AND($H63=$W$15,$I63<>$W$16),Z$5,IF(AND($H63<>$W$15,$I63=$W$16),Z$6,IF(AND($H63<>$W$15,$I63<>$W$16),Z$7)))) - IF(combos!I61=$AC$15,1,0)) -> 0.5 | M63: =IF(combos!J61=$AC$15,-1,1) * (IF(AND($H63=$W$15,$I63=$W$16),AA$4,IF(AND($H63=$W$15,$I63<>$W$16),AA$5,IF(AND($H63<>$W$15,$I63=$W$16),AA$6,IF(AND($H63<>$W$15,$I63<>$W$16),AA$7)))) - IF(combos!J61=$AC$15,1,0)) -> 0.5 | N63: =IF(combos!K61=$AC$15,-1,1) * (IF(AND($H63=$W$15,$I63=$W$16),AB$4,IF(AND($H63=$W$15,$I63<>$W$16),AB$5,IF(AND($H63<>$W$15,$I63=$W$16),AB$6,IF(AND($H63<>$W$15,$I63<>$W$16),AB$7)))) - IF(combos!K61=$AC$15,1,0)) -> 0.5 | O63: =IF(combos!L61=$AC$15,-1,1) * (IF(AND($H63=$W$15,$I63=$W$16),AC$4,IF(AND($H63=$W$15,$I63<>$W$16),AC$5,IF(AND($H63<>$W$15,$I63=$W$16),AC$6,IF(AND($H63<>$W$15,$I63<>$W$16),AC$7)))) - IF(combos!L61=$AC$15,1,0)) -> 0.5 | P63: =IF(combos!B61=$AB$15,E63,1-E63) -> 0.5 | Q63: =IF(combos!C61=$AB$15,F63,1-F63) -> 0.5 | R63: =IF(combos!D61=$AB$15,G63,1-G63) -> 0.5 | S63: 0.00048828125
A64: Entsch Option A | B64: Ecol_up | C64: Econ_up | D64: SozKul_up | E64: =IF(AND(combos!G62=$AB$15,combos!H62=$AB$15),AH$4, IF(AND(combos!G62=$AB$15,combos!H62<>$AB$15), AH$5, IF(AND(combos!G62<>$AB$15,combos!H62=$AB$15),AH$6, IF(AND(combos!G62<>$AB$15,combos!H62<>$AB$15),AH$7 )))) -> 0.5 | F64: =IF(AND(combos!I62=$AB$15,combos!J62=$AB$15),AI$4, IF(AND(combos!I62=$AB$15,combos!J62<>$AB$15), AI$5, IF(AND(combos!I62<>$AB$15,combos!J62=$AB$15),AI$6, IF(AND(combos!I62<>$AB$15,combos!J62<>$AB$15),AI$7 )))) -> 0.5 | G64: =IF(AND(combos!K62=$AB$15,combos!L62=$AB$15),AJ$4, IF(AND(combos!K62=$AB$15,combos!L62<>$AB$15), AJ$5, IF(AND(combos!K62<>$AB$15,combos!L62=$AB$15),AJ$6, IF(AND(combos!K62<>$AB$15,combos!L62<>$AB$15),AJ$7 )))) -> 0.5 | H64: =IF(combos!E62=$AB$14,W$15,X$15) -> 0.5 | I64: =IF(combos!F62=$AB$14,$W$16,X$16) -> 0.5 | J64: =IF(combos!G62=$AC$15,-1,1) * (IF(AND($H64=$W$15,$I64=$W$16),X$4,IF(AND($H64=$W$15,$I64<>$W$16),X$5,IF(AND($H64<>$W$15,$I64=$W$16),X$6,IF(AND($H64<>$W$15,$I64<>$W$16),X$7)))) - IF(combos!G62=$AC$15,1,0)) -> 0.5 | K64: =IF(combos!H62=$AC$15,-1,1) * (IF(AND($H64=$W$15,$I64=$W$16),Y$4,IF(AND($H64=$W$15,$I64<>$W$16),Y$5,IF(AND($H64<>$W$15,$I64=$W$16),Y$6,IF(AND($H64<>$W$15,$I64<>$W$16),Y$7)))) - IF(combos!H62=$AC$15,1,0)) -> 0.5 | L64: =IF(combos!I62=$AC$15,-1,1) * (IF(AND($H64=$W$15,$I64=$W$16),Z$4,IF(AND($H64=$W$15,$I64<>$W$16),Z$5,IF(AND($H64<>$W$15,$I64=$W$16),Z$6,IF(AND($H64<>$W$15,$I64<>$W$16),Z$7)))) - IF(combos!I62=$AC$15,1,0)) -> 0.5 | M64: =IF(combos!J62=$AC$15,-1,1) * (IF(AND($H64=$W$15,$I64=$W$16),AA$4,IF(AND($H64=$W$15,$I64<>$W$16),AA$5,IF(AND($H64<>$W$15,$I64=$W$16),AA$6,IF(AND($H64<>$W$15,$I64<>$W$16),AA$7)))) - IF(combos!J62=$AC$15,1,0)) -> 0.5 | N64: =IF(combos!K62=$AC$15,-1,1) * (IF(AND($H64=$W$15,$I64=$W$16),AB$4,IF(AND($H64=$W$15,$I64<>$W$16),AB$5,IF(AND($H64<>$W$15,$I64=$W$16),AB$6,IF(AND($H64<>$W$15,$I64<>$W$16),AB$7)))) - IF(combos!K62=$AC$15,1,0)) -> 0.5 | O64: =IF(combos!L62=$AC$15,-1,1) * (IF(AND($H64=$W$15,$I64=$W$16),AC$4,IF(AND($H64=$W$15,$I64<>$W$16),AC$5,IF(AND($H64<>$W$15,$I64=$W$16),AC$6,IF(AND($H64<>$W$15,$I64<>$W$16),AC$7)))) - IF(combos!L62=$AC$15,1,0)) -> 0.5 | P64: =IF(combos!B62=$AB$15,E64,1-E64) -> 0.5 | Q64: =IF(combos!C62=$AB$15,F64,1-F64) -> 0.5 | R64: =IF(combos!D62=$AB$15,G64,1-G64) -> 0.5 | S64: 0.00048828125
A65: Entsch Option A | B65: Ecol_up | C65: Econ_up | D65: SozKul_up | E65: =IF(AND(combos!G63=$AB$15,combos!H63=$AB$15),AH$4, IF(AND(combos!G63=$AB$15,combos!H63<>$AB$15), AH$5, IF(AND(combos!G63<>$AB$15,combos!H63=$AB$15),AH$6, IF(AND(combos!G63<>$AB$15,combos!H63<>$AB$15),AH$7 )))) -> 0.5 | F65: =IF(AND(combos!I63=$AB$15,combos!J63=$AB$15),AI$4, IF(AND(combos!I63=$AB$15,combos!J63<>$AB$15), AI$5, IF(AND(combos!I63<>$AB$15,combos!J63=$AB$15),AI$6, IF(AND(combos!I63<>$AB$15,combos!J63<>$AB$15),AI$7 )))) -> 0.5 | G65: =IF(AND(combos!K63=$AB$15,combos!L63=$AB$15),AJ$4, IF(AND(combos!K63=$AB$15,combos!L63<>$AB$15), AJ$5, IF(AND(combos!K63<>$AB$15,combos!L63=$AB$15),AJ$6, IF(AND(combos!K63<>$AB$15,combos!L63<>$AB$15),AJ$7 )))) -> 0.5 | H65: =IF(combos!E63=$AB$14,W$15,X$15) -> 0.5 | I65: =IF(combos!F63=$AB$14,$W$16,X$16) -> 0.5 | J65: =IF(combos!G63=$AC$15,-1,1) * (IF(AND($H65=$W$15,$I65=$W$16),X$4,IF(AND($H65=$W$15,$I65<>$W$16),X$5,IF(AND($H65<>$W$15,$I65=$W$16),X$6,IF(AND($H65<>$W$15,$I65<>$W$16),X$7)))) - IF(combos!G63=$AC$15,1,0)) -> 0.5 | K65: =IF(combos!H63=$AC$15,-1,1) * (IF(AND($H65=$W$15,$I65=$W$16),Y$4,IF(AND($H65=$W$15,$I65<>$W$16),Y$5,IF(AND($H65<>$W$15,$I65=$W$16),Y$6,IF(AND($H65<>$W$15,$I65<>$W$16),Y$7)))) - IF(combos!H63=$AC$15,1,0)) -> 0.5 | L65: =IF(combos!I63=$AC$15,-1,1) * (IF(AND($H65=$W$15,$I65=$W$16),Z$4,IF(AND($H65=$W$15,$I65<>$W$16),Z$5,IF(AND($H65<>$W$15,$I65=$W$16),Z$6,IF(AND($H65<>$W$15,$I65<>$W$16),Z$7)))) - IF(combos!I63=$AC$15,1,0)) -> 0.5 | M65: =IF(combos!J63=$AC$15,-1,1) * (IF(AND($H65=$W$15,$I65=$W$16),AA$4,IF(AND($H65=$W$15,$I65<>$W$16),AA$5,IF(AND($H65<>$W$15,$I65=$W$16),AA$6,IF(AND($H65<>$W$15,$I65<>$W$16),AA$7)))) - IF(combos!J63=$AC$15,1,0)) -> 0.5 | N65: =IF(combos!K63=$AC$15,-1,1) * (IF(AND($H65=$W$15,$I65=$W$16),AB$4,IF(AND($H65=$W$15,$I65<>$W$16),AB$5,IF(AND($H65<>$W$15,$I65=$W$16),AB$6,IF(AND($H65<>$W$15,$I65<>$W$16),AB$7)))) - IF(combos!K63=$AC$15,1,0)) -> 0.5 | O65: =IF(combos!L63=$AC$15,-1,1) * (IF(AND($H65=$W$15,$I65=$W$16),AC$4,IF(AND($H65=$W$15,$I65<>$W$16),AC$5,IF(AND($H65<>$W$15,$I65=$W$16),AC$6,IF(AND($H65<>$W$15,$I65<>$W$16),AC$7)))) - IF(combos!L63=$AC$15,1,0)) -> 0.5 | P65: =IF(combos!B63=$AB$15,E65,1-E65) -> 0.5 | Q65: =IF(combos!C63=$AB$15,F65,1-F65) -> 0.5 | R65: =IF(combos!D63=$AB$15,G65,1-G65) -> 0.5 | S65: 0.00048828125
A66: Entsch Option A | B66: Ecol_up | C66: Econ_up | D66: SozKul_up | E66: =IF(AND(combos!G64=$AB$15,combos!H64=$AB$15),AH$4, IF(AND(combos!G64=$AB$15,combos!H64<>$AB$15), AH$5, IF(AND(combos!G64<>$AB$15,combos!H64=$AB$15),AH$6, IF(AND(combos!G64<>$AB$15,combos!H64<>$AB$15),AH$7 )))) -> 0.5 | F66: =IF(AND(combos!I64=$AB$15,combos!J64=$AB$15),AI$4, IF(AND(combos!I64=$AB$15,combos!J64<>$AB$15), AI$5, IF(AND(combos!I64<>$AB$15,combos!J64=$AB$15),AI$6, IF(AND(combos!I64<>$AB$15,combos!J64<>$AB$15),AI$7 )))) -> 0.5 | G66: =IF(AND(combos!K64=$AB$15,combos!L64=$AB$15),AJ$4, IF(AND(combos!K64=$AB$15,combos!L64<>$AB$15), AJ$5, IF(AND(combos!K64<>$AB$15,combos!L64=$AB$15),AJ$6, IF(AND(combos!K64<>$AB$15,combos!L64<>$AB$15),AJ$7 )))) -> 0.5 | H66: =IF(combos!E64=$AB$14,W$15,X$15) -> 0.5 | I66: =IF(combos!F64=$AB$14,$W$16,X$16) -> 0.5 | J66: =IF(combos!G64=$AC$15,-1,1) * (IF(AND($H66=$W$15,$I66=$W$16),X$4,IF(AND($H66=$W$15,$I66<>$W$16),X$5,IF(AND($H66<>$W$15,$I66=$W$16),X$6,IF(AND($H66<>$W$15,$I66<>$W$16),X$7)))) - IF(combos!G64=$AC$15,1,0)) -> 0.5 | K66: =IF(combos!H64=$AC$15,-1,1) * (IF(AND($H66=$W$15,$I66=$W$16),Y$4,IF(AND($H66=$W$15,$I66<>$W$16),Y$5,IF(AND($H66<>$W$15,$I66=$W$16),Y$6,IF(AND($H66<>$W$15,$I66<>$W$16),Y$7)))) - IF(combos!H64=$AC$15,1,0)) -> 0.5 | L66: =IF(combos!I64=$AC$15,-1,1) * (IF(AND($H66=$W$15,$I66=$W$16),Z$4,IF(AND($H66=$W$15,$I66<>$W$16),Z$5,IF(AND($H66<>$W$15,$I66=$W$16),Z$6,IF(AND($H66<>$W$15,$I66<>$W$16),Z$7)))) - IF(combos!I64=$AC$15,1,0)) -> 0.5 | M66: =IF(combos!J64=$AC$15,-1,1) * (IF(AND($H66=$W$15,$I66=$W$16),AA$4,IF(AND($H66=$W$15,$I66<>$W$16),AA$5,IF(AND($H66<>$W$15,$I66=$W$16),AA$6,IF(AND($H66<>$W$15,$I66<>$W$16),AA$7)))) - IF(combos!J64=$AC$15,1,0)) -> 0.5 | N66: =IF(combos!K64=$AC$15,-1,1) * (IF(AND($H66=$W$15,$I66=$W$16),AB$4,IF(AND($H66=$W$15,$I66<>$W$16),AB$5,IF(AND($H66<>$W$15,$I66=$W$16),AB$6,IF(AND($H66<>$W$15,$I66<>$W$16),AB$7)))) - IF(combos!K64=$AC$15,1,0)) -> 0.5 | O66: =IF(combos!L64=$AC$15,-1,1) * (IF(AND($H66=$W$15,$I66=$W$16),AC$4,IF(AND($H66=$W$15,$I66<>$W$16),AC$5,IF(AND($H66<>$W$15,$I66=$W$16),AC$6,IF(AND($H66<>$W$15,$I66<>$W$16),AC$7)))) - IF(combos!L64=$AC$15,1,0)) -> 0.5 | P66: =IF(combos!B64=$AB$15,E66,1-E66) -> 0.5 | Q66: =IF(combos!C64=$AB$15,F66,1-F66) -> 0.5 | R66: =IF(combos!D64=$AB$15,G66,1-G66) -> 0.5 | S66: 0.00048828125
